Workbook

Sheet BSTMI_src (hidden)
E1: Country list | F1: Business type list | H1: Eligibility Results | I1: Max loan | J1: Min loan | K1: CO2 threshold in Tonnes per £1,000 loan | O1: total CO2 saved per year
B2: Yes | C2: 2 | E2: England | F2: SME | H2: 0 | I2: 0 | J2: 3000 | K2: 2.5 | O2: =ResultsForSelectedOption1!N120-ResultsForSelectedOption1!I120 ->  | P2: ton
B3: No | C3: =IF(C2=1,1,0) -> 0 | E3: Scotland | F3: Non SME | O3: =O2*1000 ->  | P3: £
E4: Wales | N4: CT loan available | O4: 0 | P4: £
E5: North Ireland
O6: =IF(O3>I2,I2,IF(O3>J2,O3,J2)) -> 

Sheet BiomassSizingToolMainInterface
F5: Biomass Boiler System Sizing Tool (Version 6.8.3)
E7: Project Information
E9: Project Reference No.: | L9: Site:
E10: Project Name: | L10: Analysis by:
E11: Client: | L11: Company:
E12: Project Location: | G12: Glasgow | L12: Date:
C19: The user must enter data in
C20: every cell with a white
C21: background throughout the Tool
B53: Disclaimer
B54: The following terms and conditions apply to the Carbon Trust Biomass Decision Support Tool, and are in addition to those generally applicable to the Carbon Trust website. However, in the event of any inconsistency between the provisions of the terms and conditions of the website and those of this tool, the terms and conditions pertaining to this tool shall take precedence. • This design tool for biomass heating systems has been developed by the Carbon Trust in collaboration with The University of Strathclyde and the Campbell Palmer Partnership Limited, using funding from the Carbon Trust, as a decision support-tool for those investigating and/or specifying biomass heating systems. • Users of this tool should refer to the detailed guidance documentation which accompanies it before use - User Manual: Version 6.8 (PDF) • The tool is intended primarily for customers of the Carbon Trust, typically UK businesses and public sector organisations. • Permission is granted for informational, non-profitable and personal use (including in the course of business) and provided that you do not remove, adapt, alter or obscure any of the information, content or notices (such as copyright and other proprietary notices) contained in the tool. You may not (without the prior written permission of the Carbon Trust or in accordance with the Copyright, Designs and Patents Act 1988) copy, reproduce, republish, store in any medium (including in any other website), make available, whether free of charge or at cost, to the public, or otherwise use the tool (including, but not limited to, "caching" any part of it) for access by third parties or "mirroring" any part of it in any way except for informational, non-profitable and personal use (including in the course of business). Any other use of the tool requires the prior written permission of the Carbon Trust; • The tool is maintained by The University of Strathclyde; whilst steps have been taken by the University of Strathclyde to ensure that the input data behind it, the algorithms which operate within it and its overall functionality are accurate and reliable, this cannot be guaranteed. The Carbon Trust, its agents, contractors, and sub-contractors, and the University of Strathclyde, its agents, contractors and sub-contractors give no warranty (either express or implied) and make no representation as to its accuracy and accept no liability in any way whatsoever for any omissions or errors contained within it nor for any losses incurred (either direct or indirect) as a result of its use. Any person or organisation using this tool should satisfy themselves as to the validity of any outputs derived from it.
G78: Belfast | I78: =LOOKUP(G12,G78:G85) -> Glasgow
G79: Birmingham
G80: Cardiff
G81: Edinburgh
G82: Glasgow
G83: London
G84: Manchester
G85: Plymouth

Sheet WinterLoadTemplateBank
B2: Selected template | D2: =IF(DemandSourceSelectInterface!V3=4,EmbeddedMonthlyDemandCalculator!M309,IF(OR(DemandSourceSelectInterface!V3=3,DemandSourceSelectInterface!V3=4),MonthlyEnergyUsageData!M249,DbspData!N254)) -> mwmimgct
B3: OAT | D3: =IF(DemandSourceSelectInterface!V3=4,EmbeddedMonthlyDemandCalculator!H14,IF(DemandSourceSelectInterface!V3=3,MonthlyEnergyUsageData!E25,IF(OR(DemandSourceSelectInterface!V3=1,DemandSourceSelectInterface!V3=2),DbspData!E12,NA()))) -> 0 | F3: Internal temp | G3: =IF(DemandSourceSelectInterface!V3=4,EmbeddedMonthlyDemandCalculator!D12,IF(DemandSourceSelectInterface!V3=3,MonthlyEnergyUsageData!E27,IF(OR(DemandSourceSelectInterface!V3=1,DemandSourceSelectInterface!V3=2),21,NA()))) -> 21 | Y3: Daily load
B4: Selected template data | Z4: User calculated heat losses
B5: Time (h) | Y5: Ground heat loss | Z5: Fabric heat losses (W/K) | AB5: Coldest day average temperature | AC5: Total Daily Demand (kW) | AD5: Average fabric heat losses coldest day (kW) | AF5: Energy demand (kWh) | AG5: solar radiation (kW) | AH5: Hot Water mean load (kW) | AI5: Ventilation heat losses W/K | AJ5: Ventilation losses (kW) | AK5: Casual gains (kW) | AL5: Swimming pool | AM5: Extra Ventilation Loss (kW) | AN5: Basic ventilation rate (kW)
D6: pilot building | E6: Consumed energy | Y6: =IF(DemandSourceSelectInterface!V3=4,EmbeddedMonthlyDemandCalculator!J46,0) -> 0 | Z6: =IF(DemandSourceSelectInterface!V3=4,SUM(EmbeddedMonthlyDemandCalculator!J34:J35,EmbeddedMonthlyDemandCalculator!J37:J42,EmbeddedMonthlyDemandCalculator!J44,EmbeddedMonthlyDemandCalculator!J49:J54,EmbeddedMonthlyDemandCalculator!J56),MonthlyEnergyUsageData!P338) -> 0 | AB6: =IF(DemandSourceSelectInterface!V3=4,EmbeddedMonthlyDemandCalculator!H15,MonthlyEnergyUsageData!E25) -> 0 | AC6: =MonthlyEnergyUsageData!E42/SUM(Y9:Y32) -> 0 | AD6: =(Z6*(IF(DemandSourceSelectInterface!V3=4,EmbeddedMonthlyDemandCalculator!D12,MonthlyEnergyUsageData!E27)-IF(DemandSourceSelectInterface!V3=4,EmbeddedMonthlyDemandCalculator!H15,MonthlyEnergyUsageData!E25))+Y6*(EmbeddedMonthlyDemandCalculator!D12-VLOOKUP(EmbeddedMonthlyDemandCalculator!D10,EmbeddedMonthlyDemandCalculator!D384:G391,3,FALSE)))/1000 -> 0 | AF6: =AD6*SUM(Y9:Y32) -> 0 | AG6: =IF(DemandSourceSelectInterface!V3=4,EmbeddedMonthlyDemandCalculator!R31/1000,0) -> 0 | AH6: =IF(DemandSourceSelectInterface!V3=4,EmbeddedMonthlyDemandCalculator!I72,HotWaterVentilation!F23) -> 0 | AI6: =IF(DemandSourceSelectInterface!V3=4,EmbeddedMonthlyDemandCalculator!I330,HotWaterVentilation!F25) -> 0 | AJ6: =IF(DemandSourceSelectInterface!V3=4,0,$AI$6*($G$3-$D$3)/1000) -> 0 | AK6: =IF(DemandSourceSelectInterface!V3=4,EmbeddedMonthlyDemandCalculator!R45,CasualGain!J29) -> 0 | AL6: =0 -> 0 | AM6: =IF(DemandSourceSelectInterface!V3=4,EmbeddedMonthlyDemandCalculator!I68,0)*($G$3-$D$3)/1000 -> 0 | AN6: =EmbeddedMonthlyDemandCalculator!I330*($G$3-$D$3)/1000 -> 0
B7: 00:00:00 | C7: =HLOOKUP($D$3,$B$38:$T$62,2,TRUE) -> 17.2 | D7: =C7 -> 17.2 | E7: =SUM(C7:C30) -> 438.89 | F7: kWh day
B8: 01:00:00 | C8: =HLOOKUP($D$3,$B$38:$T$62,3,TRUE) -> 18.69 | D8: =C8 -> 18.69 | E8: =E7/24 -> 18.28708333 | F8: Average power kW | Z8: New Load profile | AB8: Scaling factor | AD8: =IF(DemandSourceSelectInterface!V3=4,((AD6+AN6-AG6)*EmbeddedMonthlyDemandCalculator!Q330)/E9,(AC6-AH6+AK6-AJ6)/E9) -> 0
B9: 02:00:00 | C9: =HLOOKUP($D$3,$B$38:$T$62,4,TRUE) -> 18.93 | D9: 18.93 | E9: =SUM(D7:D30)/24 -> 18.28708333 | F9: Normalized average | Y9: =IF(ISNUMBER(SEARCH("lo",$D$2)),0,IF(ISNUMBER(SEARCH("mo",$D$2)),0,1)) -> 1 | Z9: 00:00:00 | AA9: =IF((IF(D7=0,0,D7*$AD$8)+Y9*($AH$6-$AK$6+$AM$6+$AJ$6))<0,0,(IF(D7=0,0,D7*$AD$8)+Y9*($AH$6-$AK$6+$AM$6+$AJ$6))) -> 0
B10: 03:00:00 | C10: =HLOOKUP($D$3,$B$38:$T$62,5,TRUE) -> 19.46 | D10: 19.46 | Y10: =IF(ISNUMBER(SEARCH("lo",$D$2)),0,IF(ISNUMBER(SEARCH("mo",$D$2)),0,1)) -> 1 | Z10: 01:00:00 | AA10: =IF((IF(D8=0,0,D8*$AD$8)+Y10*($AH$6-$AK$6+$AM$6+$AJ$6))<0,0,(IF(D8=0,0,D8*$AD$8)+Y10*($AH$6-$AK$6+$AM$6+$AJ$6))) -> 0
B11: 04:00:00 | C11: =HLOOKUP($D$3,$B$38:$T$62,6,TRUE) -> 19.35 | D11: 19.35 | Y11: 1 | Z11: 02:00:00 | AA11: 0
B12: 05:00:00 | C12: =HLOOKUP($D$3,$B$38:$T$62,7,TRUE) -> 19.4 | D12: 19.4 | Y12: 1 | Z12: 03:00:00 | AA12: 0
B13: 06:00:00 | C13: =HLOOKUP($D$3,$B$38:$T$62,8,TRUE) -> 19.65 | D13: 19.65 | Y13: 1 | Z13: 04:00:00 | AA13: 0
B14: 07:00:00 | C14: =HLOOKUP($D$3,$B$38:$T$62,9,TRUE) -> 20.01 | D14: 20.01 | Y14: 1 | Z14: 05:00:00 | AA14: 0
B15: 08:00:00 | C15: =HLOOKUP($D$3,$B$38:$T$62,10,TRUE) -> 20.34 | D15: 20.34 | Y15: 1 | Z15: 06:00:00 | AA15: 0
B16: 09:00:00 | C16: =HLOOKUP($D$3,$B$38:$T$62,11,TRUE) -> 20.25 | D16: 20.25 | Y16: =IF(ISNUMBER(SEARCH("lo",$D$2)),0,IF(ISNUMBER(SEARCH("mo",$D$2)),1,1)) -> 1 | Z16: 07:00:00 | AA16: 0
B17: 10:00:00 | C17: =HLOOKUP($D$3,$B$38:$T$62,12,TRUE) -> 19.91 | D17: 19.91 | Y17: =IF(ISNUMBER(SEARCH("lo",$D$2)),1,IF(ISNUMBER(SEARCH("mo",$D$2)),1,1)) -> 1 | Z17: 08:00:00 | AA17: 0
B18: 11:00:00 | C18: =HLOOKUP($D$3,$B$38:$T$62,13,TRUE) -> 19.31 | D18: 19.31 | Y18: =IF(ISNUMBER(SEARCH("lo",$D$2)),1,IF(ISNUMBER(SEARCH("mo",$D$2)),1,1)) -> 1 | Z18: 09:00:00 | AA18: 0
B19: 12:00:00 | C19: =HLOOKUP($D$3,$B$38:$T$62,14,TRUE) -> 18.29 | D19: 18.29 | Y19: 1 | Z19: 10:00:00 | AA19: 0
B20: 13:00:00 | C20: =HLOOKUP($D$3,$B$38:$T$62,15,TRUE) -> 17.55 | D20: 17.55 | Y20: 1 | Z20: 11:00:00 | AA20: 0
B21: 14:00:00 | C21: =HLOOKUP($D$3,$B$38:$T$62,16,TRUE) -> 17.63 | D21: 17.63 | Y21: 1 | Z21: 12:00:00 | AA21: 0
B22: 15:00:00 | C22: =HLOOKUP($D$3,$B$38:$T$62,17,TRUE) -> 16.69 | D22: 16.69 | Y22: 1 | Z22: 13:00:00 | AA22: 0
B23: 16:00:00 | C23: =HLOOKUP($D$3,$B$38:$T$62,18,TRUE) -> 16 | D23: 16 | Y23: 1 | Z23: 14:00:00 | AA23: 0
B24: 17:00:00 | C24: =HLOOKUP($D$3,$B$38:$T$62,19,TRUE) -> 17.42 | D24: 17.42 | Y24: 1 | Z24: 15:00:00 | AA24: 0
B25: 18:00:00 | C25: =HLOOKUP($D$3,$B$38:$T$62,20,TRUE) -> 17.45 | D25: 17.45 | Y25: 1 | Z25: 16:00:00 | AA25: 0
B26: 19:00:00 | C26: =HLOOKUP($D$3,$B$38:$T$62,21,TRUE) -> 17.24 | D26: 17.24 | Y26: 1 | Z26: 17:00:00 | AA26: 0
B27: 20:00:00 | C27: =HLOOKUP($D$3,$B$38:$T$62,22,TRUE) -> 17.09 | D27: 17.09 | Y27: =IF(ISNUMBER(SEARCH("lo",$D$2)),0,IF(ISNUMBER(SEARCH("mo",$D$2)),1,1)) -> 1 | Z27: 18:00:00 | AA27: 0
B28: 21:00:00 | C28: =HLOOKUP($D$3,$B$38:$T$62,23,TRUE) -> 17.08 | D28: 17.08 | Y28: =IF(ISNUMBER(SEARCH("lo",$D$2)),0,IF(ISNUMBER(SEARCH("mo",$D$2)),1,1)) -> 1 | Z28: 19:00:00 | AA28: 0
B29: 22:00:00 | C29: =HLOOKUP($D$3,$B$38:$T$62,24,TRUE) -> 17.1 | D29: 17.1 | Y29: =IF(ISNUMBER(SEARCH("lo",$D$2)),0,IF(ISNUMBER(SEARCH("mo",$D$2)),1,1)) -> 1 | Z29: 20:00:00 | AA29: 0
B30: 23:00:00 | C30: =HLOOKUP($D$3,$B$38:$T$62,25,TRUE) -> 16.85 | D30: 16.85 | Y30: =IF(ISNUMBER(SEARCH("lo",$D$2)),0,IF(ISNUMBER(SEARCH("mo",$D$2)),1,1)) -> 1 | Z30: 21:00:00 | AA30: 0
B31: Peak load | D31: =LARGE(C7:C30,1) -> 20.34 | Y31: =IF(ISNUMBER(SEARCH("lo",$D$2)),0,IF(ISNUMBER(SEARCH("mo",$D$2)),1,1)) -> 1 | Z31: 22:00:00 | AA31: 0
B32: Minimum load | D32: =SMALL(C7:C30,1) -> 16 | Y32: =IF(ISNUMBER(SEARCH("lo",$D$2)),0,IF(ISNUMBER(SEARCH("mo",$D$2)),0,1)) -> 1 | Z32: 23:00:00 | AA32: 0
B37: Time | C37: Outside Air Temperature (oC)
C38: -3 | D38: -2 | E38: -1 | F38: 0 | G38: 1 | H38: 2 | I38: 3 | J38: 4 | K38: 5 | L38: 6 | M38: 7 | N38: 8 | O38: 9 | P38: 10 | Q38: 11 | R38: 12 | S38: 13 | T38: 14
B39: 00:00:00 | C39: =Bank3N!C7 -> 19.58 | D39: =Bank2N!C7 -> 19.89 | E39: =Bank1N!C7 -> 19.24 | F39: =Bank0!C7 -> 17.2 | G39: =Bank1!C7 -> 17.41 | H39: =Bank2!C7 -> 16.82 | I39: =Bank3!C7 -> 15.93 | J39: =Bank4!C7 -> 16.12 | K39: =Bank5!C7 -> 15.51 | L39: =Bank6!C7 -> 14.08 | M39: =Bank7!C7 -> 13.86 | N39: =Bank8!C7 -> 13.1 | O39: =Bank9!C7 -> 6.17 | P39: =Bank10!C7 -> 7.16 | Q39: =Bank11!C7 -> 6.88 | R39: =Bank12!C7 -> 3.71 | S39: =Bank13!C7 -> 4.38 | T39: =Bank14!C7 -> 3.93
B40: 01:00:00 | C40: =Bank3N!C8 -> 21.12 | D40: =Bank2N!C8 -> 21.08 | E40: =Bank1N!C8 -> 20.4 | F40: =Bank0!C8 -> 18.69 | G40: =Bank1!C8 -> 18.54 | H40: =Bank2!C8 -> 17.93 | I40: =Bank3!C8 -> 16.68 | J40: =Bank4!C8 -> 16.51 | K40: =Bank5!C8 -> 15.86 | L40: =Bank6!C8 -> 14.73 | M40: =Bank7!C8 -> 14.16 | N40: =Bank8!C8 -> 13.38 | O40: =Bank9!C8 -> 6.33 | P40: =Bank10!C8 -> 7.01 | Q40: =Bank11!C8 -> 6.73 | R40: =Bank12!C8 -> 3.95 | S40: =Bank13!C8 -> 4.3 | T40: =Bank14!C8 -> 3.85
B41: 02:00:00 | C41: =Bank3N!C9 -> 21.36 | D41: =Bank2N!C9 -> 21.21 | E41: =Bank1N!C9 -> 20.52 | F41: =Bank0!C9 -> 18.93 | G41: =Bank1!C9 -> 18.68 | H41: =Bank2!C9 -> 18.06 | I41: =Bank3!C9 -> 16.81 | J41: =Bank4!C9 -> 16.52 | K41: =Bank5!C9 -> 15.87 | L41: =Bank6!C9 -> 14.82 | M41: =Bank7!C9 -> 14.17 | N41: =Bank8!C9 -> 13.38 | O41: =Bank9!C9 -> 6.43 | P41: =Bank10!C9 -> 7 | Q41: =Bank11!C9 -> 6.7 | R41: =Bank12!C9 -> 4.09 | S41: =Bank13!C9 -> 4.31 | T41: =Bank14!C9 -> 3.86
B42: 03:00:00 | C42: =Bank3N!C10 -> 21.9 | D42: =Bank2N!C10 -> 21.7 | E42: =Bank1N!C10 -> 21.01 | F42: =Bank0!C10 -> 19.46 | G42: =Bank1!C10 -> 19.17 | H42: =Bank2!C10 -> 18.53 | I42: =Bank3!C10 -> 16.78 | J42: =Bank4!C10 -> 16.47 | K42: =Bank5!C10 -> 15.81 | L42: =Bank6!C10 -> 14.77 | M42: =Bank7!C10 -> 14.11 | N42: =Bank8!C10 -> 13.31 | O42: =Bank9!C10 -> 6.35 | P42: =Bank10!C10 -> 6.87 | Q42: =Bank11!C10 -> 6.56 | R42: =Bank12!C10 -> 4.04 | S42: =Bank13!C10 -> 4.18 | T42: =Bank14!C10 -> 3.72
B43: 04:00:00 | C43: =Bank3N!C11 -> 21.77 | D43: =Bank2N!C11 -> 21.55 | E43: =Bank1N!C11 -> 20.86 | F43: =Bank0!C11 -> 19.35 | G43: =Bank1!C11 -> 19.05 | H43: =Bank2!C11 -> 18.42 | I43: =Bank3!C11 -> 16.55 | J43: =Bank4!C11 -> 16.21 | K43: =Bank5!C11 -> 15.54 | L43: =Bank6!C11 -> 14.51 | M43: =Bank7!C11 -> 13.84 | N43: =Bank8!C11 -> 13.04 | O43: =Bank9!C11 -> 6.32 | P43: =Bank10!C11 -> 6.8 | Q43: =Bank11!C11 -> 6.45 | R43: =Bank12!C11 -> 4 | S43: =Bank13!C11 -> 4.07 | T43: =Bank14!C11 -> 3.59
B44: 05:00:00 | C44: =Bank3N!C12 -> 21.81 | D44: =Bank2N!C12 -> 21.58 | E44: =Bank1N!C12 -> 20.87 | F44: =Bank0!C12 -> 19.4 | G44: =Bank1!C12 -> 19.09 | H44: =Bank2!C12 -> 18.45 | I44: =Bank3!C12 -> 16.39 | J44: =Bank4!C12 -> 16.02 | K44: =Bank5!C12 -> 15.34 | L44: =Bank6!C12 -> 14.32 | M44: =Bank7!C12 -> 13.63 | N44: =Bank8!C12 -> 12.83 | O44: =Bank9!C12 -> 6.32 | P44: =Bank10!C12 -> 6.75 | Q44: =Bank11!C12 -> 6.37 | R44: =Bank12!C12 -> 3.98 | S44: =Bank13!C12 -> 4 | T44: =Bank14!C12 -> 3.5
B45: 06:00:00 | C45: =Bank3N!C13 -> 22.07 | D45: =Bank2N!C13 -> 21.81 | E45: =Bank1N!C13 -> 21.1 | F45: =Bank0!C13 -> 19.65 | G45: =Bank1!C13 -> 19.31 | H45: =Bank2!C13 -> 18.66 | I45: =Bank3!C13 -> 16.84 | J45: =Bank4!C13 -> 16.44 | K45: =Bank5!C13 -> 15.73 | L45: =Bank6!C13 -> 14.7 | M45: =Bank7!C13 -> 14 | N45: =Bank8!C13 -> 13.18 | O45: =Bank9!C13 -> 6.07 | P45: =Bank10!C13 -> 6.44 | Q45: =Bank11!C13 -> 6.05 | R45: =Bank12!C13 -> 3.74 | S45: =Bank13!C13 -> 3.73 | T45: =Bank14!C13 -> 3.22
B46: 07:00:00 | C46: =Bank3N!C14 -> 22.44 | D46: =Bank2N!C14 -> 22.15 | E46: =Bank1N!C14 -> 21.43 | F46: =Bank0!C14 -> 20.01 | G46: =Bank1!C14 -> 19.65 | H46: =Bank2!C14 -> 19 | I46: =Bank3!C14 -> 17.11 | J46: =Bank4!C14 -> 16.69 | K46: =Bank5!C14 -> 15.97 | L46: =Bank6!C14 -> 14.94 | M46: =Bank7!C14 -> 14.23 | N46: =Bank8!C14 -> 13.4 | O46: =Bank9!C14 -> 5.46 | P46: =Bank10!C14 -> 5.76 | Q46: =Bank11!C14 -> 5.36 | R46: =Bank12!C14 -> 3.15 | S46: =Bank13!C14 -> 3.13 | T46: =Bank14!C14 -> 2.62
B47: 08:00:00 | C47: =Bank3N!C15 -> 22.75 | D47: =Bank2N!C15 -> 22.46 | E47: =Bank1N!C15 -> 21.74 | F47: =Bank0!C15 -> 20.34 | G47: =Bank1!C15 -> 19.98 | H47: =Bank2!C15 -> 19.33 | I47: =Bank3!C15 -> 17.26 | J47: =Bank4!C15 -> 16.82 | K47: =Bank5!C15 -> 16.09 | L47: =Bank6!C15 -> 15.06 | M47: =Bank7!C15 -> 14.34 | N47: =Bank8!C15 -> 13.5 | O47: =Bank9!C15 -> 4.94 | P47: =Bank10!C15 -> 5.18 | Q47: =Bank11!C15 -> 4.77 | R47: =Bank12!C15 -> 2.64 | S47: =Bank13!C15 -> 2.61 | T47: =Bank14!C15 -> 2.08
B48: 09:00:00 | C48: =Bank3N!C16 -> 22.6 | D48: =Bank2N!C16 -> 22.3 | E48: =Bank1N!C16 -> 21.58 | F48: =Bank0!C16 -> 20.25 | G48: =Bank1!C16 -> 19.88 | H48: =Bank2!C16 -> 19.23 | I48: =Bank3!C16 -> 17.26 | J48: =Bank4!C16 -> 16.79 | K48: =Bank5!C16 -> 16.05 | L48: =Bank6!C16 -> 15.03 | M48: =Bank7!C16 -> 14.3 | N48: =Bank8!C16 -> 13.47 | O48: =Bank9!C16 -> 4.28 | P48: =Bank10!C16 -> 4.46 | Q48: =Bank11!C16 -> 4.03 | R48: =Bank12!C16 -> 1.98 | S48: =Bank13!C16 -> 1.92 | T48: =Bank14!C16 -> 1.4
B49: 10:00:00 | C49: =Bank3N!C17 -> 22.19 | D49: =Bank2N!C17 -> 21.87 | E49: =Bank1N!C17 -> 21.19 | F49: =Bank0!C17 -> 19.91 | G49: =Bank1!C17 -> 19.52 | H49: =Bank2!C17 -> 18.86 | I49: =Bank3!C17 -> 17.19 | J49: =Bank4!C17 -> 16.7 | K49: =Bank5!C17 -> 15.95 | L49: =Bank6!C17 -> 14.94 | M49: =Bank7!C17 -> 14.2 | N49: =Bank8!C17 -> 13.37 | O49: =Bank9!C17 -> 2.78 | P49: =Bank10!C17 -> 2.91 | Q49: =Bank11!C17 -> 2.5 | R49: =Bank12!C17 -> 0.57 | S49: =Bank13!C17 -> 0.57 | T49: =Bank14!C17 -> 0.27
B50: 11:00:00 | C50: =Bank3N!C18 -> 21.62 | D50: =Bank2N!C18 -> 21.27 | E50: =Bank1N!C18 -> 20.59 | F50: =Bank0!C18 -> 19.31 | G50: =Bank1!C18 -> 18.9 | H50: =Bank2!C18 -> 18.23 | I50: =Bank3!C18 -> 16.91 | J50: =Bank4!C18 -> 16.41 | K50: =Bank5!C18 -> 15.66 | L50: =Bank6!C18 -> 14.65 | M50: =Bank7!C18 -> 13.91 | N50: =Bank8!C18 -> 13.08 | O50: =Bank9!C18 -> 0.74 | P50: =Bank10!C18 -> 0.98 | Q50: =Bank11!C18 -> 0.63 | R50: =Bank12!C18 -> 0 | S50: =Bank13!C18 -> 0 | T50: =Bank14!C18 -> 0
B51: 12:00:00 | C51: =Bank3N!C19 -> 20.63 | D51: =Bank2N!C19 -> 20.25 | E51: =Bank1N!C19 -> 19.56 | F51: =Bank0!C19 -> 18.29 | G51: =Bank1!C19 -> 17.85 | H51: =Bank2!C19 -> 17.17 | I51: =Bank3!C19 -> 16.79 | J51: =Bank4!C19 -> 16.27 | K51: =Bank5!C19 -> 15.52 | L51: =Bank6!C19 -> 14.51 | M51: =Bank7!C19 -> 13.77 | N51: =Bank8!C19 -> 12.94 | O51: =Bank9!C19 -> 0 | P51: =Bank10!C19 -> 0 | Q51: =Bank11!C19 -> 0 | R51: =Bank12!C19 -> 0 | S51: =Bank13!C19 -> 0 | T51: =Bank14!C19 -> 0
B52: 13:00:00 | C52: =Bank3N!C20 -> 19.96 | D52: =Bank2N!C20 -> 19.53 | E52: =Bank1N!C20 -> 18.82 | F52: =Bank0!C20 -> 17.55 | G52: =Bank1!C20 -> 17.07 | H52: =Bank2!C20 -> 16.37 | I52: =Bank3!C20 -> 16.53 | J52: =Bank4!C20 -> 16 | K52: =Bank5!C20 -> 15.24 | L52: =Bank6!C20 -> 14.24 | M52: =Bank7!C20 -> 13.49 | N52: =Bank8!C20 -> 12.66 | O52: =Bank9!C20 -> 0 | P52: =Bank10!C20 -> 0 | Q52: =Bank11!C20 -> 0 | R52: =Bank12!C20 -> 0 | S52: =Bank13!C20 -> 0 | T52: =Bank14!C20 -> 0
B53: 14:00:00 | C53: =Bank3N!C21 -> 20.07 | D53: =Bank2N!C21 -> 19.62 | E53: =Bank1N!C21 -> 18.88 | F53: =Bank0!C21 -> 17.63 | G53: =Bank1!C21 -> 17.12 | H53: =Bank2!C21 -> 16.39 | I53: =Bank3!C21 -> 15.37 | J53: =Bank4!C21 -> 14.83 | K53: =Bank5!C21 -> 14.08 | L53: =Bank6!C21 -> 13.1 | M53: =Bank7!C21 -> 12.35 | N53: =Bank8!C21 -> 11.53 | O53: =Bank9!C21 -> 0 | P53: =Bank10!C21 -> 0 | Q53: =Bank11!C21 -> 0 | R53: =Bank12!C21 -> 0 | S53: =Bank13!C21 -> 0 | T53: =Bank14!C21 -> 0
B54: 15:00:00 | C54: =Bank3N!C22 -> 18.92 | D54: =Bank2N!C22 -> 18.44 | E54: =Bank1N!C22 -> 17.74 | F54: =Bank0!C22 -> 16.69 | G54: =Bank1!C22 -> 16.19 | H54: =Bank2!C22 -> 15.48 | I54: =Bank3!C22 -> 14.64 | J54: =Bank4!C22 -> 14.09 | K54: =Bank5!C22 -> 13.34 | L54: =Bank6!C22 -> 12.37 | M54: =Bank7!C22 -> 11.63 | N54: =Bank8!C22 -> 10.82 | O54: =Bank9!C22 -> 0 | P54: =Bank10!C22 -> 0 | Q54: =Bank11!C22 -> 0 | R54: =Bank12!C22 -> 0 | S54: =Bank13!C22 -> 0 | T54: =Bank14!C22 -> 0
B55: 16:00:00 | C55: =Bank3N!C23 -> 19.66 | D55: =Bank2N!C23 -> 18.33 | E55: =Bank1N!C23 -> 17.64 | F55: =Bank0!C23 -> 16 | G55: =Bank1!C23 -> 15.52 | H55: =Bank2!C23 -> 14.84 | I55: =Bank3!C23 -> 14.51 | J55: =Bank4!C23 -> 13.96 | K55: =Bank5!C23 -> 13.21 | L55: =Bank6!C23 -> 12.26 | M55: =Bank7!C23 -> 11.53 | N55: =Bank8!C23 -> 10.72 | O55: =Bank9!C23 -> 0 | P55: =Bank10!C23 -> 0 | Q55: =Bank11!C23 -> 0 | R55: =Bank12!C23 -> 0 | S55: =Bank13!C23 -> 0 | T55: =Bank14!C23 -> 0
B56: 17:00:00 | C56: =Bank3N!C24 -> 20.15 | D56: =Bank2N!C24 -> 19.47 | E56: =Bank1N!C24 -> 18.73 | F56: =Bank0!C24 -> 17.42 | G56: =Bank1!C24 -> 16.88 | H56: =Bank2!C24 -> 16.14 | I56: =Bank3!C24 -> 13.96 | J56: =Bank4!C24 -> 13.45 | K56: =Bank5!C24 -> 12.75 | L56: =Bank6!C24 -> 11.92 | M56: =Bank7!C24 -> 11.21 | N56: =Bank8!C24 -> 10.43 | O56: =Bank9!C24 -> 0 | P56: =Bank10!C24 -> 0 | Q56: =Bank11!C24 -> 0 | R56: =Bank12!C24 -> 0 | S56: =Bank13!C24 -> 0 | T56: =Bank14!C24 -> 0
B57: 18:00:00 | C57: =Bank3N!C25 -> 20.08 | D57: =Bank2N!C25 -> 19.44 | E57: =Bank1N!C25 -> 18.69 | F57: =Bank0!C25 -> 17.45 | G57: =Bank1!C25 -> 16.88 | H57: =Bank2!C25 -> 16.13 | I57: =Bank3!C25 -> 14.15 | J57: =Bank4!C25 -> 13.65 | K57: =Bank5!C25 -> 12.96 | L57: =Bank6!C25 -> 12 | M57: =Bank7!C25 -> 11.19 | N57: =Bank8!C25 -> 10.43 | O57: =Bank9!C25 -> 0 | P57: =Bank10!C25 -> 0 | Q57: =Bank11!C25 -> 0 | R57: =Bank12!C25 -> 0 | S57: =Bank13!C25 -> 0 | T57: =Bank14!C25 -> 0
B58: 19:00:00 | C58: =Bank3N!C26 -> 19.83 | D58: =Bank2N!C26 -> 19.21 | E58: =Bank1N!C26 -> 18.44 | F58: =Bank0!C26 -> 17.24 | G58: =Bank1!C26 -> 16.66 | H58: =Bank2!C26 -> 15.9 | I58: =Bank3!C26 -> 14.95 | J58: =Bank4!C26 -> 14.39 | K58: =Bank5!C26 -> 13.67 | L58: =Bank6!C26 -> 12.73 | M58: =Bank7!C26 -> 11.96 | N58: =Bank8!C26 -> 11.17 | O58: =Bank9!C26 -> 1.21 | P58: =Bank10!C26 -> 1.24 | Q58: =Bank11!C26 -> 0.68 | R58: =Bank12!C26 -> 0 | S58: =Bank13!C26 -> 0 | T58: =Bank14!C26 -> 0
B59: 20:00:00 | C59: =Bank3N!C27 -> 19.7 | D59: =Bank2N!C27 -> 19.06 | E59: =Bank1N!C27 -> 18.29 | F59: =Bank0!C27 -> 17.09 | G59: =Bank1!C27 -> 16.49 | H59: =Bank2!C27 -> 15.73 | I59: =Bank3!C27 -> 15.35 | J59: =Bank4!C27 -> 14.78 | K59: =Bank5!C27 -> 14.03 | L59: =Bank6!C27 -> 13.1 | M59: =Bank7!C27 -> 12.34 | N59: =Bank8!C27 -> 11.53 | O59: =Bank9!C27 -> 4.72 | P59: =Bank10!C27 -> 4.54 | Q59: =Bank11!C27 -> 3.83 | R59: =Bank12!C27 -> 1 | S59: =Bank13!C27 -> 0.66 | T59: =Bank14!C27 -> 0.06
B60: 21:00:00 | C60: =Bank3N!C28 -> 19.69 | D60: =Bank2N!C28 -> 19.03 | E60: =Bank1N!C28 -> 18.26 | F60: =Bank0!C28 -> 17.08 | G60: =Bank1!C28 -> 16.47 | H60: =Bank2!C28 -> 15.7 | I60: =Bank3!C28 -> 15.42 | J60: =Bank4!C28 -> 14.84 | K60: =Bank5!C28 -> 14.1 | L60: =Bank6!C28 -> 13.18 | M60: =Bank7!C28 -> 12.43 | N60: =Bank8!C28 -> 11.63 | O60: =Bank9!C28 -> 6.09 | P60: =Bank10!C28 -> 5.87 | Q60: =Bank11!C28 -> 5.19 | R60: =Bank12!C28 -> 2.97 | S60: =Bank13!C28 -> 2.54 | T60: =Bank14!C28 -> 1.53
B61: 22:00:00 | C61: =Bank3N!C29 -> 19.68 | D61: =Bank2N!C29 -> 19.03 | E61: =Bank1N!C29 -> 18.26 | F61: =Bank0!C29 -> 17.1 | G61: =Bank1!C29 -> 16.49 | H61: =Bank2!C29 -> 15.73 | I61: =Bank3!C29 -> 15.49 | J61: =Bank4!C29 -> 14.91 | K61: =Bank5!C29 -> 14.17 | L61: =Bank6!C29 -> 13.27 | M61: =Bank7!C29 -> 12.52 | N61: =Bank8!C29 -> 11.73 | O61: =Bank9!C29 -> 6.76 | P61: =Bank10!C29 -> 6.5 | Q61: =Bank11!C29 -> 5.83 | R61: =Bank12!C29 -> 3.84 | S61: =Bank13!C29 -> 3.41 | T61: =Bank14!C29 -> 2.53
B62: 23:00:00 | C62: =Bank3N!C30 -> 19.35 | D62: =Bank2N!C30 -> 18.71 | E62: =Bank1N!C30 -> 17.97 | F62: =Bank0!C30 -> 16.85 | G62: =Bank1!C30 -> 16.26 | H62: =Bank2!C30 -> 15.53 | I62: =Bank3!C30 -> 15.69 | J62: =Bank4!C30 -> 15.11 | K62: =Bank5!C30 -> 14.37 | L62: =Bank6!C30 -> 13.48 | M62: =Bank7!C30 -> 12.73 | N62: =Bank8!C30 -> 11.94 | O62: =Bank9!C30 -> 7.11 | P62: =Bank10!C30 -> 6.84 | Q62: =Bank11!C30 -> 6.16 | R62: =Bank12!C30 -> 4.28 | S62: =Bank13!C30 -> 3.83 | T62: =Bank14!C30 -> 3
C68: short occupancy | D68: long occupancy | E68: continuous occupany
C69: =EmbeddedMonthlyDemandCalculator!M311 -> 0 | D69: =EmbeddedMonthlyDemandCalculator!N311 -> 0 | E69: =EmbeddedMonthlyDemandCalculator!O311 -> 0

Sheet DemandData
A1: building name | D1: =DemandSourceSelectInterface!D9 -> Building 1 | E1: =DemandSourceSelectInterface!D19 -> Building 2 | F1: =DemandSourceSelectInterface!D29 -> Building 3 | G1: =DemandSourceSelectInterface!D39 -> Building 4 | H1: =DemandSourceSelectInterface!D49 -> Building 5 | I1: =DemandSourceSelectInterface!D59 -> Building 6 | J1: =DemandSourceSelectInterface!D69 -> building 7 | K1: =DemandSourceSelectInterface!D79 -> building 8 | L1: =DemandSourceSelectInterface!D89 -> building 9 | M1: =DemandSourceSelectInterface!D99 -> building 10 | X1: Total demand | AA1: Belfast | AB1: Birmingham | AC1: Cardiff | AD1: Edinburgh | AE1: Glasgow | AF1: London | AG1: Manchester | AH1: Plymouth
A2: type of demand source | D2: 1 | E2: 1 | F2: 4 | G2: 3 | H2: 3 | I2: 3 | J2: 3 | K2: 3 | L2: 3 | M2: 3
A3: Demand4DBSP | B3: heating design temperature | E3: -3 | F3: -3 | G3: -3 | H3: -3 | I3: -3 | J3: -3 | K3: -3 | L3: -3 | M3: -3
B4: building thermal mass | D4: Mediumweight | E4: Mediumweight | F4: Mediumweight | G4: Mediumweight | H4: Mediumweight | I4: Mediumweight | J4: Mediumweight | K4: Mediumweight | L4: Mediumweight | M4: Mediumweight
B5: area of glazing | D5: Medium | E5: Medium | F5: Medium | G5: Medium | H5: Medium | I5: Medium | J5: Medium | K5: Medium | L5: Medium | M5: Medium
B6: level of insulation | D6: Medium | E6: Medium | F6: Medium | G6: Medium | H6: Medium | I6: Medium | J6: Medium | K6: Medium | L6: Medium | M6: Medium
B7: level of occupancy | D7: Continuous | E7: Long | F7: Short | G7: Short | H7: Short | I7: Short | J7: Short | K7: Short | L7: Short | M7: Short
B8: hourly load profile | C8: 00:00:00 | E8: 0 | F8: 0 | G8: 0 | H8: 0 | I8: 0 | J8: 0 | K8: 0 | L8: 0 | M8: 0
C9: 01:00:00 | E9: 0 | F9: 0 | G9: 0 | H9: 0 | I9: 0 | J9: 0 | K9: 0 | L9: 0 | M9: 0
C10: 02:00:00 | E10: 0 | F10: 0 | G10: 0 | H10: 0 | I10: 0 | J10: 0 | K10: 0 | L10: 0 | M10: 0
C11: 03:00:00 | E11: 0 | F11: 0 | G11: 0 | H11: 0 | I11: 0 | J11: 0 | K11: 0 | L11: 0 | M11: 0
C12: 04:00:00 | E12: 0 | F12: 0 | G12: 0 | H12: 0 | I12: 0 | J12: 0 | K12: 0 | L12: 0 | M12: 0
C13: 05:00:00 | E13: 0 | F13: 0 | G13: 0 | H13: 0 | I13: 0 | J13: 0 | K13: 0 | L13: 0 | M13: 0
C14: 06:00:00 | E14: 0 | F14: 0 | G14: 3060 | H14: 3060 | I14: 3060 | J14: 3060 | K14: 3060 | L14: 3060 | M14: 3060
C15: 07:00:00 | E15: 0 | F15: 0 | G15: 334 | H15: 334 | I15: 334 | J15: 334 | K15: 334 | L15: 334 | M15: 334
C16: 08:00:00 | E16: 0 | F16: 0 | G16: 406 | H16: 406 | I16: 406 | J16: 406 | K16: 406 | L16: 406 | M16: 406
C17: 09:00:00 | E17: 0 | F17: 0 | G17: 384 | H17: 384 | I17: 384 | J17: 384 | K17: 384 | L17: 384 | M17: 384
C18: 10:00:00 | E18: 0 | F18: 0 | G18: 368 | H18: 368 | I18: 368 | J18: 368 | K18: 368 | L18: 368 | M18: 368
C19: 11:00:00 | E19: 0 | F19: 0 | G19: 354 | H19: 354 | I19: 354 | J19: 354 | K19: 354 | L19: 354 | M19: 354
C20: 12:00:00 | E20: 0 | F20: 0 | G20: 337 | H20: 337 | I20: 337 | J20: 337 | K20: 337 | L20: 337 | M20: 337
C21: 13:00:00 | E21: 0 | F21: 0 | G21: 324 | H21: 324 | I21: 324 | J21: 324 | K21: 324 | L21: 324 | M21: 324
C22: 14:00:00 | E22: 0 | F22: 0 | G22: 318 | H22: 318 | I22: 318 | J22: 318 | K22: 318 | L22: 318 | M22: 318
C23: 15:00:00 | E23: 0 | F23: 0 | G23: 302 | H23: 302 | I23: 302 | J23: 302 | K23: 302 | L23: 302 | M23: 302
C24: 16:00:00 | E24: 0 | F24: 0 | G24: 303 | H24: 303 | I24: 303 | J24: 303 | K24: 303 | L24: 303 | M24: 303
C25: 17:00:00 | E25: 0 | F25: 0 | G25: 302 | H25: 302 | I25: 302 | J25: 302 | K25: 302 | L25: 302 | M25: 302
C26: 18:00:00 | E26: 0 | F26: 0 | G26: 302 | H26: 302 | I26: 302 | J26: 302 | K26: 302 | L26: 302 | M26: 302
C27: 19:00:00 | E27: 0 | F27: 0 | G27: 1480 | H27: 1480 | I27: 1480 | J27: 1480 | K27: 1480 | L27: 1480 | M27: 1480
C28: 20:00:00 | E28: 0 | F28: 0 | G28: 0 | H28: 0 | I28: 0 | J28: 0 | K28: 0 | L28: 0 | M28: 0
C29: 21:00:00 | E29: 0 | F29: 0 | G29: 0 | H29: 0 | I29: 0 | J29: 0 | K29: 0 | L29: 0 | M29: 0
C30: 22:00:00 | E30: 0 | F30: 0 | G30: 0 | H30: 0 | I30: 0 | J30: 0 | K30: 0 | L30: 0 | M30: 0
C31: 23:00:00 | E31: 0 | F31: 0 | G31: 0 | H31: 0 | I31: 0 | J31: 0 | K31: 0 | L31: 0 | M31: 0
B32: Annual Demand | F32: 0 | G32: 323000 | H32: 323000 | I32: 323000 | J32: 323000 | K32: 323000 | L32: 323000 | M32: 323000 | X32: =SUM(OFFSET(AA416,0,0,1,$C$333)) -> 0
B33: Total building floor area | E33: 0 | F33: 0 | G33: 7767 | H33: 7767 | I33: 7767 | J33: 7767 | K33: 7767 | L33: 7767 | M33: 7767
B34: Typical occupancy | E34: 0 | F34: 0 | G34: 975 | H34: 975 | I34: 975 | J34: 975 | K34: 975 | L34: 975 | M34: 975
B35: CasualGain_People | E35: 90 | F35: 90 | G35: 50 | H35: 50 | I35: 50 | J35: 50 | K35: 50 | L35: 50 | M35: 50
B36: CasualGain_Lighting | D36: 15 | E36: 15 | F36: 4 | G36: 4 | H36: 4 | I36: 4 | J36: 4 | K36: 4 | L36: 4 | M36: 4
B37: CasualGain_Equipment | D37: 1 PC per 15 people | E37: 1 PC per 15 people | F37: 1 PC per 15 people | G37: 1 PC per 15 people | H37: 1 PC per 15 people | I37: 1 PC per 15 people | J37: 1 PC per 15 people | K37: 1 PC per 15 people | L37: 1 PC per 15 people | M37: 1 PC per 15 people
B38: HotWaterVentilation_BuildingType | D38: Offices | E38: Offices | F38: Education | G38: Education | H38: Education | I38: Education | J38: Education | K38: Education | L38: Education | M38: Education
B39: Userdefined_DHW
B40: HotWaterVentilation_VentilationRate | E40: 8 | F40: 30 | G40: 30 | H40: 30 | I40: 30 | J40: 30 | K40: 30 | L40: 30 | M40: 30
A42: Demand4HM | B42: heating design temperature | E42: 12 | F42: 12 | H42: 12 | L42: 12 | M42: 12
B43: building thermal mass | D43: Mediumweight | E43: Heavyweight | F43: Heavyweight | H43: Heavyweight | L43: Heavyweight | M43: Heavyweight
B44: area of glazing | D44: Medium | E44: Medium | F44: Medium | H44: Medium | L44: Medium | M44: Medium
B45: level of insulation | D45: Medium | E45: Medium | F45: Medium | H45: Medium | L45: Medium | M45: Medium
B46: level of occupancy | D46: Continuous | E46: Long | F46: Long | H46: Continuous | L46: Long | M46: Long
B47: hourly load profile | C47: 00:00:00 | E47: 12 | F47: 12 | H47: 12 | L47: 12 | M47: 12
C48: 01:00:00 | E48: 323 | F48: 323 | H48: 323 | L48: 323 | M48: 323
C49: 02:00:00 | E49: 323 | F49: 323 | H49: 323 | L49: 323 | M49: 323
C50: 03:00:00 | E50: 1000 | F50: 1000 | H50: 1000 | L50: 1000 | M50: 1000
C51: 04:00:00 | E51: 12 | F51: 12 | H51: 12 | L51: 12 | M51: 12
C52: 05:00:00 | E52: 300 | F52: 300 | H52: 23 | L52: 300 | M52: 300
C53: 06:00:00 | E53: 2 | F53: 2 | H53: 2 | L53: 2 | M53: 2
C54: 07:00:00 | E54: 32 | F54: 32 | H54: 32 | L54: 32 | M54: 32
C55: 08:00:00 | E55: 3 | F55: 3 | H55: 3 | L55: 3 | M55: 3
C56: 09:00:00 | E56: 3 | F56: 3 | H56: 3 | L56: 3 | M56: 3
C57: 10:00:00 | E57: 22 | F57: 22 | H57: 22 | L57: 22 | M57: 22
C58: 11:00:00 | E58: 2 | F58: 2 | H58: 2 | L58: 2 | M58: 2
C59: 12:00:00 | E59: 2 | F59: 2 | H59: 2 | L59: 2 | M59: 2
C60: 13:00:00 | E60: 2 | F60: 2 | H60: 2 | L60: 2 | M60: 2
C61: 14:00:00 | E61: 2 | F61: 2 | H61: 2 | L61: 2 | M61: 2
C62: 15:00:00 | E62: 2 | F62: 2 | H62: 2 | L62: 2 | M62: 2
C63: 16:00:00 | E63: 2 | F63: 2 | H63: 2 | L63: 2 | M63: 2
C64: 17:00:00 | E64: 2 | F64: 2 | H64: 2 | L64: 2 | M64: 2
C65: 18:00:00 | E65: 2 | F65: 2 | H65: 2 | L65: 2 | M65: 2
C66: 19:00:00 | E66: 300 | F66: 300 | H66: 2 | L66: 300 | M66: 300
C67: 20:00:00 | E67: 2 | F67: 2 | H67: 2 | L67: 2 | M67: 2
C68: 21:00:00 | E68: 300 | F68: 300 | H68: 2 | L68: 300 | M68: 300
C69: 22:00:00 | E69: 2 | F69: 2 | H69: 2 | L69: 2 | M69: 2
C70: 23:00:00 | E70: 2 | F70: 2 | H70: 2 | L70: 2 | M70: 2
B71: Annual Demand | E71: 23232 | F71: 23232 | H71: 23232 | L71: 23232 | M71: 23232 | X71: =SUM(OFFSET(AA416,0,0,1,$C$333)) -> 0
B72: Total building floor area | E72: 500 | F72: 500 | H72: 500 | L72: 500 | M72: 500
B73: Typical occupancy | E73: 3 | F73: 3 | H73: 3 | L73: 3 | M73: 3
B74: CasualGain_People | E74: 90 | F74: 90 | H74: 90 | L74: 90 | M74: 90
B75: CasualGain_Lighting | D75: 15 | E75: 4 | F75: 4 | H75: 4 | L75: 4 | M75: 4
B76: CasualGain_Equipment | D76: 1 PC per 15 people | E76: 1 PC per person | F76: 1 PC per person | H76: 1 PC per person | L76: 1 PC per person | M76: 1 PC per person
B77: HotWaterVentilation_BuildingType | D77: Offices | E77: Hospital | F77: Hospital | H77: Hospital | L77: Hospital | M77: Hospital
B78: Userdefined_DHW | E78: 0 | F78: 0 | H78: 0 | L78: 0 | M78: 0
B79: HotWaterVentilation_VentilationRate | E79: 12 | F79: 12 | H79: 12 | L79: 12 | M79: 12
A81: Demand4MFB | B81: calendar year | D81: 2009 | E81: 2009 | F81: 2009 | L81: 2012 | M81: 2012
B82: degree day of coldest month | E82: 273 | F82: 273 | L82: 300 | M82: 300
B83: energy demand in coldest month | E83: 200000 | F83: 200000 | L83: 98000 | M83: 98000
B84: annual energy demand | E84: 800000 | F84: 800000 | L84: 800000 | M84: 800000 | X84: =SUM(OFFSET(AA416,0,0,1,$C$333)) -> 0
B85: existing boiler seasonal efficiency | E85: 0.5 | F85: 0.5 | L85: 0.5 | M85: 0.5
B86: heating design temperature | E86: -3 | F86: -3 | L86: -3 | M86: -3
B87: desired internal temperature | E87: 21 | F87: 21 | L87: 21 | M87: 21
B88: building floor area | E88: 5000 | F88: 5000 | L88: 3000 | M88: 3000
B89: building thermal mass | D89: Mediumweight | E89: Mediumweight | F89: Mediumweight | L89: Mediumweight | M89: Mediumweight
B90: level of insulation | D90: Medium | E90: Medium | F90: Medium | L90: Medium | M90: Medium
B91: area of glazing | D91: Medium | E91: Medium | F91: Medium | L91: Medium | M91: Medium
B92: level of occupancy | D92: Continuous | E92: Long | F92: Long | L92: Long | M92: Long
B93: typical occupancy | D93: 10 | E93: 300 | F93: 300 | L93: 5 | M93: 5
B94: CasualGain_People | D94: 90 | E94: 90 | F94: 90 | L94: 90 | M94: 90
B95: CasualGain_Lighting | D95: 4 | E95: 15 | F95: 15 | L95: 4 | M95: 4
B96: CasualGain_Equipment | D96: 1 PC per 15 people | E96: 1 PC per 15 people | F96: 1 PC per 15 people | L96: 1 PC per person | M96: 1 PC per person
B97: HotWaterVentilation_BuildingType | D97: Retail | E97: Offices | F97: Offices | L97: Hospital | M97: Hospital
B98: Userdefined_DHW | L98: 0 | M98: 0
B99: HotWaterVentilation_VentilationRate | D99: 20 | E99: 8 | F99: 8 | L99: 12 | M99: 12
A101: Demand4EDC | B101: internal temperature | D101: 21 | E101: 21 | F101: 21 | G101: 21 | H101: 21 | I101: 21 | J101: 21 | K101: 21 | L101: 21 | M101: 21
B102: building thermal mass | D102: Mediumweight | E102: Heavyweight | F102: Mediumweight | G102: Heavyweight | H102: Heavyweight | I102: Heavyweight | J102: Heavyweight | K102: Heavyweight | L102: Heavyweight | M102: Heavyweight
B103: ground temperature
B104: heating design temperature
B105: swimming pool
B106: Area of first floor | D106: 500 | E106: 1000 | F106: 500 | G106: 1000 | H106: 1000 | I106: 1000 | J106: 1000 | K106: 1000 | L106: 1000 | M106: 1000
B107: height of first floor | D107: 3 | E107: 3 | F107: 3 | G107: 3 | H107: 3 | I107: 3 | J107: 3 | K107: 3 | L107: 3 | M107: 3
B108: area of second floor | D108: 500 | E108: 1000 | F108: 500 | G108: 1000 | H108: 1000 | I108: 1000 | J108: 1000 | K108: 1000 | L108: 1000 | M108: 1000
B109: height of second floor | D109: 3 | E109: 3 | F109: 3 | G109: 3 | H109: 3 | I109: 3 | J109: 3 | K109: 3 | L109: 3 | M109: 3
B110: area of third and other floors | D110: 500 | F110: 500
B111: height of third and other floors | D111: 3 | F111: 3
B112: Net area of door1
B113: Net area of door 2
B114: Net area of window 1 | D114: 150 | E114: 200 | F114: 150 | G114: 200 | H114: 200 | I114: 200 | J114: 200 | K114: 200 | L114: 200 | M114: 200
B115: Net area of window 2 | D115: 30 | E115: 80 | F115: 30 | G115: 80 | H115: 80 | I115: 80 | J115: 80 | K115: 80 | L115: 80 | M115: 80
B116: Net area of window 3 | D116: 150 | E116: 200 | F116: 150 | G116: 200 | H116: 200 | I116: 200 | J116: 200 | K116: 200 | L116: 200 | M116: 200
B117: Net area of window 4 | D117: 30 | E117: 80 | F117: 30 | G117: 80 | H117: 80 | I117: 80 | J117: 80 | K117: 80 | L117: 80 | M117: 80
B118: Net area of window 5
B119: Net area of window 6
B120: Net area of roof lights
B121: U value of door1
B122: U value of door 2
B123: U value of window 1 | D123: 3 | E123: 2.9 | F123: 3 | G123: 2.9 | H123: 2.9 | I123: 2.9 | J123: 2.9 | K123: 2.9 | L123: 2.9 | M123: 2.9
B124: U value of window 2 | D124: 3 | E124: 2.9 | F124: 3 | G124: 2.9 | H124: 2.9 | I124: 2.9 | J124: 2.9 | K124: 2.9 | L124: 2.9 | M124: 2.9
B125: U value of window 3 | D125: 3 | E125: 2.9 | F125: 3 | G125: 2.9 | H125: 2.9 | I125: 2.9 | J125: 2.9 | K125: 2.9 | L125: 2.9 | M125: 2.9
B126: U value of window 4 | D126: 3 | E126: 2.9 | F126: 3 | G126: 2.9 | H126: 2.9 | I126: 2.9 | J126: 2.9 | K126: 2.9 | L126: 2.9 | M126: 2.9
B127: U value of window 5
B128: U value of window 6
B129: U value of roof lights
B130: U value of ground floor | D130: 1 | E130: 0.5 | F130: 1 | G130: 0.5 | H130: 0.5 | I130: 0.5 | J130: 0.5 | K130: 0.5 | L130: 0.5 | M130: 0.5
B131: gross area of wall 1 | D131: 450 | E131: 600 | F131: 450 | G131: 600 | H131: 600 | I131: 600 | J131: 600 | K131: 600 | L131: 600 | M131: 600
B132: gross area of wall 2 | D132: 90 | E132: 240 | F132: 90 | G132: 240 | H132: 240 | I132: 240 | J132: 240 | K132: 240 | L132: 240 | M132: 240
B133: gross area of wall 3 | D133: 450 | E133: 600 | F133: 450 | G133: 600 | H133: 600 | I133: 600 | J133: 600 | K133: 600 | L133: 600 | M133: 600
B134: gross area of wall 4 | D134: 90 | E134: 240 | F134: 90 | G134: 240 | H134: 240 | I134: 240 | J134: 240 | K134: 240 | L134: 240 | M134: 240
B135: gross area of wall 5
B136: gross area of wall 6
B137: gross area of roof | D137: 500 | E137: 1000 | F137: 500 | G137: 1000 | H137: 1000 | I137: 1000 | J137: 1000 | K137: 1000 | L137: 1000 | M137: 1000
B138: U value of wall 1 | D138: 1 | E138: 0.3 | F138: 1 | G138: 0.3 | H138: 0.3 | I138: 0.3 | J138: 0.3 | K138: 0.3 | L138: 0.3 | M138: 0.3
B139: U value of wall 2 | D139: 1 | E139: 0.3 | F139: 1 | G139: 0.3 | H139: 0.3 | I139: 0.3 | J139: 0.3 | K139: 0.3 | L139: 0.3 | M139: 0.3
B140: U value of wall 3 | D140: 1 | E140: 0.3 | F140: 1 | G140: 0.3 | H140: 0.3 | I140: 0.3 | J140: 0.3 | K140: 0.3 | L140: 0.3 | M140: 0.3
B141: U value of wall 4 | D141: 1 | E141: 0.3 | F141: 1 | G141: 0.3 | H141: 0.3 | I141: 0.3 | J141: 0.3 | K141: 0.3 | L141: 0.3 | M141: 0.3
B142: U value of wall 5
B143: U value of wall 6
B144: U value of roof | E144: 0.25 | G144: 0.25 | H144: 0.25 | I144: 0.25 | J144: 0.25 | K144: 0.25 | L144: 0.25 | M144: 0.25
B145: Average occupancy | D145: 150 | E145: 160 | F145: 150 | G145: 160 | H145: 160 | I145: 160 | J145: 160 | K145: 160 | L145: 160 | M145: 160
B146: Ventilation rate when occupied | D146: 8 | E146: 20 | F146: 8 | G146: 20 | H146: 20 | I146: 20 | J146: 20 | K146: 20 | L146: 20 | M146: 20
B147: building type | D147: Offices | E147: Retail | F147: Offices | G147: Retail | H147: Retail | I147: Retail | J147: Retail | K147: Retail | L147: Retail | M147: Retail
B148: Orientation 1 | D148: NE | E148: SW | F148: NE | G148: SW | H148: N | I148: SW | J148: SW | K148: SW | L148: SW | M148: SW
B149: Orientation 2 | D149: SE | E149: SE | F149: SE | G149: SE | H149: SE | I149: SE | J149: SE | K149: SE | L149: SE | M149: SE
B150: Orientation 3 | D150: SW | E150: SW | F150: SW | G150: SW | H150: SW | I150: SW | J150: SW | K150: SW | L150: SW | M150: SW
B151: Orientation 4 | D151: NW | E151: NW | F151: NW | G151: NW | H151: NW | I151: NW | J151: NW | K151: NW | L151: NW | M151: NW
B152: Orientation 5 | D152: E | E152: E | F152: E | G152: E | H152: E | I152: E | J152: E | K152: E | L152: E | M152: E
B153: Orientation 6 | D153: SW | E153: SW | F153: SW | G153: SW | H153: SW | I153: SW | J153: SW | K153: SW | L153: SW | M153: SW
B154: Orientation 7 | D154: S | E154: S | F154: S | G154: S | H154: S | I154: S | J154: S | K154: S | L154: S | M154: S
B155: Orientation 8 | D155: SE | E155: SE | F155: SE | G155: SE | H155: SE | I155: SE | J155: SE | K155: SE | L155: SE | M155: SE
B156: Orientation 9 | D156: E | E156: E | F156: E | G156: E | H156: E | I156: E | J156: E | K156: E | L156: E | M156: E
B157: Orientation 10 | D157: NE | E157: NE | F157: NE | G157: NE | H157: NE | I157: NE | J157: NE | K157: NE | L157: NE | M157: NE
B158: Orientation 11 | D158: E | E158: E | F158: E | G158: E | H158: E | I158: E | J158: E | K158: E | L158: E | M158: E
B159: Orientation 12 | D159: W | E159: W | F159: W | G159: W | H159: W | I159: W | J159: W | K159: W | L159: W | M159: W
B160: Facade 1 | D160: 80% - 60% | E160: 80% - 60% | F160: 80% - 60% | G160: 80% - 60% | H160: 80% - 60% | I160: 80% - 60% | J160: 80% - 60% | K160: 80% - 60% | L160: 80% - 60% | M160: 80% - 60%
B161: Facade 2 | D161: 80% - 60% | E161: 80% - 60% | F161: 80% - 60% | G161: 80% - 60% | H161: 80% - 60% | I161: 80% - 60% | J161: 80% - 60% | K161: 80% - 60% | L161: 80% - 60% | M161: 80% - 60%
B162: Facade 3 | D162: 80% - 60% | E162: 80% - 60% | F162: 80% - 60% | G162: 80% - 60% | H162: 80% - 60% | I162: 80% - 60% | J162: 80% - 60% | K162: 80% - 60% | L162: 80% - 60% | M162: 80% - 60%
B163: Facade 4 | D163: 80% - 60% | E163: 80% - 60% | F163: 80% - 60% | G163: 80% - 60% | H163: 80% - 60% | I163: 80% - 60% | J163: 80% - 60% | K163: 80% - 60% | L163: 80% - 60% | M163: 80% - 60%
B164: Facade 5 | D164: 80% - 60% | E164: 80% - 60% | F164: 80% - 60% | G164: 80% - 60% | H164: 80% - 60% | I164: 80% - 60% | J164: 80% - 60% | K164: 80% - 60% | L164: 80% - 60% | M164: 80% - 60%
B165: Façade 6 | D165: 80% - 60% | E165: 80% - 60% | F165: 80% - 60% | G165: 80% - 60% | H165: 80% - 60% | I165: 80% - 60% | J165: 80% - 60% | K165: 80% - 60% | L165: 80% - 60% | M165: 80% - 60%
B166: Facade 7 | D166: 80% - 60% | E166: 80% - 60% | F166: 80% - 60% | G166: 80% - 60% | H166: 80% - 60% | I166: 80% - 60% | J166: 80% - 60% | K166: 80% - 60% | L166: 80% - 60% | M166: 80% - 60%
B167: Facade 8 | D167: 80% - 60% | E167: 80% - 60% | F167: 80% - 60% | G167: 80% - 60% | H167: 80% - 60% | I167: 80% - 60% | J167: 80% - 60% | K167: 80% - 60% | L167: 80% - 60% | M167: 80% - 60%
B168: Facade 9 | D168: 80% - 60% | E168: 80% - 60% | F168: 80% - 60% | G168: 80% - 60% | H168: 80% - 60% | I168: 80% - 60% | J168: 80% - 60% | K168: 80% - 60% | L168: 80% - 60% | M168: 80% - 60%
B169: Facade 10 | D169: 80% - 60% | E169: 80% - 60% | F169: 80% - 60% | G169: 80% - 60% | H169: 80% - 60% | I169: 80% - 60% | J169: 80% - 60% | K169: 80% - 60% | L169: 80% - 60% | M169: 80% - 60%
B170: Facade 11 | D170: 80% - 60% | E170: 80% - 60% | F170: 80% - 60% | G170: 80% - 60% | H170: 80% - 60% | I170: 80% - 60% | J170: 80% - 60% | K170: 80% - 60% | L170: 80% - 60% | M170: 80% - 60%
B171: Facade 12 | D171: 80% - 60% | E171: 80% - 60% | F171: 80% - 60% | G171: 80% - 60% | H171: 80% - 60% | I171: 80% - 60% | J171: 80% - 60% | K171: 80% - 60% | L171: 80% - 60% | M171: 80% - 60%
B172: Glazing area 1 | D172: 150 | E172: 200 | F172: 150 | G172: 200 | H172: 200 | I172: 200 | J172: 200 | K172: 200 | L172: 200 | M172: 200
B173: Glazing area 2 | D173: 30 | E173: 80 | F173: 30 | G173: 80 | H173: 80 | I173: 80 | J173: 80 | K173: 80 | L173: 80 | M173: 80
B174: Glazing area 3 | D174: 150 | E174: 200 | F174: 150 | G174: 200 | H174: 200 | I174: 200 | J174: 200 | K174: 200 | L174: 200 | M174: 200
B175: Glazing area 4 | D175: 30 | E175: 80 | F175: 30 | G175: 80 | H175: 80 | I175: 80 | J175: 80 | K175: 80 | L175: 80 | M175: 80
B176: Glazing area 5
B177: Glazing area 6
B178: Glazing area 7
B179: Glazing area 8
B180: Glazing area 9
B181: Glazing area 10
B182: Glazing area 11
B183: Glazing area 12
B184: Inclination 1 | D184: 90 | E184: 90 | F184: 90 | G184: 90 | H184: 90 | I184: 90 | J184: 90 | K184: 90 | L184: 90 | M184: 90
B185: Inclination 2 | D185: 90 | E185: 90 | F185: 90 | G185: 90 | H185: 90 | I185: 90 | J185: 90 | K185: 90 | L185: 90 | M185: 90
B186: Inclination 3 | D186: 90 | E186: 90 | F186: 90 | G186: 90 | H186: 90 | I186: 90 | J186: 90 | K186: 90 | L186: 90 | M186: 90
B187: Inclination 4 | D187: 90 | E187: 90 | F187: 90 | G187: 90 | H187: 90 | I187: 90 | J187: 90 | K187: 90 | L187: 90 | M187: 90
B188: Inclination 5 | D188: 90 | E188: 90 | F188: 90 | G188: 90 | H188: 90 | I188: 90 | J188: 90 | K188: 90 | L188: 90 | M188: 90
B189: Inclination 6 | D189: 90 | E189: 90 | F189: 90 | G189: 90 | H189: 90 | I189: 90 | J189: 90 | K189: 90 | L189: 90 | M189: 90
B190: Inclination 7 | D190: 90 | E190: 90 | F190: 90 | G190: 90 | H190: 90 | I190: 90 | J190: 90 | K190: 90 | L190: 90 | M190: 90
B191: Inclination 8 | D191: 90 | E191: 90 | F191: 90 | G191: 90 | H191: 90 | I191: 90 | J191: 90 | K191: 90 | L191: 90 | M191: 90
B192: Inclination 9 | D192: 90 | E192: 90 | F192: 90 | G192: 90 | H192: 90 | I192: 90 | J192: 90 | K192: 90 | L192: 90 | M192: 90
B193: Inclination 10 | D193: 90 | E193: 90 | F193: 90 | G193: 90 | H193: 90 | I193: 90 | J193: 90 | K193: 90 | L193: 90 | M193: 90
B194: Inclination 11 | D194: 90 | E194: 90 | F194: 90 | G194: 90 | H194: 90 | I194: 90 | J194: 90 | K194: 90 | L194: 90 | M194: 90
B195: Inclination 12 | D195: 90 | E195: 90 | F195: 90 | G195: 90 | H195: 90 | I195: 90 | J195: 90 | K195: 90 | L195: 90 | M195: 90
B196: Glazing type 1 | D196: Double glazed (air or argon filled) | E196: Double glazed (air or argon filled) | F196: Double glazed (air or argon filled) | G196: Double glazed (air or argon filled) | H196: Double glazed (air or argon filled) | I196: Double glazed (air or argon filled) | J196: Double glazed (air or argon filled) | K196: Double glazed (air or argon filled) | L196: Double glazed (air or argon filled) | M196: Double glazed (air or argon filled)
B197: Glazing type 2 | D197: Double glazed (air or argon filled) | E197: Double glazed (air or argon filled) | F197: Double glazed (air or argon filled) | G197: Double glazed (air or argon filled) | H197: Double glazed (air or argon filled) | I197: Double glazed (air or argon filled) | J197: Double glazed (air or argon filled) | K197: Double glazed (air or argon filled) | L197: Double glazed (air or argon filled) | M197: Double glazed (air or argon filled)
B198: Glazing type 3 | D198: Double glazed (air or argon filled) | E198: Double glazed (air or argon filled) | F198: Double glazed (air or argon filled) | G198: Double glazed (air or argon filled) | H198: Double glazed (air or argon filled) | I198: Double glazed (air or argon filled) | J198: Double glazed (air or argon filled) | K198: Double glazed (air or argon filled) | L198: Double glazed (air or argon filled) | M198: Double glazed (air or argon filled)
B199: Glazing type 4 | D199: Double glazed (air or argon filled) | E199: Double glazed (air or argon filled) | F199: Double glazed (air or argon filled) | G199: Double glazed (air or argon filled) | H199: Double glazed (air or argon filled) | I199: Double glazed (air or argon filled) | J199: Double glazed (air or argon filled) | K199: Double glazed (air or argon filled) | L199: Double glazed (air or argon filled) | M199: Double glazed (air or argon filled)
B200: Glazing type 5 | D200: Triple glazed (air or argon filled) | E200: Triple glazed (air or argon filled) | F200: Triple glazed (air or argon filled) | G200: Triple glazed (air or argon filled) | H200: Triple glazed (air or argon filled) | I200: Triple glazed (air or argon filled) | J200: Triple glazed (air or argon filled) | K200: Triple glazed (air or argon filled) | L200: Triple glazed (air or argon filled) | M200: Triple glazed (air or argon filled)
B201: Glazing type 6 | D201: Double glazed (Low-E, soft coat) | E201: Double glazed (Low-E, soft coat) | F201: Double glazed (Low-E, soft coat) | G201: Double glazed (Low-E, soft coat) | H201: Double glazed (Low-E, soft coat) | I201: Double glazed (Low-E, soft coat) | J201: Double glazed (Low-E, soft coat) | K201: Double glazed (Low-E, soft coat) | L201: Double glazed (Low-E, soft coat) | M201: Double glazed (Low-E, soft coat)
B202: Glazing type 7 | D202: Single glazed | E202: Single glazed | F202: Single glazed | G202: Single glazed | H202: Single glazed | I202: Single glazed | J202: Single glazed | K202: Single glazed | L202: Single glazed | M202: Single glazed
B203: Glazing type 8 | D203: Triple glazed (air or argon filled) | E203: Triple glazed (air or argon filled) | F203: Triple glazed (air or argon filled) | G203: Triple glazed (air or argon filled) | H203: Triple glazed (air or argon filled) | I203: Triple glazed (air or argon filled) | J203: Triple glazed (air or argon filled) | K203: Triple glazed (air or argon filled) | L203: Triple glazed (air or argon filled) | M203: Triple glazed (air or argon filled)
... 2040 more rows

Sheet MonthlyEnergyUsageData
D3: Demand Based On Fuel Bill
C5: Building name: | E5: Building 1
C8: Please Input the following data
C10: Average temperature in coldest month (January) | E10: =VLOOKUP(E23,C322:H329,6,TRUE) -> 3 | F10: oC | G10: Insert total fuel energy consumption at design day | J10: kWh | K10: for calendar year | L10: =E12 -> 2009
C12: Calendar year for which data is available | E12: 2009
G13: =IF(DemandSourceSelectInterface!V3=3, "Annual fuel energy consumption","Annual energy demand") -> Annual energy demand | J13: kWh | K13: for calendar year | L13: =E12 -> 2009
C14: Degree days at design day of calendar year for which fuel data is available (see User Manual)
G15: Existing boiler seasonal efficiency
C17: Click the link for degree data | E17: http://www.vesma.com
C21: Building Information
D23: Site location | E23: =IF(BiomassSizingToolMainInterface!G12=0,"PRJ Location?",BiomassSizingToolMainInterface!G12) -> Glasgow | H23: Building thermal mass | I23: Mediumweight | K23: Typical Occupancy | L23: 10 | M23: persons
D25: Outdoor design temperature | G25: oC | H25: Level of insulation | I25: Medium
D27: Desired internal temperature | G27: oC | H27: Area of glazing | I27: Medium
D29: Building floor area | G29: m2 | H29: Level of occupancy | I29: Continuous
C32: Additional Demands
D34: Casual Gain
D36: Ventilation Loss & Hot Water Demand
D38: =IF($C$380>$E$42,"!!!Additional demands are greater than the total demand, please redefine them!"," ") -> 
C40: Demand profile at design day
C42: Energy demand at design day: | E42: =IF((I10*I15-(HotWaterVentilation!F23-CasualGain!I27+HotWaterVentilation!F25*(E27-E25)/1000)*SUM(C46:C69))<0,0,(((I10*I15-(HotWaterVentilation!F23-CasualGain!I27+HotWaterVentilation!F25*(E27-E25)/1000)*SUM(C46:C69))*MonthlyEnergyUsageData!E267+(HotWaterVentilation!F23-CasualGain!I27+HotWaterVentilation!F25*(E27-E25)/1000)*SUM(C46:C69)))) -> 0 | F42: kWh
D43: Balance temperature: | E43: =E343 ->  | F43: oC
D44: =IF(E43>12, "", "WARNING: Low Balance Temperature – See Manual for Information") -> 
D45: Time | E45: Load (kW)
C46: =IF(ISNUMBER(SEARCH("lo",$M$249)),0,IF(ISNUMBER(SEARCH("mo",$M$249)),0,1)) -> 1 | D46: 00:00:00 | E46: =IF(IF(WinterLoadTemplateBank!D7=0,0,WinterLoadTemplateBank!D7*MonthlyEnergyUsageData!$D$268)+C46*(WinterLoadTemplateBank!$AH$6-WinterLoadTemplateBank!$AK$6+WinterLoadTemplateBank!$AJ$6)<0, 0, IF(WinterLoadTemplateBank!D7=0,0,WinterLoadTemplateBank!D7*MonthlyEnergyUsageData!$D$268)+C46*(WinterLoadTemplateBank!$AH$6-WinterLoadTemplateBank!$AK$6+WinterLoadTemplateBank!$AJ$6)) -> 0
C47: =IF(ISNUMBER(SEARCH("lo",$M$249)),0,IF(ISNUMBER(SEARCH("mo",$M$249)),0,1)) -> 1 | D47: 01:00:00 | E47: =IF(IF(WinterLoadTemplateBank!D8=0,0,WinterLoadTemplateBank!D8*MonthlyEnergyUsageData!$D$268)+C47*(WinterLoadTemplateBank!$AH$6-WinterLoadTemplateBank!$AK$6+WinterLoadTemplateBank!$AJ$6)<0, 0, IF(WinterLoadTemplateBank!D8=0,0,WinterLoadTemplateBank!D8*MonthlyEnergyUsageData!$D$268)+C47*(WinterLoadTemplateBank!$AH$6-WinterLoadTemplateBank!$AK$6+WinterLoadTemplateBank!$AJ$6)) -> 0
C48: 1 | D48: 02:00:00 | E48: =IF(IF(WinterLoadTemplateBank!D9=0,0,WinterLoadTemplateBank!D9*MonthlyEnergyUsageData!$D$268)+C48*(WinterLoadTemplateBank!$AH$6-WinterLoadTemplateBank!$AK$6+WinterLoadTemplateBank!$AJ$6)<0, 0, IF(WinterLoadTemplateBank!D9=0,0,WinterLoadTemplateBank!D9*MonthlyEnergyUsageData!$D$268)+C48*(WinterLoadTemplateBank!$AH$6-WinterLoadTemplateBank!$AK$6+WinterLoadTemplateBank!$AJ$6)) -> 0
C49: 1 | D49: 03:00:00 | E49: =IF(IF(WinterLoadTemplateBank!D10=0,0,WinterLoadTemplateBank!D10*MonthlyEnergyUsageData!$D$268)+C49*(WinterLoadTemplateBank!$AH$6-WinterLoadTemplateBank!$AK$6+WinterLoadTemplateBank!$AJ$6)<0, 0, IF(WinterLoadTemplateBank!D10=0,0,WinterLoadTemplateBank!D10*MonthlyEnergyUsageData!$D$268)+C49*(WinterLoadTemplateBank!$AH$6-WinterLoadTemplateBank!$AK$6+WinterLoadTemplateBank!$AJ$6)) -> 0
C50: 1 | D50: 04:00:00 | E50: =IF(IF(WinterLoadTemplateBank!D11=0,0,WinterLoadTemplateBank!D11*MonthlyEnergyUsageData!$D$268)+C50*(WinterLoadTemplateBank!$AH$6-WinterLoadTemplateBank!$AK$6+WinterLoadTemplateBank!$AJ$6)<0, 0, IF(WinterLoadTemplateBank!D11=0,0,WinterLoadTemplateBank!D11*MonthlyEnergyUsageData!$D$268)+C50*(WinterLoadTemplateBank!$AH$6-WinterLoadTemplateBank!$AK$6+WinterLoadTemplateBank!$AJ$6)) -> 0
C51: 1 | D51: 05:00:00 | E51: =IF(IF(WinterLoadTemplateBank!D12=0,0,WinterLoadTemplateBank!D12*MonthlyEnergyUsageData!$D$268)+C51*(WinterLoadTemplateBank!$AH$6-WinterLoadTemplateBank!$AK$6+WinterLoadTemplateBank!$AJ$6)<0, 0, IF(WinterLoadTemplateBank!D12=0,0,WinterLoadTemplateBank!D12*MonthlyEnergyUsageData!$D$268)+C51*(WinterLoadTemplateBank!$AH$6-WinterLoadTemplateBank!$AK$6+WinterLoadTemplateBank!$AJ$6)) -> 0
C52: 1 | D52: 06:00:00 | E52: =IF(IF(WinterLoadTemplateBank!D13=0,0,WinterLoadTemplateBank!D13*MonthlyEnergyUsageData!$D$268)+C52*(WinterLoadTemplateBank!$AH$6-WinterLoadTemplateBank!$AK$6+WinterLoadTemplateBank!$AJ$6)<0, 0, IF(WinterLoadTemplateBank!D13=0,0,WinterLoadTemplateBank!D13*MonthlyEnergyUsageData!$D$268)+C52*(WinterLoadTemplateBank!$AH$6-WinterLoadTemplateBank!$AK$6+WinterLoadTemplateBank!$AJ$6)) -> 0
C53: =IF(ISNUMBER(SEARCH("lo",$M$249)),0,IF(ISNUMBER(SEARCH("mo",$M$249)),1,1)) -> 1 | D53: 07:00:00 | E53: =IF(IF(WinterLoadTemplateBank!D14=0,0,WinterLoadTemplateBank!D14*MonthlyEnergyUsageData!$D$268)+C53*(WinterLoadTemplateBank!$AH$6-WinterLoadTemplateBank!$AK$6+WinterLoadTemplateBank!$AJ$6)<0, 0, IF(WinterLoadTemplateBank!D14=0,0,WinterLoadTemplateBank!D14*MonthlyEnergyUsageData!$D$268)+C53*(WinterLoadTemplateBank!$AH$6-WinterLoadTemplateBank!$AK$6+WinterLoadTemplateBank!$AJ$6)) -> 0
C54: =IF(ISNUMBER(SEARCH("lo",$M$249)),1,IF(ISNUMBER(SEARCH("mo",$M$249)),1,1)) -> 1 | D54: 08:00:00 | E54: =IF(IF(WinterLoadTemplateBank!D15=0,0,WinterLoadTemplateBank!D15*MonthlyEnergyUsageData!$D$268)+C54*(WinterLoadTemplateBank!$AH$6-WinterLoadTemplateBank!$AK$6+WinterLoadTemplateBank!$AJ$6)<0, 0, IF(WinterLoadTemplateBank!D15=0,0,WinterLoadTemplateBank!D15*MonthlyEnergyUsageData!$D$268)+C54*(WinterLoadTemplateBank!$AH$6-WinterLoadTemplateBank!$AK$6+WinterLoadTemplateBank!$AJ$6)) -> 0
C55: 1 | D55: 09:00:00 | E55: =IF(IF(WinterLoadTemplateBank!D16=0,0,WinterLoadTemplateBank!D16*MonthlyEnergyUsageData!$D$268)+C55*(WinterLoadTemplateBank!$AH$6-WinterLoadTemplateBank!$AK$6+WinterLoadTemplateBank!$AJ$6)<0, 0, IF(WinterLoadTemplateBank!D16=0,0,WinterLoadTemplateBank!D16*MonthlyEnergyUsageData!$D$268)+C55*(WinterLoadTemplateBank!$AH$6-WinterLoadTemplateBank!$AK$6+WinterLoadTemplateBank!$AJ$6)) -> 0 | Z55: Max | AA55: Min
C56: 1 | D56: 10:00:00 | E56: =IF(IF(WinterLoadTemplateBank!D17=0,0,WinterLoadTemplateBank!D17*MonthlyEnergyUsageData!$D$268)+C56*(WinterLoadTemplateBank!$AH$6-WinterLoadTemplateBank!$AK$6+WinterLoadTemplateBank!$AJ$6)<0, 0, IF(WinterLoadTemplateBank!D17=0,0,WinterLoadTemplateBank!D17*MonthlyEnergyUsageData!$D$268)+C56*(WinterLoadTemplateBank!$AH$6-WinterLoadTemplateBank!$AK$6+WinterLoadTemplateBank!$AJ$6)) -> 0 | Z56: =IF(E46=LARGE($E$46:$E$69,1),E46,NA()) -> 0 | AA56: =IF(E46=MIN($E$46:$E$69),E46,NA()) -> 0
C57: 1 | D57: 11:00:00 | E57: =IF(IF(WinterLoadTemplateBank!D18=0,0,WinterLoadTemplateBank!D18*MonthlyEnergyUsageData!$D$268)+C57*(WinterLoadTemplateBank!$AH$6-WinterLoadTemplateBank!$AK$6+WinterLoadTemplateBank!$AJ$6)<0, 0, IF(WinterLoadTemplateBank!D18=0,0,WinterLoadTemplateBank!D18*MonthlyEnergyUsageData!$D$268)+C57*(WinterLoadTemplateBank!$AH$6-WinterLoadTemplateBank!$AK$6+WinterLoadTemplateBank!$AJ$6)) -> 0 | Z57: 0 | AA57: 0
C58: 1 | D58: 12:00:00 | E58: =IF(IF(WinterLoadTemplateBank!D19=0,0,WinterLoadTemplateBank!D19*MonthlyEnergyUsageData!$D$268)+C58*(WinterLoadTemplateBank!$AH$6-WinterLoadTemplateBank!$AK$6+WinterLoadTemplateBank!$AJ$6)<0, 0, IF(WinterLoadTemplateBank!D19=0,0,WinterLoadTemplateBank!D19*MonthlyEnergyUsageData!$D$268)+C58*(WinterLoadTemplateBank!$AH$6-WinterLoadTemplateBank!$AK$6+WinterLoadTemplateBank!$AJ$6)) -> 0 | Z58: 0 | AA58: 0
C59: 1 | D59: 13:00:00 | E59: =IF(IF(WinterLoadTemplateBank!D20=0,0,WinterLoadTemplateBank!D20*MonthlyEnergyUsageData!$D$268)+C59*(WinterLoadTemplateBank!$AH$6-WinterLoadTemplateBank!$AK$6+WinterLoadTemplateBank!$AJ$6)<0, 0, IF(WinterLoadTemplateBank!D20=0,0,WinterLoadTemplateBank!D20*MonthlyEnergyUsageData!$D$268)+C59*(WinterLoadTemplateBank!$AH$6-WinterLoadTemplateBank!$AK$6+WinterLoadTemplateBank!$AJ$6)) -> 0 | Z59: 0 | AA59: 0
C60: 1 | D60: 14:00:00 | E60: =IF(IF(WinterLoadTemplateBank!D21=0,0,WinterLoadTemplateBank!D21*MonthlyEnergyUsageData!$D$268)+C60*(WinterLoadTemplateBank!$AH$6-WinterLoadTemplateBank!$AK$6+WinterLoadTemplateBank!$AJ$6)<0, 0, IF(WinterLoadTemplateBank!D21=0,0,WinterLoadTemplateBank!D21*MonthlyEnergyUsageData!$D$268)+C60*(WinterLoadTemplateBank!$AH$6-WinterLoadTemplateBank!$AK$6+WinterLoadTemplateBank!$AJ$6)) -> 0 | Z60: 0 | AA60: 0
C61: 1 | D61: 15:00:00 | E61: =IF(IF(WinterLoadTemplateBank!D22=0,0,WinterLoadTemplateBank!D22*MonthlyEnergyUsageData!$D$268)+C61*(WinterLoadTemplateBank!$AH$6-WinterLoadTemplateBank!$AK$6+WinterLoadTemplateBank!$AJ$6)<0, 0, IF(WinterLoadTemplateBank!D22=0,0,WinterLoadTemplateBank!D22*MonthlyEnergyUsageData!$D$268)+C61*(WinterLoadTemplateBank!$AH$6-WinterLoadTemplateBank!$AK$6+WinterLoadTemplateBank!$AJ$6)) -> 0 | Z61: 0 | AA61: 0
C62: 1 | D62: 16:00:00 | E62: =IF(IF(WinterLoadTemplateBank!D23=0,0,WinterLoadTemplateBank!D23*MonthlyEnergyUsageData!$D$268)+C62*(WinterLoadTemplateBank!$AH$6-WinterLoadTemplateBank!$AK$6+WinterLoadTemplateBank!$AJ$6)<0, 0, IF(WinterLoadTemplateBank!D23=0,0,WinterLoadTemplateBank!D23*MonthlyEnergyUsageData!$D$268)+C62*(WinterLoadTemplateBank!$AH$6-WinterLoadTemplateBank!$AK$6+WinterLoadTemplateBank!$AJ$6)) -> 0 | Z62: 0 | AA62: 0
C63: 1 | D63: 17:00:00 | E63: =IF(IF(WinterLoadTemplateBank!D24=0,0,WinterLoadTemplateBank!D24*MonthlyEnergyUsageData!$D$268)+C63*(WinterLoadTemplateBank!$AH$6-WinterLoadTemplateBank!$AK$6+WinterLoadTemplateBank!$AJ$6)<0, 0, IF(WinterLoadTemplateBank!D24=0,0,WinterLoadTemplateBank!D24*MonthlyEnergyUsageData!$D$268)+C63*(WinterLoadTemplateBank!$AH$6-WinterLoadTemplateBank!$AK$6+WinterLoadTemplateBank!$AJ$6)) -> 0 | Z63: 0 | AA63: 0
C64: =IF(ISNUMBER(SEARCH("lo",$M$249)),0,IF(ISNUMBER(SEARCH("mo",$M$249)),1,1)) -> 1 | D64: 18:00:00 | E64: =IF(IF(WinterLoadTemplateBank!D25=0,0,WinterLoadTemplateBank!D25*MonthlyEnergyUsageData!$D$268)+C64*(WinterLoadTemplateBank!$AH$6-WinterLoadTemplateBank!$AK$6+WinterLoadTemplateBank!$AJ$6)<0, 0, IF(WinterLoadTemplateBank!D25=0,0,WinterLoadTemplateBank!D25*MonthlyEnergyUsageData!$D$268)+C64*(WinterLoadTemplateBank!$AH$6-WinterLoadTemplateBank!$AK$6+WinterLoadTemplateBank!$AJ$6)) -> 0 | Z64: 0 | AA64: 0
C65: =IF(ISNUMBER(SEARCH("lo",$M$249)),0,IF(ISNUMBER(SEARCH("mo",$M$249)),1,1)) -> 1 | D65: 19:00:00 | E65: =IF(IF(WinterLoadTemplateBank!D26=0,0,WinterLoadTemplateBank!D26*MonthlyEnergyUsageData!$D$268)+C65*(WinterLoadTemplateBank!$AH$6-WinterLoadTemplateBank!$AK$6+WinterLoadTemplateBank!$AJ$6)<0, 0, IF(WinterLoadTemplateBank!D26=0,0,WinterLoadTemplateBank!D26*MonthlyEnergyUsageData!$D$268)+C65*(WinterLoadTemplateBank!$AH$6-WinterLoadTemplateBank!$AK$6+WinterLoadTemplateBank!$AJ$6)) -> 0 | Z65: 0 | AA65: 0
C66: =IF(ISNUMBER(SEARCH("lo",$M$249)),0,IF(ISNUMBER(SEARCH("mo",$M$249)),1,1)) -> 1 | D66: 20:00:00 | E66: =IF(IF(WinterLoadTemplateBank!D27=0,0,WinterLoadTemplateBank!D27*MonthlyEnergyUsageData!$D$268)+C66*(WinterLoadTemplateBank!$AH$6-WinterLoadTemplateBank!$AK$6+WinterLoadTemplateBank!$AJ$6)<0, 0, IF(WinterLoadTemplateBank!D27=0,0,WinterLoadTemplateBank!D27*MonthlyEnergyUsageData!$D$268)+C66*(WinterLoadTemplateBank!$AH$6-WinterLoadTemplateBank!$AK$6+WinterLoadTemplateBank!$AJ$6)) -> 0 | Z66: 0 | AA66: 0
C67: =IF(ISNUMBER(SEARCH("lo",$M$249)),0,IF(ISNUMBER(SEARCH("mo",$M$249)),1,1)) -> 1 | D67: 21:00:00 | E67: =IF(IF(WinterLoadTemplateBank!D28=0,0,WinterLoadTemplateBank!D28*MonthlyEnergyUsageData!$D$268)+C67*(WinterLoadTemplateBank!$AH$6-WinterLoadTemplateBank!$AK$6+WinterLoadTemplateBank!$AJ$6)<0, 0, IF(WinterLoadTemplateBank!D28=0,0,WinterLoadTemplateBank!D28*MonthlyEnergyUsageData!$D$268)+C67*(WinterLoadTemplateBank!$AH$6-WinterLoadTemplateBank!$AK$6+WinterLoadTemplateBank!$AJ$6)) -> 0 | Z67: 0 | AA67: 0
C68: =IF(ISNUMBER(SEARCH("lo",$M$249)),0,IF(ISNUMBER(SEARCH("mo",$M$249)),1,1)) -> 1 | D68: 22:00:00 | E68: =IF(IF(WinterLoadTemplateBank!D29=0,0,WinterLoadTemplateBank!D29*MonthlyEnergyUsageData!$D$268)+C68*(WinterLoadTemplateBank!$AH$6-WinterLoadTemplateBank!$AK$6+WinterLoadTemplateBank!$AJ$6)<0, 0, IF(WinterLoadTemplateBank!D29=0,0,WinterLoadTemplateBank!D29*MonthlyEnergyUsageData!$D$268)+C68*(WinterLoadTemplateBank!$AH$6-WinterLoadTemplateBank!$AK$6+WinterLoadTemplateBank!$AJ$6)) -> 0 | Z68: 0 | AA68: 0
C69: =IF(ISNUMBER(SEARCH("lo",$M$249)),0,IF(ISNUMBER(SEARCH("mo",$M$249)),0,1)) -> 1 | D69: 23:00:00 | E69: =IF(IF(WinterLoadTemplateBank!D30=0,0,WinterLoadTemplateBank!D30*MonthlyEnergyUsageData!$D$268)+C69*(WinterLoadTemplateBank!$AH$6-WinterLoadTemplateBank!$AK$6+WinterLoadTemplateBank!$AJ$6)<0, 0, IF(WinterLoadTemplateBank!D30=0,0,WinterLoadTemplateBank!D30*MonthlyEnergyUsageData!$D$268)+C69*(WinterLoadTemplateBank!$AH$6-WinterLoadTemplateBank!$AK$6+WinterLoadTemplateBank!$AJ$6)) -> 0 | Z69: 0 | AA69: 0
Z70: 0 | AA70: 0
Z71: 0 | AA71: 0
Z72: 0 | AA72: 0
Z73: 0 | AA73: 0
Z74: 0 | AA74: 0
Z75: 0 | AA75: 0
Z76: 0 | AA76: 0
Z77: 0 | AA77: 0
Z78: 0 | AA78: 0
Z79: 0 | AA79: 0
B93: Comments: the selection of demand sources
B94: =DemandSourceSelectInterface!V3 -> 1
C141: HWD -Building Type
B142: Values in l per person perday | D142: Max Daily. Consp | E142: Min Daily Consmp. | F142: Average | G142: kWh (month) | H142: kW | J142: Drop down menu HWD
B143: Education | D143: 13 | E143: 6 | F143: =(D143+E143)/2 -> 9.5 | G143: =#REF!*F143*4.2*50*30/3600 ->  | H143: =G143/(30*24) ->  | J143: =B143 -> Education | K143: =G143 ->  | L143: =H143 -> 
J144: =B158 -> Hospital | K144: =G158 ->  | L144: =H158 -> 
J145: =B146 -> Hotels | K145: =G146 ->  | L145: =H146 -> 
B146: Hotels | D146: 464 | E146: 137 | F146: 302 | G146: =#REF!*F146*4.2*50*30/3600 ->  | H146: =G146/(30*24) ->  | J146: =B152 -> Offices | K146: =G152 ->  | L146: =H152 -> 
J147: =B149 -> Restaurants | K147: =G149 ->  | L147: =H149 ->  | O147: =I10*I15 -> 0 | P147: =MonthlyEnergyUsageData!E267 -> 0.9627329193 | Q147: =(HotWaterVentilation!F23-CasualGain!I27)*SUM(C46:C69) -> 0
J148: =B155 -> Large Retail | K148: =G155 ->  | L148: =H155 ->  | O148: =(HotWaterVentilation!F23-CasualGain!I27)*SUM(C46:C69) -> 0
B149: Restaurants | D149: 17 | E149: 7 | F149: =(D149+E149)/2+1 -> 13 | G149: =#REF!*F149*4.2*50*30/3600 ->  | H149: =G149/(30*24) ->  | J149: =B160 -> Sports/Leisure center | K149: =G160 ->  | L149: =H160 ->  | O149: =O147-O148 -> 0
J151: Selected demand | O151: =O149*P147+Q147 -> 0
B152: Offices | D152: 26 | E152: 8 | F152: =(D152+E152)/2+1 -> 18 | G152: =#REF!*F152*4.2*50*30/3600 ->  | H152: =G152/(30*24) ->  | J152: =LOOKUP(#REF!,J143:J149,K143:K149) ->  | K152: kWh(month) | O152: =O151 -> 0
J153: =LOOKUP(#REF!,J143:J149,L143:L149) ->  | K153: kW
B155: Large Retail | D155: 25 | E155: 10 | F155: =(D155+E155)/2+1 -> 18.5 | G155: =#REF!*F155*4.2*50*30/3600 ->  | H155: =G155/(30*24) -> 
B158: Hospital | F158: 135 | G158: =#REF!*F158*4.2*50*30/3600 ->  | H158: =G158/(30*24) -> 
B160: Sports/Leisure center | E160: repeating hotel value | F160: 302 | G160: =#REF!*F160*4.2*50*30/3600 ->  | H160: =G160/(30*24) -> 
B164: Total Casual gains - For design day load demand calculation
B165: =SUM(I40)/1000 -> 0 | C165: kW
E171: Gain utilization factor - CEN 13790 - page 25 | I171: Classa) | J171: Cm (J/Km2) b)
I172: Very light | J172: 80000
I173: Lightweight | J173: 110000
I174: Mediumweight | J174: 165000
I175: Heavyweight | J175: 260000
I176: Very heavy | J176: 370000
I177: Selected | J177: =IF(I23=I173,J173,IF(I23=I174,J174,J175)) -> 165000
C179: January | D179: February | E179: March | F179: April | G179: May | H179: June | I179: July | J179: August | K179: September | L179: October | M179: November | N179: December
B180: Q | C180: =($J$46+$P$338)*($E$27-D96)/1000 -> 0 | D180: 0 | E180: 0 | F180: 0 | G180: 0 | H180: 0 | I180: 0 | J180: 0 | K180: 0 | L180: 0 | M180: 0 | N180: 0
B181: Qgain | C181: =$I$39/1000 -> 0 | D181: 0 | E181: =$I$39/1000 -> 0 | F181: 0 | G181: 0 | H181: 0 | I181: 0 | J181: 0 | K181: 0 | L181: 0 | M181: 0 | N181: 0
B182: Ah | C182: =1+((($J$177*$E$29/3600)/$P$338)/15) -> 
B183: alfa | C183: =C181/C180 ->  | D183: =D181/D180 ->  | E183: =E181/E180 -> 
B184: Ut. Factor | C184: =(1-C183^C182)/(1-C183^(C182+1)) ->  | D184: =(1-D183^D182)/(1-D183^(D182+1)) ->  | E184: =(1-E183^E182)/(1-E183^(E182+1)) -> 
C185: 1
B224: Comments: identify the combination of different building type
C227: Building thermal mass | E227: =LOOKUP(I23,C246:C248,D246:D248) -> 2 | G227: Low | H227: Short
C228: Level of insulation | E228: =LOOKUP(I25,C251:C253,D251:D253) -> 2 | G228: Medium | H228: Long
C229: Area of glazing | E229: =LOOKUP(I27,C256:C258,D256:D258) -> 2 | G229: High | H229: Continuous
C230: level of occupany | E230: =LOOKUP(I29,C261:C263,D261:D263) -> 3
C244: Drop down Menu for the building types | K244: Selected template
C245: 3 levels of thermal mass: lightweight (lw); medium weight (mw); heavyweight (hw) | L245: =IF(E227=1,"lw",IF(E227=2,"mw","hw")) -> mw
C246: Heavyweight | D246: 3 | L246: =IF(E228=1,"li",IF(E228=2,"mi","hi")) -> mi
C247: Lightweight | D247: 1 | L247: =IF(E229=1,"lg",IF(E229=2,"mg","hg")) -> mg
C248: Mediumweight | D248: 2 | L248: =IF(E230=1,"lo",IF(E230=2,"mo","ct")) -> ct
K249: template name | M249: =CONCATENATE(L245,L246,L247,L248) -> mwmimgct
C250: insulation: low (li); medium (mi); high (hi)
C251: High | D251: 3
C252: Low | D252: 1
C253: Medium | D253: 2
C255: 3 levels of glazing: low (lg); medium (mg); high (hg)
C256: High | D256: 3
C257: Low | D257: 1
C258: Medium | D258: 2
C260: 3 levels of occupancy: short (lo), long (mo); and continuous (ct)
C261: Continuous | D261: 3
C262: Long | D262: 2
C263: Short | D263: 1
C266: Scaling Factor | D266: SBEM | E266: Measured Data
C267: For total monthly demand | E267: =IF(E14<15,(15.5-E25)/(LOOKUP(E23,C322:C329,E322:E329)),(15.5-E25)/(E14)) -> 0.9627329193
C268: For daily profile | D268: =IF(E25<M302,K304,IF(E25<=M319,K302,K306)) -> 0
C269: Comments: these above two scaling factors are considered to adjust the available data to the condition at designed day.
C272: Time | D272: Outside Air Temperature (oC)
D273: -3 | F273: -2 | H273: -1 | J273: 0 | L273: 1 | N273: 2 | P273: 3 | R273: 4 | T273: 5 | V273: 6 | X273: 7 | Z273: 8 | AB273: 9 | AD273: 10 | AF273: 11 | AH273: 12 | AJ273: 13 | AL273: 14
B274: =IF(ISNUMBER(SEARCH("lo",$M$249)),0,IF(ISNUMBER(SEARCH("mo",$M$249)),0,1)) -> 1 | C274: 00:00:00 | D274: =Bank3N!C7 -> 19.58 | E274: =IF(Bank3N!D7=0,0,Bank3N!D7*MonthlyEnergyUsageData!$D$300)+B274*(WinterLoadTemplateBank!$AH$6-WinterLoadTemplateBank!$AK$6+WinterLoadTemplateBank!$AJ$6) -> 0 | F274: =Bank2N!C7 -> 19.89 | G274: =IF(Bank2N!D7=0,0,Bank2N!D7*MonthlyEnergyUsageData!$D$301)+B274*(WinterLoadTemplateBank!$AH$6-WinterLoadTemplateBank!$AK$6) -> 0 | H274: =Bank1N!C7 -> 19.24 | I274: =IF(Bank1N!D7=0,0,Bank1N!D7*MonthlyEnergyUsageData!$D$302)+B274*(WinterLoadTemplateBank!$AH$6-WinterLoadTemplateBank!$AK$6) -> 0 | J274: =Bank0!C7 -> 17.2 | K274: =IF(Bank0!D7=0,0,Bank0!D7*MonthlyEnergyUsageData!$D$303)+B274*(WinterLoadTemplateBank!$AH$6-WinterLoadTemplateBank!$AK$6) -> 0 | L274: =Bank1!C7 -> 17.41 | M274: =IF(Bank1!D7=0,0,Bank1!D7*MonthlyEnergyUsageData!$D$304)+B274*(WinterLoadTemplateBank!$AH$6-WinterLoadTemplateBank!$AK$6) -> 0 | N274: =Bank2!C7 -> 16.82 | O274: =IF(Bank2!D7=0,0,Bank2!D7*MonthlyEnergyUsageData!$D$305)+B274*(WinterLoadTemplateBank!$AH$6-WinterLoadTemplateBank!$AK$6) -> 0 | P274: =Bank3!C7 -> 15.93 | Q274: =IF(Bank3!D7=0,0,Bank3!D7*MonthlyEnergyUsageData!$D$306)+B274*(WinterLoadTemplateBank!$AH$6-WinterLoadTemplateBank!$AK$6) -> 0 | R274: =Bank4!C7 -> 16.12 | S274: =IF(Bank4!D7=0,0,Bank4!D7*MonthlyEnergyUsageData!$D$307)+B274*(WinterLoadTemplateBank!$AH$6-WinterLoadTemplateBank!$AK$6) -> 0 | T274: =Bank5!C7 -> 15.51 | U274: =IF(Bank5!D7=0,0,Bank5!D7*MonthlyEnergyUsageData!$D$308)+B274*(WinterLoadTemplateBank!$AH$6-WinterLoadTemplateBank!$AK$6) -> 0 | V274: =Bank6!C7 -> 14.08 | W274: =IF(Bank6!D7=0,0,Bank6!D7*MonthlyEnergyUsageData!$D$309)+B274*(WinterLoadTemplateBank!$AH$6-WinterLoadTemplateBank!$AK$6) -> 0 | X274: =Bank7!C7 -> 13.86 | Y274: =IF(Bank7!D7=0,0,Bank7!D7*MonthlyEnergyUsageData!$D$310)+B274*(WinterLoadTemplateBank!$AH$6-WinterLoadTemplateBank!$AK$6) -> 0 | Z274: =Bank8!C7 -> 13.1 | AA274: =IF(Bank8!D7=0,0,Bank8!D7*MonthlyEnergyUsageData!$D$311)+B274*(WinterLoadTemplateBank!$AH$6-WinterLoadTemplateBank!$AK$6) -> 0 | AB274: =Bank9!C7 -> 6.17 | AC274: =IF(Bank9!D7=0,0,Bank9!D7*MonthlyEnergyUsageData!$D$312)+B274*(WinterLoadTemplateBank!$AH$6-WinterLoadTemplateBank!$AK$6) -> 0 | AD274: =Bank10!C7 -> 7.16 | AE274: =IF(Bank10!D7=0,0,Bank10!D7*MonthlyEnergyUsageData!$D$313)+B274*(WinterLoadTemplateBank!$AH$6-WinterLoadTemplateBank!$AK$6) -> 0 | AF274: =Bank11!C7 -> 6.88 | AG274: =IF(Bank11!D7=0,0,Bank11!D7*MonthlyEnergyUsageData!$D$314)+B274*(WinterLoadTemplateBank!$AH$6-WinterLoadTemplateBank!$AK$6) -> 0 | AH274: =Bank12!C7 -> 3.71 | AI274: =IF(Bank12!D7=0,0,Bank12!D7*MonthlyEnergyUsageData!$D$315)+B274*(WinterLoadTemplateBank!$AH$6-WinterLoadTemplateBank!$AK$6) -> 0 | AJ274: =Bank13!C7 -> 4.38 | AK274: =IF(Bank13!D7=0,0,Bank13!D7*MonthlyEnergyUsageData!$D$316)+B274*(WinterLoadTemplateBank!$AH$6-WinterLoadTemplateBank!$AK$6) -> 0 | AL274: =Bank14!C7 -> 3.93 | AM274: =IF(Bank14!D7=0,0,Bank14!D7*MonthlyEnergyUsageData!$D$317)+B274*(WinterLoadTemplateBank!$AH$6-WinterLoadTemplateBank!$AK$6) -> 0
B275: 1 | C275: 01:00:00 | D275: =Bank3N!C8 -> 21.12 | E275: =IF(Bank3N!D8=0,0,Bank3N!D8*MonthlyEnergyUsageData!$D$300)+B275*(WinterLoadTemplateBank!$AH$6-WinterLoadTemplateBank!$AK$6+WinterLoadTemplateBank!$AJ$6) -> 0 | F275: =Bank2N!C8 -> 21.08 | G275: =IF(Bank2N!D8=0,0,Bank2N!D8*MonthlyEnergyUsageData!$D$301)+B275*(WinterLoadTemplateBank!$AH$6-WinterLoadTemplateBank!$AK$6) -> 0 | H275: =Bank1N!C8 -> 20.4 | I275: =IF(Bank1N!D8=0,0,Bank1N!D8*MonthlyEnergyUsageData!$D$302)+B275*(WinterLoadTemplateBank!$AH$6-WinterLoadTemplateBank!$AK$6) -> 0 | J275: =Bank0!C8 -> 18.69 | K275: =IF(Bank0!D8=0,0,Bank0!D8*MonthlyEnergyUsageData!$D$303)+B275*(WinterLoadTemplateBank!$AH$6-WinterLoadTemplateBank!$AK$6) -> 0 | L275: =Bank1!C8 -> 18.54 | M275: =IF(Bank1!D8=0,0,Bank1!D8*MonthlyEnergyUsageData!$D$304)+B275*(WinterLoadTemplateBank!$AH$6-WinterLoadTemplateBank!$AK$6) -> 0 | N275: =Bank2!C8 -> 17.93 | O275: =IF(Bank2!D8=0,0,Bank2!D8*MonthlyEnergyUsageData!$D$305)+B275*(WinterLoadTemplateBank!$AH$6-WinterLoadTemplateBank!$AK$6) -> 0 | P275: =Bank3!C8 -> 16.68 | Q275: =IF(Bank3!D8=0,0,Bank3!D8*MonthlyEnergyUsageData!$D$306)+B275*(WinterLoadTemplateBank!$AH$6-WinterLoadTemplateBank!$AK$6) -> 0 | R275: =Bank4!C8 -> 16.51 | S275: =IF(Bank4!D8=0,0,Bank4!D8*MonthlyEnergyUsageData!$D$307)+B275*(WinterLoadTemplateBank!$AH$6-WinterLoadTemplateBank!$AK$6) -> 0 | T275: =Bank5!C8 -> 15.86 | U275: =IF(Bank5!D8=0,0,Bank5!D8*MonthlyEnergyUsageData!$D$308)+B275*(WinterLoadTemplateBank!$AH$6-WinterLoadTemplateBank!$AK$6) -> 0 | V275: =Bank6!C8 -> 14.73 | W275: =IF(Bank6!D8=0,0,Bank6!D8*MonthlyEnergyUsageData!$D$309)+B275*(WinterLoadTemplateBank!$AH$6-WinterLoadTemplateBank!$AK$6) -> 0 | X275: =Bank7!C8 -> 14.16 | Y275: =IF(Bank7!D8=0,0,Bank7!D8*MonthlyEnergyUsageData!$D$310)+B275*(WinterLoadTemplateBank!$AH$6-WinterLoadTemplateBank!$AK$6) -> 0 | Z275: =Bank8!C8 -> 13.38 | AA275: =IF(Bank8!D8=0,0,Bank8!D8*MonthlyEnergyUsageData!$D$311)+B275*(WinterLoadTemplateBank!$AH$6-WinterLoadTemplateBank!$AK$6) -> 0 | AB275: =Bank9!C8 -> 6.33 | AC275: =IF(Bank9!D8=0,0,Bank9!D8*MonthlyEnergyUsageData!$D$312)+B275*(WinterLoadTemplateBank!$AH$6-WinterLoadTemplateBank!$AK$6) -> 0 | AD275: =Bank10!C8 -> 7.01 | AE275: =IF(Bank10!D8=0,0,Bank10!D8*MonthlyEnergyUsageData!$D$313)+B275*(WinterLoadTemplateBank!$AH$6-WinterLoadTemplateBank!$AK$6) -> 0 | AF275: =Bank11!C8 -> 6.73 | AG275: =IF(Bank11!D8=0,0,Bank11!D8*MonthlyEnergyUsageData!$D$314)+B275*(WinterLoadTemplateBank!$AH$6-WinterLoadTemplateBank!$AK$6) -> 0 | AH275: =Bank12!C8 -> 3.95 | AI275: =IF(Bank12!D8=0,0,Bank12!D8*MonthlyEnergyUsageData!$D$315)+B275*(WinterLoadTemplateBank!$AH$6-WinterLoadTemplateBank!$AK$6) -> 0 | AJ275: =Bank13!C8 -> 4.3 | AK275: =IF(Bank13!D8=0,0,Bank13!D8*MonthlyEnergyUsageData!$D$316)+B275*(WinterLoadTemplateBank!$AH$6-WinterLoadTemplateBank!$AK$6) -> 0 | AL275: =Bank14!C8 -> 3.85 | AM275: =IF(Bank14!D8=0,0,Bank14!D8*MonthlyEnergyUsageData!$D$317)+B275*(WinterLoadTemplateBank!$AH$6-WinterLoadTemplateBank!$AK$6) -> 0
B276: 1 | C276: 02:00:00 | D276: =Bank3N!C9 -> 21.36 | E276: =IF(Bank3N!D9=0,0,Bank3N!D9*MonthlyEnergyUsageData!$D$300)+B276*(WinterLoadTemplateBank!$AH$6-WinterLoadTemplateBank!$AK$6+WinterLoadTemplateBank!$AJ$6) -> 0 | F276: =Bank2N!C9 -> 21.21 | G276: =IF(Bank2N!D9=0,0,Bank2N!D9*MonthlyEnergyUsageData!$D$301)+B276*(WinterLoadTemplateBank!$AH$6-WinterLoadTemplateBank!$AK$6) -> 0 | H276: =Bank1N!C9 -> 20.52 | I276: =IF(Bank1N!D9=0,0,Bank1N!D9*MonthlyEnergyUsageData!$D$302)+B276*(WinterLoadTemplateBank!$AH$6-WinterLoadTemplateBank!$AK$6) -> 0 | J276: =Bank0!C9 -> 18.93 | K276: =IF(Bank0!D9=0,0,Bank0!D9*MonthlyEnergyUsageData!$D$303)+B276*(WinterLoadTemplateBank!$AH$6-WinterLoadTemplateBank!$AK$6) -> 0 | L276: =Bank1!C9 -> 18.68 | M276: =IF(Bank1!D9=0,0,Bank1!D9*MonthlyEnergyUsageData!$D$304)+B276*(WinterLoadTemplateBank!$AH$6-WinterLoadTemplateBank!$AK$6) -> 0 | N276: =Bank2!C9 -> 18.06 | O276: =IF(Bank2!D9=0,0,Bank2!D9*MonthlyEnergyUsageData!$D$305)+B276*(WinterLoadTemplateBank!$AH$6-WinterLoadTemplateBank!$AK$6) -> 0 | P276: =Bank3!C9 -> 16.81 | Q276: =IF(Bank3!D9=0,0,Bank3!D9*MonthlyEnergyUsageData!$D$306)+B276*(WinterLoadTemplateBank!$AH$6-WinterLoadTemplateBank!$AK$6) -> 0 | R276: =Bank4!C9 -> 16.52 | S276: =IF(Bank4!D9=0,0,Bank4!D9*MonthlyEnergyUsageData!$D$307)+B276*(WinterLoadTemplateBank!$AH$6-WinterLoadTemplateBank!$AK$6) -> 0 | T276: =Bank5!C9 -> 15.87 | U276: =IF(Bank5!D9=0,0,Bank5!D9*MonthlyEnergyUsageData!$D$308)+B276*(WinterLoadTemplateBank!$AH$6-WinterLoadTemplateBank!$AK$6) -> 0 | V276: =Bank6!C9 -> 14.82 | W276: =IF(Bank6!D9=0,0,Bank6!D9*MonthlyEnergyUsageData!$D$309)+B276*(WinterLoadTemplateBank!$AH$6-WinterLoadTemplateBank!$AK$6) -> 0 | X276: =Bank7!C9 -> 14.17 | Y276: =IF(Bank7!D9=0,0,Bank7!D9*MonthlyEnergyUsageData!$D$310)+B276*(WinterLoadTemplateBank!$AH$6-WinterLoadTemplateBank!$AK$6) -> 0 | Z276: =Bank8!C9 -> 13.38 | AA276: =IF(Bank8!D9=0,0,Bank8!D9*MonthlyEnergyUsageData!$D$311)+B276*(WinterLoadTemplateBank!$AH$6-WinterLoadTemplateBank!$AK$6) -> 0 | AB276: =Bank9!C9 -> 6.43 | AC276: =IF(Bank9!D9=0,0,Bank9!D9*MonthlyEnergyUsageData!$D$312)+B276*(WinterLoadTemplateBank!$AH$6-WinterLoadTemplateBank!$AK$6) -> 0 | AD276: =Bank10!C9 -> 7 | AE276: =IF(Bank10!D9=0,0,Bank10!D9*MonthlyEnergyUsageData!$D$313)+B276*(WinterLoadTemplateBank!$AH$6-WinterLoadTemplateBank!$AK$6) -> 0 | AF276: =Bank11!C9 -> 6.7 | AG276: =IF(Bank11!D9=0,0,Bank11!D9*MonthlyEnergyUsageData!$D$314)+B276*(WinterLoadTemplateBank!$AH$6-WinterLoadTemplateBank!$AK$6) -> 0 | AH276: =Bank12!C9 -> 4.09 | AI276: =IF(Bank12!D9=0,0,Bank12!D9*MonthlyEnergyUsageData!$D$315)+B276*(WinterLoadTemplateBank!$AH$6-WinterLoadTemplateBank!$AK$6) -> 0 | AJ276: =Bank13!C9 -> 4.31 | AK276: =IF(Bank13!D9=0,0,Bank13!D9*MonthlyEnergyUsageData!$D$316)+B276*(WinterLoadTemplateBank!$AH$6-WinterLoadTemplateBank!$AK$6) -> 0 | AL276: =Bank14!C9 -> 3.86 | AM276: =IF(Bank14!D9=0,0,Bank14!D9*MonthlyEnergyUsageData!$D$317)+B276*(WinterLoadTemplateBank!$AH$6-WinterLoadTemplateBank!$AK$6) -> 0
B277: 1 | C277: 03:00:00 | D277: =Bank3N!C10 -> 21.9 | E277: =IF(Bank3N!D10=0,0,Bank3N!D10*MonthlyEnergyUsageData!$D$300)+B277*(WinterLoadTemplateBank!$AH$6-WinterLoadTemplateBank!$AK$6+WinterLoadTemplateBank!$AJ$6) -> 0 | F277: =Bank2N!C10 -> 21.7 | G277: =IF(Bank2N!D10=0,0,Bank2N!D10*MonthlyEnergyUsageData!$D$301)+B277*(WinterLoadTemplateBank!$AH$6-WinterLoadTemplateBank!$AK$6) -> 0 | H277: =Bank1N!C10 -> 21.01 | I277: =IF(Bank1N!D10=0,0,Bank1N!D10*MonthlyEnergyUsageData!$D$302)+B277*(WinterLoadTemplateBank!$AH$6-WinterLoadTemplateBank!$AK$6) -> 0 | J277: =Bank0!C10 -> 19.46 | K277: =IF(Bank0!D10=0,0,Bank0!D10*MonthlyEnergyUsageData!$D$303)+B277*(WinterLoadTemplateBank!$AH$6-WinterLoadTemplateBank!$AK$6) -> 0 | L277: =Bank1!C10 -> 19.17 | M277: =IF(Bank1!D10=0,0,Bank1!D10*MonthlyEnergyUsageData!$D$304)+B277*(WinterLoadTemplateBank!$AH$6-WinterLoadTemplateBank!$AK$6) -> 0 | N277: =Bank2!C10 -> 18.53 | O277: =IF(Bank2!D10=0,0,Bank2!D10*MonthlyEnergyUsageData!$D$305)+B277*(WinterLoadTemplateBank!$AH$6-WinterLoadTemplateBank!$AK$6) -> 0 | P277: =Bank3!C10 -> 16.78 | Q277: =IF(Bank3!D10=0,0,Bank3!D10*MonthlyEnergyUsageData!$D$306)+B277*(WinterLoadTemplateBank!$AH$6-WinterLoadTemplateBank!$AK$6) -> 0 | R277: =Bank4!C10 -> 16.47 | S277: =IF(Bank4!D10=0,0,Bank4!D10*MonthlyEnergyUsageData!$D$307)+B277*(WinterLoadTemplateBank!$AH$6-WinterLoadTemplateBank!$AK$6) -> 0 | T277: =Bank5!C10 -> 15.81 | U277: =IF(Bank5!D10=0,0,Bank5!D10*MonthlyEnergyUsageData!$D$308)+B277*(WinterLoadTemplateBank!$AH$6-WinterLoadTemplateBank!$AK$6) -> 0 | V277: =Bank6!C10 -> 14.77 | W277: =IF(Bank6!D10=0,0,Bank6!D10*MonthlyEnergyUsageData!$D$309)+B277*(WinterLoadTemplateBank!$AH$6-WinterLoadTemplateBank!$AK$6) -> 0 | X277: =Bank7!C10 -> 14.11 | Y277: =IF(Bank7!D10=0,0,Bank7!D10*MonthlyEnergyUsageData!$D$310)+B277*(WinterLoadTemplateBank!$AH$6-WinterLoadTemplateBank!$AK$6) -> 0 | Z277: =Bank8!C10 -> 13.31 | AA277: =IF(Bank8!D10=0,0,Bank8!D10*MonthlyEnergyUsageData!$D$311)+B277*(WinterLoadTemplateBank!$AH$6-WinterLoadTemplateBank!$AK$6) -> 0 | AB277: =Bank9!C10 -> 6.35 | AC277: =IF(Bank9!D10=0,0,Bank9!D10*MonthlyEnergyUsageData!$D$312)+B277*(WinterLoadTemplateBank!$AH$6-WinterLoadTemplateBank!$AK$6) -> 0 | AD277: =Bank10!C10 -> 6.87 | AE277: =IF(Bank10!D10=0,0,Bank10!D10*MonthlyEnergyUsageData!$D$313)+B277*(WinterLoadTemplateBank!$AH$6-WinterLoadTemplateBank!$AK$6) -> 0 | AF277: =Bank11!C10 -> 6.56 | AG277: =IF(Bank11!D10=0,0,Bank11!D10*MonthlyEnergyUsageData!$D$314)+B277*(WinterLoadTemplateBank!$AH$6-WinterLoadTemplateBank!$AK$6) -> 0 | AH277: =Bank12!C10 -> 4.04 | AI277: =IF(Bank12!D10=0,0,Bank12!D10*MonthlyEnergyUsageData!$D$315)+B277*(WinterLoadTemplateBank!$AH$6-WinterLoadTemplateBank!$AK$6) -> 0 | AJ277: =Bank13!C10 -> 4.18 | AK277: =IF(Bank13!D10=0,0,Bank13!D10*MonthlyEnergyUsageData!$D$316)+B277*(WinterLoadTemplateBank!$AH$6-WinterLoadTemplateBank!$AK$6) -> 0 | AL277: =Bank14!C10 -> 3.72 | AM277: =IF(Bank14!D10=0,0,Bank14!D10*MonthlyEnergyUsageData!$D$317)+B277*(WinterLoadTemplateBank!$AH$6-WinterLoadTemplateBank!$AK$6) -> 0
B278: 1 | C278: 04:00:00 | D278: =Bank3N!C11 -> 21.77 | E278: =IF(Bank3N!D11=0,0,Bank3N!D11*MonthlyEnergyUsageData!$D$300)+B278*(WinterLoadTemplateBank!$AH$6-WinterLoadTemplateBank!$AK$6+WinterLoadTemplateBank!$AJ$6) -> 0 | F278: =Bank2N!C11 -> 21.55 | G278: =IF(Bank2N!D11=0,0,Bank2N!D11*MonthlyEnergyUsageData!$D$301)+B278*(WinterLoadTemplateBank!$AH$6-WinterLoadTemplateBank!$AK$6) -> 0 | H278: =Bank1N!C11 -> 20.86 | I278: =IF(Bank1N!D11=0,0,Bank1N!D11*MonthlyEnergyUsageData!$D$302)+B278*(WinterLoadTemplateBank!$AH$6-WinterLoadTemplateBank!$AK$6) -> 0 | J278: =Bank0!C11 -> 19.35 | K278: =IF(Bank0!D11=0,0,Bank0!D11*MonthlyEnergyUsageData!$D$303)+B278*(WinterLoadTemplateBank!$AH$6-WinterLoadTemplateBank!$AK$6) -> 0 | L278: =Bank1!C11 -> 19.05 | M278: =IF(Bank1!D11=0,0,Bank1!D11*MonthlyEnergyUsageData!$D$304)+B278*(WinterLoadTemplateBank!$AH$6-WinterLoadTemplateBank!$AK$6) -> 0 | N278: =Bank2!C11 -> 18.42 | O278: =IF(Bank2!D11=0,0,Bank2!D11*MonthlyEnergyUsageData!$D$305)+B278*(WinterLoadTemplateBank!$AH$6-WinterLoadTemplateBank!$AK$6) -> 0 | P278: =Bank3!C11 -> 16.55 | Q278: =IF(Bank3!D11=0,0,Bank3!D11*MonthlyEnergyUsageData!$D$306)+B278*(WinterLoadTemplateBank!$AH$6-WinterLoadTemplateBank!$AK$6) -> 0 | R278: =Bank4!C11 -> 16.21 | S278: =IF(Bank4!D11=0,0,Bank4!D11*MonthlyEnergyUsageData!$D$307)+B278*(WinterLoadTemplateBank!$AH$6-WinterLoadTemplateBank!$AK$6) -> 0 | T278: =Bank5!C11 -> 15.54 | U278: =IF(Bank5!D11=0,0,Bank5!D11*MonthlyEnergyUsageData!$D$308)+B278*(WinterLoadTemplateBank!$AH$6-WinterLoadTemplateBank!$AK$6) -> 0 | V278: =Bank6!C11 -> 14.51 | W278: =IF(Bank6!D11=0,0,Bank6!D11*MonthlyEnergyUsageData!$D$309)+B278*(WinterLoadTemplateBank!$AH$6-WinterLoadTemplateBank!$AK$6) -> 0 | X278: =Bank7!C11 -> 13.84 | Y278: =IF(Bank7!D11=0,0,Bank7!D11*MonthlyEnergyUsageData!$D$310)+B278*(WinterLoadTemplateBank!$AH$6-WinterLoadTemplateBank!$AK$6) -> 0 | Z278: =Bank8!C11 -> 13.04 | AA278: =IF(Bank8!D11=0,0,Bank8!D11*MonthlyEnergyUsageData!$D$311)+B278*(WinterLoadTemplateBank!$AH$6-WinterLoadTemplateBank!$AK$6) -> 0 | AB278: =Bank9!C11 -> 6.32 | AC278: =IF(Bank9!D11=0,0,Bank9!D11*MonthlyEnergyUsageData!$D$312)+B278*(WinterLoadTemplateBank!$AH$6-WinterLoadTemplateBank!$AK$6) -> 0 | AD278: =Bank10!C11 -> 6.8 | AE278: =IF(Bank10!D11=0,0,Bank10!D11*MonthlyEnergyUsageData!$D$313)+B278*(WinterLoadTemplateBank!$AH$6-WinterLoadTemplateBank!$AK$6) -> 0 | AF278: =Bank11!C11 -> 6.45 | AG278: =IF(Bank11!D11=0,0,Bank11!D11*MonthlyEnergyUsageData!$D$314)+B278*(WinterLoadTemplateBank!$AH$6-WinterLoadTemplateBank!$AK$6) -> 0 | AH278: =Bank12!C11 -> 4 | AI278: =IF(Bank12!D11=0,0,Bank12!D11*MonthlyEnergyUsageData!$D$315)+B278*(WinterLoadTemplateBank!$AH$6-WinterLoadTemplateBank!$AK$6) -> 0 | AJ278: =Bank13!C11 -> 4.07 | AK278: =IF(Bank13!D11=0,0,Bank13!D11*MonthlyEnergyUsageData!$D$316)+B278*(WinterLoadTemplateBank!$AH$6-WinterLoadTemplateBank!$AK$6) -> 0 | AL278: =Bank14!C11 -> 3.59 | AM278: =IF(Bank14!D11=0,0,Bank14!D11*MonthlyEnergyUsageData!$D$317)+B278*(WinterLoadTemplateBank!$AH$6-WinterLoadTemplateBank!$AK$6) -> 0
B279: 1 | C279: 05:00:00 | D279: =Bank3N!C12 -> 21.81 | E279: =IF(Bank3N!D12=0,0,Bank3N!D12*MonthlyEnergyUsageData!$D$300)+B279*(WinterLoadTemplateBank!$AH$6-WinterLoadTemplateBank!$AK$6+WinterLoadTemplateBank!$AJ$6) -> 0 | F279: =Bank2N!C12 -> 21.58 | G279: =IF(Bank2N!D12=0,0,Bank2N!D12*MonthlyEnergyUsageData!$D$301)+B279*(WinterLoadTemplateBank!$AH$6-WinterLoadTemplateBank!$AK$6) -> 0 | H279: =Bank1N!C12 -> 20.87 | I279: =IF(Bank1N!D12=0,0,Bank1N!D12*MonthlyEnergyUsageData!$D$302)+B279*(WinterLoadTemplateBank!$AH$6-WinterLoadTemplateBank!$AK$6) -> 0 | J279: =Bank0!C12 -> 19.4 | K279: =IF(Bank0!D12=0,0,Bank0!D12*MonthlyEnergyUsageData!$D$303)+B279*(WinterLoadTemplateBank!$AH$6-WinterLoadTemplateBank!$AK$6) -> 0 | L279: =Bank1!C12 -> 19.09 | M279: =IF(Bank1!D12=0,0,Bank1!D12*MonthlyEnergyUsageData!$D$304)+B279*(WinterLoadTemplateBank!$AH$6-WinterLoadTemplateBank!$AK$6) -> 0 | N279: =Bank2!C12 -> 18.45 | O279: =IF(Bank2!D12=0,0,Bank2!D12*MonthlyEnergyUsageData!$D$305)+B279*(WinterLoadTemplateBank!$AH$6-WinterLoadTemplateBank!$AK$6) -> 0 | P279: =Bank3!C12 -> 16.39 | Q279: =IF(Bank3!D12=0,0,Bank3!D12*MonthlyEnergyUsageData!$D$306)+B279*(WinterLoadTemplateBank!$AH$6-WinterLoadTemplateBank!$AK$6) -> 0 | R279: =Bank4!C12 -> 16.02 | S279: =IF(Bank4!D12=0,0,Bank4!D12*MonthlyEnergyUsageData!$D$307)+B279*(WinterLoadTemplateBank!$AH$6-WinterLoadTemplateBank!$AK$6) -> 0 | T279: =Bank5!C12 -> 15.34 | U279: =IF(Bank5!D12=0,0,Bank5!D12*MonthlyEnergyUsageData!$D$308)+B279*(WinterLoadTemplateBank!$AH$6-WinterLoadTemplateBank!$AK$6) -> 0 | V279: =Bank6!C12 -> 14.32 | W279: =IF(Bank6!D12=0,0,Bank6!D12*MonthlyEnergyUsageData!$D$309)+B279*(WinterLoadTemplateBank!$AH$6-WinterLoadTemplateBank!$AK$6) -> 0 | X279: =Bank7!C12 -> 13.63 | Y279: =IF(Bank7!D12=0,0,Bank7!D12*MonthlyEnergyUsageData!$D$310)+B279*(WinterLoadTemplateBank!$AH$6-WinterLoadTemplateBank!$AK$6) -> 0 | Z279: =Bank8!C12 -> 12.83 | AA279: =IF(Bank8!D12=0,0,Bank8!D12*MonthlyEnergyUsageData!$D$311)+B279*(WinterLoadTemplateBank!$AH$6-WinterLoadTemplateBank!$AK$6) -> 0 | AB279: =Bank9!C12 -> 6.32 | AC279: =IF(Bank9!D12=0,0,Bank9!D12*MonthlyEnergyUsageData!$D$312)+B279*(WinterLoadTemplateBank!$AH$6-WinterLoadTemplateBank!$AK$6) -> 0 | AD279: =Bank10!C12 -> 6.75 | AE279: =IF(Bank10!D12=0,0,Bank10!D12*MonthlyEnergyUsageData!$D$313)+B279*(WinterLoadTemplateBank!$AH$6-WinterLoadTemplateBank!$AK$6) -> 0 | AF279: =Bank11!C12 -> 6.37 | AG279: =IF(Bank11!D12=0,0,Bank11!D12*MonthlyEnergyUsageData!$D$314)+B279*(WinterLoadTemplateBank!$AH$6-WinterLoadTemplateBank!$AK$6) -> 0 | AH279: =Bank12!C12 -> 3.98 | AI279: =IF(Bank12!D12=0,0,Bank12!D12*MonthlyEnergyUsageData!$D$315)+B279*(WinterLoadTemplateBank!$AH$6-WinterLoadTemplateBank!$AK$6) -> 0 | AJ279: =Bank13!C12 -> 4 | AK279: =IF(Bank13!D12=0,0,Bank13!D12*MonthlyEnergyUsageData!$D$316)+B279*(WinterLoadTemplateBank!$AH$6-WinterLoadTemplateBank!$AK$6) -> 0 | AL279: =Bank14!C12 -> 3.5 | AM279: =IF(Bank14!D12=0,0,Bank14!D12*MonthlyEnergyUsageData!$D$317)+B279*(WinterLoadTemplateBank!$AH$6-WinterLoadTemplateBank!$AK$6) -> 0
B280: 1 | C280: 06:00:00 | D280: =Bank3N!C13 -> 22.07 | E280: =IF(Bank3N!D13=0,0,Bank3N!D13*MonthlyEnergyUsageData!$D$300)+B280*(WinterLoadTemplateBank!$AH$6-WinterLoadTemplateBank!$AK$6+WinterLoadTemplateBank!$AJ$6) -> 0 | F280: =Bank2N!C13 -> 21.81 | G280: =IF(Bank2N!D13=0,0,Bank2N!D13*MonthlyEnergyUsageData!$D$301)+B280*(WinterLoadTemplateBank!$AH$6-WinterLoadTemplateBank!$AK$6) -> 0 | H280: =Bank1N!C13 -> 21.1 | I280: =IF(Bank1N!D13=0,0,Bank1N!D13*MonthlyEnergyUsageData!$D$302)+B280*(WinterLoadTemplateBank!$AH$6-WinterLoadTemplateBank!$AK$6) -> 0 | J280: =Bank0!C13 -> 19.65 | K280: =IF(Bank0!D13=0,0,Bank0!D13*MonthlyEnergyUsageData!$D$303)+B280*(WinterLoadTemplateBank!$AH$6-WinterLoadTemplateBank!$AK$6) -> 0 | L280: =Bank1!C13 -> 19.31 | M280: =IF(Bank1!D13=0,0,Bank1!D13*MonthlyEnergyUsageData!$D$304)+B280*(WinterLoadTemplateBank!$AH$6-WinterLoadTemplateBank!$AK$6) -> 0 | N280: =Bank2!C13 -> 18.66 | O280: =IF(Bank2!D13=0,0,Bank2!D13*MonthlyEnergyUsageData!$D$305)+B280*(WinterLoadTemplateBank!$AH$6-WinterLoadTemplateBank!$AK$6) -> 0 | P280: =Bank3!C13 -> 16.84 | Q280: =IF(Bank3!D13=0,0,Bank3!D13*MonthlyEnergyUsageData!$D$306)+B280*(WinterLoadTemplateBank!$AH$6-WinterLoadTemplateBank!$AK$6) -> 0 | R280: =Bank4!C13 -> 16.44 | S280: =IF(Bank4!D13=0,0,Bank4!D13*MonthlyEnergyUsageData!$D$307)+B280*(WinterLoadTemplateBank!$AH$6-WinterLoadTemplateBank!$AK$6) -> 0 | T280: =Bank5!C13 -> 15.73 | U280: =IF(Bank5!D13=0,0,Bank5!D13*MonthlyEnergyUsageData!$D$308)+B280*(WinterLoadTemplateBank!$AH$6-WinterLoadTemplateBank!$AK$6) -> 0 | V280: =Bank6!C13 -> 14.7 | W280: =IF(Bank6!D13=0,0,Bank6!D13*MonthlyEnergyUsageData!$D$309)+B280*(WinterLoadTemplateBank!$AH$6-WinterLoadTemplateBank!$AK$6) -> 0 | X280: =Bank7!C13 -> 14 | Y280: =IF(Bank7!D13=0,0,Bank7!D13*MonthlyEnergyUsageData!$D$310)+B280*(WinterLoadTemplateBank!$AH$6-WinterLoadTemplateBank!$AK$6) -> 0 | Z280: =Bank8!C13 -> 13.18 | AA280: =IF(Bank8!D13=0,0,Bank8!D13*MonthlyEnergyUsageData!$D$311)+B280*(WinterLoadTemplateBank!$AH$6-WinterLoadTemplateBank!$AK$6) -> 0 | AB280: =Bank9!C13 -> 6.07 | AC280: =IF(Bank9!D13=0,0,Bank9!D13*MonthlyEnergyUsageData!$D$312)+B280*(WinterLoadTemplateBank!$AH$6-WinterLoadTemplateBank!$AK$6) -> 0 | AD280: =Bank10!C13 -> 6.44 | AE280: =IF(Bank10!D13=0,0,Bank10!D13*MonthlyEnergyUsageData!$D$313)+B280*(WinterLoadTemplateBank!$AH$6-WinterLoadTemplateBank!$AK$6) -> 0 | AF280: =Bank11!C13 -> 6.05 | AG280: =IF(Bank11!D13=0,0,Bank11!D13*MonthlyEnergyUsageData!$D$314)+B280*(WinterLoadTemplateBank!$AH$6-WinterLoadTemplateBank!$AK$6) -> 0 | AH280: =Bank12!C13 -> 3.74 | AI280: =IF(Bank12!D13=0,0,Bank12!D13*MonthlyEnergyUsageData!$D$315)+B280*(WinterLoadTemplateBank!$AH$6-WinterLoadTemplateBank!$AK$6) -> 0 | AJ280: =Bank13!C13 -> 3.73 | AK280: =IF(Bank13!D13=0,0,Bank13!D13*MonthlyEnergyUsageData!$D$316)+B280*(WinterLoadTemplateBank!$AH$6-WinterLoadTemplateBank!$AK$6) -> 0 | AL280: =Bank14!C13 -> 3.22 | AM280: =IF(Bank14!D13=0,0,Bank14!D13*MonthlyEnergyUsageData!$D$317)+B280*(WinterLoadTemplateBank!$AH$6-WinterLoadTemplateBank!$AK$6) -> 0
B281: =IF(ISNUMBER(SEARCH("lo",$M$249)),0,IF(ISNUMBER(SEARCH("mo",$M$249)),1,1)) -> 1 | C281: 07:00:00 | D281: =Bank3N!C14 -> 22.44 | E281: =IF(Bank3N!D14=0,0,Bank3N!D14*MonthlyEnergyUsageData!$D$300)+B281*(WinterLoadTemplateBank!$AH$6-WinterLoadTemplateBank!$AK$6+WinterLoadTemplateBank!$AJ$6) -> 0 | F281: =Bank2N!C14 -> 22.15 | G281: =IF(Bank2N!D14=0,0,Bank2N!D14*MonthlyEnergyUsageData!$D$301)+B281*(WinterLoadTemplateBank!$AH$6-WinterLoadTemplateBank!$AK$6) -> 0 | H281: =Bank1N!C14 -> 21.43 | I281: =IF(Bank1N!D14=0,0,Bank1N!D14*MonthlyEnergyUsageData!$D$302)+B281*(WinterLoadTemplateBank!$AH$6-WinterLoadTemplateBank!$AK$6) -> 0 | J281: =Bank0!C14 -> 20.01 | K281: =IF(Bank0!D14=0,0,Bank0!D14*MonthlyEnergyUsageData!$D$303)+B281*(WinterLoadTemplateBank!$AH$6-WinterLoadTemplateBank!$AK$6) -> 0 | L281: =Bank1!C14 -> 19.65 | M281: =IF(Bank1!D14=0,0,Bank1!D14*MonthlyEnergyUsageData!$D$304)+B281*(WinterLoadTemplateBank!$AH$6-WinterLoadTemplateBank!$AK$6) -> 0 | N281: =Bank2!C14 -> 19 | O281: =IF(Bank2!D14=0,0,Bank2!D14*MonthlyEnergyUsageData!$D$305)+B281*(WinterLoadTemplateBank!$AH$6-WinterLoadTemplateBank!$AK$6) -> 0 | P281: =Bank3!C14 -> 17.11 | Q281: =IF(Bank3!D14=0,0,Bank3!D14*MonthlyEnergyUsageData!$D$306)+B281*(WinterLoadTemplateBank!$AH$6-WinterLoadTemplateBank!$AK$6) -> 0 | R281: =Bank4!C14 -> 16.69 | S281: =IF(Bank4!D14=0,0,Bank4!D14*MonthlyEnergyUsageData!$D$307)+B281*(WinterLoadTemplateBank!$AH$6-WinterLoadTemplateBank!$AK$6) -> 0 | T281: =Bank5!C14 -> 15.97 | U281: =IF(Bank5!D14=0,0,Bank5!D14*MonthlyEnergyUsageData!$D$308)+B281*(WinterLoadTemplateBank!$AH$6-WinterLoadTemplateBank!$AK$6) -> 0 | V281: =Bank6!C14 -> 14.94 | W281: =IF(Bank6!D14=0,0,Bank6!D14*MonthlyEnergyUsageData!$D$309)+B281*(WinterLoadTemplateBank!$AH$6-WinterLoadTemplateBank!$AK$6) -> 0 | X281: =Bank7!C14 -> 14.23 | Y281: =IF(Bank7!D14=0,0,Bank7!D14*MonthlyEnergyUsageData!$D$310)+B281*(WinterLoadTemplateBank!$AH$6-WinterLoadTemplateBank!$AK$6) -> 0 | Z281: =Bank8!C14 -> 13.4 | AA281: =IF(Bank8!D14=0,0,Bank8!D14*MonthlyEnergyUsageData!$D$311)+B281*(WinterLoadTemplateBank!$AH$6-WinterLoadTemplateBank!$AK$6) -> 0 | AB281: =Bank9!C14 -> 5.46 | AC281: =IF(Bank9!D14=0,0,Bank9!D14*MonthlyEnergyUsageData!$D$312)+B281*(WinterLoadTemplateBank!$AH$6-WinterLoadTemplateBank!$AK$6) -> 0 | AD281: =Bank10!C14 -> 5.76 | AE281: =IF(Bank10!D14=0,0,Bank10!D14*MonthlyEnergyUsageData!$D$313)+B281*(WinterLoadTemplateBank!$AH$6-WinterLoadTemplateBank!$AK$6) -> 0 | AF281: =Bank11!C14 -> 5.36 | AG281: =IF(Bank11!D14=0,0,Bank11!D14*MonthlyEnergyUsageData!$D$314)+B281*(WinterLoadTemplateBank!$AH$6-WinterLoadTemplateBank!$AK$6) -> 0 | AH281: =Bank12!C14 -> 3.15 | AI281: =IF(Bank12!D14=0,0,Bank12!D14*MonthlyEnergyUsageData!$D$315)+B281*(WinterLoadTemplateBank!$AH$6-WinterLoadTemplateBank!$AK$6) -> 0 | AJ281: =Bank13!C14 -> 3.13 | AK281: =IF(Bank13!D14=0,0,Bank13!D14*MonthlyEnergyUsageData!$D$316)+B281*(WinterLoadTemplateBank!$AH$6-WinterLoadTemplateBank!$AK$6) -> 0 | AL281: =Bank14!C14 -> 2.62 | AM281: =IF(Bank14!D14=0,0,Bank14!D14*MonthlyEnergyUsageData!$D$317)+B281*(WinterLoadTemplateBank!$AH$6-WinterLoadTemplateBank!$AK$6) -> 0
B282: =IF(ISNUMBER(SEARCH("lo",$M$249)),1,IF(ISNUMBER(SEARCH("mo",$M$249)),1,1)) -> 1 | C282: 08:00:00 | D282: =Bank3N!C15 -> 22.75 | E282: =IF(Bank3N!D15=0,0,Bank3N!D15*MonthlyEnergyUsageData!$D$300)+B282*(WinterLoadTemplateBank!$AH$6-WinterLoadTemplateBank!$AK$6+WinterLoadTemplateBank!$AJ$6) -> 0 | F282: =Bank2N!C15 -> 22.46 | G282: =IF(Bank2N!D15=0,0,Bank2N!D15*MonthlyEnergyUsageData!$D$301)+B282*(WinterLoadTemplateBank!$AH$6-WinterLoadTemplateBank!$AK$6) -> 0 | H282: =Bank1N!C15 -> 21.74 | I282: =IF(Bank1N!D15=0,0,Bank1N!D15*MonthlyEnergyUsageData!$D$302)+B282*(WinterLoadTemplateBank!$AH$6-WinterLoadTemplateBank!$AK$6) -> 0 | J282: =Bank0!C15 -> 20.34 | K282: =IF(Bank0!D15=0,0,Bank0!D15*MonthlyEnergyUsageData!$D$303)+B282*(WinterLoadTemplateBank!$AH$6-WinterLoadTemplateBank!$AK$6) -> 0 | L282: =Bank1!C15 -> 19.98 | M282: =IF(Bank1!D15=0,0,Bank1!D15*MonthlyEnergyUsageData!$D$304)+B282*(WinterLoadTemplateBank!$AH$6-WinterLoadTemplateBank!$AK$6) -> 0 | N282: =Bank2!C15 -> 19.33 | O282: =IF(Bank2!D15=0,0,Bank2!D15*MonthlyEnergyUsageData!$D$305)+B282*(WinterLoadTemplateBank!$AH$6-WinterLoadTemplateBank!$AK$6) -> 0 | P282: =Bank3!C15 -> 17.26 | Q282: =IF(Bank3!D15=0,0,Bank3!D15*MonthlyEnergyUsageData!$D$306)+B282*(WinterLoadTemplateBank!$AH$6-WinterLoadTemplateBank!$AK$6) -> 0 | R282: =Bank4!C15 -> 16.82 | S282: =IF(Bank4!D15=0,0,Bank4!D15*MonthlyEnergyUsageData!$D$307)+B282*(WinterLoadTemplateBank!$AH$6-WinterLoadTemplateBank!$AK$6) -> 0 | T282: =Bank5!C15 -> 16.09 | U282: =IF(Bank5!D15=0,0,Bank5!D15*MonthlyEnergyUsageData!$D$308)+B282*(WinterLoadTemplateBank!$AH$6-WinterLoadTemplateBank!$AK$6) -> 0 | V282: =Bank6!C15 -> 15.06 | W282: =IF(Bank6!D15=0,0,Bank6!D15*MonthlyEnergyUsageData!$D$309)+B282*(WinterLoadTemplateBank!$AH$6-WinterLoadTemplateBank!$AK$6) -> 0 | X282: =Bank7!C15 -> 14.34 | Y282: =IF(Bank7!D15=0,0,Bank7!D15*MonthlyEnergyUsageData!$D$310)+B282*(WinterLoadTemplateBank!$AH$6-WinterLoadTemplateBank!$AK$6) -> 0 | Z282: =Bank8!C15 -> 13.5 | AA282: =IF(Bank8!D15=0,0,Bank8!D15*MonthlyEnergyUsageData!$D$311)+B282*(WinterLoadTemplateBank!$AH$6-WinterLoadTemplateBank!$AK$6) -> 0 | AB282: =Bank9!C15 -> 4.94 | AC282: =IF(Bank9!D15=0,0,Bank9!D15*MonthlyEnergyUsageData!$D$312)+B282*(WinterLoadTemplateBank!$AH$6-WinterLoadTemplateBank!$AK$6) -> 0 | AD282: =Bank10!C15 -> 5.18 | AE282: =IF(Bank10!D15=0,0,Bank10!D15*MonthlyEnergyUsageData!$D$313)+B282*(WinterLoadTemplateBank!$AH$6-WinterLoadTemplateBank!$AK$6) -> 0 | AF282: =Bank11!C15 -> 4.77 | AG282: =IF(Bank11!D15=0,0,Bank11!D15*MonthlyEnergyUsageData!$D$314)+B282*(WinterLoadTemplateBank!$AH$6-WinterLoadTemplateBank!$AK$6) -> 0 | AH282: =Bank12!C15 -> 2.64 | AI282: =IF(Bank12!D15=0,0,Bank12!D15*MonthlyEnergyUsageData!$D$315)+B282*(WinterLoadTemplateBank!$AH$6-WinterLoadTemplateBank!$AK$6) -> 0 | AJ282: =Bank13!C15 -> 2.61 | AK282: =IF(Bank13!D15=0,0,Bank13!D15*MonthlyEnergyUsageData!$D$316)+B282*(WinterLoadTemplateBank!$AH$6-WinterLoadTemplateBank!$AK$6) -> 0 | AL282: =Bank14!C15 -> 2.08 | AM282: =IF(Bank14!D15=0,0,Bank14!D15*MonthlyEnergyUsageData!$D$317)+B282*(WinterLoadTemplateBank!$AH$6-WinterLoadTemplateBank!$AK$6) -> 0
B283: 1 | C283: 09:00:00 | D283: =Bank3N!C16 -> 22.6 | E283: =IF(Bank3N!D16=0,0,Bank3N!D16*MonthlyEnergyUsageData!$D$300)+B283*(WinterLoadTemplateBank!$AH$6-WinterLoadTemplateBank!$AK$6+WinterLoadTemplateBank!$AJ$6) -> 0 | F283: =Bank2N!C16 -> 22.3 | G283: =IF(Bank2N!D16=0,0,Bank2N!D16*MonthlyEnergyUsageData!$D$301)+B283*(WinterLoadTemplateBank!$AH$6-WinterLoadTemplateBank!$AK$6) -> 0 | H283: =Bank1N!C16 -> 21.58 | I283: =IF(Bank1N!D16=0,0,Bank1N!D16*MonthlyEnergyUsageData!$D$302)+B283*(WinterLoadTemplateBank!$AH$6-WinterLoadTemplateBank!$AK$6) -> 0 | J283: =Bank0!C16 -> 20.25 | K283: =IF(Bank0!D16=0,0,Bank0!D16*MonthlyEnergyUsageData!$D$303)+B283*(WinterLoadTemplateBank!$AH$6-WinterLoadTemplateBank!$AK$6) -> 0 | L283: =Bank1!C16 -> 19.88 | M283: =IF(Bank1!D16=0,0,Bank1!D16*MonthlyEnergyUsageData!$D$304)+B283*(WinterLoadTemplateBank!$AH$6-WinterLoadTemplateBank!$AK$6) -> 0 | N283: =Bank2!C16 -> 19.23 | O283: =IF(Bank2!D16=0,0,Bank2!D16*MonthlyEnergyUsageData!$D$305)+B283*(WinterLoadTemplateBank!$AH$6-WinterLoadTemplateBank!$AK$6) -> 0 | P283: =Bank3!C16 -> 17.26 | Q283: =IF(Bank3!D16=0,0,Bank3!D16*MonthlyEnergyUsageData!$D$306)+B283*(WinterLoadTemplateBank!$AH$6-WinterLoadTemplateBank!$AK$6) -> 0 | R283: =Bank4!C16 -> 16.79 | S283: =IF(Bank4!D16=0,0,Bank4!D16*MonthlyEnergyUsageData!$D$307)+B283*(WinterLoadTemplateBank!$AH$6-WinterLoadTemplateBank!$AK$6) -> 0 | T283: =Bank5!C16 -> 16.05 | U283: =IF(Bank5!D16=0,0,Bank5!D16*MonthlyEnergyUsageData!$D$308)+B283*(WinterLoadTemplateBank!$AH$6-WinterLoadTemplateBank!$AK$6) -> 0 | V283: =Bank6!C16 -> 15.03 | W283: =IF(Bank6!D16=0,0,Bank6!D16*MonthlyEnergyUsageData!$D$309)+B283*(WinterLoadTemplateBank!$AH$6-WinterLoadTemplateBank!$AK$6) -> 0 | X283: =Bank7!C16 -> 14.3 | Y283: =IF(Bank7!D16=0,0,Bank7!D16*MonthlyEnergyUsageData!$D$310)+B283*(WinterLoadTemplateBank!$AH$6-WinterLoadTemplateBank!$AK$6) -> 0 | Z283: =Bank8!C16 -> 13.47 | AA283: =IF(Bank8!D16=0,0,Bank8!D16*MonthlyEnergyUsageData!$D$311)+B283*(WinterLoadTemplateBank!$AH$6-WinterLoadTemplateBank!$AK$6) -> 0 | AB283: =Bank9!C16 -> 4.28 | AC283: =IF(Bank9!D16=0,0,Bank9!D16*MonthlyEnergyUsageData!$D$312)+B283*(WinterLoadTemplateBank!$AH$6-WinterLoadTemplateBank!$AK$6) -> 0 | AD283: =Bank10!C16 -> 4.46 | AE283: =IF(Bank10!D16=0,0,Bank10!D16*MonthlyEnergyUsageData!$D$313)+B283*(WinterLoadTemplateBank!$AH$6-WinterLoadTemplateBank!$AK$6) -> 0 | AF283: =Bank11!C16 -> 4.03 | AG283: =IF(Bank11!D16=0,0,Bank11!D16*MonthlyEnergyUsageData!$D$314)+B283*(WinterLoadTemplateBank!$AH$6-WinterLoadTemplateBank!$AK$6) -> 0 | AH283: =Bank12!C16 -> 1.98 | AI283: =IF(Bank12!D16=0,0,Bank12!D16*MonthlyEnergyUsageData!$D$315)+B283*(WinterLoadTemplateBank!$AH$6-WinterLoadTemplateBank!$AK$6) -> 0 | AJ283: =Bank13!C16 -> 1.92 | AK283: =IF(Bank13!D16=0,0,Bank13!D16*MonthlyEnergyUsageData!$D$316)+B283*(WinterLoadTemplateBank!$AH$6-WinterLoadTemplateBank!$AK$6) -> 0 | AL283: =Bank14!C16 -> 1.4 | AM283: =IF(Bank14!D16=0,0,Bank14!D16*MonthlyEnergyUsageData!$D$317)+B283*(WinterLoadTemplateBank!$AH$6-WinterLoadTemplateBank!$AK$6) -> 0
B284: 1 | C284: 10:00:00 | D284: =Bank3N!C17 -> 22.19 | E284: =IF(Bank3N!D17=0,0,Bank3N!D17*MonthlyEnergyUsageData!$D$300)+B284*(WinterLoadTemplateBank!$AH$6-WinterLoadTemplateBank!$AK$6+WinterLoadTemplateBank!$AJ$6) -> 0 | F284: =Bank2N!C17 -> 21.87 | G284: =IF(Bank2N!D17=0,0,Bank2N!D17*MonthlyEnergyUsageData!$D$301)+B284*(WinterLoadTemplateBank!$AH$6-WinterLoadTemplateBank!$AK$6) -> 0 | H284: =Bank1N!C17 -> 21.19 | I284: =IF(Bank1N!D17=0,0,Bank1N!D17*MonthlyEnergyUsageData!$D$302)+B284*(WinterLoadTemplateBank!$AH$6-WinterLoadTemplateBank!$AK$6) -> 0 | J284: =Bank0!C17 -> 19.91 | K284: =IF(Bank0!D17=0,0,Bank0!D17*MonthlyEnergyUsageData!$D$303)+B284*(WinterLoadTemplateBank!$AH$6-WinterLoadTemplateBank!$AK$6) -> 0 | L284: =Bank1!C17 -> 19.52 | M284: =IF(Bank1!D17=0,0,Bank1!D17*MonthlyEnergyUsageData!$D$304)+B284*(WinterLoadTemplateBank!$AH$6-WinterLoadTemplateBank!$AK$6) -> 0 | N284: =Bank2!C17 -> 18.86 | O284: =IF(Bank2!D17=0,0,Bank2!D17*MonthlyEnergyUsageData!$D$305)+B284*(WinterLoadTemplateBank!$AH$6-WinterLoadTemplateBank!$AK$6) -> 0 | P284: =Bank3!C17 -> 17.19 | Q284: =IF(Bank3!D17=0,0,Bank3!D17*MonthlyEnergyUsageData!$D$306)+B284*(WinterLoadTemplateBank!$AH$6-WinterLoadTemplateBank!$AK$6) -> 0 | R284: =Bank4!C17 -> 16.7 | S284: =IF(Bank4!D17=0,0,Bank4!D17*MonthlyEnergyUsageData!$D$307)+B284*(WinterLoadTemplateBank!$AH$6-WinterLoadTemplateBank!$AK$6) -> 0 | T284: =Bank5!C17 -> 15.95 | U284: =IF(Bank5!D17=0,0,Bank5!D17*MonthlyEnergyUsageData!$D$308)+B284*(WinterLoadTemplateBank!$AH$6-WinterLoadTemplateBank!$AK$6) -> 0 | V284: =Bank6!C17 -> 14.94 | W284: =IF(Bank6!D17=0,0,Bank6!D17*MonthlyEnergyUsageData!$D$309)+B284*(WinterLoadTemplateBank!$AH$6-WinterLoadTemplateBank!$AK$6) -> 0 | X284: =Bank7!C17 -> 14.2 | Y284: =IF(Bank7!D17=0,0,Bank7!D17*MonthlyEnergyUsageData!$D$310)+B284*(WinterLoadTemplateBank!$AH$6-WinterLoadTemplateBank!$AK$6) -> 0 | Z284: =Bank8!C17 -> 13.37 | AA284: =IF(Bank8!D17=0,0,Bank8!D17*MonthlyEnergyUsageData!$D$311)+B284*(WinterLoadTemplateBank!$AH$6-WinterLoadTemplateBank!$AK$6) -> 0 | AB284: =Bank9!C17 -> 2.78 | AC284: =IF(Bank9!D17=0,0,Bank9!D17*MonthlyEnergyUsageData!$D$312)+B284*(WinterLoadTemplateBank!$AH$6-WinterLoadTemplateBank!$AK$6) -> 0 | AD284: =Bank10!C17 -> 2.91 | AE284: =IF(Bank10!D17=0,0,Bank10!D17*MonthlyEnergyUsageData!$D$313)+B284*(WinterLoadTemplateBank!$AH$6-WinterLoadTemplateBank!$AK$6) -> 0 | AF284: =Bank11!C17 -> 2.5 | AG284: =IF(Bank11!D17=0,0,Bank11!D17*MonthlyEnergyUsageData!$D$314)+B284*(WinterLoadTemplateBank!$AH$6-WinterLoadTemplateBank!$AK$6) -> 0 | AH284: =Bank12!C17 -> 0.57 | AI284: =IF(Bank12!D17=0,0,Bank12!D17*MonthlyEnergyUsageData!$D$315)+B284*(WinterLoadTemplateBank!$AH$6-WinterLoadTemplateBank!$AK$6) -> 0 | AJ284: =Bank13!C17 -> 0.57 | AK284: =IF(Bank13!D17=0,0,Bank13!D17*MonthlyEnergyUsageData!$D$316)+B284*(WinterLoadTemplateBank!$AH$6-WinterLoadTemplateBank!$AK$6) -> 0 | AL284: =Bank14!C17 -> 0.27 | AM284: =IF(Bank14!D17=0,0,Bank14!D17*MonthlyEnergyUsageData!$D$317)+B284*(WinterLoadTemplateBank!$AH$6-WinterLoadTemplateBank!$AK$6) -> 0
B285: 1 | C285: 11:00:00 | D285: =Bank3N!C18 -> 21.62 | E285: =IF(Bank3N!D18=0,0,Bank3N!D18*MonthlyEnergyUsageData!$D$300)+B285*(WinterLoadTemplateBank!$AH$6-WinterLoadTemplateBank!$AK$6+WinterLoadTemplateBank!$AJ$6) -> 0 | F285: =Bank2N!C18 -> 21.27 | G285: =IF(Bank2N!D18=0,0,Bank2N!D18*MonthlyEnergyUsageData!$D$301)+B285*(WinterLoadTemplateBank!$AH$6-WinterLoadTemplateBank!$AK$6) -> 0 | H285: =Bank1N!C18 -> 20.59 | I285: =IF(Bank1N!D18=0,0,Bank1N!D18*MonthlyEnergyUsageData!$D$302)+B285*(WinterLoadTemplateBank!$AH$6-WinterLoadTemplateBank!$AK$6) -> 0 | J285: =Bank0!C18 -> 19.31 | K285: =IF(Bank0!D18=0,0,Bank0!D18*MonthlyEnergyUsageData!$D$303)+B285*(WinterLoadTemplateBank!$AH$6-WinterLoadTemplateBank!$AK$6) -> 0 | L285: =Bank1!C18 -> 18.9 | M285: =IF(Bank1!D18=0,0,Bank1!D18*MonthlyEnergyUsageData!$D$304)+B285*(WinterLoadTemplateBank!$AH$6-WinterLoadTemplateBank!$AK$6) -> 0 | N285: =Bank2!C18 -> 18.23 | O285: =IF(Bank2!D18=0,0,Bank2!D18*MonthlyEnergyUsageData!$D$305)+B285*(WinterLoadTemplateBank!$AH$6-WinterLoadTemplateBank!$AK$6) -> 0 | P285: =Bank3!C18 -> 16.91 | Q285: =IF(Bank3!D18=0,0,Bank3!D18*MonthlyEnergyUsageData!$D$306)+B285*(WinterLoadTemplateBank!$AH$6-WinterLoadTemplateBank!$AK$6) -> 0 | R285: =Bank4!C18 -> 16.41 | S285: =IF(Bank4!D18=0,0,Bank4!D18*MonthlyEnergyUsageData!$D$307)+B285*(WinterLoadTemplateBank!$AH$6-WinterLoadTemplateBank!$AK$6) -> 0 | T285: =Bank5!C18 -> 15.66 | U285: =IF(Bank5!D18=0,0,Bank5!D18*MonthlyEnergyUsageData!$D$308)+B285*(WinterLoadTemplateBank!$AH$6-WinterLoadTemplateBank!$AK$6) -> 0 | V285: =Bank6!C18 -> 14.65 | W285: =IF(Bank6!D18=0,0,Bank6!D18*MonthlyEnergyUsageData!$D$309)+B285*(WinterLoadTemplateBank!$AH$6-WinterLoadTemplateBank!$AK$6) -> 0 | X285: =Bank7!C18 -> 13.91 | Y285: =IF(Bank7!D18=0,0,Bank7!D18*MonthlyEnergyUsageData!$D$310)+B285*(WinterLoadTemplateBank!$AH$6-WinterLoadTemplateBank!$AK$6) -> 0 | Z285: =Bank8!C18 -> 13.08 | AA285: =IF(Bank8!D18=0,0,Bank8!D18*MonthlyEnergyUsageData!$D$311)+B285*(WinterLoadTemplateBank!$AH$6-WinterLoadTemplateBank!$AK$6) -> 0 | AB285: =Bank9!C18 -> 0.74 | AC285: =IF(Bank9!D18=0,0,Bank9!D18*MonthlyEnergyUsageData!$D$312)+B285*(WinterLoadTemplateBank!$AH$6-WinterLoadTemplateBank!$AK$6) -> 0 | AD285: =Bank10!C18 -> 0.98 | AE285: =IF(Bank10!D18=0,0,Bank10!D18*MonthlyEnergyUsageData!$D$313)+B285*(WinterLoadTemplateBank!$AH$6-WinterLoadTemplateBank!$AK$6) -> 0 | AF285: =Bank11!C18 -> 0.63 | AG285: =IF(Bank11!D18=0,0,Bank11!D18*MonthlyEnergyUsageData!$D$314)+B285*(WinterLoadTemplateBank!$AH$6-WinterLoadTemplateBank!$AK$6) -> 0 | AH285: =Bank12!C18 -> 0 | AI285: =IF(Bank12!D18=0,0,Bank12!D18*MonthlyEnergyUsageData!$D$315)+B285*(WinterLoadTemplateBank!$AH$6-WinterLoadTemplateBank!$AK$6) -> 0 | AJ285: =Bank13!C18 -> 0 | AK285: =IF(Bank13!D18=0,0,Bank13!D18*MonthlyEnergyUsageData!$D$316)+B285*(WinterLoadTemplateBank!$AH$6-WinterLoadTemplateBank!$AK$6) -> 0 | AL285: =Bank14!C18 -> 0 | AM285: =IF(Bank14!D18=0,0,Bank14!D18*MonthlyEnergyUsageData!$D$317)+B285*(WinterLoadTemplateBank!$AH$6-WinterLoadTemplateBank!$AK$6) -> 0
B286: 1 | C286: 12:00:00 | D286: =Bank3N!C19 -> 20.63 | E286: =IF(Bank3N!D19=0,0,Bank3N!D19*MonthlyEnergyUsageData!$D$300)+B286*(WinterLoadTemplateBank!$AH$6-WinterLoadTemplateBank!$AK$6+WinterLoadTemplateBank!$AJ$6) -> 0 | F286: =Bank2N!C19 -> 20.25 | G286: =IF(Bank2N!D19=0,0,Bank2N!D19*MonthlyEnergyUsageData!$D$301)+B286*(WinterLoadTemplateBank!$AH$6-WinterLoadTemplateBank!$AK$6) -> 0 | H286: =Bank1N!C19 -> 19.56 | I286: =IF(Bank1N!D19=0,0,Bank1N!D19*MonthlyEnergyUsageData!$D$302)+B286*(WinterLoadTemplateBank!$AH$6-WinterLoadTemplateBank!$AK$6) -> 0 | J286: =Bank0!C19 -> 18.29 | K286: =IF(Bank0!D19=0,0,Bank0!D19*MonthlyEnergyUsageData!$D$303)+B286*(WinterLoadTemplateBank!$AH$6-WinterLoadTemplateBank!$AK$6) -> 0 | L286: =Bank1!C19 -> 17.85 | M286: =IF(Bank1!D19=0,0,Bank1!D19*MonthlyEnergyUsageData!$D$304)+B286*(WinterLoadTemplateBank!$AH$6-WinterLoadTemplateBank!$AK$6) -> 0 | N286: =Bank2!C19 -> 17.17 | O286: =IF(Bank2!D19=0,0,Bank2!D19*MonthlyEnergyUsageData!$D$305)+B286*(WinterLoadTemplateBank!$AH$6-WinterLoadTemplateBank!$AK$6) -> 0 | P286: =Bank3!C19 -> 16.79 | Q286: =IF(Bank3!D19=0,0,Bank3!D19*MonthlyEnergyUsageData!$D$306)+B286*(WinterLoadTemplateBank!$AH$6-WinterLoadTemplateBank!$AK$6) -> 0 | R286: =Bank4!C19 -> 16.27 | S286: =IF(Bank4!D19=0,0,Bank4!D19*MonthlyEnergyUsageData!$D$307)+B286*(WinterLoadTemplateBank!$AH$6-WinterLoadTemplateBank!$AK$6) -> 0 | T286: =Bank5!C19 -> 15.52 | U286: =IF(Bank5!D19=0,0,Bank5!D19*MonthlyEnergyUsageData!$D$308)+B286*(WinterLoadTemplateBank!$AH$6-WinterLoadTemplateBank!$AK$6) -> 0 | V286: =Bank6!C19 -> 14.51 | W286: =IF(Bank6!D19=0,0,Bank6!D19*MonthlyEnergyUsageData!$D$309)+B286*(WinterLoadTemplateBank!$AH$6-WinterLoadTemplateBank!$AK$6) -> 0 | X286: =Bank7!C19 -> 13.77 | Y286: =IF(Bank7!D19=0,0,Bank7!D19*MonthlyEnergyUsageData!$D$310)+B286*(WinterLoadTemplateBank!$AH$6-WinterLoadTemplateBank!$AK$6) -> 0 | Z286: =Bank8!C19 -> 12.94 | AA286: =IF(Bank8!D19=0,0,Bank8!D19*MonthlyEnergyUsageData!$D$311)+B286*(WinterLoadTemplateBank!$AH$6-WinterLoadTemplateBank!$AK$6) -> 0 | AB286: =Bank9!C19 -> 0 | AC286: =IF(Bank9!D19=0,0,Bank9!D19*MonthlyEnergyUsageData!$D$312)+B286*(WinterLoadTemplateBank!$AH$6-WinterLoadTemplateBank!$AK$6) -> 0 | AD286: =Bank10!C19 -> 0 | AE286: =IF(Bank10!D19=0,0,Bank10!D19*MonthlyEnergyUsageData!$D$313)+B286*(WinterLoadTemplateBank!$AH$6-WinterLoadTemplateBank!$AK$6) -> 0 | AF286: =Bank11!C19 -> 0 | AG286: =IF(Bank11!D19=0,0,Bank11!D19*MonthlyEnergyUsageData!$D$314)+B286*(WinterLoadTemplateBank!$AH$6-WinterLoadTemplateBank!$AK$6) -> 0 | AH286: =Bank12!C19 -> 0 | AI286: =IF(Bank12!D19=0,0,Bank12!D19*MonthlyEnergyUsageData!$D$315)+B286*(WinterLoadTemplateBank!$AH$6-WinterLoadTemplateBank!$AK$6) -> 0 | AJ286: =Bank13!C19 -> 0 | AK286: =IF(Bank13!D19=0,0,Bank13!D19*MonthlyEnergyUsageData!$D$316)+B286*(WinterLoadTemplateBank!$AH$6-WinterLoadTemplateBank!$AK$6) -> 0 | AL286: =Bank14!C19 -> 0 | AM286: =IF(Bank14!D19=0,0,Bank14!D19*MonthlyEnergyUsageData!$D$317)+B286*(WinterLoadTemplateBank!$AH$6-WinterLoadTemplateBank!$AK$6) -> 0
B287: 1 | C287: 13:00:00 | D287: =Bank3N!C20 -> 19.96 | E287: =IF(Bank3N!D20=0,0,Bank3N!D20*MonthlyEnergyUsageData!$D$300)+B287*(WinterLoadTemplateBank!$AH$6-WinterLoadTemplateBank!$AK$6+WinterLoadTemplateBank!$AJ$6) -> 0 | F287: =Bank2N!C20 -> 19.53 | G287: =IF(Bank2N!D20=0,0,Bank2N!D20*MonthlyEnergyUsageData!$D$301)+B287*(WinterLoadTemplateBank!$AH$6-WinterLoadTemplateBank!$AK$6) -> 0 | H287: =Bank1N!C20 -> 18.82 | I287: =IF(Bank1N!D20=0,0,Bank1N!D20*MonthlyEnergyUsageData!$D$302)+B287*(WinterLoadTemplateBank!$AH$6-WinterLoadTemplateBank!$AK$6) -> 0 | J287: =Bank0!C20 -> 17.55 | K287: =IF(Bank0!D20=0,0,Bank0!D20*MonthlyEnergyUsageData!$D$303)+B287*(WinterLoadTemplateBank!$AH$6-WinterLoadTemplateBank!$AK$6) -> 0 | L287: =Bank1!C20 -> 17.07 | M287: =IF(Bank1!D20=0,0,Bank1!D20*MonthlyEnergyUsageData!$D$304)+B287*(WinterLoadTemplateBank!$AH$6-WinterLoadTemplateBank!$AK$6) -> 0 | N287: =Bank2!C20 -> 16.37 | O287: =IF(Bank2!D20=0,0,Bank2!D20*MonthlyEnergyUsageData!$D$305)+B287*(WinterLoadTemplateBank!$AH$6-WinterLoadTemplateBank!$AK$6) -> 0 | P287: =Bank3!C20 -> 16.53 | Q287: =IF(Bank3!D20=0,0,Bank3!D20*MonthlyEnergyUsageData!$D$306)+B287*(WinterLoadTemplateBank!$AH$6-WinterLoadTemplateBank!$AK$6) -> 0 | R287: =Bank4!C20 -> 16 | S287: =IF(Bank4!D20=0,0,Bank4!D20*MonthlyEnergyUsageData!$D$307)+B287*(WinterLoadTemplateBank!$AH$6-WinterLoadTemplateBank!$AK$6) -> 0 | T287: =Bank5!C20 -> 15.24 | U287: =IF(Bank5!D20=0,0,Bank5!D20*MonthlyEnergyUsageData!$D$308)+B287*(WinterLoadTemplateBank!$AH$6-WinterLoadTemplateBank!$AK$6) -> 0 | V287: =Bank6!C20 -> 14.24 | W287: =IF(Bank6!D20=0,0,Bank6!D20*MonthlyEnergyUsageData!$D$309)+B287*(WinterLoadTemplateBank!$AH$6-WinterLoadTemplateBank!$AK$6) -> 0 | X287: =Bank7!C20 -> 13.49 | Y287: =IF(Bank7!D20=0,0,Bank7!D20*MonthlyEnergyUsageData!$D$310)+B287*(WinterLoadTemplateBank!$AH$6-WinterLoadTemplateBank!$AK$6) -> 0 | Z287: =Bank8!C20 -> 12.66 | AA287: =IF(Bank8!D20=0,0,Bank8!D20*MonthlyEnergyUsageData!$D$311)+B287*(WinterLoadTemplateBank!$AH$6-WinterLoadTemplateBank!$AK$6) -> 0 | AB287: =Bank9!C20 -> 0 | AC287: =IF(Bank9!D20=0,0,Bank9!D20*MonthlyEnergyUsageData!$D$312)+B287*(WinterLoadTemplateBank!$AH$6-WinterLoadTemplateBank!$AK$6) -> 0 | AD287: =Bank10!C20 -> 0 | AE287: =IF(Bank10!D20=0,0,Bank10!D20*MonthlyEnergyUsageData!$D$313)+B287*(WinterLoadTemplateBank!$AH$6-WinterLoadTemplateBank!$AK$6) -> 0 | AF287: =Bank11!C20 -> 0 | AG287: =IF(Bank11!D20=0,0,Bank11!D20*MonthlyEnergyUsageData!$D$314)+B287*(WinterLoadTemplateBank!$AH$6-WinterLoadTemplateBank!$AK$6) -> 0 | AH287: =Bank12!C20 -> 0 | AI287: =IF(Bank12!D20=0,0,Bank12!D20*MonthlyEnergyUsageData!$D$315)+B287*(WinterLoadTemplateBank!$AH$6-WinterLoadTemplateBank!$AK$6) -> 0 | AJ287: =Bank13!C20 -> 0 | AK287: =IF(Bank13!D20=0,0,Bank13!D20*MonthlyEnergyUsageData!$D$316)+B287*(WinterLoadTemplateBank!$AH$6-WinterLoadTemplateBank!$AK$6) -> 0 | AL287: =Bank14!C20 -> 0 | AM287: =IF(Bank14!D20=0,0,Bank14!D20*MonthlyEnergyUsageData!$D$317)+B287*(WinterLoadTemplateBank!$AH$6-WinterLoadTemplateBank!$AK$6) -> 0
B288: 1 | C288: 14:00:00 | D288: =Bank3N!C21 -> 20.07 | E288: =IF(Bank3N!D21=0,0,Bank3N!D21*MonthlyEnergyUsageData!$D$300)+B288*(WinterLoadTemplateBank!$AH$6-WinterLoadTemplateBank!$AK$6+WinterLoadTemplateBank!$AJ$6) -> 0 | F288: =Bank2N!C21 -> 19.62 | G288: =IF(Bank2N!D21=0,0,Bank2N!D21*MonthlyEnergyUsageData!$D$301)+B288*(WinterLoadTemplateBank!$AH$6-WinterLoadTemplateBank!$AK$6) -> 0 | H288: =Bank1N!C21 -> 18.88 | I288: =IF(Bank1N!D21=0,0,Bank1N!D21*MonthlyEnergyUsageData!$D$302)+B288*(WinterLoadTemplateBank!$AH$6-WinterLoadTemplateBank!$AK$6) -> 0 | J288: =Bank0!C21 -> 17.63 | K288: =IF(Bank0!D21=0,0,Bank0!D21*MonthlyEnergyUsageData!$D$303)+B288*(WinterLoadTemplateBank!$AH$6-WinterLoadTemplateBank!$AK$6) -> 0 | L288: =Bank1!C21 -> 17.12 | M288: =IF(Bank1!D21=0,0,Bank1!D21*MonthlyEnergyUsageData!$D$304)+B288*(WinterLoadTemplateBank!$AH$6-WinterLoadTemplateBank!$AK$6) -> 0 | N288: =Bank2!C21 -> 16.39 | O288: =IF(Bank2!D21=0,0,Bank2!D21*MonthlyEnergyUsageData!$D$305)+B288*(WinterLoadTemplateBank!$AH$6-WinterLoadTemplateBank!$AK$6) -> 0 | P288: =Bank3!C21 -> 15.37 | Q288: =IF(Bank3!D21=0,0,Bank3!D21*MonthlyEnergyUsageData!$D$306)+B288*(WinterLoadTemplateBank!$AH$6-WinterLoadTemplateBank!$AK$6) -> 0 | R288: =Bank4!C21 -> 14.83 | S288: =IF(Bank4!D21=0,0,Bank4!D21*MonthlyEnergyUsageData!$D$307)+B288*(WinterLoadTemplateBank!$AH$6-WinterLoadTemplateBank!$AK$6) -> 0 | T288: =Bank5!C21 -> 14.08 | U288: =IF(Bank5!D21=0,0,Bank5!D21*MonthlyEnergyUsageData!$D$308)+B288*(WinterLoadTemplateBank!$AH$6-WinterLoadTemplateBank!$AK$6) -> 0 | V288: =Bank6!C21 -> 13.1 | W288: =IF(Bank6!D21=0,0,Bank6!D21*MonthlyEnergyUsageData!$D$309)+B288*(WinterLoadTemplateBank!$AH$6-WinterLoadTemplateBank!$AK$6) -> 0 | X288: =Bank7!C21 -> 12.35 | Y288: =IF(Bank7!D21=0,0,Bank7!D21*MonthlyEnergyUsageData!$D$310)+B288*(WinterLoadTemplateBank!$AH$6-WinterLoadTemplateBank!$AK$6) -> 0 | Z288: =Bank8!C21 -> 11.53 | AA288: =IF(Bank8!D21=0,0,Bank8!D21*MonthlyEnergyUsageData!$D$311)+B288*(WinterLoadTemplateBank!$AH$6-WinterLoadTemplateBank!$AK$6) -> 0 | AB288: =Bank9!C21 -> 0 | AC288: =IF(Bank9!D21=0,0,Bank9!D21*MonthlyEnergyUsageData!$D$312)+B288*(WinterLoadTemplateBank!$AH$6-WinterLoadTemplateBank!$AK$6) -> 0 | AD288: =Bank10!C21 -> 0 | AE288: =IF(Bank10!D21=0,0,Bank10!D21*MonthlyEnergyUsageData!$D$313)+B288*(WinterLoadTemplateBank!$AH$6-WinterLoadTemplateBank!$AK$6) -> 0 | AF288: =Bank11!C21 -> 0 | AG288: =IF(Bank11!D21=0,0,Bank11!D21*MonthlyEnergyUsageData!$D$314)+B288*(WinterLoadTemplateBank!$AH$6-WinterLoadTemplateBank!$AK$6) -> 0 | AH288: =Bank12!C21 -> 0 | AI288: =IF(Bank12!D21=0,0,Bank12!D21*MonthlyEnergyUsageData!$D$315)+B288*(WinterLoadTemplateBank!$AH$6-WinterLoadTemplateBank!$AK$6) -> 0 | AJ288: =Bank13!C21 -> 0 | AK288: =IF(Bank13!D21=0,0,Bank13!D21*MonthlyEnergyUsageData!$D$316)+B288*(WinterLoadTemplateBank!$AH$6-WinterLoadTemplateBank!$AK$6) -> 0 | AL288: =Bank14!C21 -> 0 | AM288: =IF(Bank14!D21=0,0,Bank14!D21*MonthlyEnergyUsageData!$D$317)+B288*(WinterLoadTemplateBank!$AH$6-WinterLoadTemplateBank!$AK$6) -> 0
B289: 1 | C289: 15:00:00 | D289: =Bank3N!C22 -> 18.92 | E289: =IF(Bank3N!D22=0,0,Bank3N!D22*MonthlyEnergyUsageData!$D$300)+B289*(WinterLoadTemplateBank!$AH$6-WinterLoadTemplateBank!$AK$6+WinterLoadTemplateBank!$AJ$6) -> 0 | F289: =Bank2N!C22 -> 18.44 | G289: =IF(Bank2N!D22=0,0,Bank2N!D22*MonthlyEnergyUsageData!$D$301)+B289*(WinterLoadTemplateBank!$AH$6-WinterLoadTemplateBank!$AK$6) -> 0 | H289: =Bank1N!C22 -> 17.74 | I289: =IF(Bank1N!D22=0,0,Bank1N!D22*MonthlyEnergyUsageData!$D$302)+B289*(WinterLoadTemplateBank!$AH$6-WinterLoadTemplateBank!$AK$6) -> 0 | J289: =Bank0!C22 -> 16.69 | K289: =IF(Bank0!D22=0,0,Bank0!D22*MonthlyEnergyUsageData!$D$303)+B289*(WinterLoadTemplateBank!$AH$6-WinterLoadTemplateBank!$AK$6) -> 0 | L289: =Bank1!C22 -> 16.19 | M289: =IF(Bank1!D22=0,0,Bank1!D22*MonthlyEnergyUsageData!$D$304)+B289*(WinterLoadTemplateBank!$AH$6-WinterLoadTemplateBank!$AK$6) -> 0 | N289: =Bank2!C22 -> 15.48 | O289: =IF(Bank2!D22=0,0,Bank2!D22*MonthlyEnergyUsageData!$D$305)+B289*(WinterLoadTemplateBank!$AH$6-WinterLoadTemplateBank!$AK$6) -> 0 | P289: =Bank3!C22 -> 14.64 | Q289: =IF(Bank3!D22=0,0,Bank3!D22*MonthlyEnergyUsageData!$D$306)+B289*(WinterLoadTemplateBank!$AH$6-WinterLoadTemplateBank!$AK$6) -> 0 | R289: =Bank4!C22 -> 14.09 | S289: =IF(Bank4!D22=0,0,Bank4!D22*MonthlyEnergyUsageData!$D$307)+B289*(WinterLoadTemplateBank!$AH$6-WinterLoadTemplateBank!$AK$6) -> 0 | T289: =Bank5!C22 -> 13.34 | U289: =IF(Bank5!D22=0,0,Bank5!D22*MonthlyEnergyUsageData!$D$308)+B289*(WinterLoadTemplateBank!$AH$6-WinterLoadTemplateBank!$AK$6) -> 0 | V289: =Bank6!C22 -> 12.37 | W289: =IF(Bank6!D22=0,0,Bank6!D22*MonthlyEnergyUsageData!$D$309)+B289*(WinterLoadTemplateBank!$AH$6-WinterLoadTemplateBank!$AK$6) -> 0 | X289: =Bank7!C22 -> 11.63 | Y289: =IF(Bank7!D22=0,0,Bank7!D22*MonthlyEnergyUsageData!$D$310)+B289*(WinterLoadTemplateBank!$AH$6-WinterLoadTemplateBank!$AK$6) -> 0 | Z289: =Bank8!C22 -> 10.82 | AA289: =IF(Bank8!D22=0,0,Bank8!D22*MonthlyEnergyUsageData!$D$311)+B289*(WinterLoadTemplateBank!$AH$6-WinterLoadTemplateBank!$AK$6) -> 0 | AB289: =Bank9!C22 -> 0 | AC289: =IF(Bank9!D22=0,0,Bank9!D22*MonthlyEnergyUsageData!$D$312)+B289*(WinterLoadTemplateBank!$AH$6-WinterLoadTemplateBank!$AK$6) -> 0 | AD289: =Bank10!C22 -> 0 | AE289: =IF(Bank10!D22=0,0,Bank10!D22*MonthlyEnergyUsageData!$D$313)+B289*(WinterLoadTemplateBank!$AH$6-WinterLoadTemplateBank!$AK$6) -> 0 | AF289: =Bank11!C22 -> 0 | AG289: =IF(Bank11!D22=0,0,Bank11!D22*MonthlyEnergyUsageData!$D$314)+B289*(WinterLoadTemplateBank!$AH$6-WinterLoadTemplateBank!$AK$6) -> 0 | AH289: =Bank12!C22 -> 0 | AI289: =IF(Bank12!D22=0,0,Bank12!D22*MonthlyEnergyUsageData!$D$315)+B289*(WinterLoadTemplateBank!$AH$6-WinterLoadTemplateBank!$AK$6) -> 0 | AJ289: =Bank13!C22 -> 0 | AK289: =IF(Bank13!D22=0,0,Bank13!D22*MonthlyEnergyUsageData!$D$316)+B289*(WinterLoadTemplateBank!$AH$6-WinterLoadTemplateBank!$AK$6) -> 0 | AL289: =Bank14!C22 -> 0 | AM289: =IF(Bank14!D22=0,0,Bank14!D22*MonthlyEnergyUsageData!$D$317)+B289*(WinterLoadTemplateBank!$AH$6-WinterLoadTemplateBank!$AK$6) -> 0
B290: 1 | C290: 16:00:00 | D290: =Bank3N!C23 -> 19.66 | E290: =IF(Bank3N!D23=0,0,Bank3N!D23*MonthlyEnergyUsageData!$D$300)+B290*(WinterLoadTemplateBank!$AH$6-WinterLoadTemplateBank!$AK$6+WinterLoadTemplateBank!$AJ$6) -> 0 | F290: =Bank2N!C23 -> 18.33 | G290: =IF(Bank2N!D23=0,0,Bank2N!D23*MonthlyEnergyUsageData!$D$301)+B290*(WinterLoadTemplateBank!$AH$6-WinterLoadTemplateBank!$AK$6) -> 0 | H290: =Bank1N!C23 -> 17.64 | I290: =IF(Bank1N!D23=0,0,Bank1N!D23*MonthlyEnergyUsageData!$D$302)+B290*(WinterLoadTemplateBank!$AH$6-WinterLoadTemplateBank!$AK$6) -> 0 | J290: =Bank0!C23 -> 16 | K290: =IF(Bank0!D23=0,0,Bank0!D23*MonthlyEnergyUsageData!$D$303)+B290*(WinterLoadTemplateBank!$AH$6-WinterLoadTemplateBank!$AK$6) -> 0 | L290: =Bank1!C23 -> 15.52 | M290: =IF(Bank1!D23=0,0,Bank1!D23*MonthlyEnergyUsageData!$D$304)+B290*(WinterLoadTemplateBank!$AH$6-WinterLoadTemplateBank!$AK$6) -> 0 | N290: =Bank2!C23 -> 14.84 | O290: =IF(Bank2!D23=0,0,Bank2!D23*MonthlyEnergyUsageData!$D$305)+B290*(WinterLoadTemplateBank!$AH$6-WinterLoadTemplateBank!$AK$6) -> 0 | P290: =Bank3!C23 -> 14.51 | Q290: =IF(Bank3!D23=0,0,Bank3!D23*MonthlyEnergyUsageData!$D$306)+B290*(WinterLoadTemplateBank!$AH$6-WinterLoadTemplateBank!$AK$6) -> 0 | R290: =Bank4!C23 -> 13.96 | S290: =IF(Bank4!D23=0,0,Bank4!D23*MonthlyEnergyUsageData!$D$307)+B290*(WinterLoadTemplateBank!$AH$6-WinterLoadTemplateBank!$AK$6) -> 0 | T290: =Bank5!C23 -> 13.21 | U290: =IF(Bank5!D23=0,0,Bank5!D23*MonthlyEnergyUsageData!$D$308)+B290*(WinterLoadTemplateBank!$AH$6-WinterLoadTemplateBank!$AK$6) -> 0 | V290: =Bank6!C23 -> 12.26 | W290: =IF(Bank6!D23=0,0,Bank6!D23*MonthlyEnergyUsageData!$D$309)+B290*(WinterLoadTemplateBank!$AH$6-WinterLoadTemplateBank!$AK$6) -> 0 | X290: =Bank7!C23 -> 11.53 | Y290: =IF(Bank7!D23=0,0,Bank7!D23*MonthlyEnergyUsageData!$D$310)+B290*(WinterLoadTemplateBank!$AH$6-WinterLoadTemplateBank!$AK$6) -> 0 | Z290: =Bank8!C23 -> 10.72 | AA290: =IF(Bank8!D23=0,0,Bank8!D23*MonthlyEnergyUsageData!$D$311)+B290*(WinterLoadTemplateBank!$AH$6-WinterLoadTemplateBank!$AK$6) -> 0 | AB290: =Bank9!C23 -> 0 | AC290: =IF(Bank9!D23=0,0,Bank9!D23*MonthlyEnergyUsageData!$D$312)+B290*(WinterLoadTemplateBank!$AH$6-WinterLoadTemplateBank!$AK$6) -> 0 | AD290: =Bank10!C23 -> 0 | AE290: =IF(Bank10!D23=0,0,Bank10!D23*MonthlyEnergyUsageData!$D$313)+B290*(WinterLoadTemplateBank!$AH$6-WinterLoadTemplateBank!$AK$6) -> 0 | AF290: =Bank11!C23 -> 0 | AG290: =IF(Bank11!D23=0,0,Bank11!D23*MonthlyEnergyUsageData!$D$314)+B290*(WinterLoadTemplateBank!$AH$6-WinterLoadTemplateBank!$AK$6) -> 0 | AH290: =Bank12!C23 -> 0 | AI290: =IF(Bank12!D23=0,0,Bank12!D23*MonthlyEnergyUsageData!$D$315)+B290*(WinterLoadTemplateBank!$AH$6-WinterLoadTemplateBank!$AK$6) -> 0 | AJ290: =Bank13!C23 -> 0 | AK290: =IF(Bank13!D23=0,0,Bank13!D23*MonthlyEnergyUsageData!$D$316)+B290*(WinterLoadTemplateBank!$AH$6-WinterLoadTemplateBank!$AK$6) -> 0 | AL290: =Bank14!C23 -> 0 | AM290: =IF(Bank14!D23=0,0,Bank14!D23*MonthlyEnergyUsageData!$D$317)+B290*(WinterLoadTemplateBank!$AH$6-WinterLoadTemplateBank!$AK$6) -> 0
B291: 1 | C291: 17:00:00 | D291: =Bank3N!C24 -> 20.15 | E291: =IF(Bank3N!D24=0,0,Bank3N!D24*MonthlyEnergyUsageData!$D$300)+B291*(WinterLoadTemplateBank!$AH$6-WinterLoadTemplateBank!$AK$6+WinterLoadTemplateBank!$AJ$6) -> 0 | F291: =Bank2N!C24 -> 19.47 | G291: =IF(Bank2N!D24=0,0,Bank2N!D24*MonthlyEnergyUsageData!$D$301)+B291*(WinterLoadTemplateBank!$AH$6-WinterLoadTemplateBank!$AK$6) -> 0 | H291: =Bank1N!C24 -> 18.73 | I291: =IF(Bank1N!D24=0,0,Bank1N!D24*MonthlyEnergyUsageData!$D$302)+B291*(WinterLoadTemplateBank!$AH$6-WinterLoadTemplateBank!$AK$6) -> 0 | J291: =Bank0!C24 -> 17.42 | K291: =IF(Bank0!D24=0,0,Bank0!D24*MonthlyEnergyUsageData!$D$303)+B291*(WinterLoadTemplateBank!$AH$6-WinterLoadTemplateBank!$AK$6) -> 0 | L291: =Bank1!C24 -> 16.88 | M291: =IF(Bank1!D24=0,0,Bank1!D24*MonthlyEnergyUsageData!$D$304)+B291*(WinterLoadTemplateBank!$AH$6-WinterLoadTemplateBank!$AK$6) -> 0 | N291: =Bank2!C24 -> 16.14 | O291: =IF(Bank2!D24=0,0,Bank2!D24*MonthlyEnergyUsageData!$D$305)+B291*(WinterLoadTemplateBank!$AH$6-WinterLoadTemplateBank!$AK$6) -> 0 | P291: =Bank3!C24 -> 13.96 | Q291: =IF(Bank3!D24=0,0,Bank3!D24*MonthlyEnergyUsageData!$D$306)+B291*(WinterLoadTemplateBank!$AH$6-WinterLoadTemplateBank!$AK$6) -> 0 | R291: =Bank4!C24 -> 13.45 | S291: =IF(Bank4!D24=0,0,Bank4!D24*MonthlyEnergyUsageData!$D$307)+B291*(WinterLoadTemplateBank!$AH$6-WinterLoadTemplateBank!$AK$6) -> 0 | T291: =Bank5!C24 -> 12.75 | U291: =IF(Bank5!D24=0,0,Bank5!D24*MonthlyEnergyUsageData!$D$308)+B291*(WinterLoadTemplateBank!$AH$6-WinterLoadTemplateBank!$AK$6) -> 0 | V291: =Bank6!C24 -> 11.92 | W291: =IF(Bank6!D24=0,0,Bank6!D24*MonthlyEnergyUsageData!$D$309)+B291*(WinterLoadTemplateBank!$AH$6-WinterLoadTemplateBank!$AK$6) -> 0 | X291: =Bank7!C24 -> 11.21 | Y291: =IF(Bank7!D24=0,0,Bank7!D24*MonthlyEnergyUsageData!$D$310)+B291*(WinterLoadTemplateBank!$AH$6-WinterLoadTemplateBank!$AK$6) -> 0 | Z291: =Bank8!C24 -> 10.43 | AA291: =IF(Bank8!D24=0,0,Bank8!D24*MonthlyEnergyUsageData!$D$311)+B291*(WinterLoadTemplateBank!$AH$6-WinterLoadTemplateBank!$AK$6) -> 0 | AB291: =Bank9!C24 -> 0 | AC291: =IF(Bank9!D24=0,0,Bank9!D24*MonthlyEnergyUsageData!$D$312)+B291*(WinterLoadTemplateBank!$AH$6-WinterLoadTemplateBank!$AK$6) -> 0 | AD291: =Bank10!C24 -> 0 | AE291: =IF(Bank10!D24=0,0,Bank10!D24*MonthlyEnergyUsageData!$D$313)+B291*(WinterLoadTemplateBank!$AH$6-WinterLoadTemplateBank!$AK$6) -> 0 | AF291: =Bank11!C24 -> 0 | AG291: =IF(Bank11!D24=0,0,Bank11!D24*MonthlyEnergyUsageData!$D$314)+B291*(WinterLoadTemplateBank!$AH$6-WinterLoadTemplateBank!$AK$6) -> 0 | AH291: =Bank12!C24 -> 0 | AI291: =IF(Bank12!D24=0,0,Bank12!D24*MonthlyEnergyUsageData!$D$315)+B291*(WinterLoadTemplateBank!$AH$6-WinterLoadTemplateBank!$AK$6) -> 0 | AJ291: =Bank13!C24 -> 0 | AK291: =IF(Bank13!D24=0,0,Bank13!D24*MonthlyEnergyUsageData!$D$316)+B291*(WinterLoadTemplateBank!$AH$6-WinterLoadTemplateBank!$AK$6) -> 0 | AL291: =Bank14!C24 -> 0 | AM291: =IF(Bank14!D24=0,0,Bank14!D24*MonthlyEnergyUsageData!$D$317)+B291*(WinterLoadTemplateBank!$AH$6-WinterLoadTemplateBank!$AK$6) -> 0
B292: =IF(ISNUMBER(SEARCH("lo",$M$249)),0,IF(ISNUMBER(SEARCH("mo",$M$249)),1,1)) -> 1 | C292: 18:00:00 | D292: =Bank3N!C25 -> 20.08 | E292: =IF(Bank3N!D25=0,0,Bank3N!D25*MonthlyEnergyUsageData!$D$300)+B292*(WinterLoadTemplateBank!$AH$6-WinterLoadTemplateBank!$AK$6+WinterLoadTemplateBank!$AJ$6) -> 0 | F292: =Bank2N!C25 -> 19.44 | G292: =IF(Bank2N!D25=0,0,Bank2N!D25*MonthlyEnergyUsageData!$D$301)+B292*(WinterLoadTemplateBank!$AH$6-WinterLoadTemplateBank!$AK$6) -> 0 | H292: =Bank1N!C25 -> 18.69 | I292: =IF(Bank1N!D25=0,0,Bank1N!D25*MonthlyEnergyUsageData!$D$302)+B292*(WinterLoadTemplateBank!$AH$6-WinterLoadTemplateBank!$AK$6) -> 0 | J292: =Bank0!C25 -> 17.45 | K292: =IF(Bank0!D25=0,0,Bank0!D25*MonthlyEnergyUsageData!$D$303)+B292*(WinterLoadTemplateBank!$AH$6-WinterLoadTemplateBank!$AK$6) -> 0 | L292: =Bank1!C25 -> 16.88 | M292: =IF(Bank1!D25=0,0,Bank1!D25*MonthlyEnergyUsageData!$D$304)+B292*(WinterLoadTemplateBank!$AH$6-WinterLoadTemplateBank!$AK$6) -> 0 | N292: =Bank2!C25 -> 16.13 | O292: =IF(Bank2!D25=0,0,Bank2!D25*MonthlyEnergyUsageData!$D$305)+B292*(WinterLoadTemplateBank!$AH$6-WinterLoadTemplateBank!$AK$6) -> 0 | P292: =Bank3!C25 -> 14.15 | Q292: =IF(Bank3!D25=0,0,Bank3!D25*MonthlyEnergyUsageData!$D$306)+B292*(WinterLoadTemplateBank!$AH$6-WinterLoadTemplateBank!$AK$6) -> 0 | R292: =Bank4!C25 -> 13.65 | S292: =IF(Bank4!D25=0,0,Bank4!D25*MonthlyEnergyUsageData!$D$307)+B292*(WinterLoadTemplateBank!$AH$6-WinterLoadTemplateBank!$AK$6) -> 0 | T292: =Bank5!C25 -> 12.96 | U292: =IF(Bank5!D25=0,0,Bank5!D25*MonthlyEnergyUsageData!$D$308)+B292*(WinterLoadTemplateBank!$AH$6-WinterLoadTemplateBank!$AK$6) -> 0 | V292: =Bank6!C25 -> 12 | W292: =IF(Bank6!D25=0,0,Bank6!D25*MonthlyEnergyUsageData!$D$309)+B292*(WinterLoadTemplateBank!$AH$6-WinterLoadTemplateBank!$AK$6) -> 0 | X292: =Bank7!C25 -> 11.19 | Y292: =IF(Bank7!D25=0,0,Bank7!D25*MonthlyEnergyUsageData!$D$310)+B292*(WinterLoadTemplateBank!$AH$6-WinterLoadTemplateBank!$AK$6) -> 0 | Z292: =Bank8!C25 -> 10.43 | AA292: =IF(Bank8!D25=0,0,Bank8!D25*MonthlyEnergyUsageData!$D$311)+B292*(WinterLoadTemplateBank!$AH$6-WinterLoadTemplateBank!$AK$6) -> 0 | AB292: =Bank9!C25 -> 0 | AC292: =IF(Bank9!D25=0,0,Bank9!D25*MonthlyEnergyUsageData!$D$312)+B292*(WinterLoadTemplateBank!$AH$6-WinterLoadTemplateBank!$AK$6) -> 0 | AD292: =Bank10!C25 -> 0 | AE292: =IF(Bank10!D25=0,0,Bank10!D25*MonthlyEnergyUsageData!$D$313)+B292*(WinterLoadTemplateBank!$AH$6-WinterLoadTemplateBank!$AK$6) -> 0 | AF292: =Bank11!C25 -> 0 | AG292: =IF(Bank11!D25=0,0,Bank11!D25*MonthlyEnergyUsageData!$D$314)+B292*(WinterLoadTemplateBank!$AH$6-WinterLoadTemplateBank!$AK$6) -> 0 | AH292: =Bank12!C25 -> 0 | AI292: =IF(Bank12!D25=0,0,Bank12!D25*MonthlyEnergyUsageData!$D$315)+B292*(WinterLoadTemplateBank!$AH$6-WinterLoadTemplateBank!$AK$6) -> 0 | AJ292: =Bank13!C25 -> 0 | AK292: =IF(Bank13!D25=0,0,Bank13!D25*MonthlyEnergyUsageData!$D$316)+B292*(WinterLoadTemplateBank!$AH$6-WinterLoadTemplateBank!$AK$6) -> 0 | AL292: =Bank14!C25 -> 0 | AM292: =IF(Bank14!D25=0,0,Bank14!D25*MonthlyEnergyUsageData!$D$317)+B292*(WinterLoadTemplateBank!$AH$6-WinterLoadTemplateBank!$AK$6) -> 0
B293: =IF(ISNUMBER(SEARCH("lo",$M$249)),0,IF(ISNUMBER(SEARCH("mo",$M$249)),1,1)) -> 1 | C293: 19:00:00 | D293: =Bank3N!C26 -> 19.83 | E293: =IF(Bank3N!D26=0,0,Bank3N!D26*MonthlyEnergyUsageData!$D$300)+B293*(WinterLoadTemplateBank!$AH$6-WinterLoadTemplateBank!$AK$6+WinterLoadTemplateBank!$AJ$6) -> 0 | F293: =Bank2N!C26 -> 19.21 | G293: =IF(Bank2N!D26=0,0,Bank2N!D26*MonthlyEnergyUsageData!$D$301)+B293*(WinterLoadTemplateBank!$AH$6-WinterLoadTemplateBank!$AK$6) -> 0 | H293: =Bank1N!C26 -> 18.44 | I293: =IF(Bank1N!D26=0,0,Bank1N!D26*MonthlyEnergyUsageData!$D$302)+B293*(WinterLoadTemplateBank!$AH$6-WinterLoadTemplateBank!$AK$6) -> 0 | J293: =Bank0!C26 -> 17.24 | K293: =IF(Bank0!D26=0,0,Bank0!D26*MonthlyEnergyUsageData!$D$303)+B293*(WinterLoadTemplateBank!$AH$6-WinterLoadTemplateBank!$AK$6) -> 0 | L293: =Bank1!C26 -> 16.66 | M293: =IF(Bank1!D26=0,0,Bank1!D26*MonthlyEnergyUsageData!$D$304)+B293*(WinterLoadTemplateBank!$AH$6-WinterLoadTemplateBank!$AK$6) -> 0 | N293: =Bank2!C26 -> 15.9 | O293: =IF(Bank2!D26=0,0,Bank2!D26*MonthlyEnergyUsageData!$D$305)+B293*(WinterLoadTemplateBank!$AH$6-WinterLoadTemplateBank!$AK$6) -> 0 | P293: =Bank3!C26 -> 14.95 | Q293: =IF(Bank3!D26=0,0,Bank3!D26*MonthlyEnergyUsageData!$D$306)+B293*(WinterLoadTemplateBank!$AH$6-WinterLoadTemplateBank!$AK$6) -> 0 | R293: =Bank4!C26 -> 14.39 | S293: =IF(Bank4!D26=0,0,Bank4!D26*MonthlyEnergyUsageData!$D$307)+B293*(WinterLoadTemplateBank!$AH$6-WinterLoadTemplateBank!$AK$6) -> 0 | T293: =Bank5!C26 -> 13.67 | U293: =IF(Bank5!D26=0,0,Bank5!D26*MonthlyEnergyUsageData!$D$308)+B293*(WinterLoadTemplateBank!$AH$6-WinterLoadTemplateBank!$AK$6) -> 0 | V293: =Bank6!C26 -> 12.73 | W293: =IF(Bank6!D26=0,0,Bank6!D26*MonthlyEnergyUsageData!$D$309)+B293*(WinterLoadTemplateBank!$AH$6-WinterLoadTemplateBank!$AK$6) -> 0 | X293: =Bank7!C26 -> 11.96 | Y293: =IF(Bank7!D26=0,0,Bank7!D26*MonthlyEnergyUsageData!$D$310)+B293*(WinterLoadTemplateBank!$AH$6-WinterLoadTemplateBank!$AK$6) -> 0 | Z293: =Bank8!C26 -> 11.17 | AA293: =IF(Bank8!D26=0,0,Bank8!D26*MonthlyEnergyUsageData!$D$311)+B293*(WinterLoadTemplateBank!$AH$6-WinterLoadTemplateBank!$AK$6) -> 0 | AB293: =Bank9!C26 -> 1.21 | AC293: =IF(Bank9!D26=0,0,Bank9!D26*MonthlyEnergyUsageData!$D$312)+B293*(WinterLoadTemplateBank!$AH$6-WinterLoadTemplateBank!$AK$6) -> 0 | AD293: =Bank10!C26 -> 1.24 | AE293: =IF(Bank10!D26=0,0,Bank10!D26*MonthlyEnergyUsageData!$D$313)+B293*(WinterLoadTemplateBank!$AH$6-WinterLoadTemplateBank!$AK$6) -> 0 | AF293: =Bank11!C26 -> 0.68 | AG293: =IF(Bank11!D26=0,0,Bank11!D26*MonthlyEnergyUsageData!$D$314)+B293*(WinterLoadTemplateBank!$AH$6-WinterLoadTemplateBank!$AK$6) -> 0 | AH293: =Bank12!C26 -> 0 | AI293: =IF(Bank12!D26=0,0,Bank12!D26*MonthlyEnergyUsageData!$D$315)+B293*(WinterLoadTemplateBank!$AH$6-WinterLoadTemplateBank!$AK$6) -> 0 | AJ293: =Bank13!C26 -> 0 | AK293: =IF(Bank13!D26=0,0,Bank13!D26*MonthlyEnergyUsageData!$D$316)+B293*(WinterLoadTemplateBank!$AH$6-WinterLoadTemplateBank!$AK$6) -> 0 | AL293: =Bank14!C26 -> 0 | AM293: =IF(Bank14!D26=0,0,Bank14!D26*MonthlyEnergyUsageData!$D$317)+B293*(WinterLoadTemplateBank!$AH$6-WinterLoadTemplateBank!$AK$6) -> 0
B294: =IF(ISNUMBER(SEARCH("lo",$M$249)),0,IF(ISNUMBER(SEARCH("mo",$M$249)),1,1)) -> 1 | C294: 20:00:00 | D294: =Bank3N!C27 -> 19.7 | E294: =IF(Bank3N!D27=0,0,Bank3N!D27*MonthlyEnergyUsageData!$D$300)+B294*(WinterLoadTemplateBank!$AH$6-WinterLoadTemplateBank!$AK$6+WinterLoadTemplateBank!$AJ$6) -> 0 | F294: =Bank2N!C27 -> 19.06 | G294: =IF(Bank2N!D27=0,0,Bank2N!D27*MonthlyEnergyUsageData!$D$301)+B294*(WinterLoadTemplateBank!$AH$6-WinterLoadTemplateBank!$AK$6) -> 0 | H294: =Bank1N!C27 -> 18.29 | I294: =IF(Bank1N!D27=0,0,Bank1N!D27*MonthlyEnergyUsageData!$D$302)+B294*(WinterLoadTemplateBank!$AH$6-WinterLoadTemplateBank!$AK$6) -> 0 | J294: =Bank0!C27 -> 17.09 | K294: =IF(Bank0!D27=0,0,Bank0!D27*MonthlyEnergyUsageData!$D$303)+B294*(WinterLoadTemplateBank!$AH$6-WinterLoadTemplateBank!$AK$6) -> 0 | L294: =Bank1!C27 -> 16.49 | M294: =IF(Bank1!D27=0,0,Bank1!D27*MonthlyEnergyUsageData!$D$304)+B294*(WinterLoadTemplateBank!$AH$6-WinterLoadTemplateBank!$AK$6) -> 0 | N294: =Bank2!C27 -> 15.73 | O294: =IF(Bank2!D27=0,0,Bank2!D27*MonthlyEnergyUsageData!$D$305)+B294*(WinterLoadTemplateBank!$AH$6-WinterLoadTemplateBank!$AK$6) -> 0 | P294: =Bank3!C27 -> 15.35 | Q294: =IF(Bank3!D27=0,0,Bank3!D27*MonthlyEnergyUsageData!$D$306)+B294*(WinterLoadTemplateBank!$AH$6-WinterLoadTemplateBank!$AK$6) -> 0 | R294: =Bank4!C27 -> 14.78 | S294: =IF(Bank4!D27=0,0,Bank4!D27*MonthlyEnergyUsageData!$D$307)+B294*(WinterLoadTemplateBank!$AH$6-WinterLoadTemplateBank!$AK$6) -> 0 | T294: =Bank5!C27 -> 14.03 | U294: =IF(Bank5!D27=0,0,Bank5!D27*MonthlyEnergyUsageData!$D$308)+B294*(WinterLoadTemplateBank!$AH$6-WinterLoadTemplateBank!$AK$6) -> 0 | V294: =Bank6!C27 -> 13.1 | W294: =IF(Bank6!D27=0,0,Bank6!D27*MonthlyEnergyUsageData!$D$309)+B294*(WinterLoadTemplateBank!$AH$6-WinterLoadTemplateBank!$AK$6) -> 0 | X294: =Bank7!C27 -> 12.34 | Y294: =IF(Bank7!D27=0,0,Bank7!D27*MonthlyEnergyUsageData!$D$310)+B294*(WinterLoadTemplateBank!$AH$6-WinterLoadTemplateBank!$AK$6) -> 0 | Z294: =Bank8!C27 -> 11.53 | AA294: =IF(Bank8!D27=0,0,Bank8!D27*MonthlyEnergyUsageData!$D$311)+B294*(WinterLoadTemplateBank!$AH$6-WinterLoadTemplateBank!$AK$6) -> 0 | AB294: =Bank9!C27 -> 4.72 | AC294: =IF(Bank9!D27=0,0,Bank9!D27*MonthlyEnergyUsageData!$D$312)+B294*(WinterLoadTemplateBank!$AH$6-WinterLoadTemplateBank!$AK$6) -> 0 | AD294: =Bank10!C27 -> 4.54 | AE294: =IF(Bank10!D27=0,0,Bank10!D27*MonthlyEnergyUsageData!$D$313)+B294*(WinterLoadTemplateBank!$AH$6-WinterLoadTemplateBank!$AK$6) -> 0 | AF294: =Bank11!C27 -> 3.83 | AG294: =IF(Bank11!D27=0,0,Bank11!D27*MonthlyEnergyUsageData!$D$314)+B294*(WinterLoadTemplateBank!$AH$6-WinterLoadTemplateBank!$AK$6) -> 0 | AH294: =Bank12!C27 -> 1 | AI294: =IF(Bank12!D27=0,0,Bank12!D27*MonthlyEnergyUsageData!$D$315)+B294*(WinterLoadTemplateBank!$AH$6-WinterLoadTemplateBank!$AK$6) -> 0 | AJ294: =Bank13!C27 -> 0.66 | AK294: =IF(Bank13!D27=0,0,Bank13!D27*MonthlyEnergyUsageData!$D$316)+B294*(WinterLoadTemplateBank!$AH$6-WinterLoadTemplateBank!$AK$6) -> 0 | AL294: =Bank14!C27 -> 0.06 | AM294: =IF(Bank14!D27=0,0,Bank14!D27*MonthlyEnergyUsageData!$D$317)+B294*(WinterLoadTemplateBank!$AH$6-WinterLoadTemplateBank!$AK$6) -> 0
B295: =IF(ISNUMBER(SEARCH("lo",$M$249)),0,IF(ISNUMBER(SEARCH("mo",$M$249)),1,1)) -> 1 | C295: 21:00:00 | D295: =Bank3N!C28 -> 19.69 | E295: =IF(Bank3N!D28=0,0,Bank3N!D28*MonthlyEnergyUsageData!$D$300)+B295*(WinterLoadTemplateBank!$AH$6-WinterLoadTemplateBank!$AK$6+WinterLoadTemplateBank!$AJ$6) -> 0 | F295: =Bank2N!C28 -> 19.03 | G295: =IF(Bank2N!D28=0,0,Bank2N!D28*MonthlyEnergyUsageData!$D$301)+B295*(WinterLoadTemplateBank!$AH$6-WinterLoadTemplateBank!$AK$6) -> 0 | H295: =Bank1N!C28 -> 18.26 | I295: =IF(Bank1N!D28=0,0,Bank1N!D28*MonthlyEnergyUsageData!$D$302)+B295*(WinterLoadTemplateBank!$AH$6-WinterLoadTemplateBank!$AK$6) -> 0 | J295: =Bank0!C28 -> 17.08 | K295: =IF(Bank0!D28=0,0,Bank0!D28*MonthlyEnergyUsageData!$D$303)+B295*(WinterLoadTemplateBank!$AH$6-WinterLoadTemplateBank!$AK$6) -> 0 | L295: =Bank1!C28 -> 16.47 | M295: =IF(Bank1!D28=0,0,Bank1!D28*MonthlyEnergyUsageData!$D$304)+B295*(WinterLoadTemplateBank!$AH$6-WinterLoadTemplateBank!$AK$6) -> 0 | N295: =Bank2!C28 -> 15.7 | O295: =IF(Bank2!D28=0,0,Bank2!D28*MonthlyEnergyUsageData!$D$305)+B295*(WinterLoadTemplateBank!$AH$6-WinterLoadTemplateBank!$AK$6) -> 0 | P295: =Bank3!C28 -> 15.42 | Q295: =IF(Bank3!D28=0,0,Bank3!D28*MonthlyEnergyUsageData!$D$306)+B295*(WinterLoadTemplateBank!$AH$6-WinterLoadTemplateBank!$AK$6) -> 0 | R295: =Bank4!C28 -> 14.84 | S295: =IF(Bank4!D28=0,0,Bank4!D28*MonthlyEnergyUsageData!$D$307)+B295*(WinterLoadTemplateBank!$AH$6-WinterLoadTemplateBank!$AK$6) -> 0 | T295: =Bank5!C28 -> 14.1 | U295: =IF(Bank5!D28=0,0,Bank5!D28*MonthlyEnergyUsageData!$D$308)+B295*(WinterLoadTemplateBank!$AH$6-WinterLoadTemplateBank!$AK$6) -> 0 | V295: =Bank6!C28 -> 13.18 | W295: =IF(Bank6!D28=0,0,Bank6!D28*MonthlyEnergyUsageData!$D$309)+B295*(WinterLoadTemplateBank!$AH$6-WinterLoadTemplateBank!$AK$6) -> 0 | X295: =Bank7!C28 -> 12.43 | Y295: =IF(Bank7!D28=0,0,Bank7!D28*MonthlyEnergyUsageData!$D$310)+B295*(WinterLoadTemplateBank!$AH$6-WinterLoadTemplateBank!$AK$6) -> 0 | Z295: =Bank8!C28 -> 11.63 | AA295: =IF(Bank8!D28=0,0,Bank8!D28*MonthlyEnergyUsageData!$D$311)+B295*(WinterLoadTemplateBank!$AH$6-WinterLoadTemplateBank!$AK$6) -> 0 | AB295: =Bank9!C28 -> 6.09 | AC295: =IF(Bank9!D28=0,0,Bank9!D28*MonthlyEnergyUsageData!$D$312)+B295*(WinterLoadTemplateBank!$AH$6-WinterLoadTemplateBank!$AK$6) -> 0 | AD295: =Bank10!C28 -> 5.87 | AE295: =IF(Bank10!D28=0,0,Bank10!D28*MonthlyEnergyUsageData!$D$313)+B295*(WinterLoadTemplateBank!$AH$6-WinterLoadTemplateBank!$AK$6) -> 0 | AF295: =Bank11!C28 -> 5.19 | AG295: =IF(Bank11!D28=0,0,Bank11!D28*MonthlyEnergyUsageData!$D$314)+B295*(WinterLoadTemplateBank!$AH$6-WinterLoadTemplateBank!$AK$6) -> 0 | AH295: =Bank12!C28 -> 2.97 | AI295: =IF(Bank12!D28=0,0,Bank12!D28*MonthlyEnergyUsageData!$D$315)+B295*(WinterLoadTemplateBank!$AH$6-WinterLoadTemplateBank!$AK$6) -> 0 | AJ295: =Bank13!C28 -> 2.54 | AK295: =IF(Bank13!D28=0,0,Bank13!D28*MonthlyEnergyUsageData!$D$316)+B295*(WinterLoadTemplateBank!$AH$6-WinterLoadTemplateBank!$AK$6) -> 0 | AL295: =Bank14!C28 -> 1.53 | AM295: =IF(Bank14!D28=0,0,Bank14!D28*MonthlyEnergyUsageData!$D$317)+B295*(WinterLoadTemplateBank!$AH$6-WinterLoadTemplateBank!$AK$6) -> 0
B296: =IF(ISNUMBER(SEARCH("lo",$M$249)),0,IF(ISNUMBER(SEARCH("mo",$M$249)),1,1)) -> 1 | C296: 22:00:00 | D296: =Bank3N!C29 -> 19.68 | E296: =IF(Bank3N!D29=0,0,Bank3N!D29*MonthlyEnergyUsageData!$D$300)+B296*(WinterLoadTemplateBank!$AH$6-WinterLoadTemplateBank!$AK$6+WinterLoadTemplateBank!$AJ$6) -> 0 | F296: =Bank2N!C29 -> 19.03 | G296: =IF(Bank2N!D29=0,0,Bank2N!D29*MonthlyEnergyUsageData!$D$301)+B296*(WinterLoadTemplateBank!$AH$6-WinterLoadTemplateBank!$AK$6) -> 0 | H296: =Bank1N!C29 -> 18.26 | I296: =IF(Bank1N!D29=0,0,Bank1N!D29*MonthlyEnergyUsageData!$D$302)+B296*(WinterLoadTemplateBank!$AH$6-WinterLoadTemplateBank!$AK$6) -> 0 | J296: =Bank0!C29 -> 17.1 | K296: =IF(Bank0!D29=0,0,Bank0!D29*MonthlyEnergyUsageData!$D$303)+B296*(WinterLoadTemplateBank!$AH$6-WinterLoadTemplateBank!$AK$6) -> 0 | L296: =Bank1!C29 -> 16.49 | M296: =IF(Bank1!D29=0,0,Bank1!D29*MonthlyEnergyUsageData!$D$304)+B296*(WinterLoadTemplateBank!$AH$6-WinterLoadTemplateBank!$AK$6) -> 0 | N296: =Bank2!C29 -> 15.73 | O296: =IF(Bank2!D29=0,0,Bank2!D29*MonthlyEnergyUsageData!$D$305)+B296*(WinterLoadTemplateBank!$AH$6-WinterLoadTemplateBank!$AK$6) -> 0 | P296: =Bank3!C29 -> 15.49 | Q296: =IF(Bank3!D29=0,0,Bank3!D29*MonthlyEnergyUsageData!$D$306)+B296*(WinterLoadTemplateBank!$AH$6-WinterLoadTemplateBank!$AK$6) -> 0 | R296: =Bank4!C29 -> 14.91 | S296: =IF(Bank4!D29=0,0,Bank4!D29*MonthlyEnergyUsageData!$D$307)+B296*(WinterLoadTemplateBank!$AH$6-WinterLoadTemplateBank!$AK$6) -> 0 | T296: =Bank5!C29 -> 14.17 | U296: =IF(Bank5!D29=0,0,Bank5!D29*MonthlyEnergyUsageData!$D$308)+B296*(WinterLoadTemplateBank!$AH$6-WinterLoadTemplateBank!$AK$6) -> 0 | V296: =Bank6!C29 -> 13.27 | W296: =IF(Bank6!D29=0,0,Bank6!D29*MonthlyEnergyUsageData!$D$309)+B296*(WinterLoadTemplateBank!$AH$6-WinterLoadTemplateBank!$AK$6) -> 0 | X296: =Bank7!C29 -> 12.52 | Y296: =IF(Bank7!D29=0,0,Bank7!D29*MonthlyEnergyUsageData!$D$310)+B296*(WinterLoadTemplateBank!$AH$6-WinterLoadTemplateBank!$AK$6) -> 0 | Z296: =Bank8!C29 -> 11.73 | AA296: =IF(Bank8!D29=0,0,Bank8!D29*MonthlyEnergyUsageData!$D$311)+B296*(WinterLoadTemplateBank!$AH$6-WinterLoadTemplateBank!$AK$6) -> 0 | AB296: =Bank9!C29 -> 6.76 | AC296: =IF(Bank9!D29=0,0,Bank9!D29*MonthlyEnergyUsageData!$D$312)+B296*(WinterLoadTemplateBank!$AH$6-WinterLoadTemplateBank!$AK$6) -> 0 | AD296: =Bank10!C29 -> 6.5 | AE296: =IF(Bank10!D29=0,0,Bank10!D29*MonthlyEnergyUsageData!$D$313)+B296*(WinterLoadTemplateBank!$AH$6-WinterLoadTemplateBank!$AK$6) -> 0 | AF296: =Bank11!C29 -> 5.83 | AG296: =IF(Bank11!D29=0,0,Bank11!D29*MonthlyEnergyUsageData!$D$314)+B296*(WinterLoadTemplateBank!$AH$6-WinterLoadTemplateBank!$AK$6) -> 0 | AH296: =Bank12!C29 -> 3.84 | AI296: =IF(Bank12!D29=0,0,Bank12!D29*MonthlyEnergyUsageData!$D$315)+B296*(WinterLoadTemplateBank!$AH$6-WinterLoadTemplateBank!$AK$6) -> 0 | AJ296: =Bank13!C29 -> 3.41 | AK296: =IF(Bank13!D29=0,0,Bank13!D29*MonthlyEnergyUsageData!$D$316)+B296*(WinterLoadTemplateBank!$AH$6-WinterLoadTemplateBank!$AK$6) -> 0 | AL296: =Bank14!C29 -> 2.53 | AM296: =IF(Bank14!D29=0,0,Bank14!D29*MonthlyEnergyUsageData!$D$317)+B296*(WinterLoadTemplateBank!$AH$6-WinterLoadTemplateBank!$AK$6) -> 0
B297: =IF(ISNUMBER(SEARCH("lo",$M$249)),0,IF(ISNUMBER(SEARCH("mo",$M$249)),0,1)) -> 1 | C297: 23:00:00 | D297: =Bank3N!C30 -> 19.35 | E297: =IF(Bank3N!D30=0,0,Bank3N!D30*MonthlyEnergyUsageData!$D$300)+B297*(WinterLoadTemplateBank!$AH$6-WinterLoadTemplateBank!$AK$6+WinterLoadTemplateBank!$AJ$6) -> 0 | F297: =Bank2N!C30 -> 18.71 | G297: =IF(Bank2N!D30=0,0,Bank2N!D30*MonthlyEnergyUsageData!$D$301)+B297*(WinterLoadTemplateBank!$AH$6-WinterLoadTemplateBank!$AK$6) -> 0 | H297: =Bank1N!C30 -> 17.97 | I297: =IF(Bank1N!D30=0,0,Bank1N!D30*MonthlyEnergyUsageData!$D$302)+B297*(WinterLoadTemplateBank!$AH$6-WinterLoadTemplateBank!$AK$6) -> 0 | J297: =Bank0!C30 -> 16.85 | K297: =IF(Bank0!D30=0,0,Bank0!D30*MonthlyEnergyUsageData!$D$303)+B297*(WinterLoadTemplateBank!$AH$6-WinterLoadTemplateBank!$AK$6) -> 0 | L297: =Bank1!C30 -> 16.26 | M297: =IF(Bank1!D30=0,0,Bank1!D30*MonthlyEnergyUsageData!$D$304)+B297*(WinterLoadTemplateBank!$AH$6-WinterLoadTemplateBank!$AK$6) -> 0 | N297: =Bank2!C30 -> 15.53 | O297: =IF(Bank2!D30=0,0,Bank2!D30*MonthlyEnergyUsageData!$D$305)+B297*(WinterLoadTemplateBank!$AH$6-WinterLoadTemplateBank!$AK$6) -> 0 | P297: =Bank3!C30 -> 15.69 | Q297: =IF(Bank3!D30=0,0,Bank3!D30*MonthlyEnergyUsageData!$D$306)+B297*(WinterLoadTemplateBank!$AH$6-WinterLoadTemplateBank!$AK$6) -> 0 | R297: =Bank4!C30 -> 15.11 | S297: =IF(Bank4!D30=0,0,Bank4!D30*MonthlyEnergyUsageData!$D$307)+B297*(WinterLoadTemplateBank!$AH$6-WinterLoadTemplateBank!$AK$6) -> 0 | T297: =Bank5!C30 -> 14.37 | U297: =IF(Bank5!D30=0,0,Bank5!D30*MonthlyEnergyUsageData!$D$308)+B297*(WinterLoadTemplateBank!$AH$6-WinterLoadTemplateBank!$AK$6) -> 0 | V297: =Bank6!C30 -> 13.48 | W297: =IF(Bank6!D30=0,0,Bank6!D30*MonthlyEnergyUsageData!$D$309)+B297*(WinterLoadTemplateBank!$AH$6-WinterLoadTemplateBank!$AK$6) -> 0 | X297: =Bank7!C30 -> 12.73 | Y297: =IF(Bank7!D30=0,0,Bank7!D30*MonthlyEnergyUsageData!$D$310)+B297*(WinterLoadTemplateBank!$AH$6-WinterLoadTemplateBank!$AK$6) -> 0 | Z297: =Bank8!C30 -> 11.94 | AA297: =IF(Bank8!D30=0,0,Bank8!D30*MonthlyEnergyUsageData!$D$311)+B297*(WinterLoadTemplateBank!$AH$6-WinterLoadTemplateBank!$AK$6) -> 0 | AB297: =Bank9!C30 -> 7.11 | AC297: =IF(Bank9!D30=0,0,Bank9!D30*MonthlyEnergyUsageData!$D$312)+B297*(WinterLoadTemplateBank!$AH$6-WinterLoadTemplateBank!$AK$6) -> 0 | AD297: =Bank10!C30 -> 6.84 | AE297: =IF(Bank10!D30=0,0,Bank10!D30*MonthlyEnergyUsageData!$D$313)+B297*(WinterLoadTemplateBank!$AH$6-WinterLoadTemplateBank!$AK$6) -> 0 | AF297: =Bank11!C30 -> 6.16 | AG297: =IF(Bank11!D30=0,0,Bank11!D30*MonthlyEnergyUsageData!$D$314)+B297*(WinterLoadTemplateBank!$AH$6-WinterLoadTemplateBank!$AK$6) -> 0 | AH297: =Bank12!C30 -> 4.28 | AI297: =IF(Bank12!D30=0,0,Bank12!D30*MonthlyEnergyUsageData!$D$315)+B297*(WinterLoadTemplateBank!$AH$6-WinterLoadTemplateBank!$AK$6) -> 0 | AJ297: =Bank13!C30 -> 3.83 | AK297: =IF(Bank13!D30=0,0,Bank13!D30*MonthlyEnergyUsageData!$D$316)+B297*(WinterLoadTemplateBank!$AH$6-WinterLoadTemplateBank!$AK$6) -> 0 | AL297: =Bank14!C30 -> 3 | AM297: =IF(Bank14!D30=0,0,Bank14!D30*MonthlyEnergyUsageData!$D$317)+B297*(WinterLoadTemplateBank!$AH$6-WinterLoadTemplateBank!$AK$6) -> 0
C298: Total | D298: =SUM(D274:D297) -> 498.93 | E298: =SUM(E274:E297) -> 0 | F298: 488.99 | G298: 0 | H298: 471.81 | I298: 0 | J298: 438.89 | K298: 0 | L298: 429.06 | M298: 0 | N298: 412.63 | O298: 0 | P298: 384.56 | Q298: 0 | R298: 373.98 | S298: 0 | T298: 356.82 | U298: 0 | V298: 332.71 | W298: 0 | X298: 315.9 | Y298: 0 | Z298: 296.57 | AA298: 0 | AB298: 88.08 | AC298: 0 | AD298: 92.31 | AE298: 0 | AF298: 84.72 | AG298: 0 | AH298: 47.94 | AI298: 0 | AJ298: 47.64 | AK298: 0 | AL298: 39.16 | AM298: 0
B299: scaling factor | D299: =Bank3N!E9 -> 20.78875 | F299: =Bank2N!E9 -> 20.37458333 | H299: =Bank1N!E9 -> 19.65875 | J299: =Bank0!E9 -> 18.28708333 | L299: =Bank1!$E9 -> 17.8775 | N299: =Bank2!$E9 -> 17.19291667 | P299: =Bank3!$E9 -> 16.02333333 | R299: =Bank4!$E9 -> 15.5825 | T299: =Bank5!$E9 -> 14.8675 | V299: =Bank6!$E9 -> 13.86291667 | X299: =Bank7!$E9 -> 13.1625 | Z299: =Bank8!$E9 -> 12.35708333 | AB299: =Bank9!$E9 -> 3.67 | AD299: =Bank10!$E9 -> 3.84625 | AF299: =Bank11!$E9 -> 3.53 | AH299: =Bank12!$E9 -> 1.9975 | AJ299: =Bank13!$E9 -> 1.985 | AL299: =Bank14!$E9 -> 1.631666667
C300: -3 | D300: =IF($E$25<$M$302,$K$304,IF($E$25<=$M$319,$K$302,$K$306)) -> 0
C301: -2 | D301: =IF($E$25<$M$302,$K$304,IF($E$25<=$M$319,$K$302,$K$306)) -> 0 | G301: For Design Day | M301: temperature | N301: scaling factor
C302: -1 | D302: 0 | G302: Scaling Factor For a typical outside temperature | K302: =IF(E25<M302,K304,IF(E25<=M319,VLOOKUP(E25,M302:N319,2,TRUE),0)) -> 0 | M302: -3 | N302: =($E$42-(SUM(B274:B297)*(WinterLoadTemplateBank!$AH$6-WinterLoadTemplateBank!$AK$6+WinterLoadTemplateBank!$AJ$6)))/D298 -> 0 | O302: Comments: the calculation equation, please see the software manual for detail.
C303: 0 | D303: 0 | M303: -2 | N303: =($E$42-SUM(B274:B297)*(WinterLoadTemplateBank!$AH$6-WinterLoadTemplateBank!$AK$6+WinterLoadTemplateBank!$AJ$6))/F298 -> 0
C304: 1 | D304: 0 | G304: Scaling factor for temperature less than (-3degC) | K304: =N302*(15.5-E25)/(15.5-M302) -> 0 | M304: -1 | N304: =($E$42-SUM(B274:B297)*(WinterLoadTemplateBank!$AH$6-WinterLoadTemplateBank!$AK$6+WinterLoadTemplateBank!$AJ$6))/H298 -> 0
C305: 2 | D305: 0 | M305: 0 | N305: =($E$42-SUM(B274:B297)*(WinterLoadTemplateBank!$AH$6-WinterLoadTemplateBank!$AK$6+WinterLoadTemplateBank!$AJ$6))/J298 -> 0
C306: 3 | D306: 0 | G306: Scaling factor for temperature greater than (14degC) | K306: =IF(E25>14,0,K302) -> 0 | M306: 1 | N306: =($E$42-SUM(B274:B297)*(WinterLoadTemplateBank!$AH$6-WinterLoadTemplateBank!$AK$6+WinterLoadTemplateBank!$AJ$6))/L298 -> 0
C307: 4 | D307: 0 | M307: 2 | N307: =($E$42-SUM(B274:B297)*(WinterLoadTemplateBank!$AH$6-WinterLoadTemplateBank!$AK$6+WinterLoadTemplateBank!$AJ$6))/N298 -> 0
C308: 5 | D308: 0 | M308: 3 | N308: =($E$42-SUM(B274:B297)*(WinterLoadTemplateBank!$AH$6-WinterLoadTemplateBank!$AK$6+WinterLoadTemplateBank!$AJ$6))/P298 -> 0
C309: 6 | D309: 0 | M309: 4 | N309: =($E$42-SUM(B274:B297)*(WinterLoadTemplateBank!$AH$6-WinterLoadTemplateBank!$AK$6+WinterLoadTemplateBank!$AJ$6))/R298 -> 0
C310: 7 | D310: 0 | M310: 5 | N310: =($E$42-SUM(B274:B297)*(WinterLoadTemplateBank!$AH$6-WinterLoadTemplateBank!$AK$6+WinterLoadTemplateBank!$AJ$6))/T298 -> 0
C311: 8 | D311: 0 | M311: 6 | N311: =($E$42-SUM(B274:B297)*(WinterLoadTemplateBank!$AH$6-WinterLoadTemplateBank!$AK$6+WinterLoadTemplateBank!$AJ$6))/V298 -> 0
C312: 9 | D312: 0 | M312: 7 | N312: =($E$42-SUM(B274:B297)*(WinterLoadTemplateBank!$AH$6-WinterLoadTemplateBank!$AK$6+WinterLoadTemplateBank!$AJ$6))/X298 -> 0
C313: 10 | D313: 0 | M313: 8 | N313: =($E$42-SUM(B274:B297)*(WinterLoadTemplateBank!$AH$6-WinterLoadTemplateBank!$AK$6+WinterLoadTemplateBank!$AJ$6))/Z298 -> 0
C314: 11 | D314: 0 | M314: 9 | N314: =($E$42-SUM(B274:B297)*(WinterLoadTemplateBank!$AH$6-WinterLoadTemplateBank!$AK$6+WinterLoadTemplateBank!$AJ$6))/AB298 -> 0
C315: 12 | D315: 0 | M315: 10 | N315: =($E$42-SUM(B274:B297)*(WinterLoadTemplateBank!$AH$6-WinterLoadTemplateBank!$AK$6+WinterLoadTemplateBank!$AJ$6))/AD298 -> 0
C316: 13 | D316: 0 | M316: 11 | N316: =($E$42-SUM(B274:B297)*(WinterLoadTemplateBank!$AH$6-WinterLoadTemplateBank!$AK$6+WinterLoadTemplateBank!$AJ$6))/AF298 -> 0
C317: 14 | D317: 0 | E317: Comments: in order not to change the existing calculating structure too much, keep it. | M317: 12 | N317: =($E$42-SUM(B274:B297)*(WinterLoadTemplateBank!$AH$6-WinterLoadTemplateBank!$AK$6+WinterLoadTemplateBank!$AJ$6))/AH298 -> 0
M318: 13 | N318: =($E$42-SUM(B274:B297)*(WinterLoadTemplateBank!$AH$6-WinterLoadTemplateBank!$AK$6+WinterLoadTemplateBank!$AJ$6))/AJ298 -> 0
B319: Comments: identify the scaling factor for SBEM and measured data. | M319: 14 | N319: =($E$42-SUM(B274:B297)*(WinterLoadTemplateBank!$AH$6-WinterLoadTemplateBank!$AK$6+WinterLoadTemplateBank!$AJ$6))/AL298 -> 0
C321: DegreeData | E321: Average degree day in January (vesma.com) | H321: temperature in January
C322: Belfast | D322: Belfast | E322: 15.4 | F322: 328 | H322: 5 | I322: 4.73
C323: Birmingham | D323: Birmingham | E323: 14.6 | F323: 340 | H323: 5 | I323: 4.93
C324: Cardiff | D324: Cardiff | E324: 13.2 | F324: 302 | H324: 6 | I324: 6.2
C325: Edinburgh | D325: Edinburgh | E325: 16 | F325: 356 | H325: 4 | I325: 4.04
C326: Glasgow | D326: Glasgow | E326: 16.1 | F326: 341 | H326: 3 | I326: 2.98
C327: London | D327: London | E327: 12 | F327: 326 | H327: 6 | I327: 6.22
C328: Manchester | D328: Manchester | E328: 14.3 | F328: 342 | H328: 5 | I328: 5.4
C329: Plymouth | D329: Plymouth | E329: 9.8 | F329: 311 | H329: 7 | I329: 7.45
B330: Comments: scaling factor based on degree data
D332: internal temperature (degC) | E332: =IF(OR(DemandSourceSelectInterface!V3=3,DemandSourceSelectInterface!V3=4),MonthlyEnergyUsageData!E27,IF(OR(DemandSourceSelectInterface!V3=1,DemandSourceSelectInterface!V3=2),21,NA())) -> 21
D334: ventilation heat loss | E334: =HotWaterVentilation!F25 -> 0 | F334: W/K
D335: Hot water demand | E335: =HotWaterVentilation!F23 -> 0 | F335: kW
D337: internal gain | E337: =CasualGain!I27 -> 0 | F337: kW
D339: internal temperature | E339: =E27 -> 0 | F339: oC
D340: outside temperature at design day | E340: =E25 -> 0 | F340: oC
D342: Total daily demand | E342: =SUM(E46:E69) -> 0 | F342: kWh
D343: Balance temperature | E343: =E339-(E337*(E339-E340))/(E342/24+E337-E335) ->  | F343: oC
D351: Comments list for the calendar year | F351: comments: list for efficiency of existing boiler
D352: 2000 | F352: 0.6
D353: 2001 | F353: 0.61
D354: 2002 | F354: 0.62
D355: 2003 | F355: 0.63
D356: 2004 | F356: 0.64
D357: 2005 | F357: 0.65
D358: 2006 | F358: 0.66
D359: 2007 | F359: 0.67
D360: 2008 | F360: 0.68
D361: 2009 | F361: 0.69
D362: 2010 | F362: 0.7
D363: 2011 | F363: 0.71
D364: 2012 | F364: 0.72
D365: 2013 | F365: 0.73
D366: 2014 | F366: 0.74
D367: 2015 | F367: 0.75
... 12 more rows

Sheet DemandSourceSelectInterface
V1: 1
V2: 3
H3: Building Heat Demand Inputs | V3: 1
V4: 0
C5: No of building specifications | V5: 0
D6: 1 | G6: Continuous distribution network power losses: | L6: 0.01 | M6: of peak load = | O6: =MAX(DemandData!X283:X306)*L6 -> 0 | P6: kW
V8: 1
C9: Building name | D9: Building 1 | V9: 4
C11: Number of buildings of this type | V11: 4
D12: 1
C19: Building name | D19: Building 2
C21: Number of buildings of this type
D22: 1
C29: Building name | D29: Building 3
C31: Number of buildings of this type
D32: 1
C39: Building name | D39: Building 4
C41: Number of buildings of this type
D42: 1
C49: Building name | D49: Building 5
C51: Number of buildings of this type
D52: 1
C59: Building name | D59: Building 6
C61: Number of buildings of this type
D62: 1
C69: Building name | D69: building 7
C71: Number of buildings of this type
D72: 1
C79: Building name | D79: building 8
C81: Number of buildings of this type
D82: 1
C89: Building name | D89: building 9
C91: Number of buildings of this type
D92: 1
C99: Building name | D99: building 10
C101: Number of buildings of this type
D102: 1
C109: Building name | D109: building 11
C111: Number of buildings of this type
D112: 1
C119: Building name | D119: building 12
C121: Number of buildings of this type
D122: 1
C129: Building name | D129: building 13
C131: Number of buildings of this type
D132: 1
C139: Building name | D139: building 14
C141: Number of buildings of this type
D142: 1
C149: Building name | D149: building 15
C151: Number of buildings of this type
D152: 1
C159: Building name | D159: building 16
C161: Number of buildings of this type
D162: 1
C169: Building name | D169: building 17
C171: Number of buildings of this type
D172: 1
C179: Building name | D179: building 18
C181: Number of buildings of this type
D182: 1
C189: Building name | D189: building 19
C191: Number of buildings of this type
D192: 1
C199: Building name | D199: building 20
C201: Number of buildings of this type
D202: 1
M213: Total heating energy required
M215: Average heat demand at design day: | Q215: =SUM(DemandData!Z283:Z306)/24 -> 0 | S215: kW
M217: Energy demand at design day: | Q217: =SUM(DemandData!Z283:Z306) -> 0 | S217: kWh
M219: Annual energy demand: | Q219: =VLOOKUP(BiomassSizingToolMainInterface!G12,F265:G273,2,FALSE) -> 0 | S219: kWh
C262: 3 | D262: 1
C263: building 2 | D263: 3
C264: building 3
F265: Belfast | G265: =AnnualResult!BI48 -> 323000
F266: Birmingham | G266: =AnnualResult!BI98 -> 323000
F267: Cardiff | G267: =AnnualResult!BI146 -> 254384.6
F268: Edinburgh | G268: =AnnualResult!BI196 -> 323000
F269: Glasgow | G269: =AnnualResult!BI246 -> 0
F270: London | G270: =AnnualResult!BI296 -> 323000
F271: Manchester | G271: =AnnualResult!BI345 -> 323000
F272: Plymouth | G272: =AnnualResult!BI391 -> 500000

Sheet SwimmingPool
A2: =IF(#REF!="No",1,0) -> 
F5: Swimming Pool Heat Demand Calculator
D7: building 2
C8: Name: | D8: Building 1
D9: =IF(D10="Belfast",AverageTemperatureDatabase!S7, IF(D10="Birmingham", AverageTemperatureDatabase!S16, IF(D10="Cardiff",AverageTemperatureDatabase!S18, IF(D10="Edinburgh", AverageTemperatureDatabase!S12, IF(D10="Glasgow", AverageTemperatureDatabase!S13, IF(D10="Manchester", AverageTemperatureDatabase!S15, IF(D10="London",AverageTemperatureDatabase!S19, IF(D10="Plymouth",AverageTemperatureDatabase!S10)))))))) -> Scotland W
C10: Site location | D10: =IF(BiomassSizingToolMainInterface!G12=0,"PRJ Location?",BiomassSizingToolMainInterface!G12) -> Glasgow | G10: Ground insulation | H10: Yes | L10: Solar gains
L11: Irradiance data | N11: =D10 -> Glasgow | Q11: =IF(N11="user data",HYPERLINK("[BiomassBoilerSystemSizingTool.xls]'UserInputIrradianceData'!D9", "Please click here to insert new irradiance data"),"") -> 
C12: Type of Pool | D12: Public pool (no water features) | F12: Heating days a week | H12: 7 | M12: Orientation | O12: % of façade permanently shaded by obstacles | Q12: Total glazing area on façade (m2) | S12: Inclination from horizontal | V12: Type of glazing | X12: Frame type
C14: Is a pool cover used outside operating hours? | D14: Yes | E14: Pool water temperature | H14: =VLOOKUP(D12,C167:D173,2,FALSE) -> 29 | I14: oC
C16: Operating hours per day | D16: Long | F16: Outdoor design temperature | H16: -3 | I16: oC | M16: W | O16: <20% | P16: =IF(O16=D$146,F$146,IF(O16=D$147,F$147,IF(O16=D$148,F$148,IF(O16=D$149,F$149)))) -> 1 | S16: 30 | V16: Double glazed (air or argon filled) | W16: =IF(V16=B$131,D$131,IF(V16=B$132,D$132,IF(V16=B$133,D$133,IF(V16=B$134,D$134,IF(V16=B$135,D$135,IF(V16=B$136,D$136,IF(V16=B$137,D$137,IF(V16=$B138,D$138)))))))) -> 0.76 | X16: Metal | Y16: =IF(X16=G$131,J$131,IF(X16=G$132,J$132,IF(X16=G$133,J$133,IF(X16=G$134,J$134)))) -> 0.8
M17: W | O17: 60% - 20% | P17: 0.77 | S17: 0 | V17: Double glazed (air or argon filled) | W17: =IF(V17=B$131,D$131,IF(V17=B$132,D$132,IF(V17=B$133,D$133,IF(V17=B$134,D$134,IF(V17=B$135,D$135,IF(V17=B$136,D$136,IF(V17=B$137,D$137,IF(V17=B$138,D$138)))))))) -> 0.76 | X17: Metal | Y17: 0.8
M18: E | O18: <20% | P18: 1 | S18: 90 | V18: Double glazed (air or argon filled) | W18: 0.76 | X18: Metal | Y18: 0.8
M19: NW | O19: 80% - 60% | P19: 0.54 | S19: 90 | V19: Double glazed (air or argon filled) | W19: 0.76 | X19: Metal | Y19: 0.8
C20: Dimensions of swimming pool and pool hall | M20: E | O20: 80% - 60% | P20: 0.54 | S20: 90 | V20: Triple glazed (air or argon filled) | W20: 0.68 | X20: Wood | Y20: 0.7
C21: Pool | F21: Pool hall | M21: SW | O21: 80% - 60% | P21: 0.54 | S21: 90 | V21: Double glazed (Low-E, soft coat) | W21: 0.63 | X21: Wood | Y21: 0.7
C22: Length | E22: m | F22: Floor area | H22: m2 | M22: S | O22: 80% - 60% | P22: 0.54 | S22: 90 | V22: Single glazed | W22: 0.85 | X22: Metal.thermal break | Y22: 0.8
M23: SE | O23: 80% - 60% | P23: 0.54 | S23: 90 | V23: Triple glazed (air or argon filled) | W23: 0.68 | X23: Wood | Y23: 0.7
C24: Width | E24: m | F24: Height | H24: m | M24: E | O24: 80% - 60% | P24: 0.54 | S24: 90 | V24: Window with secondare glazing | W24: 0.76 | X24: Metal | Y24: 0.8
M25: NE | O25: 80% - 60% | P25: 0.54 | S25: 90 | V25: Triple glazed (Low-E, hard coat) | W25: 0.64 | X25: PVC-U | Y25: 0.7
Q26: Check Area | Y26: FALSE
C27: Fabric heat loss of pool hall | Y27: FALSE
D28: Gross Area | E28: Openings area | G28: Net Area (m2) | I28: U value | J28: Heat losses | Q28: Check Areas!
D29: m² | E29: m² | G29: m² | I29: W/m2K | J29: W/K | M29: Total solar heat gains: | R29: =IF(H16<2,Q128,IF(H16<8,S128,V128)) -> 0 | T29: W
C30: Window 1 | J30: =IF(ISERROR(1/((1/I30)+0.04)*G30),0,1/((1/I30)+0.04)*G30) -> 0
C31: Window 2 | J31: 0 | M31: Total solar heat gains after utilization factor: | R31: =IF(H16<2,Q128*O280,IF(H16<8,S128*Q280,V128*S280)) ->  | T31: W
C32: Window 3 | J32: 0
C33: Window 4 | J33: 0
C34: Window 5 | J34: 0
C35: Window 6 | J35: 0 | L35: Total heating energy required | U35: Hourly demand profile
C37: Rooflights | J37: =I37*G37 -> 0 | L37: Average heat demand at design day: | P37: =SUM(W38:X61)/24 ->  | R37: kW | V37: Time | W37: Load (kW) | AK37: Max
U38: =IF(ISNUMBER(SEARCH("Short",$D$16)),0,IF(ISNUMBER(SEARCH("Long",$D$16)),0,1)) -> 0 | V38: 00:00:00 | W38: =IF(U38=0, $I$57+M200+$I$60-$R$31/1000,$I$56+M200+$I$60+$I$61-$R$31/1000) ->  | AK38: =IF(W38=LARGE($W$38:$X$61,1),W38,NA()) -> 
C39: Ground | G39: =G22 -> 0 | I39: =VLOOKUP(H10,G260:H261,2,FALSE) ->  | J39: =G39*I39 ->  | L39: Energy demand at design day: | P39: =SUM(W38:X61) ->  | R39: kWh | U39: =IF(ISNUMBER(SEARCH("Short",$D$16)),0,IF(ISNUMBER(SEARCH("Long",$D$16)),0,1)) -> 0 | V39: 01:00:00 | W39: =IF(U39=0, $I$57+M201+$I$60-$R$31/1000,$I$56+M201+$I$60+$I$61-$R$31/1000) ->  | AK39: =IF(W39=LARGE($W$38:$X$61,1),W39,NA()) -> 
U40: 0 | V40: 02:00:00 | AK40: =IF(W40=LARGE($W$38:$X$61,1),W40,NA()) -> 
L41: Annual energy demand: | P41: =AB433 -> 0 | R41: kWh | U41: 0 | V41: 03:00:00
C42: Wall 1 (contains Window 1) | E42: =G30 -> 0 | G42: =D42-E42 -> 0 | J42: =G42*I42 -> 0 | U42: 0 | V42: 04:00:00
C43: Wall 2 (contans Window 2) | E43: 0 | G43: 0 | J43: 0 | U43: 0 | V43: 05:00:00
C44: Wall 3 (contains Window 3) | E44: 0 | G44: 0 | J44: 0 | U44: 0 | V44: 06:00:00
C45: Wall 4 (contains Window 4) | E45: 0 | G45: 0 | J45: 0 | U45: =IF(ISNUMBER(SEARCH("Short",$D$16)),0,IF(ISNUMBER(SEARCH("Long",$D$16)),1,1)) -> 1 | V45: 07:00:00
C46: Wall 5 (contains Window 5) | E46: 0 | G46: 0 | J46: 0 | U46: =IF(ISNUMBER(SEARCH("Short",$D$16)),1,IF(ISNUMBER(SEARCH("Long",$D$16)),1,1)) -> 1 | V46: 08:00:00
C47: Wall 6 (contains Window 6) | E47: 0 | G47: 0 | J47: 0 | U47: =IF(ISNUMBER(SEARCH("Short",$D$16)),1,IF(ISNUMBER(SEARCH("Long",$D$16)),1,1)) -> 1 | V47: 09:00:00
U48: 1 | V48: 10:00:00
C49: Roof | E49: =G37 -> 0 | G49: =D49-E49 -> 0 | J49: =G49*I49 -> 0 | U49: 1 | V49: 11:00:00 | W49: =IF(U49=0, $I$57+M211+$I$60-$R$31/1000,$I$56+M211+$I$60+$I$61-$R$31/1000) -> 
J50: =G50*I50 -> 0 | U50: 1 | V50: 12:00:00
E51: Total area | G51: =SUM(G30:G37,G42:G49) -> 0 | U51: 1 | V51: 13:00:00
G52: Fabric heat loss coeff | I52: =SUM(J30:J37,J42:J49) + J39 ->  | J52: W/K | U52: 1 | V52: 14:00:00
U53: 1 | V53: 15:00:00 | W53: =IF(U53=0, $I$57+M215+$I$60-$R$31/1000,$I$56+M215+$I$60+$I$61-$R$31/1000) -> 
C54: Occupancy, ventilation and heat recovery | G54: Heat loss breakdown and DHW | U54: 1 | V54: 16:00:00
U55: 1 | V55: 17:00:00
C56: Average number of bathers | E56: people | G56: Pool water heat demand (occupied) | I56: =E190*D215 ->  | J56: kW | U56: =IF(ISNUMBER(SEARCH("Short",$D$16)),0,IF(ISNUMBER(SEARCH("Long",$D$16)),1,1)) -> 1 | V56: 18:00:00
G57: Pool water heat demand (unoccupied) | I57: =IF(D14="Yes",E191,E189)*D215 -> 0 | J57: kW | U57: =IF(ISNUMBER(SEARCH("Short",$D$16)),0,IF(ISNUMBER(SEARCH("Long",$D$16)),1,1)) -> 1 | V57: 19:00:00
C58: Ventilation rate outside operating hours | D58: 0.5 | G58: Ventilation heat demand (occupied) | I58: =F190 -> 0 | J58: kW | U58: =IF(ISNUMBER(SEARCH("Short",$D$16)),0,IF(ISNUMBER(SEARCH("Long",$D$16)),1,1)) -> 1 | V58: 20:00:00
G59: Ventilation heat demand (unoccupied) | I59: =IF(D14="Yes", F191, F189) -> 0 | J59: kW | U59: =IF(ISNUMBER(SEARCH("Short",$D$16)),0,IF(ISNUMBER(SEARCH("Long",$D$16)),1,1)) -> 1 | V59: 21:00:00
C60: Type of Heat Recovery System | D60: Heat pump dehumidifier | G60: Fabric heat demand | I60: =(SUM(J30:J37,J42:J49)*(H14+1-H16)+J39*(H14-VLOOKUP(D10,C201:E208,3,FALSE)))/1000 ->  | J60: kW | U60: =IF(ISNUMBER(SEARCH("Short",$D$16)),0,IF(ISNUMBER(SEARCH("Long",$D$16)),1,1)) -> 1 | V60: 22:00:00
G61: DHW demand (occupied) | I61: =G176*D56 -> 0 | J61: kW | U61: =IF(ISNUMBER(SEARCH("Short",$D$16)),0,IF(ISNUMBER(SEARCH("Long",$D$16)),0,1)) -> 0 | V61: 23:00:00 | AK61: =IF(W61=LARGE($W$38:$X$61,1),W61,NA()) -> 
B101: Solar gains auxiliary table
Q102: Temperature of the selected weather - Aux.table
B103: Solar Irradiance (selected location) | D103: Jan | E103: Feb | F103: March | G103: April | H103: May | I103: June | J103: July | K103: August | L103: Sept | M103: october | N103: November | O103: December
B104: 1 | D104: =D239 -> 19.125 | E104: =D240 -> 42.08333333 | F104: =D241 -> 81.33333333 | G104: =D242 -> 128.375 | H104: =D243 -> 174.0833333 | I104: =D244 -> 187.5416667 | J104: =D245 -> 179.4166667 | K104: =D246 -> 144.0416667 | L104: =D247 -> 93.41666667 | M104: =D248 -> 49.16666667 | N104: =D249 -> 24.29166667 | O104: =D250 -> 11.79166667 | Q104: Jan | R104: Feb | S104: March | T104: April | V104: May | W104: June | X104: JulY | Y104: August | Z104: Sept. | AA104: Oct | AB104: Nov | AC104: Dec
B105: 2 | D105: =K239 -> 19.5 | E105: =K240 -> FALSE | F105: =K241 -> 86.29166667 | G105: =K242 -> 137.5 | H105: =K243 -> 186.0833333 | I105: =K244 -> 197.375 | J105: =K245 -> 189.5416667 | K105: =K246 -> 153.6666667 | L105: =K247 -> 103.2083333 | M105: =K248 -> 53.08333333 | N105: =K249 -> 25.91666667 | O105: =K250 -> 12.41666667 | Q105: =IF($D$9=AverageTemperatureDatabase!$S$7,AverageTemperatureDatabase!U7,IF($D$9=AverageTemperatureDatabase!$S$9,AverageTemperatureDatabase!U9,IF($D$9=AverageTemperatureDatabase!$S$10,AverageTemperatureDatabase!U10,IF($D$9=AverageTemperatureDatabase!$S$11,AverageTemperatureDatabase!U11,IF($D$9=AverageTemperatureDatabase!$S$12,AverageTemperatureDatabase!U12,IF($D$9=AverageTemperatureDatabase!$S$13,AverageTemperatureDatabase!U13,Q106)))))) -> 4.1 | R105: =IF($D$9=AverageTemperatureDatabase!$S$7,AverageTemperatureDatabase!V7,IF($D$9=AverageTemperatureDatabase!$S$9,AverageTemperatureDatabase!V9,IF($D$9=AverageTemperatureDatabase!$S$10,AverageTemperatureDatabase!V10,IF($D$9=AverageTemperatureDatabase!$S$11,AverageTemperatureDatabase!V11,IF($D$9=AverageTemperatureDatabase!$S$12,AverageTemperatureDatabase!V12,IF($D$9=AverageTemperatureDatabase!$S$13,AverageTemperatureDatabase!V13,R106)))))) -> 3.95 | S105: =IF($D$9=AverageTemperatureDatabase!$S$7,AverageTemperatureDatabase!W7,IF($D$9=AverageTemperatureDatabase!$S$9,AverageTemperatureDatabase!W9,IF($D$9=AverageTemperatureDatabase!$S$10,AverageTemperatureDatabase!W10,IF($D$9=AverageTemperatureDatabase!$S$11,AverageTemperatureDatabase!W11,IF($D$9=AverageTemperatureDatabase!$S$12,AverageTemperatureDatabase!W12,IF($D$9=AverageTemperatureDatabase!$S$13,AverageTemperatureDatabase!W13,S106)))))) -> 5.1875 | T105: =IF($D$9=AverageTemperatureDatabase!$S$7,AverageTemperatureDatabase!X7,IF($D$9=AverageTemperatureDatabase!$S$9,AverageTemperatureDatabase!X9,IF($D$9=AverageTemperatureDatabase!$S$10,AverageTemperatureDatabase!X10,IF($D$9=AverageTemperatureDatabase!$S$11,AverageTemperatureDatabase!X11,IF($D$9=AverageTemperatureDatabase!$S$12,AverageTemperatureDatabase!X12,IF($D$9=AverageTemperatureDatabase!$S$13,AverageTemperatureDatabase!X13,T106)))))) -> 7.425 | V105: =IF($D$9=AverageTemperatureDatabase!$S$7,AverageTemperatureDatabase!Y7,IF($D$9=AverageTemperatureDatabase!$S$9,AverageTemperatureDatabase!Y9,IF($D$9=AverageTemperatureDatabase!$S$10,AverageTemperatureDatabase!Y10,IF($D$9=AverageTemperatureDatabase!$S$11,AverageTemperatureDatabase!Y11,IF($D$9=AverageTemperatureDatabase!$S$12,AverageTemperatureDatabase!Y12,IF($D$9=AverageTemperatureDatabase!$S$13,AverageTemperatureDatabase!Y13,V106)))))) -> 10.0375 | W105: =IF($D$9=AverageTemperatureDatabase!$S$7,AverageTemperatureDatabase!Z7,IF($D$9=AverageTemperatureDatabase!$S$9,AverageTemperatureDatabase!Z9,IF($D$9=AverageTemperatureDatabase!$S$10,AverageTemperatureDatabase!Z10,IF($D$9=AverageTemperatureDatabase!$S$11,AverageTemperatureDatabase!Z11,IF($D$9=AverageTemperatureDatabase!$S$12,AverageTemperatureDatabase!Z12,IF($D$9=AverageTemperatureDatabase!$S$13,AverageTemperatureDatabase!Z13,W106)))))) -> 12.7375 | X105: =IF($D$9=AverageTemperatureDatabase!$S$7,AverageTemperatureDatabase!AA7,IF($D$9=AverageTemperatureDatabase!$S$9,AverageTemperatureDatabase!AA9,IF($D$9=AverageTemperatureDatabase!$S$10,AverageTemperatureDatabase!AA10,IF($D$9=AverageTemperatureDatabase!$S$11,AverageTemperatureDatabase!AA11,IF($D$9=AverageTemperatureDatabase!$S$12,AverageTemperatureDatabase!AA12,IF($D$9=AverageTemperatureDatabase!$S$13,AverageTemperatureDatabase!AA13,X106)))))) -> 14.0625 | Y105: =IF($D$9=AverageTemperatureDatabase!$S$7,AverageTemperatureDatabase!AB7,IF($D$9=AverageTemperatureDatabase!$S$9,AverageTemperatureDatabase!AB9,IF($D$9=AverageTemperatureDatabase!$S$10,AverageTemperatureDatabase!AB10,IF($D$9=AverageTemperatureDatabase!$S$11,AverageTemperatureDatabase!AB11,IF($D$9=AverageTemperatureDatabase!$S$12,AverageTemperatureDatabase!AB12,IF($D$9=AverageTemperatureDatabase!$S$13,AverageTemperatureDatabase!AB13,Y106)))))) -> 14.1875 | Z105: =IF($D$9=AverageTemperatureDatabase!$S$7,AverageTemperatureDatabase!AC7,IF($D$9=AverageTemperatureDatabase!$S$9,AverageTemperatureDatabase!AC9,IF($D$9=AverageTemperatureDatabase!$S$10,AverageTemperatureDatabase!AC10,IF($D$9=AverageTemperatureDatabase!$S$11,AverageTemperatureDatabase!AC11,IF($D$9=AverageTemperatureDatabase!$S$12,AverageTemperatureDatabase!AC12,IF($D$9=AverageTemperatureDatabase!$S$13,AverageTemperatureDatabase!AC13,Z106)))))) -> 12.3625 | AA105: =IF($D$9=AverageTemperatureDatabase!$S$7,AverageTemperatureDatabase!AD7,IF($D$9=AverageTemperatureDatabase!$S$9,AverageTemperatureDatabase!AD9,IF($D$9=AverageTemperatureDatabase!$S$10,AverageTemperatureDatabase!AD10,IF($D$9=AverageTemperatureDatabase!$S$11,AverageTemperatureDatabase!AD11,IF($D$9=AverageTemperatureDatabase!$S$12,AverageTemperatureDatabase!AD12,IF($D$9=AverageTemperatureDatabase!$S$13,AverageTemperatureDatabase!AD13,AA106)))))) -> 9.3125 | AB105: =IF($D$9=AverageTemperatureDatabase!$S$7,AverageTemperatureDatabase!AE7,IF($D$9=AverageTemperatureDatabase!$S$9,AverageTemperatureDatabase!AE9,IF($D$9=AverageTemperatureDatabase!$S$10,AverageTemperatureDatabase!AE10,IF($D$9=AverageTemperatureDatabase!$S$11,AverageTemperatureDatabase!AE11,IF($D$9=AverageTemperatureDatabase!$S$12,AverageTemperatureDatabase!AE12,IF($D$9=AverageTemperatureDatabase!$S$13,AverageTemperatureDatabase!AE13,AB106)))))) -> 6.5375 | AC105: =IF($D$9=AverageTemperatureDatabase!$S$7,AverageTemperatureDatabase!AF7,IF($D$9=AverageTemperatureDatabase!$S$9,AverageTemperatureDatabase!AF9,IF($D$9=AverageTemperatureDatabase!$S$10,AverageTemperatureDatabase!AF10,IF($D$9=AverageTemperatureDatabase!$S$11,AverageTemperatureDatabase!AF11,IF($D$9=AverageTemperatureDatabase!$S$12,AverageTemperatureDatabase!AF12,IF($D$9=AverageTemperatureDatabase!$S$13,AverageTemperatureDatabase!AF13,AC106)))))) -> 4.2625
B106: 3 | D106: =R239 -> 12.91666667 | E106: =R240 -> 27.58333333 | F106: =R241 -> 58.45833333 | G106: =R242 -> 87.25 | H106: =R243 -> 111.7916667 | I106: =R244 -> 114.125 | J106: =R245 -> 110.4166667 | K106: =R246 -> 96.29166667 | L106: =R247 -> 73.70833333 | M106: =R248 -> 38.54166667 | N106: =R249 -> 19.45833333 | O106: =R250 -> 7.791666667 | Q106: =IF($D$9=AverageTemperatureDatabase!S$14,AverageTemperatureDatabase!U14,IF($D$9=AverageTemperatureDatabase!$S$15,AverageTemperatureDatabase!U15,IF($D$9=AverageTemperatureDatabase!$S$16,AverageTemperatureDatabase!U16,IF($D$9=AverageTemperatureDatabase!$S$17,AverageTemperatureDatabase!U17,IF($D$9=AverageTemperatureDatabase!$S$18,AverageTemperatureDatabase!U18,IF($D$9=AverageTemperatureDatabase!$S$19,AverageTemperatureDatabase!U19,AverageTemperatureDatabase!U20)))))) ->  | R106: =IF($D$9=AverageTemperatureDatabase!T$14,AverageTemperatureDatabase!V14,IF($D$9=AverageTemperatureDatabase!$S$15,AverageTemperatureDatabase!V15,IF($D$9=AverageTemperatureDatabase!$S$16,AverageTemperatureDatabase!V16,IF($D$9=AverageTemperatureDatabase!$S$17,AverageTemperatureDatabase!V17,IF($D$9=AverageTemperatureDatabase!$S$18,AverageTemperatureDatabase!V18,IF($D$9=AverageTemperatureDatabase!$S$19,AverageTemperatureDatabase!V19,AverageTemperatureDatabase!V20)))))) ->  | S106: =IF($D$9=AverageTemperatureDatabase!U$14,AverageTemperatureDatabase!W14,IF($D$9=AverageTemperatureDatabase!$S$15,AverageTemperatureDatabase!W15,IF($D$9=AverageTemperatureDatabase!$S$16,AverageTemperatureDatabase!W16,IF($D$9=AverageTemperatureDatabase!$S$17,AverageTemperatureDatabase!W17,IF($D$9=AverageTemperatureDatabase!$S$18,AverageTemperatureDatabase!W18,IF($D$9=AverageTemperatureDatabase!$S$19,AverageTemperatureDatabase!W19,AverageTemperatureDatabase!W20)))))) ->  | T106: =IF($D$9=AverageTemperatureDatabase!V$14,AverageTemperatureDatabase!X14,IF($D$9=AverageTemperatureDatabase!$S$15,AverageTemperatureDatabase!X15,IF($D$9=AverageTemperatureDatabase!$S$16,AverageTemperatureDatabase!X16,IF($D$9=AverageTemperatureDatabase!$S$17,AverageTemperatureDatabase!X17,IF($D$9=AverageTemperatureDatabase!$S$18,AverageTemperatureDatabase!X18,IF($D$9=AverageTemperatureDatabase!$S$19,AverageTemperatureDatabase!X19,AverageTemperatureDatabase!X20)))))) ->  | V106: =IF($D$9=AverageTemperatureDatabase!W$14,AverageTemperatureDatabase!Y14,IF($D$9=AverageTemperatureDatabase!$S$15,AverageTemperatureDatabase!Y15,IF($D$9=AverageTemperatureDatabase!$S$16,AverageTemperatureDatabase!Y16,IF($D$9=AverageTemperatureDatabase!$S$17,AverageTemperatureDatabase!Y17,IF($D$9=AverageTemperatureDatabase!$S$18,AverageTemperatureDatabase!Y18,IF($D$9=AverageTemperatureDatabase!$S$19,AverageTemperatureDatabase!Y19,AverageTemperatureDatabase!Y20)))))) ->  | W106: =IF($D$9=AverageTemperatureDatabase!X$14,AverageTemperatureDatabase!Z14,IF($D$9=AverageTemperatureDatabase!$S$15,AverageTemperatureDatabase!Z15,IF($D$9=AverageTemperatureDatabase!$S$16,AverageTemperatureDatabase!Z16,IF($D$9=AverageTemperatureDatabase!$S$17,AverageTemperatureDatabase!Z17,IF($D$9=AverageTemperatureDatabase!$S$18,AverageTemperatureDatabase!Z18,IF($D$9=AverageTemperatureDatabase!$S$19,AverageTemperatureDatabase!Z19,AverageTemperatureDatabase!Z20)))))) ->  | X106: =IF($D$9=AverageTemperatureDatabase!Y$14,AverageTemperatureDatabase!AA14,IF($D$9=AverageTemperatureDatabase!$S$15,AverageTemperatureDatabase!AA15,IF($D$9=AverageTemperatureDatabase!$S$16,AverageTemperatureDatabase!AA16,IF($D$9=AverageTemperatureDatabase!$S$17,AverageTemperatureDatabase!AA17,IF($D$9=AverageTemperatureDatabase!$S$18,AverageTemperatureDatabase!AA18,IF($D$9=AverageTemperatureDatabase!$S$19,AverageTemperatureDatabase!AA19,AverageTemperatureDatabase!AA20)))))) ->  | Y106: =IF($D$9=AverageTemperatureDatabase!Z$14,AverageTemperatureDatabase!AB14,IF($D$9=AverageTemperatureDatabase!$S$15,AverageTemperatureDatabase!AB15,IF($D$9=AverageTemperatureDatabase!$S$16,AverageTemperatureDatabase!AB16,IF($D$9=AverageTemperatureDatabase!$S$17,AverageTemperatureDatabase!AB17,IF($D$9=AverageTemperatureDatabase!$S$18,AverageTemperatureDatabase!AB18,IF($D$9=AverageTemperatureDatabase!$S$19,AverageTemperatureDatabase!AB19,AverageTemperatureDatabase!AB20)))))) ->  | Z106: =IF($D$9=AverageTemperatureDatabase!AA$14,AverageTemperatureDatabase!AC14,IF($D$9=AverageTemperatureDatabase!$S$15,AverageTemperatureDatabase!AC15,IF($D$9=AverageTemperatureDatabase!$S$16,AverageTemperatureDatabase!AC16,IF($D$9=AverageTemperatureDatabase!$S$17,AverageTemperatureDatabase!AC17,IF($D$9=AverageTemperatureDatabase!$S$18,AverageTemperatureDatabase!AC18,IF($D$9=AverageTemperatureDatabase!$S$19,AverageTemperatureDatabase!AC19,AverageTemperatureDatabase!AC20)))))) ->  | AA106: =IF($D$9=AverageTemperatureDatabase!AB$14,AverageTemperatureDatabase!AD14,IF($D$9=AverageTemperatureDatabase!$S$15,AverageTemperatureDatabase!AD15,IF($D$9=AverageTemperatureDatabase!$S$16,AverageTemperatureDatabase!AD16,IF($D$9=AverageTemperatureDatabase!$S$17,AverageTemperatureDatabase!AD17,IF($D$9=AverageTemperatureDatabase!$S$18,AverageTemperatureDatabase!AD18,IF($D$9=AverageTemperatureDatabase!$S$19,AverageTemperatureDatabase!AD19,AverageTemperatureDatabase!AD20)))))) ->  | AB106: =IF($D$9=AverageTemperatureDatabase!AC$14,AverageTemperatureDatabase!AE14,IF($D$9=AverageTemperatureDatabase!$S$15,AverageTemperatureDatabase!AE15,IF($D$9=AverageTemperatureDatabase!$S$16,AverageTemperatureDatabase!AE16,IF($D$9=AverageTemperatureDatabase!$S$17,AverageTemperatureDatabase!AE17,IF($D$9=AverageTemperatureDatabase!$S$18,AverageTemperatureDatabase!AE18,IF($D$9=AverageTemperatureDatabase!$S$19,AverageTemperatureDatabase!AE19,AverageTemperatureDatabase!AE20)))))) ->  | AC106: =IF($D$9=AverageTemperatureDatabase!AD$14,AverageTemperatureDatabase!AF14,IF($D$9=AverageTemperatureDatabase!$S$15,AverageTemperatureDatabase!AF15,IF($D$9=AverageTemperatureDatabase!$S$16,AverageTemperatureDatabase!AF16,IF($D$9=AverageTemperatureDatabase!$S$17,AverageTemperatureDatabase!AF17,IF($D$9=AverageTemperatureDatabase!$S$18,AverageTemperatureDatabase!AF18,IF($D$9=AverageTemperatureDatabase!$S$19,AverageTemperatureDatabase!AF19,AverageTemperatureDatabase!AF20)))))) -> 
B107: 4 | D107: =Z239 -> 6.428571429 | E107: =Z240 -> 13.92857143 | F107: =Z241 -> 25.81349206 | G107: =Z242 -> 38.80952381 | H107: =Z243 -> 51.62698413 | I107: =Z244 -> 56.26984127 | J107: =Z245 -> 53.65079365 | K107: =Z246 -> 43.76984127 | L107: =Z247 -> 28.37301587 | M107: =Z248 -> 15.31746032 | N107: =Z249 -> 7.857142857 | O107: =Z250 -> 5.615079365 | Q107: Comments: Take the temperature data from the sheet of "AverageTemperatureDatabase", based on the location specified.
B108: 5 | D108: =AG239 -> 12.91666667 | E108: =AG240 -> 27.58333333 | F108: =AG241 -> 58.45833333 | G108: =AG242 -> 87.25 | H108: =AG243 -> 111.7916667 | I108: =AG244 -> 114.125 | J108: =AG245 -> 110.4166667 | K108: =AG246 -> 96.29166667 | L108: =AG247 -> 73.70833333 | M108: =AG248 -> 38.54166667 | N108: =AG249 -> 19.45833333 | O108: =AG250 -> 7.791666667
B109: 6 | D109: =AN239 -> 32.41666667 | E109: =AN240 -> 55.45833333 | F109: =AN241 -> 80.54166667 | G109: =AN242 -> 102.4166667 | H109: =AN243 -> 122.7083333 | I109: =AN244 -> 123.5833333 | J109: =AN245 -> 192.8333333 | K109: =AN246 -> 107.8333333 | L109: =AN247 -> 83.41666667 | M109: =AN248 -> 55.70833333 | N109: =AN249 -> 38.83333333 | O109: =AN250 -> 19.41666667
B110: 7 | D110: =AU239 -> 41.79166667 | E110: =AU240 -> 69.25 | F110: =AU241 -> 98.33333333 | G110: =AU242 -> 113 | H110: =AU243 -> 123.0416667 | I110: =AU244 -> 116.4583333 | J110: =AU245 -> 117.5 | K110: =AU246 -> 112.9166667 | L110: =AU247 -> 103.875 | M110: =AU248 -> 73.91666667 | N110: =AU249 -> 53.33333333 | O110: =AU250 -> 25.125
B111: 8 | D111: =BB239 -> 31.70833333 | E111: =BB240 -> 53.125 | F111: =BB241 -> 86 | G111: =BB242 -> 107.75 | H111: =BB243 -> 125 | I111: =BB244 -> 120.3333333 | J111: =BB245 -> 119.5416667 | K111: =BB246 -> 111.9166667 | L111: =BB247 -> 99.125 | M111: =BB248 -> 63.83333333 | N111: =BB249 -> 42.95833333 | O111: =BB250 -> 19.70833333
B112: 9 | D112: =BI239 -> 12.91666667 | E112: =BI240 -> 27.58333333 | F112: =BI241 -> 58.45833333 | G112: =BI242 -> 87.25 | H112: =BI243 -> 111.7916667 | I112: =BI244 -> 114.125 | J112: =BI245 -> 110.4166667 | K112: =BI246 -> 96.29166667 | L112: =BI247 -> 73.70833333 | M112: =BI248 -> 38.54166667 | N112: =BI249 -> 19.45833333 | O112: =BI250 -> 7.791666667 | P112: Comments: solar heat gains for each month, the equation used specified in the software manual
B113: 10 | D113: =BP239 -> 6.428571429 | E113: =BP240 -> 13.92857143 | F113: =BP241 -> 25.81349206 | G113: =BP242 -> 38.80952381 | H113: =BP243 -> 51.62698413 | I113: =BP244 -> 56.26984127 | J113: =BP245 -> 53.65079365 | K113: =BP246 -> 43.76984127 | L113: =BP247 -> 28.37301587 | M113: =BP248 -> 15.31746032 | N113: =BP249 -> 7.857142857 | O113: =BP250 -> 5.615079365 | Q113: Solar Heat Gains per month
Q114: Jan | R114: Feb | S114: March | T114: April | V114: May | W114: June | X114: JulY | Y114: August | Z114: Sept. | AA114: Oct | AB114: Nov | AC114: Dec
Q115: =$P16*$Q16*D104*$W16*0.9*$Y16 -> 0 | R115: =$P16*$Q16*E104*$W16*0.9*$Y16 -> 0 | S115: =$P16*$Q16*F104*$W16*0.9*$Y16 -> 0 | T115: =$P16*$Q16*G104*$W16*0.9*$Y16 -> 0 | V115: =$P16*$Q16*H104*$W16*0.9*$Y16 -> 0 | W115: =$P16*$Q16*I104*$W16*0.9*$Y16 -> 0 | X115: =$P16*$Q16*J104*$W16*0.9*$Y16 -> 0 | Y115: =$P16*$Q16*K104*$W16*0.9*$Y16 -> 0 | Z115: =$P16*$Q16*L104*$W16*0.9*$Y16 -> 0 | AA115: =$P16*$Q16*M104*$W16*0.9*$Y16 -> 0 | AB115: =$P16*$Q16*N104*$W16*0.9*$Y16 -> 0 | AC115: =$P16*$Q16*O104*$W16*0.9*$Y16 -> 0
B116: Comments: the data is used in calculating the solar gain, the relevant equation is specified in the software manual | Q116: =$P17*$Q17*D105*$W17*0.9*$Y17 -> 0 | R116: 0 | S116: 0 | T116: 0 | V116: 0 | W116: 0 | X116: 0 | Y116: 0 | Z116: 0 | AA116: 0 | AB116: 0 | AC116: 0
Q117: 0 | R117: 0 | S117: 0 | T117: 0 | V117: 0 | W117: 0 | X117: 0 | Y117: 0 | Z117: 0 | AA117: 0 | AB117: 0 | AC117: 0
Q118: 0 | R118: 0 | S118: 0 | T118: 0 | V118: 0 | W118: 0 | X118: 0 | Y118: 0 | Z118: 0 | AA118: 0 | AB118: 0 | AC118: 0
Q119: 0 | R119: 0 | S119: 0 | T119: 0 | V119: 0 | W119: 0 | X119: 0 | Y119: 0 | Z119: 0 | AA119: 0 | AB119: 0 | AC119: 0
Q120: 0 | R120: 0 | S120: 0 | T120: 0 | V120: 0 | W120: 0 | X120: 0 | Y120: 0 | Z120: 0 | AA120: 0 | AB120: 0 | AC120: 0
Q121: 0 | R121: 0 | S121: 0 | T121: 0 | V121: 0 | W121: 0 | X121: 0 | Y121: 0 | Z121: 0 | AA121: 0 | AB121: 0 | AC121: 0
Q122: 0 | R122: 0 | S122: 0 | T122: 0 | V122: 0 | W122: 0 | X122: 0 | Y122: 0 | Z122: 0 | AA122: 0 | AB122: 0 | AC122: 0
Q123: 0 | R123: 0 | S123: 0 | T123: 0 | V123: 0 | W123: 0 | X123: 0 | Y123: 0 | Z123: 0 | AA123: 0 | AB123: 0 | AC123: 0
Q124: 0 | R124: 0 | S124: 0 | T124: 0 | V124: 0 | W124: 0 | X124: 0 | Y124: 0 | Z124: 0 | AA124: 0 | AB124: 0 | AC124: 0
P128: Total | Q128: =SUM(Q115:Q126) -> 0 | R128: 0 | S128: 0 | T128: 0 | V128: 0 | W128: 0 | X128: 0 | Y128: 0 | Z128: 0 | AA128: 0 | AB128: 0 | AC128: 0
B129: Type of glazing | G129: Frame factors (1-Ff) | P129: after utilisation factor | Q129: =Q128*O280 ->  | S129: =S128*Q280 ->  | V129: =V128*S280 -> 
G130: Frame type | P130: Comments: the data used in the tool is based on the outside temperature sepecified in the tool, for the case T less than 2, use the January data; for the case T less than 8, use march data, for the case T greater than 8, use May data.
B131: Single glazed | D131: 0.85 | G131: Wood | J131: 0.7
B132: Double glazed (air or argon filled) | D132: 0.76 | G132: Metal | J132: 0.8
B133: Double glazed (Low-E, hard-coat) | D133: 0.72 | G133: Metal.thermal break | J133: 0.8
B134: Double glazed (Low-E, soft coat) | D134: 0.63 | G134: PVC-U | J134: 0.7
B135: Window with secondare glazing | D135: 0.76 | G135: Comments: Frame factor used in calculation for various frame type
B136: Triple glazed (air or argon filled) | D136: 0.68
B137: Triple glazed (Low-E, hard coat) | D137: 0.64
B138: Triple glazed (High-E, soft coat) | D138: 0.57
B140: Comments: factor used in calcuation for differenty types of glazing
B143: Solar and light access factors
C145: Overshading | D145: % of sky blocked by obstacles | F145: Winter solar access factor
C146: Heavy | D146: >80% | F146: 0.3
C147: More than average | D147: 80% - 60% | F147: 0.54
C148: Average or unknown | D148: 60% - 20% | F148: 0.77
C149: Very little | D149: <20% | F149: 1
B150: Comments: percentage of façade permanently shaded by obstacles from CEN 13790
C153: UK locations auxiliary table | E153: Annual demand (kWh)
C154: Belfast | D154: Belfast | E154: =AnnualResult!BI48 -> 323000
C155: Birmingham | D155: Birmingham | E155: =AnnualResult!BI98 -> 323000
C156: Cardiff | D156: Cardiff | E156: =AnnualResult!BI146 -> 254384.6
C157: Edinburgh | D157: Edinburgh | E157: =AnnualResult!BI196 -> 323000
C158: Glasgow | D158: Glasgow | E158: =AnnualResult!BI246 -> 0
C159: London | D159: London | E159: =AnnualResult!BI296 -> 323000
C160: Manchester | D160: Manchester | E160: =AnnualResult!BI345 -> 323000
C161: Plymouth | D161: Plymouth | E161: =AnnualResult!BI391 -> 500000
C162: User data | D162: Glasgow | E162: =AnnualResult!BI246 -> 0
B163: Comments: the annual demand calculated in another sheet of "AnnualResult" for each specified locations.
F165: ventilation rate | H165: RH
C166: Type of pool | D166: Pool water temp (°C) | E166: ach | F166: l/s/m2 | G166: ach | H166: %
C167: Hotel/school | D167: 28 | E167: 5 | F167: 10 | G167: 4-6 | H167: 0.6
C168: Private leisure | D168: 29 | E168: 5.5 | F168: 10 | G168: 5-6 | H168: 0.6
C169: Public pool (no water features) | D169: 29 | E169: 5 | F169: 10 | G169: 4-6 | H169: 0.6
C170: Leisure pool (few water features) | D170: 29 | E170: 7 | F170: 14 | G170: 6-8 | H170: 0.6 | I170: 5% more
C171: Leisure pool (many water features) | D171: 29 | E171: 9 | F171: 18 | G171: 8-10 | H171: 0.6 | I171: 10% more
C172: Olympic pool | D172: 27 | E172: 3.5 | F172: 8 | G172: 3-4 | H172: 0.6
C173: Hydrotherapy pool | D173: 36 | E173: 3.5 | F173: 8 | G173: 3-4 | H173: 0.6
C174: Drop down list
C175: Yes | D175: Short | E175: Ventilation off | G175: DHW(kWh/bather/hr) | I175: Outside air temperature (oC)
C176: No | D176: Long | E176: 0.5 | G176: 2.3 | I176: -3
E177: 1 | I177: -2
C178: Type of heat recovery system | D178: efficiency | I178: -1
C179: No heat recovery | D179: 0 | G179: Pool water heat loss to the ground | I179: 0
C180: Run-around coil | D180: =60%*D181 -> 0.37272 | H180: Q=c.rho.V.dT | I180: 1
C181: Air-to-air heat exchanger | D181: =-0.0002*POWER(H16,2)-0.004*H16+0.611 -> 0.6212 | I181: 2
C182: Heat pump dehumidifier | D182: 0.8 | I182: 3
I183: 4
I184: 5 | J184: m = evaporation rate kg/m2h
C185: RH | D185: =VLOOKUP(D12,C167:H173,6,FALSE) -> 0.6 | I185: 6 | J185: Vpw = saturated vapour pressure at pool water temperature N/m2
C186: Vpw | D186: =610.78*EXP(H14*17.2694/(H14+238.3)) -> 3977.203786 | E186: Pa | F186: =610.78*EXP((H14+1)*17.2694/((H14+1)+238.3)) -> 4212.101938 | G186: Pa | I186: 7 | J186: Vpa = vapour pressure at pool hall air temperature N/m2
C187: Vpa | D187: =F186*D185 -> 2527.261163 | E187: Pa | I187: 8 | J187: n = average number of bathers in pool for one hour.
D188: Pool water Evaporation Rate (kg/m2/hr) | E188: Heat required to replace heat by evaporation (kW/m2) | F188: Ventilation rate (kW) | I188: 9 | J188: Ap = pool area m2
B189: 1 | C189: For unoccupied pool, without pool cover | D189: =(7.88*0.00001*(D186-D187)-0.059) -> 0.05525547865 | E189: =D189*2432/3600 -> 0.03732814558 | F189: =IF(SwimmingPool!D58="Ventilation off",C197*(H14+1-H16),IF(SwimmingPool!D58=50%,VLOOKUP(D12,C167:F173,3,FALSE)*(1-VLOOKUP(D60,C179:D182,2,FALSE))*D216*1200*1.005*(H14+1-H16)*0.5/(1000*3600),VLOOKUP(D12,C167:F173,3,FALSE)*(1-VLOOKUP(D60,C179:D182,2,FALSE))*D216*1200*1.005*(H14+1-H16)*0.5/(1000*3600))) -> 0 | I189: 10 | J189: For unoccupied pool, m = (7.88 x 10^(-5) x (Vpw-Vpa) – 0.059
B190: 2 | C190: For occupied pool, without pool cover | D190: =(IF(D12=C170, (0.118+(1.5*0.0001*(D186-D187)*D56/D215))*(1+5%), IF(D12=C171, (0.118+(1.5*0.0001*(D186-D187)*D56/D215))*(1+10%), 0.118+(1.5*0.0001*(D186-D187)*D56/D215))))*(1+E197) ->  | E190: =D190*2432/3600 ->  | F190: =VLOOKUP(D12,C167:F173,3,FALSE)*(1-VLOOKUP(D60,C179:D182,2,FALSE))*D216*1200*1.005*(H14+1-H16)/(1000*3600) -> 0 | I190: 11 | J190: For occupied pool, m = 0.118 + (1.5 x 0^(-4) x (Vpw-Vpa) x n/Ap)
B191: 3 | C191: For unoccupied pool, with pool cover | D191: 0 | E191: 0 | F191: =IF(SwimmingPool!D58="Ventilation off",C197*(H14+1-H16),IF(SwimmingPool!D58=50%,VLOOKUP(D12,C167:F173,3,FALSE)*(1-VLOOKUP(D60,C179:D182,2,FALSE))*D216*1200*1.005*(H14+1-H16)*0.5/(1000*3600),VLOOKUP(D12,C167:F173,3,FALSE)*(1-VLOOKUP(D60,C179:D182,2,FALSE))*D216*1200*1.005*(H14+1-H16)*0.5/(1000*3600))) -> 0 | I191: 12 | J191: With pool cover, m=0.
I192: 13 | J192: ps = 610.78 *exp( t / ( t + 238.3 ) *17.2694 ) where t is the temperature in Celsius
I193: 14
C194: Volume of pool hall (m3) | E194: density of bather | I194: 15 | J194: pa= ps * RH% / 100 where pa is the actual water vapour pressure in Pa
C195: =5*D215 -> 0 | D195: m3 | E195: =D56/D215 ->  | F195: person/m2
C196: =C195*0.5/3600 -> 0 | D196: m3/s/person | E196: Additional evaporation rate
B197: ventilation rate | C197: =C196*1200*1.005/1000 -> 0 | D197: kW/K | E197: =IF(5*E195>0.5, 0.5, 5*E195) -> 
I198: Ventilation rate (kW) | J198: 1 | K198: 2 | L198: 3 | M198: Data Used | O198: Total demand
J199: For unoccupied pool, without pool cover | K199: For occupied pool, without pool cover | L199: For unoccupied pool, with pool cover
D200: Ambient air temperature | E200: Ground temperature based on the outside air temperature | F200: R2 | I200: 00:00:00 | J200: =IF(SwimmingPool!D58="Ventilation off",C197*(H14+1-VLOOKUP(SwimmingPool!H16,OAT_Profile!$B$10:$AC$28,5,FALSE)),IF(SwimmingPool!D58=50%,VLOOKUP(D12,C167:F173,4,FALSE)*(1-VLOOKUP(D60,C179:D182,2,FALSE))*1.2*1.005*(H14+1-VLOOKUP(SwimmingPool!H16,OAT_Profile!$B$10:$AC$28,5,FALSE))*0.5*D215/1000,VLOOKUP(D12,C167:F173,4,FALSE)*(1-VLOOKUP(D60,C179:D182,2,FALSE))*1.2*1.005*(H14+1-VLOOKUP(SwimmingPool!H16,OAT_Profile!$B$10:$AC$28,5,FALSE))*D215/1000)) -> 0 | K200: =VLOOKUP(D12,C167:F173,4,FALSE)*(1-VLOOKUP(D60,C179:D182,2,FALSE))*1.2*1.005*(H14+1-VLOOKUP(SwimmingPool!H16,OAT_Profile!$B$10:$AC$28,5,FALSE))*D215/1000 -> 0 | L200: =IF(SwimmingPool!D58="Ventilation off",C197*(H14+1-VLOOKUP(SwimmingPool!H16,OAT_Profile!$B$10:$AC$28,5,FALSE)),IF(SwimmingPool!D58=50%,VLOOKUP(D12,C167:F173,4,FALSE)*(1-VLOOKUP(D60,C179:D182,2,FALSE))*1.2*1.005*(H14+1-VLOOKUP(SwimmingPool!H16,OAT_Profile!$B$10:$AC$28,5,FALSE))*0.5*D215/1000,VLOOKUP(D12,C167:F173,4,FALSE)*(1-VLOOKUP(D60,C179:D182,2,FALSE))*1.2*1.005*(H14+1-VLOOKUP(SwimmingPool!H16,OAT_Profile!$B$10:$AC$28,5,FALSE))*D215/1000)) -> 0 | M200: =IF(U38=0,IF($D$14="Yes",L200, J200),K200) -> 0 | O200: =IF($H$16>14, 0, W38) -> 
C201: Belfast | D201: =H16 -> -3 | E201: =0.0472*POWER(D201,2)+0.8185*D201+1.4227 -> -0.608 | F201: 0.9838 | I201: 01:00:00 | J201: =IF(SwimmingPool!D58="Ventilation off",C197*(H14+1-VLOOKUP(SwimmingPool!H16,OAT_Profile!$B$10:$AC$28,6,FALSE)),IF(SwimmingPool!D58=50%,VLOOKUP(D12,C167:F173,4,FALSE)*(1-VLOOKUP(D60,C179:D182,2,FALSE))*1.2*1.005*(H14+1-VLOOKUP(SwimmingPool!H16,OAT_Profile!$B$10:$AC$28,6,FALSE))*0.5*D215/1000,VLOOKUP(D12,C167:F173,4,FALSE)*(1-VLOOKUP(D60,C179:D182,2,FALSE))*1.2*1.005*(H14+1-VLOOKUP(SwimmingPool!H16,OAT_Profile!$B$10:$AC$28,6,FALSE))*D215/1000)) -> 0 | K201: =VLOOKUP(D12,C167:F173,4,FALSE)*(1-VLOOKUP(D60,C179:D182,2,FALSE))*1.2*1.005*(H14+1-VLOOKUP(SwimmingPool!H16,OAT_Profile!$B$10:$AC$28,6,FALSE))*D215/1000 -> 0 | L201: =IF(SwimmingPool!D58="Ventilation off",C197*(H14+1-VLOOKUP(SwimmingPool!H16,OAT_Profile!$B$10:$AC$28,6,FALSE)),IF(SwimmingPool!D58=50%,VLOOKUP(D12,C167:F173,4,FALSE)*(1-VLOOKUP(D60,C179:D182,2,FALSE))*1.2*1.005*(H14+1-VLOOKUP(SwimmingPool!H16,OAT_Profile!$B$10:$AC$28,6,FALSE))*0.5*D215/1000,VLOOKUP(D12,C167:F173,4,FALSE)*(1-VLOOKUP(D60,C179:D182,2,FALSE))*1.2*1.005*(H14+1-VLOOKUP(SwimmingPool!H16,OAT_Profile!$B$10:$AC$28,6,FALSE))*D215/1000)) -> 0 | M201: =IF(U39=0,IF($D$14="Yes",L201, J201),K201) -> 0 | O201: =IF($H$16>14, 0, W39) -> 
C202: Birmingham | D202: =H16 -> -3 | E202: =0.0542*POWER(D202,2)+1.0283*D202+0.5705 -> -2.0266 | F202: 0.9814 | I202: 02:00:00 | J202: =IF(SwimmingPool!D58="Ventilation off",C197*(H14+1-VLOOKUP(SwimmingPool!H16,OAT_Profile!$B$10:$AC$28,7,FALSE)),IF(SwimmingPool!D58=50%,VLOOKUP(D12,C167:F173,4,FALSE)*(1-VLOOKUP(D60,C179:D182,2,FALSE))*1.2*1.005*(H14+1-VLOOKUP(SwimmingPool!H16,OAT_Profile!$B$10:$AC$28,7,FALSE))*0.5*D215/1000,VLOOKUP(D12,C167:F173,4,FALSE)*(1-VLOOKUP(D60,C179:D182,2,FALSE))*1.2*1.005*(H14+1-VLOOKUP(SwimmingPool!H16,OAT_Profile!$B$10:$AC$28,7,FALSE))*D215/1000)) -> 0 | K202: =VLOOKUP(D12,C167:F173,4,FALSE)*(1-VLOOKUP(D60,C179:D182,2,FALSE))*1.2*1.005*(H14+1-VLOOKUP(SwimmingPool!H16,OAT_Profile!$B$10:$AC$28,7,FALSE))*D215/1000 -> 0 | L202: =IF(SwimmingPool!D58="Ventilation off",C197*(H14+1-VLOOKUP(SwimmingPool!H16,OAT_Profile!$B$10:$AC$28,7,FALSE)),IF(SwimmingPool!D58=50%,VLOOKUP(D12,C167:F173,4,FALSE)*(1-VLOOKUP(D60,C179:D182,2,FALSE))*1.2*1.005*(H14+1-VLOOKUP(SwimmingPool!H16,OAT_Profile!$B$10:$AC$28,7,FALSE))*0.5*D215/1000,VLOOKUP(D12,C167:F173,4,FALSE)*(1-VLOOKUP(D60,C179:D182,2,FALSE))*1.2*1.005*(H14+1-VLOOKUP(SwimmingPool!H16,OAT_Profile!$B$10:$AC$28,7,FALSE))*D215/1000)) -> 0 | M202: 0
C203: Cardiff | D203: =H16 -> -3 | E203: =0.0505*POWER(D203,2)+0.8743*D203+1.8886 -> -0.2798 | F203: 0.9843 | I203: 03:00:00 | J203: =IF(SwimmingPool!D58="Ventilation off",C197*(H14+1-VLOOKUP(SwimmingPool!H16,OAT_Profile!$B$10:$AC$28,8,FALSE)),IF(SwimmingPool!D58=50%,VLOOKUP(D12,C167:F173,4,FALSE)*(1-VLOOKUP(D60,C179:D182,2,FALSE))*1.2*1.005*(H14+1-VLOOKUP(SwimmingPool!H16,OAT_Profile!$B$10:$AC$28,8,FALSE))*0.5*D215/1000,VLOOKUP(D12,C167:F173,4,FALSE)*(1-VLOOKUP(D60,C179:D182,2,FALSE))*1.2*1.005*(H14+1-VLOOKUP(SwimmingPool!H16,OAT_Profile!$B$10:$AC$28,8,FALSE))*D215/1000)) -> 0 | K203: =VLOOKUP(D12,C167:F173,4,FALSE)*(1-VLOOKUP(D60,C179:D182,2,FALSE))*1.2*1.005*(H14+1-VLOOKUP(SwimmingPool!H16,OAT_Profile!$B$10:$AC$28,8,FALSE))*D215/1000 -> 0 | L203: =IF(SwimmingPool!D58="Ventilation off",C197*(H14+1-VLOOKUP(SwimmingPool!H16,OAT_Profile!$B$10:$AC$28,8,FALSE)),IF(SwimmingPool!D58=50%,VLOOKUP(D12,C167:F173,4,FALSE)*(1-VLOOKUP(D60,C179:D182,2,FALSE))*1.2*1.005*(H14+1-VLOOKUP(SwimmingPool!H16,OAT_Profile!$B$10:$AC$28,8,FALSE))*0.5*D215/1000,VLOOKUP(D12,C167:F173,4,FALSE)*(1-VLOOKUP(D60,C179:D182,2,FALSE))*1.2*1.005*(H14+1-VLOOKUP(SwimmingPool!H16,OAT_Profile!$B$10:$AC$28,8,FALSE))*D215/1000)) -> 0 | M203: 0
C204: Edinburgh | D204: =H16 -> -3 | E204: =0.0496*POWER(D204,2)+0.879*D204-0.05 -> -2.2406 | F204: 0.9842 | I204: 04:00:00 | J204: =IF(SwimmingPool!D58="Ventilation off",C197*(H14+1-VLOOKUP(SwimmingPool!H16,OAT_Profile!$B$10:$AC$28,9,FALSE)),IF(SwimmingPool!D58=50%,VLOOKUP(D12,C167:F173,4,FALSE)*(1-VLOOKUP(D60,C179:D182,2,FALSE))*1.2*1.005*(H14+1-VLOOKUP(SwimmingPool!H16,OAT_Profile!$B$10:$AC$28,9,FALSE))*0.5*D215/1000,VLOOKUP(D12,C167:F173,4,FALSE)*(1-VLOOKUP(D60,C179:D182,2,FALSE))*1.2*1.005*(H14+1-VLOOKUP(SwimmingPool!H16,OAT_Profile!$B$10:$AC$28,9,FALSE))*D215/1000)) -> 0 | K204: =VLOOKUP(D12,C167:F173,4,FALSE)*(1-VLOOKUP(D60,C179:D182,2,FALSE))*1.2*1.005*(H14+1-VLOOKUP(SwimmingPool!H16,OAT_Profile!$B$10:$AC$28,9,FALSE))*D215/1000 -> 0 | L204: =IF(SwimmingPool!D58="Ventilation off",C197*(H14+1-VLOOKUP(SwimmingPool!H16,OAT_Profile!$B$10:$AC$28,9,FALSE)),IF(SwimmingPool!D58=50%,VLOOKUP(D12,C167:F173,4,FALSE)*(1-VLOOKUP(D60,C179:D182,2,FALSE))*1.2*1.005*(H14+1-VLOOKUP(SwimmingPool!H16,OAT_Profile!$B$10:$AC$28,9,FALSE))*0.5*D215/1000,VLOOKUP(D12,C167:F173,4,FALSE)*(1-VLOOKUP(D60,C179:D182,2,FALSE))*1.2*1.005*(H14+1-VLOOKUP(SwimmingPool!H16,OAT_Profile!$B$10:$AC$28,9,FALSE))*D215/1000)) -> 0 | M204: 0
C205: Glasgow | D205: =H16 -> -3 | E205: =0.0484*POWER(D205,2)+0.8547*D205+0.2795 -> -1.849 | F205: 0.9842 | I205: 05:00:00 | J205: =IF(SwimmingPool!D58="Ventilation off",C197*(H14+1-VLOOKUP(SwimmingPool!H16,OAT_Profile!$B$10:$AC$28,10,FALSE)),IF(SwimmingPool!D58=50%,VLOOKUP(D12,C167:F173,4,FALSE)*(1-VLOOKUP(D60,C179:D182,2,FALSE))*1.2*1.005*(H14+1-VLOOKUP(SwimmingPool!H16,OAT_Profile!$B$10:$AC$28,10,FALSE))*0.5*D215/1000,VLOOKUP(D12,C167:F173,4,FALSE)*(1-VLOOKUP(D60,C179:D182,2,FALSE))*1.2*1.005*(H14+1-VLOOKUP(SwimmingPool!H16,OAT_Profile!$B$10:$AC$28,10,FALSE))*D215/1000)) -> 0 | K205: =VLOOKUP(D12,C167:F173,4,FALSE)*(1-VLOOKUP(D60,C179:D182,2,FALSE))*1.2*1.005*(H14+1-VLOOKUP(SwimmingPool!H16,OAT_Profile!$B$10:$AC$28,10,FALSE))*D215/1000 -> 0 | L205: =IF(SwimmingPool!D58="Ventilation off",C197*(H14+1-VLOOKUP(SwimmingPool!H16,OAT_Profile!$B$10:$AC$28,10,FALSE)),IF(SwimmingPool!D58=50%,VLOOKUP(D12,C167:F173,4,FALSE)*(1-VLOOKUP(D60,C179:D182,2,FALSE))*1.2*1.005*(H14+1-VLOOKUP(SwimmingPool!H16,OAT_Profile!$B$10:$AC$28,10,FALSE))*0.5*D215/1000,VLOOKUP(D12,C167:F173,4,FALSE)*(1-VLOOKUP(D60,C179:D182,2,FALSE))*1.2*1.005*(H14+1-VLOOKUP(SwimmingPool!H16,OAT_Profile!$B$10:$AC$28,10,FALSE))*D215/1000)) -> 0 | M205: 0
C206: London | D206: =H16 -> -3 | E206: =0.0546*POWER(D206,2)+1.0868*D206+1.0091 -> -1.7599 | F206: 0.981 | I206: 06:00:00 | J206: =IF(SwimmingPool!D58="Ventilation off",C197*(H14+1-VLOOKUP(SwimmingPool!H16,OAT_Profile!$B$10:$AC$28,11,FALSE)),IF(SwimmingPool!D58=50%,VLOOKUP(D12,C167:F173,4,FALSE)*(1-VLOOKUP(D60,C179:D182,2,FALSE))*1.2*1.005*(H14+1-VLOOKUP(SwimmingPool!H16,OAT_Profile!$B$10:$AC$28,11,FALSE))*0.5*D215/1000,VLOOKUP(D12,C167:F173,4,FALSE)*(1-VLOOKUP(D60,C179:D182,2,FALSE))*1.2*1.005*(H14+1-VLOOKUP(SwimmingPool!H16,OAT_Profile!$B$10:$AC$28,11,FALSE))*D215/1000)) -> 0 | K206: =VLOOKUP(D12,C167:F173,4,FALSE)*(1-VLOOKUP(D60,C179:D182,2,FALSE))*1.2*1.005*(H14+1-VLOOKUP(SwimmingPool!H16,OAT_Profile!$B$10:$AC$28,11,FALSE))*D215/1000 -> 0 | L206: =IF(SwimmingPool!D58="Ventilation off",C197*(H14+1-VLOOKUP(SwimmingPool!H16,OAT_Profile!$B$10:$AC$28,11,FALSE)),IF(SwimmingPool!D58=50%,VLOOKUP(D12,C167:F173,4,FALSE)*(1-VLOOKUP(D60,C179:D182,2,FALSE))*1.2*1.005*(H14+1-VLOOKUP(SwimmingPool!H16,OAT_Profile!$B$10:$AC$28,11,FALSE))*0.5*D215/1000,VLOOKUP(D12,C167:F173,4,FALSE)*(1-VLOOKUP(D60,C179:D182,2,FALSE))*1.2*1.005*(H14+1-VLOOKUP(SwimmingPool!H16,OAT_Profile!$B$10:$AC$28,11,FALSE))*D215/1000)) -> 0 | M206: 0
C207: Manchester | D207: =H16 -> -3 | E207: =0.0498*POWER(D207,2)+0.9491*D207+0.5432 -> -1.8559 | F207: 0.9841 | I207: 07:00:00 | J207: =IF(SwimmingPool!D58="Ventilation off",C197*(H14+1-VLOOKUP(SwimmingPool!H16,OAT_Profile!$B$10:$AC$28,12,FALSE)),IF(SwimmingPool!D58=50%,VLOOKUP(D12,C167:F173,4,FALSE)*(1-VLOOKUP(D60,C179:D182,2,FALSE))*1.2*1.005*(H14+1-VLOOKUP(SwimmingPool!H16,OAT_Profile!$B$10:$AC$28,12,FALSE))*0.5*D215/1000,VLOOKUP(D12,C167:F173,4,FALSE)*(1-VLOOKUP(D60,C179:D182,2,FALSE))*1.2*1.005*(H14+1-VLOOKUP(SwimmingPool!H16,OAT_Profile!$B$10:$AC$28,12,FALSE))*D215/1000)) -> 0 | K207: =VLOOKUP(D12,C167:F173,4,FALSE)*(1-VLOOKUP(D60,C179:D182,2,FALSE))*1.2*1.005*(H14+1-VLOOKUP(SwimmingPool!H16,OAT_Profile!$B$10:$AC$28,12,FALSE))*D215/1000 -> 0 | L207: =IF(SwimmingPool!D58="Ventilation off",C197*(H14+1-VLOOKUP(SwimmingPool!H16,OAT_Profile!$B$10:$AC$28,12,FALSE)),IF(SwimmingPool!D58=50%,VLOOKUP(D12,C167:F173,4,FALSE)*(1-VLOOKUP(D60,C179:D182,2,FALSE))*1.2*1.005*(H14+1-VLOOKUP(SwimmingPool!H16,OAT_Profile!$B$10:$AC$28,12,FALSE))*0.5*D215/1000,VLOOKUP(D12,C167:F173,4,FALSE)*(1-VLOOKUP(D60,C179:D182,2,FALSE))*1.2*1.005*(H14+1-VLOOKUP(SwimmingPool!H16,OAT_Profile!$B$10:$AC$28,12,FALSE))*D215/1000)) -> 0 | M207: 0
C208: Plymouth | D208: =H16 -> -3 | E208: =0.0271*POWER(D208,2)+0.497*D208+7.5864 -> 6.3393 | F208: 0.979 | I208: 08:00:00 | J208: =IF(SwimmingPool!D58="Ventilation off",C197*(H14+1-VLOOKUP(SwimmingPool!H16,OAT_Profile!$B$10:$AC$28,13,FALSE)),IF(SwimmingPool!D58=50%,VLOOKUP(D12,C167:F173,4,FALSE)*(1-VLOOKUP(D60,C179:D182,2,FALSE))*1.2*1.005*(H14+1-VLOOKUP(SwimmingPool!H16,OAT_Profile!$B$10:$AC$28,13,FALSE))*0.5*D215/1000,VLOOKUP(D12,C167:F173,4,FALSE)*(1-VLOOKUP(D60,C179:D182,2,FALSE))*1.2*1.005*(H14+1-VLOOKUP(SwimmingPool!H16,OAT_Profile!$B$10:$AC$28,13,FALSE))*D215/1000)) -> 0 | K208: =VLOOKUP(D12,C167:F173,4,FALSE)*(1-VLOOKUP(D60,C179:D182,2,FALSE))*1.2*1.005*(H14+1-VLOOKUP(SwimmingPool!H16,OAT_Profile!$B$10:$AC$28,13,FALSE))*D215/1000 -> 0 | L208: =IF(SwimmingPool!D58="Ventilation off",C197*(H14+1-VLOOKUP(SwimmingPool!H16,OAT_Profile!$B$10:$AC$28,13,FALSE)),IF(SwimmingPool!D58=50%,VLOOKUP(D12,C167:F173,4,FALSE)*(1-VLOOKUP(D60,C179:D182,2,FALSE))*1.2*1.005*(H14+1-VLOOKUP(SwimmingPool!H16,OAT_Profile!$B$10:$AC$28,13,FALSE))*0.5*D215/1000,VLOOKUP(D12,C167:F173,4,FALSE)*(1-VLOOKUP(D60,C179:D182,2,FALSE))*1.2*1.005*(H14+1-VLOOKUP(SwimmingPool!H16,OAT_Profile!$B$10:$AC$28,13,FALSE))*D215/1000)) -> 0 | M208: 0
I209: 09:00:00 | J209: =IF(SwimmingPool!D58="Ventilation off",C197*(H14+1-VLOOKUP(SwimmingPool!H16,OAT_Profile!$B$10:$AC$28,14,FALSE)),IF(SwimmingPool!D58=50%,VLOOKUP(D12,C167:F173,4,FALSE)*(1-VLOOKUP(D60,C179:D182,2,FALSE))*1.2*1.005*(H14+1-VLOOKUP(SwimmingPool!H16,OAT_Profile!$B$10:$AC$28,14,FALSE))*0.5*D215/1000,VLOOKUP(D12,C167:F173,4,FALSE)*(1-VLOOKUP(D60,C179:D182,2,FALSE))*1.2*1.005*(H14+1-VLOOKUP(SwimmingPool!H16,OAT_Profile!$B$10:$AC$28,14,FALSE))*D215/1000)) -> 0 | K209: =VLOOKUP(D12,C167:F173,4,FALSE)*(1-VLOOKUP(D60,C179:D182,2,FALSE))*1.2*1.005*(H14+1-VLOOKUP(SwimmingPool!H16,OAT_Profile!$B$10:$AC$28,14,FALSE))*D215/1000 -> 0 | L209: =IF(SwimmingPool!D58="Ventilation off",C197*(H14+1-VLOOKUP(SwimmingPool!H16,OAT_Profile!$B$10:$AC$28,14,FALSE)),IF(SwimmingPool!D58=50%,VLOOKUP(D12,C167:F173,4,FALSE)*(1-VLOOKUP(D60,C179:D182,2,FALSE))*1.2*1.005*(H14+1-VLOOKUP(SwimmingPool!H16,OAT_Profile!$B$10:$AC$28,14,FALSE))*0.5*D215/1000,VLOOKUP(D12,C167:F173,4,FALSE)*(1-VLOOKUP(D60,C179:D182,2,FALSE))*1.2*1.005*(H14+1-VLOOKUP(SwimmingPool!H16,OAT_Profile!$B$10:$AC$28,14,FALSE))*D215/1000)) -> 0 | M209: 0
I210: 10:00:00 | J210: =IF(SwimmingPool!D58="Ventilation off",C197*(H14+1-VLOOKUP(SwimmingPool!H16,OAT_Profile!$B$10:$AC$28,15,FALSE)),IF(SwimmingPool!D58=50%,VLOOKUP(D12,C167:F173,4,FALSE)*(1-VLOOKUP(D60,C179:D182,2,FALSE))*1.2*1.005*(H14+1-VLOOKUP(SwimmingPool!H16,OAT_Profile!$B$10:$AC$28,15,FALSE))*0.5*D215/1000,VLOOKUP(D12,C167:F173,4,FALSE)*(1-VLOOKUP(D60,C179:D182,2,FALSE))*1.2*1.005*(H14+1-VLOOKUP(SwimmingPool!H16,OAT_Profile!$B$10:$AC$28,15,FALSE))*D215/1000)) -> 0 | K210: =VLOOKUP(D12,C167:F173,4,FALSE)*(1-VLOOKUP(D60,C179:D182,2,FALSE))*1.2*1.005*(H14+1-VLOOKUP(SwimmingPool!H16,OAT_Profile!$B$10:$AC$28,15,FALSE))*D215/1000 -> 0 | L210: =IF(SwimmingPool!D58="Ventilation off",C197*(H14+1-VLOOKUP(SwimmingPool!H16,OAT_Profile!$B$10:$AC$28,15,FALSE)),IF(SwimmingPool!D58=50%,VLOOKUP(D12,C167:F173,4,FALSE)*(1-VLOOKUP(D60,C179:D182,2,FALSE))*1.2*1.005*(H14+1-VLOOKUP(SwimmingPool!H16,OAT_Profile!$B$10:$AC$28,15,FALSE))*0.5*D215/1000,VLOOKUP(D12,C167:F173,4,FALSE)*(1-VLOOKUP(D60,C179:D182,2,FALSE))*1.2*1.005*(H14+1-VLOOKUP(SwimmingPool!H16,OAT_Profile!$B$10:$AC$28,15,FALSE))*D215/1000)) -> 0 | M210: 0
I211: 11:00:00 | J211: =IF(SwimmingPool!D58="Ventilation off",C197*(H14+1-VLOOKUP(SwimmingPool!H16,OAT_Profile!$B$10:$AC$28,16,FALSE)),IF(SwimmingPool!D58=50%,VLOOKUP(D12,C167:F173,4,FALSE)*(1-VLOOKUP(D60,C179:D182,2,FALSE))*1.2*1.005*(H14+1-VLOOKUP(SwimmingPool!H16,OAT_Profile!$B$10:$AC$28,16,FALSE))*0.5*D215/1000,VLOOKUP(D12,C167:F173,4,FALSE)*(1-VLOOKUP(D60,C179:D182,2,FALSE))*1.2*1.005*(H14+1-VLOOKUP(SwimmingPool!H16,OAT_Profile!$B$10:$AC$28,16,FALSE))*D215/1000)) -> 0 | K211: =VLOOKUP(D12,C167:F173,4,FALSE)*(1-VLOOKUP(D60,C179:D182,2,FALSE))*1.2*1.005*(H14+1-VLOOKUP(SwimmingPool!H16,OAT_Profile!$B$10:$AC$28,16,FALSE))*D215/1000 -> 0 | L211: =IF(SwimmingPool!D58="Ventilation off",C197*(H14+1-VLOOKUP(SwimmingPool!H16,OAT_Profile!$B$10:$AC$28,16,FALSE)),IF(SwimmingPool!D58=50%,VLOOKUP(D12,C167:F173,4,FALSE)*(1-VLOOKUP(D60,C179:D182,2,FALSE))*1.2*1.005*(H14+1-VLOOKUP(SwimmingPool!H16,OAT_Profile!$B$10:$AC$28,16,FALSE))*0.5*D215/1000,VLOOKUP(D12,C167:F173,4,FALSE)*(1-VLOOKUP(D60,C179:D182,2,FALSE))*1.2*1.005*(H14+1-VLOOKUP(SwimmingPool!H16,OAT_Profile!$B$10:$AC$28,16,FALSE))*D215/1000)) -> 0 | M211: 0
I212: 12:00:00 | J212: =IF(SwimmingPool!D58="Ventilation off",C197*(H14+1-VLOOKUP(SwimmingPool!H16,OAT_Profile!$B$10:$AC$28,17,FALSE)),IF(SwimmingPool!D58=50%,VLOOKUP(D12,C167:F173,4,FALSE)*(1-VLOOKUP(D60,C179:D182,2,FALSE))*1.2*1.005*(H14+1-VLOOKUP(SwimmingPool!H16,OAT_Profile!$B$10:$AC$28,17,FALSE))*0.5*D215/1000,VLOOKUP(D12,C167:F173,4,FALSE)*(1-VLOOKUP(D60,C179:D182,2,FALSE))*1.2*1.005*(H14+1-VLOOKUP(SwimmingPool!H16,OAT_Profile!$B$10:$AC$28,17,FALSE))*D215/1000)) -> 0 | K212: =VLOOKUP(D12,C167:F173,4,FALSE)*(1-VLOOKUP(D60,C179:D182,2,FALSE))*1.2*1.005*(H14+1-VLOOKUP(SwimmingPool!H16,OAT_Profile!$B$10:$AC$28,17,FALSE))*D215/1000 -> 0 | L212: =IF(SwimmingPool!D58="Ventilation off",C197*(H14+1-VLOOKUP(SwimmingPool!H16,OAT_Profile!$B$10:$AC$28,17,FALSE)),IF(SwimmingPool!D58=50%,VLOOKUP(D12,C167:F173,4,FALSE)*(1-VLOOKUP(D60,C179:D182,2,FALSE))*1.2*1.005*(H14+1-VLOOKUP(SwimmingPool!H16,OAT_Profile!$B$10:$AC$28,17,FALSE))*0.5*D215/1000,VLOOKUP(D12,C167:F173,4,FALSE)*(1-VLOOKUP(D60,C179:D182,2,FALSE))*1.2*1.005*(H14+1-VLOOKUP(SwimmingPool!H16,OAT_Profile!$B$10:$AC$28,17,FALSE))*D215/1000)) -> 0 | M212: 0
I213: 13:00:00 | J213: =IF(SwimmingPool!D58="Ventilation off",C197*(H14+1-VLOOKUP(SwimmingPool!H16,OAT_Profile!$B$10:$AC$28,18,FALSE)),IF(SwimmingPool!D58=50%,VLOOKUP(D12,C167:F173,4,FALSE)*(1-VLOOKUP(D60,C179:D182,2,FALSE))*1.2*1.005*(H14+1-VLOOKUP(SwimmingPool!H16,OAT_Profile!$B$10:$AC$28,18,FALSE))*0.5*D215/1000,VLOOKUP(D12,C167:F173,4,FALSE)*(1-VLOOKUP(D60,C179:D182,2,FALSE))*1.2*1.005*(H14+1-VLOOKUP(SwimmingPool!H16,OAT_Profile!$B$10:$AC$28,18,FALSE))*D215/1000)) -> 0 | K213: =VLOOKUP(D12,C167:F173,4,FALSE)*(1-VLOOKUP(D60,C179:D182,2,FALSE))*1.2*1.005*(H14+1-VLOOKUP(SwimmingPool!H16,OAT_Profile!$B$10:$AC$28,18,FALSE))*D215/1000 -> 0 | L213: =IF(SwimmingPool!D58="Ventilation off",C197*(H14+1-VLOOKUP(SwimmingPool!H16,OAT_Profile!$B$10:$AC$28,18,FALSE)),IF(SwimmingPool!D58=50%,VLOOKUP(D12,C167:F173,4,FALSE)*(1-VLOOKUP(D60,C179:D182,2,FALSE))*1.2*1.005*(H14+1-VLOOKUP(SwimmingPool!H16,OAT_Profile!$B$10:$AC$28,18,FALSE))*0.5*D215/1000,VLOOKUP(D12,C167:F173,4,FALSE)*(1-VLOOKUP(D60,C179:D182,2,FALSE))*1.2*1.005*(H14+1-VLOOKUP(SwimmingPool!H16,OAT_Profile!$B$10:$AC$28,18,FALSE))*D215/1000)) -> 0 | M213: 0
I214: 14:00:00 | J214: =IF(SwimmingPool!D58="Ventilation off",C197*(H14+1-VLOOKUP(SwimmingPool!H16,OAT_Profile!$B$10:$AC$28,19,FALSE)),IF(SwimmingPool!D58=50%,VLOOKUP(D12,C167:F173,4,FALSE)*(1-VLOOKUP(D60,C179:D182,2,FALSE))*1.2*1.005*(H14+1-VLOOKUP(SwimmingPool!H16,OAT_Profile!$B$10:$AC$28,19,FALSE))*0.5*D215/1000,VLOOKUP(D12,C167:F173,4,FALSE)*(1-VLOOKUP(D60,C179:D182,2,FALSE))*1.2*1.005*(H14+1-VLOOKUP(SwimmingPool!H16,OAT_Profile!$B$10:$AC$28,19,FALSE))*D215/1000)) -> 0 | K214: =VLOOKUP(D12,C167:F173,4,FALSE)*(1-VLOOKUP(D60,C179:D182,2,FALSE))*1.2*1.005*(H14+1-VLOOKUP(SwimmingPool!H16,OAT_Profile!$B$10:$AC$28,19,FALSE))*D215/1000 -> 0 | L214: =IF(SwimmingPool!D58="Ventilation off",C197*(H14+1-VLOOKUP(SwimmingPool!H16,OAT_Profile!$B$10:$AC$28,19,FALSE)),IF(SwimmingPool!D58=50%,VLOOKUP(D12,C167:F173,4,FALSE)*(1-VLOOKUP(D60,C179:D182,2,FALSE))*1.2*1.005*(H14+1-VLOOKUP(SwimmingPool!H16,OAT_Profile!$B$10:$AC$28,19,FALSE))*0.5*D215/1000,VLOOKUP(D12,C167:F173,4,FALSE)*(1-VLOOKUP(D60,C179:D182,2,FALSE))*1.2*1.005*(H14+1-VLOOKUP(SwimmingPool!H16,OAT_Profile!$B$10:$AC$28,19,FALSE))*D215/1000)) -> 0 | M214: 0
C215: Pool area | D215: =D22*D24 -> 0 | E215: m2 | I215: 15:00:00 | J215: =IF(SwimmingPool!D58="Ventilation off",C197*(H14+1-VLOOKUP(SwimmingPool!H16,OAT_Profile!$B$10:$AC$28,20,FALSE)),IF(SwimmingPool!D58=50%,VLOOKUP(D12,C167:F173,4,FALSE)*(1-VLOOKUP(D60,C179:D182,2,FALSE))*1.2*1.005*(H14+1-VLOOKUP(SwimmingPool!H16,OAT_Profile!$B$10:$AC$28,20,FALSE))*0.5*D215/1000,VLOOKUP(D12,C167:F173,4,FALSE)*(1-VLOOKUP(D60,C179:D182,2,FALSE))*1.2*1.005*(H14+1-VLOOKUP(SwimmingPool!H16,OAT_Profile!$B$10:$AC$28,20,FALSE))*D215/1000)) -> 0 | K215: =VLOOKUP(D12,C167:F173,4,FALSE)*(1-VLOOKUP(D60,C179:D182,2,FALSE))*1.2*1.005*(H14+1-VLOOKUP(SwimmingPool!H16,OAT_Profile!$B$10:$AC$28,20,FALSE))*D215/1000 -> 0 | L215: =IF(SwimmingPool!D58="Ventilation off",C197*(H14+1-VLOOKUP(SwimmingPool!H16,OAT_Profile!$B$10:$AC$28,20,FALSE)),IF(SwimmingPool!D58=50%,VLOOKUP(D12,C167:F173,4,FALSE)*(1-VLOOKUP(D60,C179:D182,2,FALSE))*1.2*1.005*(H14+1-VLOOKUP(SwimmingPool!H16,OAT_Profile!$B$10:$AC$28,20,FALSE))*0.5*D215/1000,VLOOKUP(D12,C167:F173,4,FALSE)*(1-VLOOKUP(D60,C179:D182,2,FALSE))*1.2*1.005*(H14+1-VLOOKUP(SwimmingPool!H16,OAT_Profile!$B$10:$AC$28,20,FALSE))*D215/1000)) -> 0 | M215: 0
C216: Pool hall volume | D216: =G22*G24 -> 0 | E216: m3 | I216: 16:00:00 | J216: =IF(SwimmingPool!D58="Ventilation off",C197*(H14+1-VLOOKUP(SwimmingPool!H16,OAT_Profile!$B$10:$AC$28,21,FALSE)),IF(SwimmingPool!D58=50%,VLOOKUP(D12,C167:F173,4,FALSE)*(1-VLOOKUP(D60,C179:D182,2,FALSE))*1.2*1.005*(H14+1-VLOOKUP(SwimmingPool!H16,OAT_Profile!$B$10:$AC$28,21,FALSE))*0.5*D215/1000,VLOOKUP(D12,C167:F173,4,FALSE)*(1-VLOOKUP(D60,C179:D182,2,FALSE))*1.2*1.005*(H14+1-VLOOKUP(SwimmingPool!H16,OAT_Profile!$B$10:$AC$28,21,FALSE))*D215/1000)) -> 0 | K216: =VLOOKUP(D12,C167:F173,4,FALSE)*(1-VLOOKUP(D60,C179:D182,2,FALSE))*1.2*1.005*(H14+1-VLOOKUP(SwimmingPool!H16,OAT_Profile!$B$10:$AC$28,21,FALSE))*D215/1000 -> 0 | L216: =IF(SwimmingPool!D58="Ventilation off",C197*(H14+1-VLOOKUP(SwimmingPool!H16,OAT_Profile!$B$10:$AC$28,21,FALSE)),IF(SwimmingPool!D58=50%,VLOOKUP(D12,C167:F173,4,FALSE)*(1-VLOOKUP(D60,C179:D182,2,FALSE))*1.2*1.005*(H14+1-VLOOKUP(SwimmingPool!H16,OAT_Profile!$B$10:$AC$28,21,FALSE))*0.5*D215/1000,VLOOKUP(D12,C167:F173,4,FALSE)*(1-VLOOKUP(D60,C179:D182,2,FALSE))*1.2*1.005*(H14+1-VLOOKUP(SwimmingPool!H16,OAT_Profile!$B$10:$AC$28,21,FALSE))*D215/1000)) -> 0 | M216: 0
I217: 17:00:00 | J217: =IF(SwimmingPool!D58="Ventilation off",C197*(H14+1-VLOOKUP(SwimmingPool!H16,OAT_Profile!$B$10:$AC$28,22,FALSE)),IF(SwimmingPool!D58=50%,VLOOKUP(D12,C167:F173,4,FALSE)*(1-VLOOKUP(D60,C179:D182,2,FALSE))*1.2*1.005*(H14+1-VLOOKUP(SwimmingPool!H16,OAT_Profile!$B$10:$AC$28,22,FALSE))*0.5*D215/1000,VLOOKUP(D12,C167:F173,4,FALSE)*(1-VLOOKUP(D60,C179:D182,2,FALSE))*1.2*1.005*(H14+1-VLOOKUP(SwimmingPool!H16,OAT_Profile!$B$10:$AC$28,22,FALSE))*D215/1000)) -> 0 | K217: =VLOOKUP(D12,C167:F173,4,FALSE)*(1-VLOOKUP(D60,C179:D182,2,FALSE))*1.2*1.005*(H14+1-VLOOKUP(SwimmingPool!H16,OAT_Profile!$B$10:$AC$28,22,FALSE))*D215/1000 -> 0 | L217: =IF(SwimmingPool!D58="Ventilation off",C197*(H14+1-VLOOKUP(SwimmingPool!H16,OAT_Profile!$B$10:$AC$28,22,FALSE)),IF(SwimmingPool!D58=50%,VLOOKUP(D12,C167:F173,4,FALSE)*(1-VLOOKUP(D60,C179:D182,2,FALSE))*1.2*1.005*(H14+1-VLOOKUP(SwimmingPool!H16,OAT_Profile!$B$10:$AC$28,22,FALSE))*0.5*D215/1000,VLOOKUP(D12,C167:F173,4,FALSE)*(1-VLOOKUP(D60,C179:D182,2,FALSE))*1.2*1.005*(H14+1-VLOOKUP(SwimmingPool!H16,OAT_Profile!$B$10:$AC$28,22,FALSE))*D215/1000)) -> 0 | M217: 0
I218: 18:00:00 | J218: =IF(SwimmingPool!D58="Ventilation off",C197*(H14+1-VLOOKUP(SwimmingPool!H16,OAT_Profile!$B$10:$AC$28,23,FALSE)),IF(SwimmingPool!D58=50%,VLOOKUP(D12,C167:F173,4,FALSE)*(1-VLOOKUP(D60,C179:D182,2,FALSE))*1.2*1.005*(H14+1-VLOOKUP(SwimmingPool!H16,OAT_Profile!$B$10:$AC$28,23,FALSE))*0.5*D215/1000,VLOOKUP(D12,C167:F173,4,FALSE)*(1-VLOOKUP(D60,C179:D182,2,FALSE))*1.2*1.005*(H14+1-VLOOKUP(SwimmingPool!H16,OAT_Profile!$B$10:$AC$28,23,FALSE))*D215/1000)) -> 0 | K218: =VLOOKUP(D12,C167:F173,4,FALSE)*(1-VLOOKUP(D60,C179:D182,2,FALSE))*1.2*1.005*(H14+1-VLOOKUP(SwimmingPool!H16,OAT_Profile!$B$10:$AC$28,23,FALSE))*D215/1000 -> 0 | L218: =IF(SwimmingPool!D58="Ventilation off",C197*(H14+1-VLOOKUP(SwimmingPool!H16,OAT_Profile!$B$10:$AC$28,23,FALSE)),IF(SwimmingPool!D58=50%,VLOOKUP(D12,C167:F173,4,FALSE)*(1-VLOOKUP(D60,C179:D182,2,FALSE))*1.2*1.005*(H14+1-VLOOKUP(SwimmingPool!H16,OAT_Profile!$B$10:$AC$28,23,FALSE))*0.5*D215/1000,VLOOKUP(D12,C167:F173,4,FALSE)*(1-VLOOKUP(D60,C179:D182,2,FALSE))*1.2*1.005*(H14+1-VLOOKUP(SwimmingPool!H16,OAT_Profile!$B$10:$AC$28,23,FALSE))*D215/1000)) -> 0 | M218: 0
I219: 19:00:00 | J219: =IF(SwimmingPool!D58="Ventilation off",C197*(H14+1-VLOOKUP(SwimmingPool!H16,OAT_Profile!$B$10:$AC$28,24,FALSE)),IF(SwimmingPool!D58=50%,VLOOKUP(D12,C167:F173,4,FALSE)*(1-VLOOKUP(D60,C179:D182,2,FALSE))*1.2*1.005*(H14+1-VLOOKUP(SwimmingPool!H16,OAT_Profile!$B$10:$AC$28,24,FALSE))*0.5*D215/1000,VLOOKUP(D12,C167:F173,4,FALSE)*(1-VLOOKUP(D60,C179:D182,2,FALSE))*1.2*1.005*(H14+1-VLOOKUP(SwimmingPool!H16,OAT_Profile!$B$10:$AC$28,24,FALSE))*D215/1000)) -> 0 | K219: =VLOOKUP(D12,C167:F173,4,FALSE)*(1-VLOOKUP(D60,C179:D182,2,FALSE))*1.2*1.005*(H14+1-VLOOKUP(SwimmingPool!H16,OAT_Profile!$B$10:$AC$28,24,FALSE))*D215/1000 -> 0 | L219: =IF(SwimmingPool!D58="Ventilation off",C197*(H14+1-VLOOKUP(SwimmingPool!H16,OAT_Profile!$B$10:$AC$28,24,FALSE)),IF(SwimmingPool!D58=50%,VLOOKUP(D12,C167:F173,4,FALSE)*(1-VLOOKUP(D60,C179:D182,2,FALSE))*1.2*1.005*(H14+1-VLOOKUP(SwimmingPool!H16,OAT_Profile!$B$10:$AC$28,24,FALSE))*0.5*D215/1000,VLOOKUP(D12,C167:F173,4,FALSE)*(1-VLOOKUP(D60,C179:D182,2,FALSE))*1.2*1.005*(H14+1-VLOOKUP(SwimmingPool!H16,OAT_Profile!$B$10:$AC$28,24,FALSE))*D215/1000)) -> 0 | M219: 0
I220: 20:00:00 | J220: =IF(SwimmingPool!D58="Ventilation off",C197*(H14+1-VLOOKUP(SwimmingPool!H16,OAT_Profile!$B$10:$AC$28,25,FALSE)),IF(SwimmingPool!D58=50%,VLOOKUP(D12,C167:F173,4,FALSE)*(1-VLOOKUP(D60,C179:D182,2,FALSE))*1.2*1.005*(H14+1-VLOOKUP(SwimmingPool!H16,OAT_Profile!$B$10:$AC$28,25,FALSE))*0.5*D215/1000,VLOOKUP(D12,C167:F173,4,FALSE)*(1-VLOOKUP(D60,C179:D182,2,FALSE))*1.2*1.005*(H14+1-VLOOKUP(SwimmingPool!H16,OAT_Profile!$B$10:$AC$28,25,FALSE))*D215/1000)) -> 0 | K220: =VLOOKUP(D12,C167:F173,4,FALSE)*(1-VLOOKUP(D60,C179:D182,2,FALSE))*1.2*1.005*(H14+1-VLOOKUP(SwimmingPool!H16,OAT_Profile!$B$10:$AC$28,25,FALSE))*D215/1000 -> 0 | L220: =IF(SwimmingPool!D58="Ventilation off",C197*(H14+1-VLOOKUP(SwimmingPool!H16,OAT_Profile!$B$10:$AC$28,25,FALSE)),IF(SwimmingPool!D58=50%,VLOOKUP(D12,C167:F173,4,FALSE)*(1-VLOOKUP(D60,C179:D182,2,FALSE))*1.2*1.005*(H14+1-VLOOKUP(SwimmingPool!H16,OAT_Profile!$B$10:$AC$28,25,FALSE))*0.5*D215/1000,VLOOKUP(D12,C167:F173,4,FALSE)*(1-VLOOKUP(D60,C179:D182,2,FALSE))*1.2*1.005*(H14+1-VLOOKUP(SwimmingPool!H16,OAT_Profile!$B$10:$AC$28,25,FALSE))*D215/1000)) -> 0 | M220: 0
I221: 21:00:00 | J221: =IF(SwimmingPool!D58="Ventilation off",C197*(H14+1-VLOOKUP(SwimmingPool!H16,OAT_Profile!$B$10:$AC$28,26,FALSE)),IF(SwimmingPool!D58=50%,VLOOKUP(D12,C167:F173,4,FALSE)*(1-VLOOKUP(D60,C179:D182,2,FALSE))*1.2*1.005*(H14+1-VLOOKUP(SwimmingPool!H16,OAT_Profile!$B$10:$AC$28,26,FALSE))*0.5*D215/1000,VLOOKUP(D12,C167:F173,4,FALSE)*(1-VLOOKUP(D60,C179:D182,2,FALSE))*1.2*1.005*(H14+1-VLOOKUP(SwimmingPool!H16,OAT_Profile!$B$10:$AC$28,26,FALSE))*D215/1000)) -> 0 | K221: =VLOOKUP(D12,C167:F173,4,FALSE)*(1-VLOOKUP(D60,C179:D182,2,FALSE))*1.2*1.005*(H14+1-VLOOKUP(SwimmingPool!H16,OAT_Profile!$B$10:$AC$28,26,FALSE))*D215/1000 -> 0 | L221: =IF(SwimmingPool!D58="Ventilation off",C197*(H14+1-VLOOKUP(SwimmingPool!H16,OAT_Profile!$B$10:$AC$28,26,FALSE)),IF(SwimmingPool!D58=50%,VLOOKUP(D12,C167:F173,4,FALSE)*(1-VLOOKUP(D60,C179:D182,2,FALSE))*1.2*1.005*(H14+1-VLOOKUP(SwimmingPool!H16,OAT_Profile!$B$10:$AC$28,26,FALSE))*0.5*D215/1000,VLOOKUP(D12,C167:F173,4,FALSE)*(1-VLOOKUP(D60,C179:D182,2,FALSE))*1.2*1.005*(H14+1-VLOOKUP(SwimmingPool!H16,OAT_Profile!$B$10:$AC$28,26,FALSE))*D215/1000)) -> 0 | M221: 0
I222: 22:00:00 | J222: =IF(SwimmingPool!D58="Ventilation off",C197*(H14+1-VLOOKUP(SwimmingPool!H16,OAT_Profile!$B$10:$AC$28,27,FALSE)),IF(SwimmingPool!D58=50%,VLOOKUP(D12,C167:F173,4,FALSE)*(1-VLOOKUP(D60,C179:D182,2,FALSE))*1.2*1.005*(H14+1-VLOOKUP(SwimmingPool!H16,OAT_Profile!$B$10:$AC$28,27,FALSE))*0.5*D215/1000,VLOOKUP(D12,C167:F173,4,FALSE)*(1-VLOOKUP(D60,C179:D182,2,FALSE))*1.2*1.005*(H14+1-VLOOKUP(SwimmingPool!H16,OAT_Profile!$B$10:$AC$28,27,FALSE))*D215/1000)) -> 0 | K222: =VLOOKUP(D12,C167:F173,4,FALSE)*(1-VLOOKUP(D60,C179:D182,2,FALSE))*1.2*1.005*(H14+1-VLOOKUP(SwimmingPool!H16,OAT_Profile!$B$10:$AC$28,27,FALSE))*D215/1000 -> 0 | L222: =IF(SwimmingPool!D58="Ventilation off",C197*(H14+1-VLOOKUP(SwimmingPool!H16,OAT_Profile!$B$10:$AC$28,27,FALSE)),IF(SwimmingPool!D58=50%,VLOOKUP(D12,C167:F173,4,FALSE)*(1-VLOOKUP(D60,C179:D182,2,FALSE))*1.2*1.005*(H14+1-VLOOKUP(SwimmingPool!H16,OAT_Profile!$B$10:$AC$28,27,FALSE))*0.5*D215/1000,VLOOKUP(D12,C167:F173,4,FALSE)*(1-VLOOKUP(D60,C179:D182,2,FALSE))*1.2*1.005*(H14+1-VLOOKUP(SwimmingPool!H16,OAT_Profile!$B$10:$AC$28,27,FALSE))*D215/1000)) -> 0 | M222: 0
I223: 23:00:00 | J223: =IF(SwimmingPool!D58="Ventilation off",C197*(H14+1-VLOOKUP(SwimmingPool!H16,OAT_Profile!$B$10:$AC$28,28,FALSE)),IF(SwimmingPool!D58=50%,VLOOKUP(D12,C167:F173,4,FALSE)*(1-VLOOKUP(D60,C179:D182,2,FALSE))*1.2*1.005*(H14+1-VLOOKUP(SwimmingPool!H16,OAT_Profile!$B$10:$AC$28,28,FALSE))*0.5*D215/1000,VLOOKUP(D12,C167:F173,4,FALSE)*(1-VLOOKUP(D60,C179:D182,2,FALSE))*1.2*1.005*(H14+1-VLOOKUP(SwimmingPool!H16,OAT_Profile!$B$10:$AC$28,28,FALSE))*D215/1000)) -> 0 | K223: =VLOOKUP(D12,C167:F173,4,FALSE)*(1-VLOOKUP(D60,C179:D182,2,FALSE))*1.2*1.005*(H14+1-VLOOKUP(SwimmingPool!H16,OAT_Profile!$B$10:$AC$28,28,FALSE))*D215/1000 -> 0 | L223: =IF(SwimmingPool!D58="Ventilation off",C197*(H14+1-VLOOKUP(SwimmingPool!H16,OAT_Profile!$B$10:$AC$28,28,FALSE)),IF(SwimmingPool!D58=50%,VLOOKUP(D12,C167:F173,4,FALSE)*(1-VLOOKUP(D60,C179:D182,2,FALSE))*1.2*1.005*(H14+1-VLOOKUP(SwimmingPool!H16,OAT_Profile!$B$10:$AC$28,28,FALSE))*0.5*D215/1000,VLOOKUP(D12,C167:F173,4,FALSE)*(1-VLOOKUP(D60,C179:D182,2,FALSE))*1.2*1.005*(H14+1-VLOOKUP(SwimmingPool!H16,OAT_Profile!$B$10:$AC$28,28,FALSE))*D215/1000)) -> 0 | M223: 0 | O223: =IF($H$16>14, 0, W61) -> 
C227: Correction Factors - Source: CIBSE guide
C229: occupied period (days) | D229: Correction Factor | F229: Occupied Period (hours) | G229: Correction Factor | I229: Type of Heating | J229: Correction Factor
C230: 5 | D230: 0.8 | F230: 4 | G230: 0.8 | I230: Continuous | J230: 1
C231: 7 | D231: 1 | F231: 8 | G231: 1 | I231: Intermittent-responsive plant | J231: 0.7
F232: 12 | G232: 1.12 | I232: Intermittent-plant with long time lag | J232: 0.85
F233: 16 | G233: 1.22
C236: Solar irradiance auxiliary table
D237: 1 | K237: 2 | R237: 3 | Z237: 4 | AG237: 5 | AN237: 6 | AU237: 7 | BB237: 8 | BI237: 9 | BP237: 10 | BW237: 11 | CD237: 12
C239: January | D239: =IF($M16="W",IF(S16=0,IrradianceDatabase!$D$3,IF(S16=30,IrradianceDatabase!$E$3,IF(S16=45,IrradianceDatabase!$F$3,IF(S16=60,IrradianceDatabase!$G$3,IF(S16=90,IrradianceDatabase!$H$3,E239))))),E239) -> 19.125 | E239: =IF($M16="SW",IF($S16=0,IrradianceDatabase!$J$3,IF($S16=30,IrradianceDatabase!$K$3,IF($S16=45,IrradianceDatabase!$L$3,IF($S16=60,IrradianceDatabase!$M$3,IF($S16=90,IrradianceDatabase!$N$3,F239))))),F239) -> FALSE | F239: =IF($M16="S",IF($S16=0,IrradianceDatabase!$P$3,IF($S16=30,IrradianceDatabase!$Q$3,IF($S16=45,IrradianceDatabase!$R$3,IF($S16=60,IrradianceDatabase!$S$3,IF($S16=90,IrradianceDatabase!$T$3,G239))))),G239) -> FALSE | G239: =IF($M16="SE",IF($S16=0,IrradianceDatabase!$D$18,IF($S16=30,IrradianceDatabase!$E$18,IF($S16=45,IrradianceDatabase!$F$18,IF($S16=60,IrradianceDatabase!$G$18,IF($S16=90,IrradianceDatabase!$H$18,H239))))),H239) -> FALSE | H239: =IF($M16="E",IF($S16=0,IrradianceDatabase!$J$18,IF($S16=30,IrradianceDatabase!$K$18,IF($S16=45,IrradianceDatabase!$L$18,IF($S16=60,IrradianceDatabase!$M$18,IF($S16=90,IrradianceDatabase!$N$18,I239))))),I239) -> FALSE | I239: =IF(OR($M16="NE",$M16="NW"),IF($S16=0,IrradianceDatabase!$P$18,IF($S16=30,IrradianceDatabase!$Q$18,IF($S16=45,IrradianceDatabase!$R$18,IF($S16=60,IrradianceDatabase!$S$18,IF($S16=90,IrradianceDatabase!$T$18,J239))))),J239) -> FALSE | J239: =IF($M16="N",IF($S16=0,IrradianceDatabase!$D$33,IF($S16=30,IrradianceDatabase!$E$33,IF($S16=45,IrradianceDatabase!$F$33,IF($S16=60,IrradianceDatabase!$G$33,IF($S16=90,IrradianceDatabase!$H$33)))))) -> FALSE | K239: =IF($M17="W",IF(S17=0,IrradianceDatabase!$D$3,IF(S17=30,IrradianceDatabase!$E$3,IF(S17=45,IrradianceDatabase!$F$3,IF(S17=60,IrradianceDatabase!$G$3,IF(S17=90,IrradianceDatabase!$H$3,L239))))),L239) -> 19.5 | L239: =IF($M17="SW",IF($S17=0,IrradianceDatabase!$J$3,IF($S17=30,IrradianceDatabase!$K$3,IF($S17=45,IrradianceDatabase!$L$3,IF($S17=60,IrradianceDatabase!$M$3,IF($S17=90,IrradianceDatabase!$N$3,M239))))),M239) -> FALSE | M239: =IF($M17="S",IF($S17=0,IrradianceDatabase!$P$3,IF($S17=30,IrradianceDatabase!$Q$3,IF($S17=45,IrradianceDatabase!$R$3,IF($S17=60,IrradianceDatabase!$S$3,IF($S17=90,IrradianceDatabase!$T$3,N239))))),N239) -> FALSE | N239: =IF($M17="SE",IF($S17=0,IrradianceDatabase!$D$18,IF($S17=30,IrradianceDatabase!$E$18,IF($S17=45,IrradianceDatabase!$F$18,IF($S17=60,IrradianceDatabase!$G$18,IF($S17=90,IrradianceDatabase!$H$18,O239))))),O239) -> FALSE | O239: =IF($M17="E",IF($S17=0,IrradianceDatabase!$J$18,IF($S17=30,IrradianceDatabase!$K$18,IF($S17=45,IrradianceDatabase!$L$18,IF($S17=60,IrradianceDatabase!$M$18,IF($S17=90,IrradianceDatabase!$N$18,P239))))),P239) -> FALSE | P239: =IF(OR($M17="NE",$M17="NW"),IF($S17=0,IrradianceDatabase!$P$18,IF($S17=30,IrradianceDatabase!$Q$18,IF($S17=45,IrradianceDatabase!$R$18,IF($S17=60,IrradianceDatabase!$S$18,IF($S17=90,IrradianceDatabase!$T$18,Q239))))),Q239) -> FALSE | Q239: =IF($M17="N",IF($S17=0,IrradianceDatabase!$D$33,IF($S17=30,IrradianceDatabase!$E$33,IF($S17=45,IrradianceDatabase!$F$33,IF($S17=60,IrradianceDatabase!$G$33,IF($S17=90,IrradianceDatabase!$H$33)))))) -> FALSE | R239: =IF($M18="W",IF(S18=0,IrradianceDatabase!$D$3,IF(S18=30,IrradianceDatabase!$E$3,IF(S18=45,IrradianceDatabase!$F$3,IF(S18=60,IrradianceDatabase!$G$3,IF(S18=90,IrradianceDatabase!$H$3,S239))))),S239) -> 12.91666667 | S239: =IF($M18="SW",IF($S18=0,IrradianceDatabase!$J$3,IF($S18=30,IrradianceDatabase!$K$3,IF($S18=45,IrradianceDatabase!$L$3,IF($S18=60,IrradianceDatabase!$M$3,IF($S18=90,IrradianceDatabase!$N$3,T239))))),T239) -> 12.91666667 | T239: =IF($M18="S",IF($S18=0,IrradianceDatabase!$P$3,IF($S18=30,IrradianceDatabase!$Q$3,IF($S18=45,IrradianceDatabase!$R$3,IF($S18=60,IrradianceDatabase!$S$3,IF($S18=90,IrradianceDatabase!$T$3,V239))))),V239) -> 12.91666667 | V239: =IF($M18="SE",IF($S18=0,IrradianceDatabase!$D$18,IF($S18=30,IrradianceDatabase!$E$18,IF($S18=45,IrradianceDatabase!$F$18,IF($S18=60,IrradianceDatabase!$G$18,IF($S18=90,IrradianceDatabase!$H$18,W239))))),W239) -> 12.91666667 | W239: =IF($M18="E",IF($S18=0,IrradianceDatabase!$J$18,IF($S18=30,IrradianceDatabase!$K$18,IF($S18=45,IrradianceDatabase!$L$18,IF($S18=60,IrradianceDatabase!$M$18,IF($S18=90,IrradianceDatabase!$N$18,X239))))),X239) -> 12.91666667 | X239: =IF(OR($M18="NE",$M18="NW"),IF($S18=0,IrradianceDatabase!$P$18,IF($S18=30,IrradianceDatabase!$Q$18,IF($S18=45,IrradianceDatabase!$R$18,IF($S18=60,IrradianceDatabase!$S$18,IF($S18=90,IrradianceDatabase!$T$18,Y239))))),Y239) -> FALSE | Y239: =IF($M18="N",IF($S18=0,IrradianceDatabase!$D$33,IF($S18=30,IrradianceDatabase!$E$33,IF($S18=45,IrradianceDatabase!$F$33,IF($S18=60,IrradianceDatabase!$G$33,IF($S18=90,IrradianceDatabase!$H$33)))))) -> FALSE | Z239: =IF($M19="W",IF(S19=0,IrradianceDatabase!$D$3,IF(S19=30,IrradianceDatabase!$E$3,IF(S19=45,IrradianceDatabase!$F$3,IF(S19=60,IrradianceDatabase!$G$3,IF(S19=90,IrradianceDatabase!$H$3,AA239))))),AA239) -> 6.428571429 | AA239: =IF($M19="SW",IF($S19=0,IrradianceDatabase!$J$3,IF($S19=30,IrradianceDatabase!$K$3,IF($S19=45,IrradianceDatabase!$L$3,IF($S19=60,IrradianceDatabase!$M$3,IF($S19=90,IrradianceDatabase!$N$3,AB239))))),AB239) -> 6.428571429 | AB239: =IF($M19="S",IF($S19=0,IrradianceDatabase!$P$3,IF($S19=30,IrradianceDatabase!$Q$3,IF($S19=45,IrradianceDatabase!$R$3,IF($S19=60,IrradianceDatabase!$S$3,IF($S19=90,IrradianceDatabase!$T$3,AC239))))),AC239) -> 6.428571429 | AC239: =IF($M19="SE",IF($S19=0,IrradianceDatabase!$D$18,IF($S19=30,IrradianceDatabase!$E$18,IF($S19=45,IrradianceDatabase!$F$18,IF($S19=60,IrradianceDatabase!$G$18,IF($S19=90,IrradianceDatabase!$H$18,AD239))))),AD239) -> 6.428571429 | AD239: =IF($M19="E",IF($S19=0,IrradianceDatabase!$J$18,IF($S19=30,IrradianceDatabase!$K$18,IF($S19=45,IrradianceDatabase!$L$18,IF($S19=60,IrradianceDatabase!$M$18,IF($S19=90,IrradianceDatabase!$N$18,AE239))))),AE239) -> 6.428571429 | AE239: =IF(OR($M19="NE",$M19="NW"),IF($S19=0,IrradianceDatabase!$P$18,IF($S19=30,IrradianceDatabase!$Q$18,IF($S19=45,IrradianceDatabase!$R$18,IF($S19=60,IrradianceDatabase!$S$18,IF($S19=90,IrradianceDatabase!$T$18,AF239))))),AF239) -> 6.428571429 | AF239: =IF($M19="N",IF($S19=0,IrradianceDatabase!$D$33,IF($S19=30,IrradianceDatabase!$E$33,IF($S19=45,IrradianceDatabase!$F$33,IF($S19=60,IrradianceDatabase!$G$33,IF($S19=90,IrradianceDatabase!$H$33)))))) -> FALSE | AG239: =IF($M20="W",IF(S20=0,IrradianceDatabase!$D$3,IF(S20=30,IrradianceDatabase!$E$3,IF(S20=45,IrradianceDatabase!$F$3,IF(S20=60,IrradianceDatabase!$G$3,IF(S20=90,IrradianceDatabase!$H$3,AH239))))),AH239) -> 12.91666667 | AH239: =IF($M20="SW",IF($S20=0,IrradianceDatabase!$J$3,IF($S20=30,IrradianceDatabase!$K$3,IF($S20=45,IrradianceDatabase!$L$3,IF($S20=60,IrradianceDatabase!$M$3,IF($S20=90,IrradianceDatabase!$N$3,AI239))))),AI239) -> 12.91666667 | AI239: =IF($M20="S",IF($S20=0,IrradianceDatabase!$P$3,IF($S20=30,IrradianceDatabase!$Q$3,IF($S20=45,IrradianceDatabase!$R$3,IF($S20=60,IrradianceDatabase!$S$3,IF($S20=90,IrradianceDatabase!$T$3,AJ239))))),AJ239) -> 12.91666667 | AJ239: =IF($M20="SE",IF($S20=0,IrradianceDatabase!$D$18,IF($S20=30,IrradianceDatabase!$E$18,IF($S20=45,IrradianceDatabase!$F$18,IF($S20=60,IrradianceDatabase!$G$18,IF($S20=90,IrradianceDatabase!$H$18,AK239))))),AK239) -> 12.91666667 | AK239: =IF($M20="E",IF($S20=0,IrradianceDatabase!$J$18,IF($S20=30,IrradianceDatabase!$K$18,IF($S20=45,IrradianceDatabase!$L$18,IF($S20=60,IrradianceDatabase!$M$18,IF($S20=90,IrradianceDatabase!$N$18,AL239))))),AL239) -> 12.91666667 | AL239: =IF(OR($M20="NE",$M20="NW"),IF($S20=0,IrradianceDatabase!$P$18,IF($S20=30,IrradianceDatabase!$Q$18,IF($S20=45,IrradianceDatabase!$R$18,IF($S20=60,IrradianceDatabase!$S$18,IF($S20=90,IrradianceDatabase!$T$18,AM239))))),AM239) -> FALSE | AM239: =IF($M20="N",IF($S20=0,IrradianceDatabase!$D$33,IF($S20=30,IrradianceDatabase!$E$33,IF($S20=45,IrradianceDatabase!$F$33,IF($S20=60,IrradianceDatabase!$G$33,IF($S20=90,IrradianceDatabase!$H$33)))))) -> FALSE | AN239: =IF($M21="W",IF(S21=0,IrradianceDatabase!$D$3,IF(S21=30,IrradianceDatabase!$E$3,IF(S21=45,IrradianceDatabase!$F$3,IF(S21=60,IrradianceDatabase!$G$3,IF(S21=90,IrradianceDatabase!$H$3,AO239))))),AO239) -> 32.41666667 | AO239: =IF($M21="SW",IF($S21=0,IrradianceDatabase!$J$3,IF($S21=30,IrradianceDatabase!$K$3,IF($S21=45,IrradianceDatabase!$L$3,IF($S21=60,IrradianceDatabase!$M$3,IF($S21=90,IrradianceDatabase!$N$3,AP239))))),AP239) -> 32.41666667 | AP239: =IF($M21="S",IF($S21=0,IrradianceDatabase!$P$3,IF($S21=30,IrradianceDatabase!$Q$3,IF($S21=45,IrradianceDatabase!$R$3,IF($S21=60,IrradianceDatabase!$S$3,IF($S21=90,IrradianceDatabase!$T$3,AQ239))))),AQ239) -> FALSE | AQ239: =IF($M21="SE",IF($S21=0,IrradianceDatabase!$D$18,IF($S21=30,IrradianceDatabase!$E$18,IF($S21=45,IrradianceDatabase!$F$18,IF($S21=60,IrradianceDatabase!$G$18,IF($S21=90,IrradianceDatabase!$H$18,AR239))))),AR239) -> FALSE | AR239: =IF($M21="E",IF($S21=0,IrradianceDatabase!$J$18,IF($S21=30,IrradianceDatabase!$K$18,IF($S21=45,IrradianceDatabase!$L$18,IF($S21=60,IrradianceDatabase!$M$18,IF($S21=90,IrradianceDatabase!$N$18,AS239))))),AS239) -> FALSE | AS239: =IF(OR($M21="NE",$M21="NW"),IF($S21=0,IrradianceDatabase!$P$18,IF($S21=30,IrradianceDatabase!$Q$18,IF($S21=45,IrradianceDatabase!$R$18,IF($S21=60,IrradianceDatabase!$S$18,IF($S21=90,IrradianceDatabase!$T$18,AT239))))),AT239) -> FALSE | AT239: =IF($M21="N",IF($S21=0,IrradianceDatabase!$D$33,IF($S21=30,IrradianceDatabase!$E$33,IF($S21=45,IrradianceDatabase!$F$33,IF($S21=60,IrradianceDatabase!$G$33,IF($S21=90,IrradianceDatabase!$H$33)))))) -> FALSE | AU239: =IF($M22="W",IF(S22=0,IrradianceDatabase!$D$3,IF(S22=30,IrradianceDatabase!$E$3,IF(S22=45,IrradianceDatabase!$F$3,IF(S22=60,IrradianceDatabase!$G$3,IF(S22=90,IrradianceDatabase!$H$3,AV239))))),AV239) -> 41.79166667 | AV239: =IF($M22="SW",IF($S22=0,IrradianceDatabase!$J$3,IF($S22=30,IrradianceDatabase!$K$3,IF($S22=45,IrradianceDatabase!$L$3,IF($S22=60,IrradianceDatabase!$M$3,IF($S22=90,IrradianceDatabase!$N$3,AW239))))),AW239) -> 41.79166667 | AW239: =IF($M22="S",IF($S22=0,IrradianceDatabase!$P$3,IF($S22=30,IrradianceDatabase!$Q$3,IF($S22=45,IrradianceDatabase!$R$3,IF($S22=60,IrradianceDatabase!$S$3,IF($S22=90,IrradianceDatabase!$T$3,AX239))))),AX239) -> 41.79166667 | AX239: =IF($M22="SE",IF($S22=0,IrradianceDatabase!$D$18,IF($S22=30,IrradianceDatabase!$E$18,IF($S22=45,IrradianceDatabase!$F$18,IF($S22=60,IrradianceDatabase!$G$18,IF($S22=90,IrradianceDatabase!$H$18,AY239))))),AY239) -> FALSE | AY239: =IF($M22="E",IF($S22=0,IrradianceDatabase!$J$18,IF($S22=30,IrradianceDatabase!$K$18,IF($S22=45,IrradianceDatabase!$L$18,IF($S22=60,IrradianceDatabase!$M$18,IF($S22=90,IrradianceDatabase!$N$18,AZ239))))),AZ239) -> FALSE | AZ239: =IF(OR($M22="NE",$M22="NW"),IF($S22=0,IrradianceDatabase!$P$18,IF($S22=30,IrradianceDatabase!$Q$18,IF($S22=45,IrradianceDatabase!$R$18,IF($S22=60,IrradianceDatabase!$S$18,IF($S22=90,IrradianceDatabase!$T$18,BA239))))),BA239) -> FALSE | BA239: =IF($M22="N",IF($S22=0,IrradianceDatabase!$D$33,IF($S22=30,IrradianceDatabase!$E$33,IF($S22=45,IrradianceDatabase!$F$33,IF($S22=60,IrradianceDatabase!$G$33,IF($S22=90,IrradianceDatabase!$H$33)))))) -> FALSE | BB239: =IF($M23="W",IF(S23=0,IrradianceDatabase!$D$3,IF(S23=30,IrradianceDatabase!$E$3,IF(S23=45,IrradianceDatabase!$F$3,IF(S23=60,IrradianceDatabase!$G$3,IF(S23=90,IrradianceDatabase!$H$3,BC239))))),BC239) -> 31.70833333 | BC239: =IF($M23="SW",IF($S23=0,IrradianceDatabase!$J$3,IF($S23=30,IrradianceDatabase!$K$3,IF($S23=45,IrradianceDatabase!$L$3,IF($S23=60,IrradianceDatabase!$M$3,IF($S23=90,IrradianceDatabase!$N$3,BD239))))),BD239) -> 31.70833333 | BD239: =IF($M23="S",IF($S23=0,IrradianceDatabase!$P$3,IF($S23=30,IrradianceDatabase!$Q$3,IF($S23=45,IrradianceDatabase!$R$3,IF($S23=60,IrradianceDatabase!$S$3,IF($S23=90,IrradianceDatabase!$T$3,BE239))))),BE239) -> 31.70833333 | BE239: =IF($M23="SE",IF($S23=0,IrradianceDatabase!$D$18,IF($S23=30,IrradianceDatabase!$E$18,IF($S23=45,IrradianceDatabase!$F$18,IF($S23=60,IrradianceDatabase!$G$18,IF($S23=90,IrradianceDatabase!$H$18,BF239))))),BF239) -> 31.70833333 | BF239: =IF($M23="E",IF($S23=0,IrradianceDatabase!$J$18,IF($S23=30,IrradianceDatabase!$K$18,IF($S23=45,IrradianceDatabase!$L$18,IF($S23=60,IrradianceDatabase!$M$18,IF($S23=90,IrradianceDatabase!$N$18,BG239))))),BG239) -> FALSE | BG239: =IF(OR($M23="NE",$M23="NW"),IF($S23=0,IrradianceDatabase!$P$18,IF($S23=30,IrradianceDatabase!$Q$18,IF($S23=45,IrradianceDatabase!$R$18,IF($S23=60,IrradianceDatabase!$S$18,IF($S23=90,IrradianceDatabase!$T$18,BH239))))),BH239) -> FALSE | BH239: =IF($M23="N",IF($S23=0,IrradianceDatabase!$D$33,IF($S23=30,IrradianceDatabase!$E$33,IF($S23=45,IrradianceDatabase!$F$33,IF($S23=60,IrradianceDatabase!$G$33,IF($S23=90,IrradianceDatabase!$H$33)))))) -> FALSE | BI239: =IF($M24="W",IF(S24=0,IrradianceDatabase!$D$3,IF(S24=30,IrradianceDatabase!$E$3,IF(S24=45,IrradianceDatabase!$F$3,IF(S24=60,IrradianceDatabase!$G$3,IF(S24=90,IrradianceDatabase!$H$3,BJ239))))),BJ239) -> 12.91666667 | BJ239: =IF($M24="SW",IF($S24=0,IrradianceDatabase!$J$3,IF($S24=30,IrradianceDatabase!$K$3,IF($S24=45,IrradianceDatabase!$L$3,IF($S24=60,IrradianceDatabase!$M$3,IF($S24=90,IrradianceDatabase!$N$3,BK239))))),BK239) -> 12.91666667 | BK239: =IF($M24="S",IF($S24=0,IrradianceDatabase!$P$3,IF($S24=30,IrradianceDatabase!$Q$3,IF($S24=45,IrradianceDatabase!$R$3,IF($S24=60,IrradianceDatabase!$S$3,IF($S24=90,IrradianceDatabase!$T$3,BL239))))),BL239) -> 12.91666667 | BL239: =IF($M24="SE",IF($S24=0,IrradianceDatabase!$D$18,IF($S24=30,IrradianceDatabase!$E$18,IF($S24=45,IrradianceDatabase!$F$18,IF($S24=60,IrradianceDatabase!$G$18,IF($S24=90,IrradianceDatabase!$H$18,BM239))))),BM239) -> 12.91666667 | BM239: =IF($M24="E",IF($S24=0,IrradianceDatabase!$J$18,IF($S24=30,IrradianceDatabase!$K$18,IF($S24=45,IrradianceDatabase!$L$18,IF($S24=60,IrradianceDatabase!$M$18,IF($S24=90,IrradianceDatabase!$N$18,BN239))))),BN239) -> 12.91666667 | BN239: =IF(OR($M24="NE",$M24="NW"),IF($S24=0,IrradianceDatabase!$P$18,IF($S24=30,IrradianceDatabase!$Q$18,IF($S24=45,IrradianceDatabase!$R$18,IF($S24=60,IrradianceDatabase!$S$18,IF($S24=90,IrradianceDatabase!$T$18,BO239))))),BO239) -> FALSE | BO239: =IF($M24="N",IF($S24=0,IrradianceDatabase!$D$33,IF($S24=30,IrradianceDatabase!$E$33,IF($S24=45,IrradianceDatabase!$F$33,IF($S24=60,IrradianceDatabase!$G$33,IF($S24=90,IrradianceDatabase!$H$33)))))) -> FALSE | BP239: =IF($M25="W",IF(S25=0,IrradianceDatabase!$D$3,IF(S25=30,IrradianceDatabase!$E$3,IF(S25=45,IrradianceDatabase!$F$3,IF(S25=60,IrradianceDatabase!$G$3,IF(S25=90,IrradianceDatabase!$H$3,BQ239))))),BQ239) -> 6.428571429 | BQ239: =IF($M25="SW",IF($S25=0,IrradianceDatabase!$J$3,IF($S25=30,IrradianceDatabase!$K$3,IF($S25=45,IrradianceDatabase!$L$3,IF($S25=60,IrradianceDatabase!$M$3,IF($S25=90,IrradianceDatabase!$N$3,BR239))))),BR239) -> 6.428571429 | BR239: =IF($M25="S",IF($S25=0,IrradianceDatabase!$P$3,IF($S25=30,IrradianceDatabase!$Q$3,IF($S25=45,IrradianceDatabase!$R$3,IF($S25=60,IrradianceDatabase!$S$3,IF($S25=90,IrradianceDatabase!$T$3,BS239))))),BS239) -> 6.428571429 | BS239: =IF($M25="SE",IF($S25=0,IrradianceDatabase!$D$18,IF($S25=30,IrradianceDatabase!$E$18,IF($S25=45,IrradianceDatabase!$F$18,IF($S25=60,IrradianceDatabase!$G$18,IF($S25=90,IrradianceDatabase!$H$18,BT239))))),BT239) -> 6.428571429 | BT239: =IF($M25="E",IF($S25=0,IrradianceDatabase!$J$18,IF($S25=30,IrradianceDatabase!$K$18,IF($S25=45,IrradianceDatabase!$L$18,IF($S25=60,IrradianceDatabase!$M$18,IF($S25=90,IrradianceDatabase!$N$18,BU239))))),BU239) -> 6.428571429 | BU239: =IF(OR($M25="NE",$M25="NW"),IF($S25=0,IrradianceDatabase!$P$18,IF($S25=30,IrradianceDatabase!$Q$18,IF($S25=45,IrradianceDatabase!$R$18,IF($S25=60,IrradianceDatabase!$S$18,IF($S25=90,IrradianceDatabase!$T$18,BV239))))),BV239) -> 6.428571429 | BV239: =IF($M25="N",IF($S25=0,IrradianceDatabase!$D$33,IF($S25=30,IrradianceDatabase!$E$33,IF($S25=45,IrradianceDatabase!$F$33,IF($S25=60,IrradianceDatabase!$G$33,IF($S25=90,IrradianceDatabase!$H$33)))))) -> FALSE | BW239: =IF($M26="W",IF(S26=0,IrradianceDatabase!$D$3,IF(S26=30,IrradianceDatabase!$E$3,IF(S26=45,IrradianceDatabase!$F$3,IF(S26=60,IrradianceDatabase!$G$3,IF(S26=90,IrradianceDatabase!$H$3,BX239))))),BX239) -> FALSE | BX239: =IF($M26="SW",IF($S26=0,IrradianceDatabase!$J$3,IF($S26=30,IrradianceDatabase!$K$3,IF($S26=45,IrradianceDatabase!$L$3,IF($S26=60,IrradianceDatabase!$M$3,IF($S26=90,IrradianceDatabase!$N$3,BY239))))),BY239) -> FALSE | BY239: =IF($M26="S",IF($S26=0,IrradianceDatabase!$P$3,IF($S26=30,IrradianceDatabase!$Q$3,IF($S26=45,IrradianceDatabase!$R$3,IF($S26=60,IrradianceDatabase!$S$3,IF($S26=90,IrradianceDatabase!$T$3,BZ239))))),BZ239) -> FALSE | BZ239: =IF($M26="SE",IF($S26=0,IrradianceDatabase!$D$18,IF($S26=30,IrradianceDatabase!$E$18,IF($S26=45,IrradianceDatabase!$F$18,IF($S26=60,IrradianceDatabase!$G$18,IF($S26=90,IrradianceDatabase!$H$18,CA239))))),CA239) -> FALSE | CA239: =IF($M26="E",IF($S26=0,IrradianceDatabase!$J$18,IF($S26=30,IrradianceDatabase!$K$18,IF($S26=45,IrradianceDatabase!$L$18,IF($S26=60,IrradianceDatabase!$M$18,IF($S26=90,IrradianceDatabase!$N$18,CB239))))),CB239) -> FALSE | CB239: =IF(OR($M26="NE",$M26="NW"),IF($S26=0,IrradianceDatabase!$P$18,IF($S26=30,IrradianceDatabase!$Q$18,IF($S26=45,IrradianceDatabase!$R$18,IF($S26=60,IrradianceDatabase!$S$18,IF($S26=90,IrradianceDatabase!$T$18,CC239))))),CC239) -> FALSE | CC239: =IF($M26="N",IF($S26=0,IrradianceDatabase!$D$33,IF($S26=30,IrradianceDatabase!$E$33,IF($S26=45,IrradianceDatabase!$F$33,IF($S26=60,IrradianceDatabase!$G$33,IF($S26=90,IrradianceDatabase!$H$33)))))) -> FALSE | CD239: =IF($M27="W",IF(S27=0,IrradianceDatabase!$D$3,IF(S27=30,IrradianceDatabase!$E$3,IF(S27=45,IrradianceDatabase!$F$3,IF(S27=60,IrradianceDatabase!$G$3,IF(S27=90,IrradianceDatabase!$H$3,CE239))))),CE239) -> FALSE | CE239: =IF($M27="SW",IF($S27=0,IrradianceDatabase!$J$3,IF($S27=30,IrradianceDatabase!$K$3,IF($S27=45,IrradianceDatabase!$L$3,IF($S27=60,IrradianceDatabase!$M$3,IF($S27=90,IrradianceDatabase!$N$3,CF239))))),CF239) -> FALSE | CF239: =IF($M27="S",IF($S27=0,IrradianceDatabase!$P$3,IF($S27=30,IrradianceDatabase!$Q$3,IF($S27=45,IrradianceDatabase!$R$3,IF($S27=60,IrradianceDatabase!$S$3,IF($S27=90,IrradianceDatabase!$T$3,CG239))))),CG239) -> FALSE | CG239: =IF($M27="SE",IF($S27=0,IrradianceDatabase!$D$18,IF($S27=30,IrradianceDatabase!$E$18,IF($S27=45,IrradianceDatabase!$F$18,IF($S27=60,IrradianceDatabase!$G$18,IF($S27=90,IrradianceDatabase!$H$18,CH239))))),CH239) -> FALSE | CH239: =IF($M27="E",IF($S27=0,IrradianceDatabase!$J$18,IF($S27=30,IrradianceDatabase!$K$18,IF($S27=45,IrradianceDatabase!$L$18,IF($S27=60,IrradianceDatabase!$M$18,IF($S27=90,IrradianceDatabase!$N$18,CI239))))),CI239) -> FALSE | CI239: =IF(OR($M27="NE",$M27="NW"),IF($S27=0,IrradianceDatabase!$P$18,IF($S27=30,IrradianceDatabase!$Q$18,IF($S27=45,IrradianceDatabase!$R$18,IF($S27=60,IrradianceDatabase!$S$18,IF($S27=90,IrradianceDatabase!$T$18,CJ239))))),CJ239) -> FALSE | CJ239: =IF($M27="N",IF($S27=0,IrradianceDatabase!$D$33,IF($S27=30,IrradianceDatabase!$E$33,IF($S27=45,IrradianceDatabase!$F$33,IF($S27=60,IrradianceDatabase!$G$33,IF($S27=90,IrradianceDatabase!$H$33)))))) -> FALSE
C240: February | D240: =IF($M16="W",IF(S$16=0,IrradianceDatabase!$D$4,IF(S16=30,IrradianceDatabase!$E$4,IF(S16=45,IrradianceDatabase!$F$4,IF(S16=60,IrradianceDatabase!$G$4,IF(S16=90,IrradianceDatabase!$H$4,E240))))),E240) -> 42.08333333 | E240: =IF($M16="SW",IF($S16=0,IrradianceDatabase!$J$4,IF($S16=30,IrradianceDatabase!$K$4,IF($S16=45,IrradianceDatabase!$L$4,IF($S16=60,IrradianceDatabase!$M$4,IF($S16=90,IrradianceDatabase!$N$4,F240))))),F240) -> FALSE | F240: =IF($M16="S",IF($S16=0,IrradianceDatabase!$P$4,IF($S16=30,IrradianceDatabase!$Q$4,IF($S16=45,IrradianceDatabase!$R$4,IF($S16=60,IrradianceDatabase!$S$4,IF($S16=90,IrradianceDatabase!$T$4,G240))))),G240) -> FALSE | G240: =IF($M16="SE",IF($S16=0,IrradianceDatabase!$D$19,IF($S16=30,IrradianceDatabase!$E$19,IF($S16=45,IrradianceDatabase!$F$19,IF($S16=60,IrradianceDatabase!$G$19,IF($S16=90,IrradianceDatabase!$H$19,H240))))),H240) -> FALSE | H240: =IF($M16="E",IF($S16=0,IrradianceDatabase!$J$19,IF($S16=30,IrradianceDatabase!$K$19,IF($S16=45,IrradianceDatabase!$L$19,IF($S16=60,IrradianceDatabase!$M$19,IF($S16=90,IrradianceDatabase!$N$19,I240))))),I240) -> FALSE | I240: =IF(OR($M16="NE",$M16="NW"),IF($S16=0,IrradianceDatabase!$P$19,IF($S16=30,IrradianceDatabase!$Q$19,IF($S16=45,IrradianceDatabase!$R$19,IF($S16=60,IrradianceDatabase!$S$19,IF($S16=90,IrradianceDatabase!$T$19,J240))))),J240) -> FALSE | J240: =IF($M16="N",IF($S16=0,IrradianceDatabase!$D$34,IF($S16=30,IrradianceDatabase!$E$34,IF($S16=45,IrradianceDatabase!$F$34,IF($S16=60,IrradianceDatabase!$G$34,IF($S16=90,IrradianceDatabase!$H$34)))))) -> FALSE | K240: =IF($M17="W",IF(S$16=0,IrradianceDatabase!$D$4,IF(S17=30,IrradianceDatabase!$E$4,IF(S17=45,IrradianceDatabase!$F$4,IF(S17=60,IrradianceDatabase!$G$4,IF(S17=90,IrradianceDatabase!$H$4,L240))))),L240) -> FALSE | L240: =IF($M17="SW",IF($S17=0,IrradianceDatabase!$J$4,IF($S17=30,IrradianceDatabase!$K$4,IF($S17=45,IrradianceDatabase!$L$4,IF($S17=60,IrradianceDatabase!$M$4,IF($S17=90,IrradianceDatabase!$N$4,M240))))),M240) -> FALSE | M240: =IF($M17="S",IF($S17=0,IrradianceDatabase!$P$4,IF($S17=30,IrradianceDatabase!$Q$4,IF($S17=45,IrradianceDatabase!$R$4,IF($S17=60,IrradianceDatabase!$S$4,IF($S17=90,IrradianceDatabase!$T$4,N240))))),N240) -> FALSE | N240: =IF($M17="SE",IF($S17=0,IrradianceDatabase!$D$19,IF($S17=30,IrradianceDatabase!$E$19,IF($S17=45,IrradianceDatabase!$F$19,IF($S17=60,IrradianceDatabase!$G$19,IF($S17=90,IrradianceDatabase!$H$19,O240))))),O240) -> FALSE | O240: =IF($M17="E",IF($S17=0,IrradianceDatabase!$J$19,IF($S17=30,IrradianceDatabase!$K$19,IF($S17=45,IrradianceDatabase!$L$19,IF($S17=60,IrradianceDatabase!$M$19,IF($S17=90,IrradianceDatabase!$N$19,P240))))),P240) -> FALSE | P240: =IF(OR($M17="NE",$M17="NW"),IF($S17=0,IrradianceDatabase!$P$19,IF($S17=30,IrradianceDatabase!$Q$19,IF($S17=45,IrradianceDatabase!$R$19,IF($S17=60,IrradianceDatabase!$S$19,IF($S17=90,IrradianceDatabase!$T$19,Q240))))),Q240) -> FALSE | Q240: =IF($M17="N",IF($S17=0,IrradianceDatabase!$D$34,IF($S17=30,IrradianceDatabase!$E$34,IF($S17=45,IrradianceDatabase!$F$34,IF($S17=60,IrradianceDatabase!$G$34,IF($S17=90,IrradianceDatabase!$H$34)))))) -> FALSE | R240: =IF($M18="W",IF(S$16=0,IrradianceDatabase!$D$4,IF(S18=30,IrradianceDatabase!$E$4,IF(S18=45,IrradianceDatabase!$F$4,IF(S18=60,IrradianceDatabase!$G$4,IF(S18=90,IrradianceDatabase!$H$4,S240))))),S240) -> 27.58333333 | S240: =IF($M18="SW",IF($S18=0,IrradianceDatabase!$J$4,IF($S18=30,IrradianceDatabase!$K$4,IF($S18=45,IrradianceDatabase!$L$4,IF($S18=60,IrradianceDatabase!$M$4,IF($S18=90,IrradianceDatabase!$N$4,T240))))),T240) -> 27.58333333 | T240: =IF($M18="S",IF($S18=0,IrradianceDatabase!$P$4,IF($S18=30,IrradianceDatabase!$Q$4,IF($S18=45,IrradianceDatabase!$R$4,IF($S18=60,IrradianceDatabase!$S$4,IF($S18=90,IrradianceDatabase!$T$4,V240))))),V240) -> 27.58333333 | V240: =IF($M18="SE",IF($S18=0,IrradianceDatabase!$D$19,IF($S18=30,IrradianceDatabase!$E$19,IF($S18=45,IrradianceDatabase!$F$19,IF($S18=60,IrradianceDatabase!$G$19,IF($S18=90,IrradianceDatabase!$H$19,W240))))),W240) -> 27.58333333 | W240: =IF($M18="E",IF($S18=0,IrradianceDatabase!$J$19,IF($S18=30,IrradianceDatabase!$K$19,IF($S18=45,IrradianceDatabase!$L$19,IF($S18=60,IrradianceDatabase!$M$19,IF($S18=90,IrradianceDatabase!$N$19,X240))))),X240) -> 27.58333333 | X240: =IF(OR($M18="NE",$M18="NW"),IF($S18=0,IrradianceDatabase!$P$19,IF($S18=30,IrradianceDatabase!$Q$19,IF($S18=45,IrradianceDatabase!$R$19,IF($S18=60,IrradianceDatabase!$S$19,IF($S18=90,IrradianceDatabase!$T$19,Y240))))),Y240) -> FALSE | Y240: =IF($M18="N",IF($S18=0,IrradianceDatabase!$D$34,IF($S18=30,IrradianceDatabase!$E$34,IF($S18=45,IrradianceDatabase!$F$34,IF($S18=60,IrradianceDatabase!$G$34,IF($S18=90,IrradianceDatabase!$H$34)))))) -> FALSE | Z240: =IF($M19="W",IF(S$16=0,IrradianceDatabase!$D$4,IF(S19=30,IrradianceDatabase!$E$4,IF(S19=45,IrradianceDatabase!$F$4,IF(S19=60,IrradianceDatabase!$G$4,IF(S19=90,IrradianceDatabase!$H$4,AA240))))),AA240) -> 13.92857143 | AA240: =IF($M19="SW",IF($S19=0,IrradianceDatabase!$J$4,IF($S19=30,IrradianceDatabase!$K$4,IF($S19=45,IrradianceDatabase!$L$4,IF($S19=60,IrradianceDatabase!$M$4,IF($S19=90,IrradianceDatabase!$N$4,AB240))))),AB240) -> 13.92857143 | AB240: =IF($M19="S",IF($S19=0,IrradianceDatabase!$P$4,IF($S19=30,IrradianceDatabase!$Q$4,IF($S19=45,IrradianceDatabase!$R$4,IF($S19=60,IrradianceDatabase!$S$4,IF($S19=90,IrradianceDatabase!$T$4,AC240))))),AC240) -> 13.92857143 | AC240: =IF($M19="SE",IF($S19=0,IrradianceDatabase!$D$19,IF($S19=30,IrradianceDatabase!$E$19,IF($S19=45,IrradianceDatabase!$F$19,IF($S19=60,IrradianceDatabase!$G$19,IF($S19=90,IrradianceDatabase!$H$19,AD240))))),AD240) -> 13.92857143 | AD240: =IF($M19="E",IF($S19=0,IrradianceDatabase!$J$19,IF($S19=30,IrradianceDatabase!$K$19,IF($S19=45,IrradianceDatabase!$L$19,IF($S19=60,IrradianceDatabase!$M$19,IF($S19=90,IrradianceDatabase!$N$19,AE240))))),AE240) -> 13.92857143 | AE240: =IF(OR($M19="NE",$M19="NW"),IF($S19=0,IrradianceDatabase!$P$19,IF($S19=30,IrradianceDatabase!$Q$19,IF($S19=45,IrradianceDatabase!$R$19,IF($S19=60,IrradianceDatabase!$S$19,IF($S19=90,IrradianceDatabase!$T$19,AF240))))),AF240) -> 13.92857143 | AF240: =IF($M19="N",IF($S19=0,IrradianceDatabase!$D$34,IF($S19=30,IrradianceDatabase!$E$34,IF($S19=45,IrradianceDatabase!$F$34,IF($S19=60,IrradianceDatabase!$G$34,IF($S19=90,IrradianceDatabase!$H$34)))))) -> FALSE | AG240: =IF($M20="W",IF(S$16=0,IrradianceDatabase!$D$4,IF(S20=30,IrradianceDatabase!$E$4,IF(S20=45,IrradianceDatabase!$F$4,IF(S20=60,IrradianceDatabase!$G$4,IF(S20=90,IrradianceDatabase!$H$4,AH240))))),AH240) -> 27.58333333 | AH240: =IF($M20="SW",IF($S20=0,IrradianceDatabase!$J$4,IF($S20=30,IrradianceDatabase!$K$4,IF($S20=45,IrradianceDatabase!$L$4,IF($S20=60,IrradianceDatabase!$M$4,IF($S20=90,IrradianceDatabase!$N$4,AI240))))),AI240) -> 27.58333333 | AI240: =IF($M20="S",IF($S20=0,IrradianceDatabase!$P$4,IF($S20=30,IrradianceDatabase!$Q$4,IF($S20=45,IrradianceDatabase!$R$4,IF($S20=60,IrradianceDatabase!$S$4,IF($S20=90,IrradianceDatabase!$T$4,AJ240))))),AJ240) -> 27.58333333 | AJ240: =IF($M20="SE",IF($S20=0,IrradianceDatabase!$D$19,IF($S20=30,IrradianceDatabase!$E$19,IF($S20=45,IrradianceDatabase!$F$19,IF($S20=60,IrradianceDatabase!$G$19,IF($S20=90,IrradianceDatabase!$H$19,AK240))))),AK240) -> 27.58333333 | AK240: =IF($M20="E",IF($S20=0,IrradianceDatabase!$J$19,IF($S20=30,IrradianceDatabase!$K$19,IF($S20=45,IrradianceDatabase!$L$19,IF($S20=60,IrradianceDatabase!$M$19,IF($S20=90,IrradianceDatabase!$N$19,AL240))))),AL240) -> 27.58333333 | AL240: =IF(OR($M20="NE",$M20="NW"),IF($S20=0,IrradianceDatabase!$P$19,IF($S20=30,IrradianceDatabase!$Q$19,IF($S20=45,IrradianceDatabase!$R$19,IF($S20=60,IrradianceDatabase!$S$19,IF($S20=90,IrradianceDatabase!$T$19,AM240))))),AM240) -> FALSE | AM240: =IF($M20="N",IF($S20=0,IrradianceDatabase!$D$34,IF($S20=30,IrradianceDatabase!$E$34,IF($S20=45,IrradianceDatabase!$F$34,IF($S20=60,IrradianceDatabase!$G$34,IF($S20=90,IrradianceDatabase!$H$34)))))) -> FALSE | AN240: =IF($M21="W",IF(S$16=0,IrradianceDatabase!$D$4,IF(S21=30,IrradianceDatabase!$E$4,IF(S21=45,IrradianceDatabase!$F$4,IF(S21=60,IrradianceDatabase!$G$4,IF(S21=90,IrradianceDatabase!$H$4,AO240))))),AO240) -> 55.45833333 | AO240: =IF($M21="SW",IF($S21=0,IrradianceDatabase!$J$4,IF($S21=30,IrradianceDatabase!$K$4,IF($S21=45,IrradianceDatabase!$L$4,IF($S21=60,IrradianceDatabase!$M$4,IF($S21=90,IrradianceDatabase!$N$4,AP240))))),AP240) -> 55.45833333 | AP240: =IF($M21="S",IF($S21=0,IrradianceDatabase!$P$4,IF($S21=30,IrradianceDatabase!$Q$4,IF($S21=45,IrradianceDatabase!$R$4,IF($S21=60,IrradianceDatabase!$S$4,IF($S21=90,IrradianceDatabase!$T$4,AQ240))))),AQ240) -> FALSE | AQ240: =IF($M21="SE",IF($S21=0,IrradianceDatabase!$D$19,IF($S21=30,IrradianceDatabase!$E$19,IF($S21=45,IrradianceDatabase!$F$19,IF($S21=60,IrradianceDatabase!$G$19,IF($S21=90,IrradianceDatabase!$H$19,AR240))))),AR240) -> FALSE | AR240: =IF($M21="E",IF($S21=0,IrradianceDatabase!$J$19,IF($S21=30,IrradianceDatabase!$K$19,IF($S21=45,IrradianceDatabase!$L$19,IF($S21=60,IrradianceDatabase!$M$19,IF($S21=90,IrradianceDatabase!$N$19,AS240))))),AS240) -> FALSE | AS240: =IF(OR($M21="NE",$M21="NW"),IF($S21=0,IrradianceDatabase!$P$19,IF($S21=30,IrradianceDatabase!$Q$19,IF($S21=45,IrradianceDatabase!$R$19,IF($S21=60,IrradianceDatabase!$S$19,IF($S21=90,IrradianceDatabase!$T$19,AT240))))),AT240) -> FALSE | AT240: =IF($M21="N",IF($S21=0,IrradianceDatabase!$D$34,IF($S21=30,IrradianceDatabase!$E$34,IF($S21=45,IrradianceDatabase!$F$34,IF($S21=60,IrradianceDatabase!$G$34,IF($S21=90,IrradianceDatabase!$H$34)))))) -> FALSE | AU240: =IF($M22="W",IF(S$16=0,IrradianceDatabase!$D$4,IF(S22=30,IrradianceDatabase!$E$4,IF(S22=45,IrradianceDatabase!$F$4,IF(S22=60,IrradianceDatabase!$G$4,IF(S22=90,IrradianceDatabase!$H$4,AV240))))),AV240) -> 69.25 | AV240: =IF($M22="SW",IF($S22=0,IrradianceDatabase!$J$4,IF($S22=30,IrradianceDatabase!$K$4,IF($S22=45,IrradianceDatabase!$L$4,IF($S22=60,IrradianceDatabase!$M$4,IF($S22=90,IrradianceDatabase!$N$4,AW240))))),AW240) -> 69.25 | AW240: =IF($M22="S",IF($S22=0,IrradianceDatabase!$P$4,IF($S22=30,IrradianceDatabase!$Q$4,IF($S22=45,IrradianceDatabase!$R$4,IF($S22=60,IrradianceDatabase!$S$4,IF($S22=90,IrradianceDatabase!$T$4,AX240))))),AX240) -> 69.25 | AX240: =IF($M22="SE",IF($S22=0,IrradianceDatabase!$D$19,IF($S22=30,IrradianceDatabase!$E$19,IF($S22=45,IrradianceDatabase!$F$19,IF($S22=60,IrradianceDatabase!$G$19,IF($S22=90,IrradianceDatabase!$H$19,AY240))))),AY240) -> FALSE | AY240: =IF($M22="E",IF($S22=0,IrradianceDatabase!$J$19,IF($S22=30,IrradianceDatabase!$K$19,IF($S22=45,IrradianceDatabase!$L$19,IF($S22=60,IrradianceDatabase!$M$19,IF($S22=90,IrradianceDatabase!$N$19,AZ240))))),AZ240) -> FALSE | AZ240: =IF(OR($M22="NE",$M22="NW"),IF($S22=0,IrradianceDatabase!$P$19,IF($S22=30,IrradianceDatabase!$Q$19,IF($S22=45,IrradianceDatabase!$R$19,IF($S22=60,IrradianceDatabase!$S$19,IF($S22=90,IrradianceDatabase!$T$19,BA240))))),BA240) -> FALSE | BA240: =IF($M22="N",IF($S22=0,IrradianceDatabase!$D$34,IF($S22=30,IrradianceDatabase!$E$34,IF($S22=45,IrradianceDatabase!$F$34,IF($S22=60,IrradianceDatabase!$G$34,IF($S22=90,IrradianceDatabase!$H$34)))))) -> FALSE | BB240: =IF($M23="W",IF(S$16=0,IrradianceDatabase!$D$4,IF(S23=30,IrradianceDatabase!$E$4,IF(S23=45,IrradianceDatabase!$F$4,IF(S23=60,IrradianceDatabase!$G$4,IF(S23=90,IrradianceDatabase!$H$4,BC240))))),BC240) -> 53.125 | BC240: =IF($M23="SW",IF($S23=0,IrradianceDatabase!$J$4,IF($S23=30,IrradianceDatabase!$K$4,IF($S23=45,IrradianceDatabase!$L$4,IF($S23=60,IrradianceDatabase!$M$4,IF($S23=90,IrradianceDatabase!$N$4,BD240))))),BD240) -> 53.125 | BD240: =IF($M23="S",IF($S23=0,IrradianceDatabase!$P$4,IF($S23=30,IrradianceDatabase!$Q$4,IF($S23=45,IrradianceDatabase!$R$4,IF($S23=60,IrradianceDatabase!$S$4,IF($S23=90,IrradianceDatabase!$T$4,BE240))))),BE240) -> 53.125 | BE240: =IF($M23="SE",IF($S23=0,IrradianceDatabase!$D$19,IF($S23=30,IrradianceDatabase!$E$19,IF($S23=45,IrradianceDatabase!$F$19,IF($S23=60,IrradianceDatabase!$G$19,IF($S23=90,IrradianceDatabase!$H$19,BF240))))),BF240) -> 53.125 | BF240: =IF($M23="E",IF($S23=0,IrradianceDatabase!$J$19,IF($S23=30,IrradianceDatabase!$K$19,IF($S23=45,IrradianceDatabase!$L$19,IF($S23=60,IrradianceDatabase!$M$19,IF($S23=90,IrradianceDatabase!$N$19,BG240))))),BG240) -> FALSE | BG240: =IF(OR($M23="NE",$M23="NW"),IF($S23=0,IrradianceDatabase!$P$19,IF($S23=30,IrradianceDatabase!$Q$19,IF($S23=45,IrradianceDatabase!$R$19,IF($S23=60,IrradianceDatabase!$S$19,IF($S23=90,IrradianceDatabase!$T$19,BH240))))),BH240) -> FALSE | BH240: =IF($M23="N",IF($S23=0,IrradianceDatabase!$D$34,IF($S23=30,IrradianceDatabase!$E$34,IF($S23=45,IrradianceDatabase!$F$34,IF($S23=60,IrradianceDatabase!$G$34,IF($S23=90,IrradianceDatabase!$H$34)))))) -> FALSE | BI240: =IF($M24="W",IF(S$16=0,IrradianceDatabase!$D$4,IF(S24=30,IrradianceDatabase!$E$4,IF(S24=45,IrradianceDatabase!$F$4,IF(S24=60,IrradianceDatabase!$G$4,IF(S24=90,IrradianceDatabase!$H$4,BJ240))))),BJ240) -> 27.58333333 | BJ240: =IF($M24="SW",IF($S24=0,IrradianceDatabase!$J$4,IF($S24=30,IrradianceDatabase!$K$4,IF($S24=45,IrradianceDatabase!$L$4,IF($S24=60,IrradianceDatabase!$M$4,IF($S24=90,IrradianceDatabase!$N$4,BK240))))),BK240) -> 27.58333333 | BK240: =IF($M24="S",IF($S24=0,IrradianceDatabase!$P$4,IF($S24=30,IrradianceDatabase!$Q$4,IF($S24=45,IrradianceDatabase!$R$4,IF($S24=60,IrradianceDatabase!$S$4,IF($S24=90,IrradianceDatabase!$T$4,BL240))))),BL240) -> 27.58333333 | BL240: =IF($M24="SE",IF($S24=0,IrradianceDatabase!$D$19,IF($S24=30,IrradianceDatabase!$E$19,IF($S24=45,IrradianceDatabase!$F$19,IF($S24=60,IrradianceDatabase!$G$19,IF($S24=90,IrradianceDatabase!$H$19,BM240))))),BM240) -> 27.58333333 | BM240: =IF($M24="E",IF($S24=0,IrradianceDatabase!$J$19,IF($S24=30,IrradianceDatabase!$K$19,IF($S24=45,IrradianceDatabase!$L$19,IF($S24=60,IrradianceDatabase!$M$19,IF($S24=90,IrradianceDatabase!$N$19,BN240))))),BN240) -> 27.58333333 | BN240: =IF(OR($M24="NE",$M24="NW"),IF($S24=0,IrradianceDatabase!$P$19,IF($S24=30,IrradianceDatabase!$Q$19,IF($S24=45,IrradianceDatabase!$R$19,IF($S24=60,IrradianceDatabase!$S$19,IF($S24=90,IrradianceDatabase!$T$19,BO240))))),BO240) -> FALSE | BO240: =IF($M24="N",IF($S24=0,IrradianceDatabase!$D$34,IF($S24=30,IrradianceDatabase!$E$34,IF($S24=45,IrradianceDatabase!$F$34,IF($S24=60,IrradianceDatabase!$G$34,IF($S24=90,IrradianceDatabase!$H$34)))))) -> FALSE | BP240: =IF($M25="W",IF(S$16=0,IrradianceDatabase!$D$4,IF(S25=30,IrradianceDatabase!$E$4,IF(S25=45,IrradianceDatabase!$F$4,IF(S25=60,IrradianceDatabase!$G$4,IF(S25=90,IrradianceDatabase!$H$4,BQ240))))),BQ240) -> 13.92857143 | BQ240: =IF($M25="SW",IF($S25=0,IrradianceDatabase!$J$4,IF($S25=30,IrradianceDatabase!$K$4,IF($S25=45,IrradianceDatabase!$L$4,IF($S25=60,IrradianceDatabase!$M$4,IF($S25=90,IrradianceDatabase!$N$4,BR240))))),BR240) -> 13.92857143 | BR240: =IF($M25="S",IF($S25=0,IrradianceDatabase!$P$4,IF($S25=30,IrradianceDatabase!$Q$4,IF($S25=45,IrradianceDatabase!$R$4,IF($S25=60,IrradianceDatabase!$S$4,IF($S25=90,IrradianceDatabase!$T$4,BS240))))),BS240) -> 13.92857143 | BS240: =IF($M25="SE",IF($S25=0,IrradianceDatabase!$D$19,IF($S25=30,IrradianceDatabase!$E$19,IF($S25=45,IrradianceDatabase!$F$19,IF($S25=60,IrradianceDatabase!$G$19,IF($S25=90,IrradianceDatabase!$H$19,BT240))))),BT240) -> 13.92857143 | BT240: =IF($M25="E",IF($S25=0,IrradianceDatabase!$J$19,IF($S25=30,IrradianceDatabase!$K$19,IF($S25=45,IrradianceDatabase!$L$19,IF($S25=60,IrradianceDatabase!$M$19,IF($S25=90,IrradianceDatabase!$N$19,BU240))))),BU240) -> 13.92857143 | BU240: =IF(OR($M25="NE",$M25="NW"),IF($S25=0,IrradianceDatabase!$P$19,IF($S25=30,IrradianceDatabase!$Q$19,IF($S25=45,IrradianceDatabase!$R$19,IF($S25=60,IrradianceDatabase!$S$19,IF($S25=90,IrradianceDatabase!$T$19,BV240))))),BV240) -> 13.92857143 | BV240: =IF($M25="N",IF($S25=0,IrradianceDatabase!$D$34,IF($S25=30,IrradianceDatabase!$E$34,IF($S25=45,IrradianceDatabase!$F$34,IF($S25=60,IrradianceDatabase!$G$34,IF($S25=90,IrradianceDatabase!$H$34)))))) -> FALSE | BW240: =IF($M26="W",IF(S$16=0,IrradianceDatabase!$D$4,IF(S26=30,IrradianceDatabase!$E$4,IF(S26=45,IrradianceDatabase!$F$4,IF(S26=60,IrradianceDatabase!$G$4,IF(S26=90,IrradianceDatabase!$H$4,BX240))))),BX240) -> FALSE | BX240: =IF($M26="SW",IF($S26=0,IrradianceDatabase!$J$4,IF($S26=30,IrradianceDatabase!$K$4,IF($S26=45,IrradianceDatabase!$L$4,IF($S26=60,IrradianceDatabase!$M$4,IF($S26=90,IrradianceDatabase!$N$4,BY240))))),BY240) -> FALSE | BY240: =IF($M26="S",IF($S26=0,IrradianceDatabase!$P$4,IF($S26=30,IrradianceDatabase!$Q$4,IF($S26=45,IrradianceDatabase!$R$4,IF($S26=60,IrradianceDatabase!$S$4,IF($S26=90,IrradianceDatabase!$T$4,BZ240))))),BZ240) -> FALSE | BZ240: =IF($M26="SE",IF($S26=0,IrradianceDatabase!$D$19,IF($S26=30,IrradianceDatabase!$E$19,IF($S26=45,IrradianceDatabase!$F$19,IF($S26=60,IrradianceDatabase!$G$19,IF($S26=90,IrradianceDatabase!$H$19,CA240))))),CA240) -> FALSE | CA240: =IF($M26="E",IF($S26=0,IrradianceDatabase!$J$19,IF($S26=30,IrradianceDatabase!$K$19,IF($S26=45,IrradianceDatabase!$L$19,IF($S26=60,IrradianceDatabase!$M$19,IF($S26=90,IrradianceDatabase!$N$19,CB240))))),CB240) -> FALSE | CB240: =IF(OR($M26="NE",$M26="NW"),IF($S26=0,IrradianceDatabase!$P$19,IF($S26=30,IrradianceDatabase!$Q$19,IF($S26=45,IrradianceDatabase!$R$19,IF($S26=60,IrradianceDatabase!$S$19,IF($S26=90,IrradianceDatabase!$T$19,CC240))))),CC240) -> FALSE | CC240: =IF($M26="N",IF($S26=0,IrradianceDatabase!$D$34,IF($S26=30,IrradianceDatabase!$E$34,IF($S26=45,IrradianceDatabase!$F$34,IF($S26=60,IrradianceDatabase!$G$34,IF($S26=90,IrradianceDatabase!$H$34)))))) -> FALSE | CD240: =IF($M27="W",IF(S$16=0,IrradianceDatabase!$D$4,IF(S27=30,IrradianceDatabase!$E$4,IF(S27=45,IrradianceDatabase!$F$4,IF(S27=60,IrradianceDatabase!$G$4,IF(S27=90,IrradianceDatabase!$H$4,CE240))))),CE240) -> FALSE | CE240: =IF($M27="SW",IF($S27=0,IrradianceDatabase!$J$4,IF($S27=30,IrradianceDatabase!$K$4,IF($S27=45,IrradianceDatabase!$L$4,IF($S27=60,IrradianceDatabase!$M$4,IF($S27=90,IrradianceDatabase!$N$4,CF240))))),CF240) -> FALSE | CF240: =IF($M27="S",IF($S27=0,IrradianceDatabase!$P$4,IF($S27=30,IrradianceDatabase!$Q$4,IF($S27=45,IrradianceDatabase!$R$4,IF($S27=60,IrradianceDatabase!$S$4,IF($S27=90,IrradianceDatabase!$T$4,CG240))))),CG240) -> FALSE | CG240: =IF($M27="SE",IF($S27=0,IrradianceDatabase!$D$19,IF($S27=30,IrradianceDatabase!$E$19,IF($S27=45,IrradianceDatabase!$F$19,IF($S27=60,IrradianceDatabase!$G$19,IF($S27=90,IrradianceDatabase!$H$19,CH240))))),CH240) -> FALSE | CH240: =IF($M27="E",IF($S27=0,IrradianceDatabase!$J$19,IF($S27=30,IrradianceDatabase!$K$19,IF($S27=45,IrradianceDatabase!$L$19,IF($S27=60,IrradianceDatabase!$M$19,IF($S27=90,IrradianceDatabase!$N$19,CI240))))),CI240) -> FALSE | CI240: =IF(OR($M27="NE",$M27="NW"),IF($S27=0,IrradianceDatabase!$P$19,IF($S27=30,IrradianceDatabase!$Q$19,IF($S27=45,IrradianceDatabase!$R$19,IF($S27=60,IrradianceDatabase!$S$19,IF($S27=90,IrradianceDatabase!$T$19,CJ240))))),CJ240) -> FALSE | CJ240: =IF($M27="N",IF($S27=0,IrradianceDatabase!$D$34,IF($S27=30,IrradianceDatabase!$E$34,IF($S27=45,IrradianceDatabase!$F$34,IF($S27=60,IrradianceDatabase!$G$34,IF($S27=90,IrradianceDatabase!$H$34)))))) -> FALSE
C241: March | D241: =IF($M16="W",IF(S16=0,IrradianceDatabase!$D$5,IF(S16=30,IrradianceDatabase!$E$5,IF(S16=45,IrradianceDatabase!$F$5,IF(S16=60,IrradianceDatabase!$G$5,IF(S16=90,IrradianceDatabase!$H$5,E241))))),E241) -> 81.33333333 | E241: =IF($M16="SW",IF($S16=0,IrradianceDatabase!J5,IF($S16=30,IrradianceDatabase!$K$5,IF($S16=45,IrradianceDatabase!$L$5,IF($S16=60,IrradianceDatabase!$M$5,IF($S16=90,IrradianceDatabase!$N$5,F241))))),F241) -> FALSE | F241: =IF($M16="S",IF($S16=0,IrradianceDatabase!$P$5,IF($S16=30,IrradianceDatabase!$Q$5,IF($S16=45,IrradianceDatabase!$R$5,IF($S16=60,IrradianceDatabase!$S$5,IF($S16=90,IrradianceDatabase!$T$5,G241))))),G241) -> FALSE | G241: =IF($M16="SE",IF($S16=0,IrradianceDatabase!$D$20,IF($S16=30,IrradianceDatabase!$E$20,IF($S16=45,IrradianceDatabase!$F$20,IF($S16=60,IrradianceDatabase!$G$20,IF($S16=90,IrradianceDatabase!$H$20,H241))))),H241) -> FALSE | H241: =IF($M16="E",IF($S16=0,IrradianceDatabase!$J$20,IF($S16=30,IrradianceDatabase!$K$20,IF($S16=45,IrradianceDatabase!$L$20,IF($S16=60,IrradianceDatabase!$M$20,IF($S16=90,IrradianceDatabase!$N$20,I241))))),I241) -> FALSE | I241: =IF(OR($M16="NE",$M16="NW"),IF($S16=0,IrradianceDatabase!$P$20,IF($S16=30,IrradianceDatabase!$Q$20,IF($S16=45,IrradianceDatabase!$R$20,IF($S16=60,IrradianceDatabase!$S$20,IF($S16=90,IrradianceDatabase!$T$20,J241))))),J241) -> FALSE | J241: =IF($M16="N",IF($S16=0,IrradianceDatabase!$D$35,IF($S16=30,IrradianceDatabase!$E$35,IF($S16=45,IrradianceDatabase!$F$35,IF($S16=60,IrradianceDatabase!$G$35,IF($S16=90,IrradianceDatabase!$H$35)))))) -> FALSE | K241: =IF($M17="W",IF(S17=0,IrradianceDatabase!$D$5,IF(S17=30,IrradianceDatabase!$E$5,IF(S17=45,IrradianceDatabase!$F$5,IF(S17=60,IrradianceDatabase!$G$5,IF(S17=90,IrradianceDatabase!$H$5,L241))))),L241) -> 86.29166667 | L241: =IF($M17="SW",IF($S17=0,IrradianceDatabase!J6,IF($S17=30,IrradianceDatabase!$K$5,IF($S17=45,IrradianceDatabase!$L$5,IF($S17=60,IrradianceDatabase!$M$5,IF($S17=90,IrradianceDatabase!$N$5,M241))))),M241) -> FALSE | M241: =IF($M17="S",IF($S17=0,IrradianceDatabase!$P$5,IF($S17=30,IrradianceDatabase!$Q$5,IF($S17=45,IrradianceDatabase!$R$5,IF($S17=60,IrradianceDatabase!$S$5,IF($S17=90,IrradianceDatabase!$T$5,N241))))),N241) -> FALSE | N241: =IF($M17="SE",IF($S17=0,IrradianceDatabase!$D$20,IF($S17=30,IrradianceDatabase!$E$20,IF($S17=45,IrradianceDatabase!$F$20,IF($S17=60,IrradianceDatabase!$G$20,IF($S17=90,IrradianceDatabase!$H$20,O241))))),O241) -> FALSE | O241: =IF($M17="E",IF($S17=0,IrradianceDatabase!$J$20,IF($S17=30,IrradianceDatabase!$K$20,IF($S17=45,IrradianceDatabase!$L$20,IF($S17=60,IrradianceDatabase!$M$20,IF($S17=90,IrradianceDatabase!$N$20,P241))))),P241) -> FALSE | P241: =IF(OR($M17="NE",$M17="NW"),IF($S17=0,IrradianceDatabase!$P$20,IF($S17=30,IrradianceDatabase!$Q$20,IF($S17=45,IrradianceDatabase!$R$20,IF($S17=60,IrradianceDatabase!$S$20,IF($S17=90,IrradianceDatabase!$T$20,Q241))))),Q241) -> FALSE | Q241: =IF($M17="N",IF($S17=0,IrradianceDatabase!$D$35,IF($S17=30,IrradianceDatabase!$E$35,IF($S17=45,IrradianceDatabase!$F$35,IF($S17=60,IrradianceDatabase!$G$35,IF($S17=90,IrradianceDatabase!$H$35)))))) -> FALSE | R241: =IF($M18="W",IF(S18=0,IrradianceDatabase!$D$5,IF(S18=30,IrradianceDatabase!$E$5,IF(S18=45,IrradianceDatabase!$F$5,IF(S18=60,IrradianceDatabase!$G$5,IF(S18=90,IrradianceDatabase!$H$5,S241))))),S241) -> 58.45833333 | S241: =IF($M18="SW",IF($S18=0,IrradianceDatabase!J7,IF($S18=30,IrradianceDatabase!$K$5,IF($S18=45,IrradianceDatabase!$L$5,IF($S18=60,IrradianceDatabase!$M$5,IF($S18=90,IrradianceDatabase!$N$5,T241))))),T241) -> 58.45833333 | T241: =IF($M18="S",IF($S18=0,IrradianceDatabase!$P$5,IF($S18=30,IrradianceDatabase!$Q$5,IF($S18=45,IrradianceDatabase!$R$5,IF($S18=60,IrradianceDatabase!$S$5,IF($S18=90,IrradianceDatabase!$T$5,V241))))),V241) -> 58.45833333 | V241: =IF($M18="SE",IF($S18=0,IrradianceDatabase!$D$20,IF($S18=30,IrradianceDatabase!$E$20,IF($S18=45,IrradianceDatabase!$F$20,IF($S18=60,IrradianceDatabase!$G$20,IF($S18=90,IrradianceDatabase!$H$20,W241))))),W241) -> 58.45833333 | W241: =IF($M18="E",IF($S18=0,IrradianceDatabase!$J$20,IF($S18=30,IrradianceDatabase!$K$20,IF($S18=45,IrradianceDatabase!$L$20,IF($S18=60,IrradianceDatabase!$M$20,IF($S18=90,IrradianceDatabase!$N$20,X241))))),X241) -> 58.45833333 | X241: =IF(OR($M18="NE",$M18="NW"),IF($S18=0,IrradianceDatabase!$P$20,IF($S18=30,IrradianceDatabase!$Q$20,IF($S18=45,IrradianceDatabase!$R$20,IF($S18=60,IrradianceDatabase!$S$20,IF($S18=90,IrradianceDatabase!$T$20,Y241))))),Y241) -> FALSE | Y241: =IF($M18="N",IF($S18=0,IrradianceDatabase!$D$35,IF($S18=30,IrradianceDatabase!$E$35,IF($S18=45,IrradianceDatabase!$F$35,IF($S18=60,IrradianceDatabase!$G$35,IF($S18=90,IrradianceDatabase!$H$35)))))) -> FALSE | Z241: =IF($M19="W",IF(S19=0,IrradianceDatabase!$D$5,IF(S19=30,IrradianceDatabase!$E$5,IF(S19=45,IrradianceDatabase!$F$5,IF(S19=60,IrradianceDatabase!$G$5,IF(S19=90,IrradianceDatabase!$H$5,AA241))))),AA241) -> 25.81349206 | AA241: =IF($M19="SW",IF($S19=0,IrradianceDatabase!J8,IF($S19=30,IrradianceDatabase!$K$5,IF($S19=45,IrradianceDatabase!$L$5,IF($S19=60,IrradianceDatabase!$M$5,IF($S19=90,IrradianceDatabase!$N$5,AB241))))),AB241) -> 25.81349206 | AB241: =IF($M19="S",IF($S19=0,IrradianceDatabase!$P$5,IF($S19=30,IrradianceDatabase!$Q$5,IF($S19=45,IrradianceDatabase!$R$5,IF($S19=60,IrradianceDatabase!$S$5,IF($S19=90,IrradianceDatabase!$T$5,AC241))))),AC241) -> 25.81349206 | AC241: =IF($M19="SE",IF($S19=0,IrradianceDatabase!$D$20,IF($S19=30,IrradianceDatabase!$E$20,IF($S19=45,IrradianceDatabase!$F$20,IF($S19=60,IrradianceDatabase!$G$20,IF($S19=90,IrradianceDatabase!$H$20,AD241))))),AD241) -> 25.81349206 | AD241: =IF($M19="E",IF($S19=0,IrradianceDatabase!$J$20,IF($S19=30,IrradianceDatabase!$K$20,IF($S19=45,IrradianceDatabase!$L$20,IF($S19=60,IrradianceDatabase!$M$20,IF($S19=90,IrradianceDatabase!$N$20,AE241))))),AE241) -> 25.81349206 | AE241: =IF(OR($M19="NE",$M19="NW"),IF($S19=0,IrradianceDatabase!$P$20,IF($S19=30,IrradianceDatabase!$Q$20,IF($S19=45,IrradianceDatabase!$R$20,IF($S19=60,IrradianceDatabase!$S$20,IF($S19=90,IrradianceDatabase!$T$20,AF241))))),AF241) -> 25.81349206 | AF241: =IF($M19="N",IF($S19=0,IrradianceDatabase!$D$35,IF($S19=30,IrradianceDatabase!$E$35,IF($S19=45,IrradianceDatabase!$F$35,IF($S19=60,IrradianceDatabase!$G$35,IF($S19=90,IrradianceDatabase!$H$35)))))) -> FALSE | AG241: =IF($M20="W",IF(S20=0,IrradianceDatabase!$D$5,IF(S20=30,IrradianceDatabase!$E$5,IF(S20=45,IrradianceDatabase!$F$5,IF(S20=60,IrradianceDatabase!$G$5,IF(S20=90,IrradianceDatabase!$H$5,AH241))))),AH241) -> 58.45833333 | AH241: =IF($M20="SW",IF($S20=0,IrradianceDatabase!J9,IF($S20=30,IrradianceDatabase!$K$5,IF($S20=45,IrradianceDatabase!$L$5,IF($S20=60,IrradianceDatabase!$M$5,IF($S20=90,IrradianceDatabase!$N$5,AI241))))),AI241) -> 58.45833333 | AI241: =IF($M20="S",IF($S20=0,IrradianceDatabase!$P$5,IF($S20=30,IrradianceDatabase!$Q$5,IF($S20=45,IrradianceDatabase!$R$5,IF($S20=60,IrradianceDatabase!$S$5,IF($S20=90,IrradianceDatabase!$T$5,AJ241))))),AJ241) -> 58.45833333 | AJ241: =IF($M20="SE",IF($S20=0,IrradianceDatabase!$D$20,IF($S20=30,IrradianceDatabase!$E$20,IF($S20=45,IrradianceDatabase!$F$20,IF($S20=60,IrradianceDatabase!$G$20,IF($S20=90,IrradianceDatabase!$H$20,AK241))))),AK241) -> 58.45833333 | AK241: =IF($M20="E",IF($S20=0,IrradianceDatabase!$J$20,IF($S20=30,IrradianceDatabase!$K$20,IF($S20=45,IrradianceDatabase!$L$20,IF($S20=60,IrradianceDatabase!$M$20,IF($S20=90,IrradianceDatabase!$N$20,AL241))))),AL241) -> 58.45833333 | AL241: =IF(OR($M20="NE",$M20="NW"),IF($S20=0,IrradianceDatabase!$P$20,IF($S20=30,IrradianceDatabase!$Q$20,IF($S20=45,IrradianceDatabase!$R$20,IF($S20=60,IrradianceDatabase!$S$20,IF($S20=90,IrradianceDatabase!$T$20,AM241))))),AM241) -> FALSE | AM241: =IF($M20="N",IF($S20=0,IrradianceDatabase!$D$35,IF($S20=30,IrradianceDatabase!$E$35,IF($S20=45,IrradianceDatabase!$F$35,IF($S20=60,IrradianceDatabase!$G$35,IF($S20=90,IrradianceDatabase!$H$35)))))) -> FALSE | AN241: =IF($M21="W",IF(S21=0,IrradianceDatabase!$D$5,IF(S21=30,IrradianceDatabase!$E$5,IF(S21=45,IrradianceDatabase!$F$5,IF(S21=60,IrradianceDatabase!$G$5,IF(S21=90,IrradianceDatabase!$H$5,AO241))))),AO241) -> 80.54166667 | AO241: =IF($M21="SW",IF($S21=0,IrradianceDatabase!J10,IF($S21=30,IrradianceDatabase!$K$5,IF($S21=45,IrradianceDatabase!$L$5,IF($S21=60,IrradianceDatabase!$M$5,IF($S21=90,IrradianceDatabase!$N$5,AP241))))),AP241) -> 80.54166667 | AP241: =IF($M21="S",IF($S21=0,IrradianceDatabase!$P$5,IF($S21=30,IrradianceDatabase!$Q$5,IF($S21=45,IrradianceDatabase!$R$5,IF($S21=60,IrradianceDatabase!$S$5,IF($S21=90,IrradianceDatabase!$T$5,AQ241))))),AQ241) -> FALSE | AQ241: =IF($M21="SE",IF($S21=0,IrradianceDatabase!$D$20,IF($S21=30,IrradianceDatabase!$E$20,IF($S21=45,IrradianceDatabase!$F$20,IF($S21=60,IrradianceDatabase!$G$20,IF($S21=90,IrradianceDatabase!$H$20,AR241))))),AR241) -> FALSE | AR241: =IF($M21="E",IF($S21=0,IrradianceDatabase!$J$20,IF($S21=30,IrradianceDatabase!$K$20,IF($S21=45,IrradianceDatabase!$L$20,IF($S21=60,IrradianceDatabase!$M$20,IF($S21=90,IrradianceDatabase!$N$20,AS241))))),AS241) -> FALSE | AS241: =IF(OR($M21="NE",$M21="NW"),IF($S21=0,IrradianceDatabase!$P$20,IF($S21=30,IrradianceDatabase!$Q$20,IF($S21=45,IrradianceDatabase!$R$20,IF($S21=60,IrradianceDatabase!$S$20,IF($S21=90,IrradianceDatabase!$T$20,AT241))))),AT241) -> FALSE | AT241: =IF($M21="N",IF($S21=0,IrradianceDatabase!$D$35,IF($S21=30,IrradianceDatabase!$E$35,IF($S21=45,IrradianceDatabase!$F$35,IF($S21=60,IrradianceDatabase!$G$35,IF($S21=90,IrradianceDatabase!$H$35)))))) -> FALSE | AU241: =IF($M22="W",IF(S22=0,IrradianceDatabase!$D$5,IF(S22=30,IrradianceDatabase!$E$5,IF(S22=45,IrradianceDatabase!$F$5,IF(S22=60,IrradianceDatabase!$G$5,IF(S22=90,IrradianceDatabase!$H$5,AV241))))),AV241) -> 98.33333333 | AV241: =IF($M22="SW",IF($S22=0,IrradianceDatabase!J11,IF($S22=30,IrradianceDatabase!$K$5,IF($S22=45,IrradianceDatabase!$L$5,IF($S22=60,IrradianceDatabase!$M$5,IF($S22=90,IrradianceDatabase!$N$5,AW241))))),AW241) -> 98.33333333 | AW241: =IF($M22="S",IF($S22=0,IrradianceDatabase!$P$5,IF($S22=30,IrradianceDatabase!$Q$5,IF($S22=45,IrradianceDatabase!$R$5,IF($S22=60,IrradianceDatabase!$S$5,IF($S22=90,IrradianceDatabase!$T$5,AX241))))),AX241) -> 98.33333333 | AX241: =IF($M22="SE",IF($S22=0,IrradianceDatabase!$D$20,IF($S22=30,IrradianceDatabase!$E$20,IF($S22=45,IrradianceDatabase!$F$20,IF($S22=60,IrradianceDatabase!$G$20,IF($S22=90,IrradianceDatabase!$H$20,AY241))))),AY241) -> FALSE | AY241: =IF($M22="E",IF($S22=0,IrradianceDatabase!$J$20,IF($S22=30,IrradianceDatabase!$K$20,IF($S22=45,IrradianceDatabase!$L$20,IF($S22=60,IrradianceDatabase!$M$20,IF($S22=90,IrradianceDatabase!$N$20,AZ241))))),AZ241) -> FALSE | AZ241: =IF(OR($M22="NE",$M22="NW"),IF($S22=0,IrradianceDatabase!$P$20,IF($S22=30,IrradianceDatabase!$Q$20,IF($S22=45,IrradianceDatabase!$R$20,IF($S22=60,IrradianceDatabase!$S$20,IF($S22=90,IrradianceDatabase!$T$20,BA241))))),BA241) -> FALSE | BA241: =IF($M22="N",IF($S22=0,IrradianceDatabase!$D$35,IF($S22=30,IrradianceDatabase!$E$35,IF($S22=45,IrradianceDatabase!$F$35,IF($S22=60,IrradianceDatabase!$G$35,IF($S22=90,IrradianceDatabase!$H$35)))))) -> FALSE | BB241: =IF($M23="W",IF(S23=0,IrradianceDatabase!$D$5,IF(S23=30,IrradianceDatabase!$E$5,IF(S23=45,IrradianceDatabase!$F$5,IF(S23=60,IrradianceDatabase!$G$5,IF(S23=90,IrradianceDatabase!$H$5,BC241))))),BC241) -> 86 | BC241: =IF($M23="SW",IF($S23=0,IrradianceDatabase!J12,IF($S23=30,IrradianceDatabase!$K$5,IF($S23=45,IrradianceDatabase!$L$5,IF($S23=60,IrradianceDatabase!$M$5,IF($S23=90,IrradianceDatabase!$N$5,BD241))))),BD241) -> 86 | BD241: =IF($M23="S",IF($S23=0,IrradianceDatabase!$P$5,IF($S23=30,IrradianceDatabase!$Q$5,IF($S23=45,IrradianceDatabase!$R$5,IF($S23=60,IrradianceDatabase!$S$5,IF($S23=90,IrradianceDatabase!$T$5,BE241))))),BE241) -> 86 | BE241: =IF($M23="SE",IF($S23=0,IrradianceDatabase!$D$20,IF($S23=30,IrradianceDatabase!$E$20,IF($S23=45,IrradianceDatabase!$F$20,IF($S23=60,IrradianceDatabase!$G$20,IF($S23=90,IrradianceDatabase!$H$20,BF241))))),BF241) -> 86 | BF241: =IF($M23="E",IF($S23=0,IrradianceDatabase!$J$20,IF($S23=30,IrradianceDatabase!$K$20,IF($S23=45,IrradianceDatabase!$L$20,IF($S23=60,IrradianceDatabase!$M$20,IF($S23=90,IrradianceDatabase!$N$20,BG241))))),BG241) -> FALSE | BG241: =IF(OR($M23="NE",$M23="NW"),IF($S23=0,IrradianceDatabase!$P$20,IF($S23=30,IrradianceDatabase!$Q$20,IF($S23=45,IrradianceDatabase!$R$20,IF($S23=60,IrradianceDatabase!$S$20,IF($S23=90,IrradianceDatabase!$T$20,BH241))))),BH241) -> FALSE | BH241: =IF($M23="N",IF($S23=0,IrradianceDatabase!$D$35,IF($S23=30,IrradianceDatabase!$E$35,IF($S23=45,IrradianceDatabase!$F$35,IF($S23=60,IrradianceDatabase!$G$35,IF($S23=90,IrradianceDatabase!$H$35)))))) -> FALSE | BI241: =IF($M24="W",IF(S24=0,IrradianceDatabase!$D$5,IF(S24=30,IrradianceDatabase!$E$5,IF(S24=45,IrradianceDatabase!$F$5,IF(S24=60,IrradianceDatabase!$G$5,IF(S24=90,IrradianceDatabase!$H$5,BJ241))))),BJ241) -> 58.45833333 | BJ241: =IF($M24="SW",IF($S24=0,IrradianceDatabase!J13,IF($S24=30,IrradianceDatabase!$K$5,IF($S24=45,IrradianceDatabase!$L$5,IF($S24=60,IrradianceDatabase!$M$5,IF($S24=90,IrradianceDatabase!$N$5,BK241))))),BK241) -> 58.45833333 | BK241: =IF($M24="S",IF($S24=0,IrradianceDatabase!$P$5,IF($S24=30,IrradianceDatabase!$Q$5,IF($S24=45,IrradianceDatabase!$R$5,IF($S24=60,IrradianceDatabase!$S$5,IF($S24=90,IrradianceDatabase!$T$5,BL241))))),BL241) -> 58.45833333 | BL241: =IF($M24="SE",IF($S24=0,IrradianceDatabase!$D$20,IF($S24=30,IrradianceDatabase!$E$20,IF($S24=45,IrradianceDatabase!$F$20,IF($S24=60,IrradianceDatabase!$G$20,IF($S24=90,IrradianceDatabase!$H$20,BM241))))),BM241) -> 58.45833333 | BM241: =IF($M24="E",IF($S24=0,IrradianceDatabase!$J$20,IF($S24=30,IrradianceDatabase!$K$20,IF($S24=45,IrradianceDatabase!$L$20,IF($S24=60,IrradianceDatabase!$M$20,IF($S24=90,IrradianceDatabase!$N$20,BN241))))),BN241) -> 58.45833333 | BN241: =IF(OR($M24="NE",$M24="NW"),IF($S24=0,IrradianceDatabase!$P$20,IF($S24=30,IrradianceDatabase!$Q$20,IF($S24=45,IrradianceDatabase!$R$20,IF($S24=60,IrradianceDatabase!$S$20,IF($S24=90,IrradianceDatabase!$T$20,BO241))))),BO241) -> FALSE | BO241: =IF($M24="N",IF($S24=0,IrradianceDatabase!$D$35,IF($S24=30,IrradianceDatabase!$E$35,IF($S24=45,IrradianceDatabase!$F$35,IF($S24=60,IrradianceDatabase!$G$35,IF($S24=90,IrradianceDatabase!$H$35)))))) -> FALSE | BP241: =IF($M25="W",IF(S25=0,IrradianceDatabase!$D$5,IF(S25=30,IrradianceDatabase!$E$5,IF(S25=45,IrradianceDatabase!$F$5,IF(S25=60,IrradianceDatabase!$G$5,IF(S25=90,IrradianceDatabase!$H$5,BQ241))))),BQ241) -> 25.81349206 | BQ241: =IF($M25="SW",IF($S25=0,IrradianceDatabase!J14,IF($S25=30,IrradianceDatabase!$K$5,IF($S25=45,IrradianceDatabase!$L$5,IF($S25=60,IrradianceDatabase!$M$5,IF($S25=90,IrradianceDatabase!$N$5,BR241))))),BR241) -> 25.81349206 | BR241: =IF($M25="S",IF($S25=0,IrradianceDatabase!$P$5,IF($S25=30,IrradianceDatabase!$Q$5,IF($S25=45,IrradianceDatabase!$R$5,IF($S25=60,IrradianceDatabase!$S$5,IF($S25=90,IrradianceDatabase!$T$5,BS241))))),BS241) -> 25.81349206 | BS241: =IF($M25="SE",IF($S25=0,IrradianceDatabase!$D$20,IF($S25=30,IrradianceDatabase!$E$20,IF($S25=45,IrradianceDatabase!$F$20,IF($S25=60,IrradianceDatabase!$G$20,IF($S25=90,IrradianceDatabase!$H$20,BT241))))),BT241) -> 25.81349206 | BT241: =IF($M25="E",IF($S25=0,IrradianceDatabase!$J$20,IF($S25=30,IrradianceDatabase!$K$20,IF($S25=45,IrradianceDatabase!$L$20,IF($S25=60,IrradianceDatabase!$M$20,IF($S25=90,IrradianceDatabase!$N$20,BU241))))),BU241) -> 25.81349206 | BU241: =IF(OR($M25="NE",$M25="NW"),IF($S25=0,IrradianceDatabase!$P$20,IF($S25=30,IrradianceDatabase!$Q$20,IF($S25=45,IrradianceDatabase!$R$20,IF($S25=60,IrradianceDatabase!$S$20,IF($S25=90,IrradianceDatabase!$T$20,BV241))))),BV241) -> 25.81349206 | BV241: =IF($M25="N",IF($S25=0,IrradianceDatabase!$D$35,IF($S25=30,IrradianceDatabase!$E$35,IF($S25=45,IrradianceDatabase!$F$35,IF($S25=60,IrradianceDatabase!$G$35,IF($S25=90,IrradianceDatabase!$H$35)))))) -> FALSE | BW241: =IF($M26="W",IF(S26=0,IrradianceDatabase!$D$5,IF(S26=30,IrradianceDatabase!$E$5,IF(S26=45,IrradianceDatabase!$F$5,IF(S26=60,IrradianceDatabase!$G$5,IF(S26=90,IrradianceDatabase!$H$5,BX241))))),BX241) -> FALSE | BX241: =IF($M26="SW",IF($S26=0,IrradianceDatabase!J15,IF($S26=30,IrradianceDatabase!$K$5,IF($S26=45,IrradianceDatabase!$L$5,IF($S26=60,IrradianceDatabase!$M$5,IF($S26=90,IrradianceDatabase!$N$5,BY241))))),BY241) -> FALSE | BY241: =IF($M26="S",IF($S26=0,IrradianceDatabase!$P$5,IF($S26=30,IrradianceDatabase!$Q$5,IF($S26=45,IrradianceDatabase!$R$5,IF($S26=60,IrradianceDatabase!$S$5,IF($S26=90,IrradianceDatabase!$T$5,BZ241))))),BZ241) -> FALSE | BZ241: =IF($M26="SE",IF($S26=0,IrradianceDatabase!$D$20,IF($S26=30,IrradianceDatabase!$E$20,IF($S26=45,IrradianceDatabase!$F$20,IF($S26=60,IrradianceDatabase!$G$20,IF($S26=90,IrradianceDatabase!$H$20,CA241))))),CA241) -> FALSE | CA241: =IF($M26="E",IF($S26=0,IrradianceDatabase!$J$20,IF($S26=30,IrradianceDatabase!$K$20,IF($S26=45,IrradianceDatabase!$L$20,IF($S26=60,IrradianceDatabase!$M$20,IF($S26=90,IrradianceDatabase!$N$20,CB241))))),CB241) -> FALSE | CB241: =IF(OR($M26="NE",$M26="NW"),IF($S26=0,IrradianceDatabase!$P$20,IF($S26=30,IrradianceDatabase!$Q$20,IF($S26=45,IrradianceDatabase!$R$20,IF($S26=60,IrradianceDatabase!$S$20,IF($S26=90,IrradianceDatabase!$T$20,CC241))))),CC241) -> FALSE | CC241: =IF($M26="N",IF($S26=0,IrradianceDatabase!$D$35,IF($S26=30,IrradianceDatabase!$E$35,IF($S26=45,IrradianceDatabase!$F$35,IF($S26=60,IrradianceDatabase!$G$35,IF($S26=90,IrradianceDatabase!$H$35)))))) -> FALSE | CD241: =IF($M27="W",IF(S27=0,IrradianceDatabase!$D$5,IF(S27=30,IrradianceDatabase!$E$5,IF(S27=45,IrradianceDatabase!$F$5,IF(S27=60,IrradianceDatabase!$G$5,IF(S27=90,IrradianceDatabase!$H$5,CE241))))),CE241) -> FALSE | CE241: =IF($M27="SW",IF($S27=0,IrradianceDatabase!J16,IF($S27=30,IrradianceDatabase!$K$5,IF($S27=45,IrradianceDatabase!$L$5,IF($S27=60,IrradianceDatabase!$M$5,IF($S27=90,IrradianceDatabase!$N$5,CF241))))),CF241) -> FALSE | CF241: =IF($M27="S",IF($S27=0,IrradianceDatabase!$P$5,IF($S27=30,IrradianceDatabase!$Q$5,IF($S27=45,IrradianceDatabase!$R$5,IF($S27=60,IrradianceDatabase!$S$5,IF($S27=90,IrradianceDatabase!$T$5,CG241))))),CG241) -> FALSE | CG241: =IF($M27="SE",IF($S27=0,IrradianceDatabase!$D$20,IF($S27=30,IrradianceDatabase!$E$20,IF($S27=45,IrradianceDatabase!$F$20,IF($S27=60,IrradianceDatabase!$G$20,IF($S27=90,IrradianceDatabase!$H$20,CH241))))),CH241) -> FALSE | CH241: =IF($M27="E",IF($S27=0,IrradianceDatabase!$J$20,IF($S27=30,IrradianceDatabase!$K$20,IF($S27=45,IrradianceDatabase!$L$20,IF($S27=60,IrradianceDatabase!$M$20,IF($S27=90,IrradianceDatabase!$N$20,CI241))))),CI241) -> FALSE | CI241: =IF(OR($M27="NE",$M27="NW"),IF($S27=0,IrradianceDatabase!$P$20,IF($S27=30,IrradianceDatabase!$Q$20,IF($S27=45,IrradianceDatabase!$R$20,IF($S27=60,IrradianceDatabase!$S$20,IF($S27=90,IrradianceDatabase!$T$20,CJ241))))),CJ241) -> FALSE | CJ241: =IF($M27="N",IF($S27=0,IrradianceDatabase!$D$35,IF($S27=30,IrradianceDatabase!$E$35,IF($S27=45,IrradianceDatabase!$F$35,IF($S27=60,IrradianceDatabase!$G$35,IF($S27=90,IrradianceDatabase!$H$35)))))) -> FALSE
C242: April | D242: =IF(M16="W",IF(S16=0,IrradianceDatabase!$D$6,IF(S16=30,IrradianceDatabase!$E$6,IF(S16=45,IrradianceDatabase!$F$6,IF(S16=60,IrradianceDatabase!$G$6,IF(S16=90,IrradianceDatabase!$H$6,E242))))),E242) -> 128.375 | E242: =IF($M16="SW",IF($S16=0,IrradianceDatabase!$J$6,IF($S16=30,IrradianceDatabase!$K$6,IF($S16=45,IrradianceDatabase!$L$6,IF($S16=60,IrradianceDatabase!$M$6,IF($S16=90,IrradianceDatabase!$N$6,F242))))),F242) -> FALSE | F242: =IF($M16="S",IF($S16=0,IrradianceDatabase!$P$6,IF($S16=30,IrradianceDatabase!$Q$6,IF($S16=45,IrradianceDatabase!$R$6,IF($S16=60,IrradianceDatabase!$S$6,IF($S16=90,IrradianceDatabase!$T$6,G242))))),G242) -> FALSE | G242: =IF($M16="SE",IF($S16=0,IrradianceDatabase!$D$21,IF($S16=30,IrradianceDatabase!$E$21,IF($S16=45,IrradianceDatabase!$F$21,IF($S16=60,IrradianceDatabase!$G$21,IF($S16=90,IrradianceDatabase!$H$21,H242))))),H242) -> FALSE | H242: =IF($M16="E",IF($S16=0,IrradianceDatabase!$J$21,IF($S16=30,IrradianceDatabase!$K$21,IF($S16=45,IrradianceDatabase!$L$21,IF($S16=60,IrradianceDatabase!$M$21,IF($S16=90,IrradianceDatabase!$N$21,I242))))),I242) -> FALSE | I242: =IF(OR($M16="NE",$M16="NW"),IF($S16=0,IrradianceDatabase!$P$21,IF($S16=30,IrradianceDatabase!$Q$21,IF($S16=45,IrradianceDatabase!$R$21,IF($S16=60,IrradianceDatabase!$S$21,IF($S16=90,IrradianceDatabase!$T$21,J242))))),J242) -> FALSE | J242: =IF($M16="N",IF($S16=0,IrradianceDatabase!$D$36,IF($S16=30,IrradianceDatabase!$E$36,IF($S16=45,IrradianceDatabase!$F$36,IF($S16=60,IrradianceDatabase!$G$36,IF($S16=90,IrradianceDatabase!$H$36)))))) -> FALSE | K242: =IF(M17="W",IF(S17=0,IrradianceDatabase!$D$6,IF(S17=30,IrradianceDatabase!$E$6,IF(S17=45,IrradianceDatabase!$F$6,IF(S17=60,IrradianceDatabase!$G$6,IF(S17=90,IrradianceDatabase!$H$6,L242))))),L242) -> 137.5 | L242: =IF($M17="SW",IF($S17=0,IrradianceDatabase!$J$6,IF($S17=30,IrradianceDatabase!$K$6,IF($S17=45,IrradianceDatabase!$L$6,IF($S17=60,IrradianceDatabase!$M$6,IF($S17=90,IrradianceDatabase!$N$6,M242))))),M242) -> FALSE | M242: =IF($M17="S",IF($S17=0,IrradianceDatabase!$P$6,IF($S17=30,IrradianceDatabase!$Q$6,IF($S17=45,IrradianceDatabase!$R$6,IF($S17=60,IrradianceDatabase!$S$6,IF($S17=90,IrradianceDatabase!$T$6,N242))))),N242) -> FALSE | N242: =IF($M17="SE",IF($S17=0,IrradianceDatabase!$D$21,IF($S17=30,IrradianceDatabase!$E$21,IF($S17=45,IrradianceDatabase!$F$21,IF($S17=60,IrradianceDatabase!$G$21,IF($S17=90,IrradianceDatabase!$H$21,O242))))),O242) -> FALSE | O242: =IF($M17="E",IF($S17=0,IrradianceDatabase!$J$21,IF($S17=30,IrradianceDatabase!$K$21,IF($S17=45,IrradianceDatabase!$L$21,IF($S17=60,IrradianceDatabase!$M$21,IF($S17=90,IrradianceDatabase!$N$21,P242))))),P242) -> FALSE | P242: =IF(OR($M17="NE",$M17="NW"),IF($S17=0,IrradianceDatabase!$P$21,IF($S17=30,IrradianceDatabase!$Q$21,IF($S17=45,IrradianceDatabase!$R$21,IF($S17=60,IrradianceDatabase!$S$21,IF($S17=90,IrradianceDatabase!$T$21,Q242))))),Q242) -> FALSE | Q242: =IF($M17="N",IF($S17=0,IrradianceDatabase!$D$36,IF($S17=30,IrradianceDatabase!$E$36,IF($S17=45,IrradianceDatabase!$F$36,IF($S17=60,IrradianceDatabase!$G$36,IF($S17=90,IrradianceDatabase!$H$36)))))) -> FALSE | R242: =IF(M18="W",IF(S18=0,IrradianceDatabase!$D$6,IF(S18=30,IrradianceDatabase!$E$6,IF(S18=45,IrradianceDatabase!$F$6,IF(S18=60,IrradianceDatabase!$G$6,IF(S18=90,IrradianceDatabase!$H$6,S242))))),S242) -> 87.25 | S242: =IF($M18="SW",IF($S18=0,IrradianceDatabase!$J$6,IF($S18=30,IrradianceDatabase!$K$6,IF($S18=45,IrradianceDatabase!$L$6,IF($S18=60,IrradianceDatabase!$M$6,IF($S18=90,IrradianceDatabase!$N$6,T242))))),T242) -> 87.25 | T242: =IF($M18="S",IF($S18=0,IrradianceDatabase!$P$6,IF($S18=30,IrradianceDatabase!$Q$6,IF($S18=45,IrradianceDatabase!$R$6,IF($S18=60,IrradianceDatabase!$S$6,IF($S18=90,IrradianceDatabase!$T$6,V242))))),V242) -> 87.25 | V242: =IF($M18="SE",IF($S18=0,IrradianceDatabase!$D$21,IF($S18=30,IrradianceDatabase!$E$21,IF($S18=45,IrradianceDatabase!$F$21,IF($S18=60,IrradianceDatabase!$G$21,IF($S18=90,IrradianceDatabase!$H$21,W242))))),W242) -> 87.25 | W242: =IF($M18="E",IF($S18=0,IrradianceDatabase!$J$21,IF($S18=30,IrradianceDatabase!$K$21,IF($S18=45,IrradianceDatabase!$L$21,IF($S18=60,IrradianceDatabase!$M$21,IF($S18=90,IrradianceDatabase!$N$21,X242))))),X242) -> 87.25 | X242: =IF(OR($M18="NE",$M18="NW"),IF($S18=0,IrradianceDatabase!$P$21,IF($S18=30,IrradianceDatabase!$Q$21,IF($S18=45,IrradianceDatabase!$R$21,IF($S18=60,IrradianceDatabase!$S$21,IF($S18=90,IrradianceDatabase!$T$21,Y242))))),Y242) -> FALSE | Y242: =IF($M18="N",IF($S18=0,IrradianceDatabase!$D$36,IF($S18=30,IrradianceDatabase!$E$36,IF($S18=45,IrradianceDatabase!$F$36,IF($S18=60,IrradianceDatabase!$G$36,IF($S18=90,IrradianceDatabase!$H$36)))))) -> FALSE | Z242: =IF(M19="W",IF(S19=0,IrradianceDatabase!$D$6,IF(S19=30,IrradianceDatabase!$E$6,IF(S19=45,IrradianceDatabase!$F$6,IF(S19=60,IrradianceDatabase!$G$6,IF(S19=90,IrradianceDatabase!$H$6,AA242))))),AA242) -> 38.80952381 | AA242: =IF($M19="SW",IF($S19=0,IrradianceDatabase!$J$6,IF($S19=30,IrradianceDatabase!$K$6,IF($S19=45,IrradianceDatabase!$L$6,IF($S19=60,IrradianceDatabase!$M$6,IF($S19=90,IrradianceDatabase!$N$6,AB242))))),AB242) -> 38.80952381 | AB242: =IF($M19="S",IF($S19=0,IrradianceDatabase!$P$6,IF($S19=30,IrradianceDatabase!$Q$6,IF($S19=45,IrradianceDatabase!$R$6,IF($S19=60,IrradianceDatabase!$S$6,IF($S19=90,IrradianceDatabase!$T$6,AC242))))),AC242) -> 38.80952381 | AC242: =IF($M19="SE",IF($S19=0,IrradianceDatabase!$D$21,IF($S19=30,IrradianceDatabase!$E$21,IF($S19=45,IrradianceDatabase!$F$21,IF($S19=60,IrradianceDatabase!$G$21,IF($S19=90,IrradianceDatabase!$H$21,AD242))))),AD242) -> 38.80952381 | AD242: =IF($M19="E",IF($S19=0,IrradianceDatabase!$J$21,IF($S19=30,IrradianceDatabase!$K$21,IF($S19=45,IrradianceDatabase!$L$21,IF($S19=60,IrradianceDatabase!$M$21,IF($S19=90,IrradianceDatabase!$N$21,AE242))))),AE242) -> 38.80952381 | AE242: =IF(OR($M19="NE",$M19="NW"),IF($S19=0,IrradianceDatabase!$P$21,IF($S19=30,IrradianceDatabase!$Q$21,IF($S19=45,IrradianceDatabase!$R$21,IF($S19=60,IrradianceDatabase!$S$21,IF($S19=90,IrradianceDatabase!$T$21,AF242))))),AF242) -> 38.80952381 | AF242: =IF($M19="N",IF($S19=0,IrradianceDatabase!$D$36,IF($S19=30,IrradianceDatabase!$E$36,IF($S19=45,IrradianceDatabase!$F$36,IF($S19=60,IrradianceDatabase!$G$36,IF($S19=90,IrradianceDatabase!$H$36)))))) -> FALSE | AG242: =IF(M20="W",IF(S20=0,IrradianceDatabase!$D$6,IF(S20=30,IrradianceDatabase!$E$6,IF(S20=45,IrradianceDatabase!$F$6,IF(S20=60,IrradianceDatabase!$G$6,IF(S20=90,IrradianceDatabase!$H$6,AH242))))),AH242) -> 87.25 | AH242: =IF($M20="SW",IF($S20=0,IrradianceDatabase!$J$6,IF($S20=30,IrradianceDatabase!$K$6,IF($S20=45,IrradianceDatabase!$L$6,IF($S20=60,IrradianceDatabase!$M$6,IF($S20=90,IrradianceDatabase!$N$6,AI242))))),AI242) -> 87.25 | AI242: =IF($M20="S",IF($S20=0,IrradianceDatabase!$P$6,IF($S20=30,IrradianceDatabase!$Q$6,IF($S20=45,IrradianceDatabase!$R$6,IF($S20=60,IrradianceDatabase!$S$6,IF($S20=90,IrradianceDatabase!$T$6,AJ242))))),AJ242) -> 87.25 | AJ242: =IF($M20="SE",IF($S20=0,IrradianceDatabase!$D$21,IF($S20=30,IrradianceDatabase!$E$21,IF($S20=45,IrradianceDatabase!$F$21,IF($S20=60,IrradianceDatabase!$G$21,IF($S20=90,IrradianceDatabase!$H$21,AK242))))),AK242) -> 87.25 | AK242: =IF($M20="E",IF($S20=0,IrradianceDatabase!$J$21,IF($S20=30,IrradianceDatabase!$K$21,IF($S20=45,IrradianceDatabase!$L$21,IF($S20=60,IrradianceDatabase!$M$21,IF($S20=90,IrradianceDatabase!$N$21,AL242))))),AL242) -> 87.25 | AL242: =IF(OR($M20="NE",$M20="NW"),IF($S20=0,IrradianceDatabase!$P$21,IF($S20=30,IrradianceDatabase!$Q$21,IF($S20=45,IrradianceDatabase!$R$21,IF($S20=60,IrradianceDatabase!$S$21,IF($S20=90,IrradianceDatabase!$T$21,AM242))))),AM242) -> FALSE | AM242: =IF($M20="N",IF($S20=0,IrradianceDatabase!$D$36,IF($S20=30,IrradianceDatabase!$E$36,IF($S20=45,IrradianceDatabase!$F$36,IF($S20=60,IrradianceDatabase!$G$36,IF($S20=90,IrradianceDatabase!$H$36)))))) -> FALSE | AN242: =IF(M21="W",IF(S21=0,IrradianceDatabase!$D$6,IF(S21=30,IrradianceDatabase!$E$6,IF(S21=45,IrradianceDatabase!$F$6,IF(S21=60,IrradianceDatabase!$G$6,IF(S21=90,IrradianceDatabase!$H$6,AO242))))),AO242) -> 102.4166667 | AO242: =IF($M21="SW",IF($S21=0,IrradianceDatabase!$J$6,IF($S21=30,IrradianceDatabase!$K$6,IF($S21=45,IrradianceDatabase!$L$6,IF($S21=60,IrradianceDatabase!$M$6,IF($S21=90,IrradianceDatabase!$N$6,AP242))))),AP242) -> 102.4166667 | AP242: =IF($M21="S",IF($S21=0,IrradianceDatabase!$P$6,IF($S21=30,IrradianceDatabase!$Q$6,IF($S21=45,IrradianceDatabase!$R$6,IF($S21=60,IrradianceDatabase!$S$6,IF($S21=90,IrradianceDatabase!$T$6,AQ242))))),AQ242) -> FALSE | AQ242: =IF($M21="SE",IF($S21=0,IrradianceDatabase!$D$21,IF($S21=30,IrradianceDatabase!$E$21,IF($S21=45,IrradianceDatabase!$F$21,IF($S21=60,IrradianceDatabase!$G$21,IF($S21=90,IrradianceDatabase!$H$21,AR242))))),AR242) -> FALSE | AR242: =IF($M21="E",IF($S21=0,IrradianceDatabase!$J$21,IF($S21=30,IrradianceDatabase!$K$21,IF($S21=45,IrradianceDatabase!$L$21,IF($S21=60,IrradianceDatabase!$M$21,IF($S21=90,IrradianceDatabase!$N$21,AS242))))),AS242) -> FALSE | AS242: =IF(OR($M21="NE",$M21="NW"),IF($S21=0,IrradianceDatabase!$P$21,IF($S21=30,IrradianceDatabase!$Q$21,IF($S21=45,IrradianceDatabase!$R$21,IF($S21=60,IrradianceDatabase!$S$21,IF($S21=90,IrradianceDatabase!$T$21,AT242))))),AT242) -> FALSE | AT242: =IF($M21="N",IF($S21=0,IrradianceDatabase!$D$36,IF($S21=30,IrradianceDatabase!$E$36,IF($S21=45,IrradianceDatabase!$F$36,IF($S21=60,IrradianceDatabase!$G$36,IF($S21=90,IrradianceDatabase!$H$36)))))) -> FALSE | AU242: =IF(M22="W",IF(S22=0,IrradianceDatabase!$D$6,IF(S22=30,IrradianceDatabase!$E$6,IF(S22=45,IrradianceDatabase!$F$6,IF(S22=60,IrradianceDatabase!$G$6,IF(S22=90,IrradianceDatabase!$H$6,AV242))))),AV242) -> 113 | AV242: =IF($M22="SW",IF($S22=0,IrradianceDatabase!$J$6,IF($S22=30,IrradianceDatabase!$K$6,IF($S22=45,IrradianceDatabase!$L$6,IF($S22=60,IrradianceDatabase!$M$6,IF($S22=90,IrradianceDatabase!$N$6,AW242))))),AW242) -> 113 | AW242: =IF($M22="S",IF($S22=0,IrradianceDatabase!$P$6,IF($S22=30,IrradianceDatabase!$Q$6,IF($S22=45,IrradianceDatabase!$R$6,IF($S22=60,IrradianceDatabase!$S$6,IF($S22=90,IrradianceDatabase!$T$6,AX242))))),AX242) -> 113 | AX242: =IF($M22="SE",IF($S22=0,IrradianceDatabase!$D$21,IF($S22=30,IrradianceDatabase!$E$21,IF($S22=45,IrradianceDatabase!$F$21,IF($S22=60,IrradianceDatabase!$G$21,IF($S22=90,IrradianceDatabase!$H$21,AY242))))),AY242) -> FALSE | AY242: =IF($M22="E",IF($S22=0,IrradianceDatabase!$J$21,IF($S22=30,IrradianceDatabase!$K$21,IF($S22=45,IrradianceDatabase!$L$21,IF($S22=60,IrradianceDatabase!$M$21,IF($S22=90,IrradianceDatabase!$N$21,AZ242))))),AZ242) -> FALSE | AZ242: =IF(OR($M22="NE",$M22="NW"),IF($S22=0,IrradianceDatabase!$P$21,IF($S22=30,IrradianceDatabase!$Q$21,IF($S22=45,IrradianceDatabase!$R$21,IF($S22=60,IrradianceDatabase!$S$21,IF($S22=90,IrradianceDatabase!$T$21,BA242))))),BA242) -> FALSE | BA242: =IF($M22="N",IF($S22=0,IrradianceDatabase!$D$36,IF($S22=30,IrradianceDatabase!$E$36,IF($S22=45,IrradianceDatabase!$F$36,IF($S22=60,IrradianceDatabase!$G$36,IF($S22=90,IrradianceDatabase!$H$36)))))) -> FALSE | BB242: =IF(M23="W",IF(S23=0,IrradianceDatabase!$D$6,IF(S23=30,IrradianceDatabase!$E$6,IF(S23=45,IrradianceDatabase!$F$6,IF(S23=60,IrradianceDatabase!$G$6,IF(S23=90,IrradianceDatabase!$H$6,BC242))))),BC242) -> 107.75 | BC242: =IF($M23="SW",IF($S23=0,IrradianceDatabase!$J$6,IF($S23=30,IrradianceDatabase!$K$6,IF($S23=45,IrradianceDatabase!$L$6,IF($S23=60,IrradianceDatabase!$M$6,IF($S23=90,IrradianceDatabase!$N$6,BD242))))),BD242) -> 107.75 | BD242: =IF($M23="S",IF($S23=0,IrradianceDatabase!$P$6,IF($S23=30,IrradianceDatabase!$Q$6,IF($S23=45,IrradianceDatabase!$R$6,IF($S23=60,IrradianceDatabase!$S$6,IF($S23=90,IrradianceDatabase!$T$6,BE242))))),BE242) -> 107.75 | BE242: =IF($M23="SE",IF($S23=0,IrradianceDatabase!$D$21,IF($S23=30,IrradianceDatabase!$E$21,IF($S23=45,IrradianceDatabase!$F$21,IF($S23=60,IrradianceDatabase!$G$21,IF($S23=90,IrradianceDatabase!$H$21,BF242))))),BF242) -> 107.75 | BF242: =IF($M23="E",IF($S23=0,IrradianceDatabase!$J$21,IF($S23=30,IrradianceDatabase!$K$21,IF($S23=45,IrradianceDatabase!$L$21,IF($S23=60,IrradianceDatabase!$M$21,IF($S23=90,IrradianceDatabase!$N$21,BG242))))),BG242) -> FALSE | BG242: =IF(OR($M23="NE",$M23="NW"),IF($S23=0,IrradianceDatabase!$P$21,IF($S23=30,IrradianceDatabase!$Q$21,IF($S23=45,IrradianceDatabase!$R$21,IF($S23=60,IrradianceDatabase!$S$21,IF($S23=90,IrradianceDatabase!$T$21,BH242))))),BH242) -> FALSE | BH242: =IF($M23="N",IF($S23=0,IrradianceDatabase!$D$36,IF($S23=30,IrradianceDatabase!$E$36,IF($S23=45,IrradianceDatabase!$F$36,IF($S23=60,IrradianceDatabase!$G$36,IF($S23=90,IrradianceDatabase!$H$36)))))) -> FALSE | BI242: =IF(M24="W",IF(S24=0,IrradianceDatabase!$D$6,IF(S24=30,IrradianceDatabase!$E$6,IF(S24=45,IrradianceDatabase!$F$6,IF(S24=60,IrradianceDatabase!$G$6,IF(S24=90,IrradianceDatabase!$H$6,BJ242))))),BJ242) -> 87.25 | BJ242: =IF($M24="SW",IF($S24=0,IrradianceDatabase!$J$6,IF($S24=30,IrradianceDatabase!$K$6,IF($S24=45,IrradianceDatabase!$L$6,IF($S24=60,IrradianceDatabase!$M$6,IF($S24=90,IrradianceDatabase!$N$6,BK242))))),BK242) -> 87.25 | BK242: =IF($M24="S",IF($S24=0,IrradianceDatabase!$P$6,IF($S24=30,IrradianceDatabase!$Q$6,IF($S24=45,IrradianceDatabase!$R$6,IF($S24=60,IrradianceDatabase!$S$6,IF($S24=90,IrradianceDatabase!$T$6,BL242))))),BL242) -> 87.25 | BL242: =IF($M24="SE",IF($S24=0,IrradianceDatabase!$D$21,IF($S24=30,IrradianceDatabase!$E$21,IF($S24=45,IrradianceDatabase!$F$21,IF($S24=60,IrradianceDatabase!$G$21,IF($S24=90,IrradianceDatabase!$H$21,BM242))))),BM242) -> 87.25 | BM242: =IF($M24="E",IF($S24=0,IrradianceDatabase!$J$21,IF($S24=30,IrradianceDatabase!$K$21,IF($S24=45,IrradianceDatabase!$L$21,IF($S24=60,IrradianceDatabase!$M$21,IF($S24=90,IrradianceDatabase!$N$21,BN242))))),BN242) -> 87.25 | BN242: =IF(OR($M24="NE",$M24="NW"),IF($S24=0,IrradianceDatabase!$P$21,IF($S24=30,IrradianceDatabase!$Q$21,IF($S24=45,IrradianceDatabase!$R$21,IF($S24=60,IrradianceDatabase!$S$21,IF($S24=90,IrradianceDatabase!$T$21,BO242))))),BO242) -> FALSE | BO242: =IF($M24="N",IF($S24=0,IrradianceDatabase!$D$36,IF($S24=30,IrradianceDatabase!$E$36,IF($S24=45,IrradianceDatabase!$F$36,IF($S24=60,IrradianceDatabase!$G$36,IF($S24=90,IrradianceDatabase!$H$36)))))) -> FALSE | BP242: =IF(M25="W",IF(S25=0,IrradianceDatabase!$D$6,IF(S25=30,IrradianceDatabase!$E$6,IF(S25=45,IrradianceDatabase!$F$6,IF(S25=60,IrradianceDatabase!$G$6,IF(S25=90,IrradianceDatabase!$H$6,BQ242))))),BQ242) -> 38.80952381 | BQ242: =IF($M25="SW",IF($S25=0,IrradianceDatabase!$J$6,IF($S25=30,IrradianceDatabase!$K$6,IF($S25=45,IrradianceDatabase!$L$6,IF($S25=60,IrradianceDatabase!$M$6,IF($S25=90,IrradianceDatabase!$N$6,BR242))))),BR242) -> 38.80952381 | BR242: =IF($M25="S",IF($S25=0,IrradianceDatabase!$P$6,IF($S25=30,IrradianceDatabase!$Q$6,IF($S25=45,IrradianceDatabase!$R$6,IF($S25=60,IrradianceDatabase!$S$6,IF($S25=90,IrradianceDatabase!$T$6,BS242))))),BS242) -> 38.80952381 | BS242: =IF($M25="SE",IF($S25=0,IrradianceDatabase!$D$21,IF($S25=30,IrradianceDatabase!$E$21,IF($S25=45,IrradianceDatabase!$F$21,IF($S25=60,IrradianceDatabase!$G$21,IF($S25=90,IrradianceDatabase!$H$21,BT242))))),BT242) -> 38.80952381 | BT242: =IF($M25="E",IF($S25=0,IrradianceDatabase!$J$21,IF($S25=30,IrradianceDatabase!$K$21,IF($S25=45,IrradianceDatabase!$L$21,IF($S25=60,IrradianceDatabase!$M$21,IF($S25=90,IrradianceDatabase!$N$21,BU242))))),BU242) -> 38.80952381 | BU242: =IF(OR($M25="NE",$M25="NW"),IF($S25=0,IrradianceDatabase!$P$21,IF($S25=30,IrradianceDatabase!$Q$21,IF($S25=45,IrradianceDatabase!$R$21,IF($S25=60,IrradianceDatabase!$S$21,IF($S25=90,IrradianceDatabase!$T$21,BV242))))),BV242) -> 38.80952381 | BV242: =IF($M25="N",IF($S25=0,IrradianceDatabase!$D$36,IF($S25=30,IrradianceDatabase!$E$36,IF($S25=45,IrradianceDatabase!$F$36,IF($S25=60,IrradianceDatabase!$G$36,IF($S25=90,IrradianceDatabase!$H$36)))))) -> FALSE | BW242: =IF(M26="W",IF(S26=0,IrradianceDatabase!$D$6,IF(S26=30,IrradianceDatabase!$E$6,IF(S26=45,IrradianceDatabase!$F$6,IF(S26=60,IrradianceDatabase!$G$6,IF(S26=90,IrradianceDatabase!$H$6,BX242))))),BX242) -> FALSE | BX242: =IF($M26="SW",IF($S26=0,IrradianceDatabase!$J$6,IF($S26=30,IrradianceDatabase!$K$6,IF($S26=45,IrradianceDatabase!$L$6,IF($S26=60,IrradianceDatabase!$M$6,IF($S26=90,IrradianceDatabase!$N$6,BY242))))),BY242) -> FALSE | BY242: =IF($M26="S",IF($S26=0,IrradianceDatabase!$P$6,IF($S26=30,IrradianceDatabase!$Q$6,IF($S26=45,IrradianceDatabase!$R$6,IF($S26=60,IrradianceDatabase!$S$6,IF($S26=90,IrradianceDatabase!$T$6,BZ242))))),BZ242) -> FALSE | BZ242: =IF($M26="SE",IF($S26=0,IrradianceDatabase!$D$21,IF($S26=30,IrradianceDatabase!$E$21,IF($S26=45,IrradianceDatabase!$F$21,IF($S26=60,IrradianceDatabase!$G$21,IF($S26=90,IrradianceDatabase!$H$21,CA242))))),CA242) -> FALSE | CA242: =IF($M26="E",IF($S26=0,IrradianceDatabase!$J$21,IF($S26=30,IrradianceDatabase!$K$21,IF($S26=45,IrradianceDatabase!$L$21,IF($S26=60,IrradianceDatabase!$M$21,IF($S26=90,IrradianceDatabase!$N$21,CB242))))),CB242) -> FALSE | CB242: =IF(OR($M26="NE",$M26="NW"),IF($S26=0,IrradianceDatabase!$P$21,IF($S26=30,IrradianceDatabase!$Q$21,IF($S26=45,IrradianceDatabase!$R$21,IF($S26=60,IrradianceDatabase!$S$21,IF($S26=90,IrradianceDatabase!$T$21,CC242))))),CC242) -> FALSE | CC242: =IF($M26="N",IF($S26=0,IrradianceDatabase!$D$36,IF($S26=30,IrradianceDatabase!$E$36,IF($S26=45,IrradianceDatabase!$F$36,IF($S26=60,IrradianceDatabase!$G$36,IF($S26=90,IrradianceDatabase!$H$36)))))) -> FALSE | CD242: =IF(M27="W",IF(S27=0,IrradianceDatabase!$D$6,IF(S27=30,IrradianceDatabase!$E$6,IF(S27=45,IrradianceDatabase!$F$6,IF(S27=60,IrradianceDatabase!$G$6,IF(S27=90,IrradianceDatabase!$H$6,CE242))))),CE242) -> FALSE | CE242: =IF($M27="SW",IF($S27=0,IrradianceDatabase!$J$6,IF($S27=30,IrradianceDatabase!$K$6,IF($S27=45,IrradianceDatabase!$L$6,IF($S27=60,IrradianceDatabase!$M$6,IF($S27=90,IrradianceDatabase!$N$6,CF242))))),CF242) -> FALSE | CF242: =IF($M27="S",IF($S27=0,IrradianceDatabase!$P$6,IF($S27=30,IrradianceDatabase!$Q$6,IF($S27=45,IrradianceDatabase!$R$6,IF($S27=60,IrradianceDatabase!$S$6,IF($S27=90,IrradianceDatabase!$T$6,CG242))))),CG242) -> FALSE | CG242: =IF($M27="SE",IF($S27=0,IrradianceDatabase!$D$21,IF($S27=30,IrradianceDatabase!$E$21,IF($S27=45,IrradianceDatabase!$F$21,IF($S27=60,IrradianceDatabase!$G$21,IF($S27=90,IrradianceDatabase!$H$21,CH242))))),CH242) -> FALSE | CH242: =IF($M27="E",IF($S27=0,IrradianceDatabase!$J$21,IF($S27=30,IrradianceDatabase!$K$21,IF($S27=45,IrradianceDatabase!$L$21,IF($S27=60,IrradianceDatabase!$M$21,IF($S27=90,IrradianceDatabase!$N$21,CI242))))),CI242) -> FALSE | CI242: =IF(OR($M27="NE",$M27="NW"),IF($S27=0,IrradianceDatabase!$P$21,IF($S27=30,IrradianceDatabase!$Q$21,IF($S27=45,IrradianceDatabase!$R$21,IF($S27=60,IrradianceDatabase!$S$21,IF($S27=90,IrradianceDatabase!$T$21,CJ242))))),CJ242) -> FALSE | CJ242: =IF($M27="N",IF($S27=0,IrradianceDatabase!$D$36,IF($S27=30,IrradianceDatabase!$E$36,IF($S27=45,IrradianceDatabase!$F$36,IF($S27=60,IrradianceDatabase!$G$36,IF($S27=90,IrradianceDatabase!$H$36)))))) -> FALSE
